Workbook

Sheet PANEL
C102: =IF(VLOOKUP('REPORTE MATERNO'!$B$3,$C$107:$D$125,2,0)>14,0,VLOOKUP('REPORTE MATERNO'!$B$3,$C$107:$D$125,2,0)) -> 0 | D102: =MAX(DATA!L:L)+2 -> 14
E104: SUBREGION | F104: CLAS | G104: EJECUTORA | H104: ESTABLECIMIENTO | I104: PROVINCIA | J104: RED | K104: DISTRITO | L104: NIVEL
D105: =VLOOKUP('REPORTE MATERNO'!$B$3,$C$107:$D$125,2,0) -> 15 | E105: (Todas) | F105: (Todas) | G105: (Todas) | H105: (Todas) | I105: (Todas) | J105: (Todas) | K105: (Todas)
C106: MESES | E106: LUCIANO CASTILLO COLONNA | F106: CLAS ALGARROBOS | G106: SALUD PIURA | H106: AMBASAL | I106: AYABACA | J106: AYABACA | K106: AMOTAPE | L106: REGION
C107: Enero | D107: 3 | E107: MORROPON HUANCABAMBA | F107: CLAS BATANES | G107: REGION PIURA-SALUD MORROPON-CHULUCANAS | H107: AMOTAPE | I107: HUANCABAMBA | J107: BAJO PIURA | K107: ARENAL | L107: SUBREGION
C108: Febrero | D108: 4 | E108: PIURA SECHURA | F108: CLAS BELLAVISTA | G108: SALUD LUCIANO CASTILLO COLONNA | H108: ANCHALAY | I108: MORROPON | J108: HUANCABAMBA | K108: AYABACA | L108: EJECUTORA
C109: Marzo | D109: 5 | F109: CLAS BERNAL | G109: HOSPITAL DE APOYO I CHULUCANAS | H109: ANDURCO | I109: PAITA | J109: HUARMACA | K109: BELLAVISTA | L109: RED
C110: Abril | D110: 6 | F110: CLAS BUENOS AIRES | G110: HOSPITAL DE APOYO I NUESTRA SEÑORA DE LAS MERCEDES DE PAITA | H110: ANIA | I110: PIURA | J110: MORROPON CHULUCANAS | K110: BELLAVISTA DE LA UNION | L110: PROVINCIA
C111: Mayo | D111: 7 | F111: CLAS CANCHAQUE | G111: HOSPITAL DE APOYO I SANTA ROSA | H111: ARAGOTO | I111: SECHURA | J111: PIURA CASTILLA | K111: BERNAL | L111: CLAS
C112: Junio | D112: 8 | F112: CLAS CASA GRANDE | G112: HOSPITAL DE APOYO III SULLANA | H112: ARREYPITE - PINGOLA | I112: SULLANA | J112: SULLANA | K112: BUENOS AIRES | L112: DISTRITO
C113: Julio | D113: 9 | F113: CLAS CATACAOS | H113: AYABACA | I113: TALARA | J113: NO PERTENECE A NINGUNA RED | K113: CANCHAQUE | L113: ESTABLECIMIENTO
C114: Agosto | D114: 10 | F114: CLAS CAYETANO HEREDIA | H114: BELLAVISTA | K114: CASTILLA
C115: Septiembre | D115: 11 | F115: CLAS CHALACO | H115: BLAS | K115: CATACAOS
C116: Octubre | D116: 12 | F116: CLAS CHATITO | H116: C. S. MARIA GORETTI | K116: CHALACO
C117: Noviembre | D117: 13 | F117: CLAS CURA MORI | H117: C.S BELLAVISTA | K117: CHULUCANAS
C118: Diciembre | D118: 14 | F118: CLAS FRIAS | H118: C.S CANCHAQUE | K118: COLAN
C119: Total | D119: 15 | F119: CLAS HIGUERON | H119: C.S CHICLAYITO | K119: CRISTO NOS VALGA
C120: I-Trim | D120: 16 | F120: CLAS HOSPITALES PIURA | H120: C.S EL FAIQUE | K120: CURA MORI
C121: II-Trim | D121: 17 | F121: CLAS HOSPITALES SULLANA | H121: C.S EL TUNAL | K121: EL ALTO
C122: III-Trim | D122: 18 | F122: CLAS IGNACIO MERINO | H122: C.S I -4 MORROPON | K122: EL CARMEN DE LA FRONTERA
C123: IV-Trim | D123: 19 | F123: CLAS KM 50 | H123: C.S I-4 SANTO DOMINGO | K123: EL TALLAN
C124: I-Sem | D124: 20 | F124: CLAS LA ARENA | H124: C.S LA ARENA | K124: FRIAS
C125: II-Sem | D125: 21 | F125: CLAS LA LEGUA | H125: C.S LA UNION | K125: HUANCABAMBA
F126: CLAS LA MATANZA | H126: C.S LIMON DE PORCUYA | K126: HUARMACA
F127: CLAS LA UNION | H127: C.S MICAELA BASTIDAS | K127: IGNACIO ESCUDERO
F128: CLAS LAGRIMAS DE CURUMUY | H128: C.S NUEVA ESPERANZA | K128: JILILI
F129: CLAS LALAQUIZ | H129: C.S PACHITEA | K129: LA ARENA
F130: CLAS LETIRA-BECARA | H130: C.S SALITRAL | K130: LA BREA
F131: CLAS MEDIO PIURA | H131: C.S SAN JOSE | K131: LA HUACA
F132: CLAS MONTE SULLON- NARIHUALA-PEDRE | H132: C.S SAN PEDRO | K132: LA MATANZA
F133: CLAS MORROPON | H133: C.S SONDOR | K133: LA UNION
F134: CLAS NANGAY DE MATALACAS | H134: C.S SONDORILLO | K134: LAGUNAS
F135: CLAS PACAIPAMPA | H135: C.S TACALA | K135: LALAQUIZ
F136: CLAS PACHITEA | H136: C.S VICE | K136: LANCONES
F137: CLAS PARACHIQUE | H137: C.S. EL INDIO | K137: LAS LOMAS
F138: CLAS RINCONADA LICUAR | H138: CABO BLANCO | K138: LOBITOS
F139: CLAS SALITRAL | H139: CALVAS DE SAMANGA | K139: LOS ORGANOS
F140: CLAS SALUD PARA TODOS | H140: CANAL MOCHO-CIENEG.SUR | K140: MANCORA
F141: CLAS SAN JUAN DE BIGOTE | H141: CASAS QUEMADAS | K141: MARCAVELICA
F142: CLAS SAN MIGUEL DE PIURA | H142: CENTRO DE SALUD MENTAL COMUNITARIO "SAN ALFONSO" | K142: MIGUEL CHECA
F143: CLAS SAN MIGUEL DEL FAIQUE | H143: CENTRO DE .SALUD I-4 BUENOS AIRES | K143: MONTERO
F144: CLAS SANTA CATALINA DE MOSSA | H144: CENTRO DE INVESTIGACION Y CAPACITACION EN ENTOMOLOGIA Y ENFERMEDADES TRASMISIBLES | K144: MORROPON
F145: CLAS SANTA ROSA | H145: CENTRO DE SALUD FRÍAS | K145: PACAIPAMPA
F146: CLAS SANTA ROSA - NUEVO TALLAN | H146: CENTRO DE SALUD HUARMACA | K146: PAIMAS
F147: CLAS SANTO CRISTO DE CRISTO NOS VA | H147: CENTRO DE SALUD MATERNO INFANTIL-CATACAOS | K147: PAITA
F148: CLAS SANTO DOMINGO | H148: CENTRO DE SALUD MENTAL COMUNITARIO "JESÚS REDENTOR" | K148: PARIÑAS
F149: CLAS SECHURA | H149: CENTRO DE SALUD MENTAL COMUNITARIO SAN ALFANSO | K149: PIURA
F150: CLAS SILAHUA | H150: CENTRO DE SALUD MENTAL COMUNITARIO "MADRE DEL PERPETUO SOCORRO" | K150: QUERECOTILLO
F151: CLAS SINCHAO GRANDE - EL TALLAN | H151: CENTRO DE SALUD MENTAL COMUNITARIO "SAN GERARDO" | K151: RINCONADA LLICUAR
F152: CLAS TAMBOYA | H152: CENTRO DE SALUD MENTAL COMUNITARIO CATACAOS | K152: SALITRAL
F153: CLAS VICE | H153: CENTRO DE SALUD MENTAL COMUNITARIO CHULUCANAS | K153: SAN JUAN DE BIGOTE
F154: CLAS VILLA LOS RANCHOS | H154: CENTRO DE SALUD MENTAL COMUNITARIO PIURA | K154: SAN MIGUEL DE EL FAIQUE
F155: CLAS YAMANGO | H155: CENTRO DE SALUD MENTAL COMUNITARIO SAN GERARDO | K155: SANTA CATALINA DE MOSSA
F156: CLAS YAPATERA | H156: CENTRO DE SALUD MENTAL COMUNITARIO SAN ROMAN | K156: SANTO DOMINGO
F157: CLAS EL OBRERO | H157: CENTRO DE SALUD MENTAL COMUNITARIO SECHURA | K157: SAPILLICA
F158: CLAS IGNACIO ESCUDERO | H158: CHALACALA | K158: SECHURA
F159: CLAS JILILI | H159: CHALACALA ALTA | K159: SICCHEZ
F160: CLAS LA HUACA | H160: CHARAN | K160: SONDOR
F161: CLAS LA PEÐA-LA HORCA | H161: CHICA ALTA | K161: SONDORILLO
F162: CLAS LA TORTUGA | H162: CHILACO PELADOS | K162: SULLANA
F163: CLAS MALLARES | H163: CHINCHIN | K163: SUYO
F164: CLAS NEGRITOS | H164: CHIPILLICO | K164: TAMARINDO
F165: CLAS NUEVE DE OCTUBRE | H165: CHIRINOS | K165: TAMBO GRANDE
F166: CLAS PUEBLO NUEVO COLAN | H166: CHOCAN | K166: VEINTISEIS DE OCTUB
F167: CLAS QUERECOTILLO | H167: CHORRERA DE PULGUERAS | K167: VICE
F168: CLAS SAN FRANCISCO DE CHOCAN | H168: CIENEGUILLO CENTRO | K168: VICHAYAL
F169: CLAS SANTA CRUZ | H169: CIENEGUILLO SUR ALTO | K169: YAMANGO
F170: CLAS SANTA TERESITA | H170: CLAS QUERECOTILLO
F171: CLAS SICCHEZ | H171: COLETAS-CHACHACOMAL
F172: CLAS TAMBOGRANDE | H172: COMUNIDAD SALUDABLE
F173: CLAS VICHAYAL | H173: CP3-SAN MARTIN
F174: NINGUN CLAS | H174: CP4
H175: CP5
H176: CRUCETA
H177: CS I-2 EL TALLAN
H178: CUCUYAS
H179: E. S. I - 1 LACCHAN
H180: E.S I- 3 YAPATERA
H181: E.S I-1 GERALDO
H182: E.S II-1 HOSPITAL CHULUCANAS
H183: E.S NARIHUALA
H184: E.S SANTA JULIA
H185: E.S FRANCO
H186: E.S I.2 MANCUCUR
H187: E.S I-1 CHUSIS
H188: E.S I-1 CAJAS SHAPAYA
H189: E.S I-1 CULEBREROS
H190: E.S I-1 HUAYLAS
H191: E.S I-1 PIEDRA DEL TORO
H192: E.S I-1 SIMIRIS
H193: E.S I-1 TAJAMAR
H194: E.S I-2 CASCAMACHE
H195: E.S I-2 HORMIGUEROS
H196: E.S I-2 ROSARIOS BAJO
H197: E.S I-2 UCHUPATA
H198: E.S I-3 SAPALACHE
H199: E.S I-4 CONSUELO DE VELASCO
H200: E.S I-4 SECHURA
H201: E.S MONTE SULLON
H202: E.S QUINCHAYO GRANDE
H203: E.S. CHATITO
H204: E.S. CIENEGUILLO SUR
H205: E.S. CILIA
H206: E.S. I -1 CASHACOTO
H207: E.S. LA MATANZA
H208: E.S. LA RINCONADA
H209: E.S. PACAIPAMPA
H210: E.S. PEDREGAL GRANDE
H211: E.S. I - 2 TULUCE
H212: E.S. I 4 BERNAL
H213: E.S. I-1 LA HUAQUILLA
H214: E.S. I-1 CONSTANTE
H215: E.S. I-1 JACANACAS
H216: E.S. I-1 PORTACHUELO
H217: E.S. I-1 PUEBLO NUEVO DE BUENOS AIRES
H218: E.S. I-3 CURA MORI
H219: E.S. I-4 CASTILLA
H220: E.S. I-4 JESUS GUERRERO CRUZ
H221: E.S. KM 50
H222: EE.SS I-2 JUZGARA
H223: EL ALAMOR
H224: EL ALTO
H225: EL ARENAL
H226: EL CUCHO
H227: EL LUCUMO
H228: EL ÑURO
H229: EL OBRERO
H230: EL PARTIDOR
H231: EL PITAYO
H232: EL PORVENIR
H233: EL SAUCE-LAS LOMAS
H234: EL SAUCE-SAPILLICA
H235: EL TAMBO
H236: EL TOLDO
H237: ENCUENTRO DE PILARES
H238: ENCUENTRO DE ROMEROS
H239: ESPINDOLA
H240: ESTABLECIMIENTO DE SALUD CHANRRO
H241: ESTABLECIMIENTO DE SALUD I - MARAYPAMPA
H242: ESTABLECIMIENTO DE SALUD I 2 PUEBLO NUEVO DE MARAY
H243: ESTABLECIMIENTO DE SALUD I-1 COYONA
H244: ESTABLECIMIENTO DE SALUD PAMBARUMBE
H245: FELIPE SANTIAGO SALAVERRY
H246: GARABATOS
H247: GICLAS
H248: GIGANTE
H249: GUARAGUAOS
H250: HOSPITAL DE APOYO II - 2, SULLANA
H251: HOSPITAL DE LA AMISTAD PERU - COREA SANTA ROSA II-2
H252: HOSPITAL NUESTRA SEÑORA DE LAS MERCEDES - PAITA
H253: HUACHUMA
H254: HUACHUMA ALTA
H255: HUANGALA
H256: HUASIMAL DE LA SOLANA
H257: HUIRIQUINGUE
H258: I-2 SILAHUA
H259: IGNACIO ESCUDERO
H260: JAHUAY NEGRO
H261: JAMBUR
H262: JIBITO
H263: JILILI
H264: JOSE ABELARDO QUINONES
H265: JOSE OLAYA
H266: JUAN VALER SANDOVAL
H267: LA GOLONDRINA
H268: LA GREDA
H269: LA HUACA
H270: LA ISLA SAN LORENZO
H271: LA ISLILLA
H272: LA LAGUNA
H273: LA MARGARITA
H274: LA MENTA
H275: LA NORIA
H276: LA PEÑA - LA HORCA
H277: LA PEÑITA
H278: LA QUINTA
H279: LA RITA
H280: LA SAUCHA
H281: LA TIENDA
H282: LA TINA
H283: LAGUNAS
H284: LAGUNAS DE CANGLY
H285: LANCONES
H286: LAS CUEVAS
H287: LAS LOMAS
H288: LAS MONICAS
H289: LLOQUE YUPANQUI
H290: LOBITOS
H291: LOS ALGARROBOS
H292: LOS ORGANOS
H293: MACACARA
H294: MALINGAS
H295: MALINGUITAS
H296: MALLARES
H297: MALLARITOS
H298: MANCORA
H299: MARCAVELICA
H300: MARMAS ALTO
H301: MIGUEL CHECA
H302: MIRAFLORES
... 219 more rows

Sheet TABLA
B3: SUBREGION | C3: (Todas)
C4: ENE | D4: FEB | E4: MAR | F4: ABR | G4: MAY | H4: JUN | I4: JUL | J4: AGO | K4: SEP | L4: OCT | M4: NOV | N4: DIC | O4: TOTAL | P4: I-Trim | Q4: II-Trim | R4: III-Trim | S4: IV-Trim | T4: I-Sem | U4: II-Sem
A5: =MID(B5,9,5) ->  | C5: MES | O5: =SUM(C5:N5) -> 0 | P5: =SUM(C5:E5) -> 0 | Q5: =SUM(F5:H5) -> 0 | R5: =SUM(I5:K5) -> 0 | S5: =SUM(L5:N5) -> 0 | T5: =SUM(C5:H5) -> 0 | U5: =SUM(I5:N5) -> 0
A6: =MID(B6,9,5) ->  | B6: Datos | C6: 1 | D6: 2 | E6: 3 | F6: 4 | G6: 5 | H6: 6 | I6: 7 | J6: 8 | K6: 9 | L6: 10 | M6: 11 | N6: 12 | O6: =SUM(C6:N6) -> 78 | P6: =SUM(C6:E6) -> 6 | Q6: =SUM(F6:H6) -> 15 | R6: =SUM(I6:K6) -> 24 | S6: =SUM(L6:N6) -> 33 | T6: =SUM(C6:H6) -> 21 | U6: =SUM(I6:N6) -> 57
A7: MP001 | B7: Suma de MP001 | C7: 0 | D7: 0 | E7: 0 | F7: 0 | G7: 0 | H7: 0 | I7: 0 | J7: 0 | K7: 0 | L7: 0 | M7: 0 | N7: 0 | O7: 0 | P7: 0 | Q7: 0 | R7: 0 | S7: 0 | T7: 0 | U7: 0
A8: MP002 | B8: Suma de MP002 | C8: 0 | D8: 0 | E8: 0 | F8: 0 | G8: 0 | H8: 0 | I8: 0 | J8: 0 | K8: 0 | L8: 0 | M8: 0 | N8: 0 | O8: 0 | P8: 0 | Q8: 0 | R8: 0 | S8: 0 | T8: 0 | U8: 0
A9: MP003 | B9: Suma de MP003 | C9: 0 | D9: 0 | E9: 0 | F9: 0 | G9: 0 | H9: 0 | I9: 0 | J9: 0 | K9: 0 | L9: 0 | M9: 0 | N9: 0 | O9: 0 | P9: 0 | Q9: 0 | R9: 0 | S9: 0 | T9: 0 | U9: 0
A10: MP004 | B10: Suma de MP004 | C10: 152 | D10: 138 | E10: 142 | F10: 131 | G10: 151 | H10: 127 | I10: 221 | J10: 128 | K10: 141 | L10: 43 | M10: 44 | N10: 34 | O10: =SUM(C10:N10) -> 1452 | P10: 432 | Q10: 409 | R10: 490 | S10: 121 | T10: 841 | U10: 611
A11: MP005 | B11: Suma de MP005 | C11: 73 | D11: 72 | E11: 62 | F11: 81 | G11: 81 | H11: 66 | I11: 101 | J11: 72 | K11: 51 | L11: 23 | M11: 19 | N11: 19 | O11: 720 | P11: 207 | Q11: 228 | R11: 224 | S11: 61 | T11: 435 | U11: 285
A12: MP006 | B12: Suma de MP006 | C12: 14 | D12: 15 | E12: 19 | F12: 31 | G12: 21 | H12: 25 | I12: 84 | J12: 23 | K12: 36 | L12: 13 | M12: 14 | N12: 18 | O12: 313 | P12: 48 | Q12: 77 | R12: 143 | S12: 45 | T12: 125 | U12: 188
A13: MP007 | B13: Suma de MP007 | C13: 849 | D13: 827 | E13: 766 | F13: 757 | G13: 832 | H13: 811 | I13: 1766 | J13: 910 | K13: 955 | L13: 270 | M13: 256 | N13: 192 | O13: 9191 | P13: 2442 | Q13: 2400 | R13: 3631 | S13: 718 | T13: 4842 | U13: 4349
A14: MP008 | B14: Suma de MP008 | C14: 394 | D14: 384 | E14: 389 | F14: 326 | G14: 437 | H14: 350 | I14: 676 | J14: 329 | K14: 380 | L14: 133 | M14: 97 | N14: 85 | O14: 3980 | P14: 1167 | Q14: 1113 | R14: 1385 | S14: 315 | T14: 2280 | U14: 1700
A15: MP009 | B15: Suma de MP009 | C15: 122 | D15: 154 | E15: 172 | F15: 200 | G15: 165 | H15: 211 | I15: 389 | J15: 177 | K15: 253 | L15: 141 | M15: 109 | N15: 123 | O15: 2216 | P15: 448 | Q15: 576 | R15: 819 | S15: 373 | T15: 1024 | U15: 1192
A16: MP010 | B16: Suma de MP010 | C16: 451 | D16: 464 | E16: 428 | F16: 423 | G16: 451 | H16: 402 | I16: 927 | J16: 504 | K16: 530 | L16: 145 | M16: 154 | N16: 109 | O16: 4988 | P16: 1343 | Q16: 1276 | R16: 1961 | S16: 408 | T16: 2619 | U16: 2369
A17: MP011 | B17: Suma de MP011 | C17: 226 | D17: 191 | E17: 195 | F17: 203 | G17: 241 | H17: 171 | I17: 374 | J17: 184 | K17: 247 | L17: 58 | M17: 46 | N17: 42 | O17: 2178 | P17: 612 | Q17: 615 | R17: 805 | S17: 146 | T17: 1227 | U17: 951
A18: MP012 | B18: Suma de MP012 | C18: 45 | D18: 93 | E18: 96 | F18: 115 | G18: 79 | H18: 138 | I18: 327 | J18: 116 | K18: 169 | L18: 104 | M18: 55 | N18: 77 | O18: 1414 | P18: 234 | Q18: 332 | R18: 612 | S18: 236 | T18: 566 | U18: 848
A19: MP013 | B19: Suma de MP013 | C19: 1 | D19: 1 | E19: 1 | F19: 1 | G19: 0 | H19: 1 | I19: 0 | J19: 1 | K19: 0 | L19: 1 | M19: 1 | N19: 1 | O19: 9 | P19: 3 | Q19: 2 | R19: 1 | S19: 3 | T19: 5 | U19: 4
A20: MP014 | B20: Suma de MP014 | C20: 1464 | D20: 1501 | E20: 1523 | F20: 1502 | G20: 1609 | H20: 1563 | I20: 2807 | J20: 1419 | K20: 1350 | L20: 440 | M20: 410 | N20: 374 | O20: 15962 | P20: 4488 | Q20: 4674 | R20: 5576 | S20: 1224 | T20: 9162 | U20: 6800
A21: MP015 | B21: Suma de MP015 | C21: 9853 | D21: 10101 | E21: 10411 | F21: 10066 | G21: 10803 | H21: 9970 | I21: 19425 | J21: 9686 | K21: 9700 | L21: 2870 | M21: 2740 | N21: 2650 | O21: 108275 | P21: 30365 | Q21: 30839 | R21: 38811 | S21: 8260 | T21: 61204 | U21: 47071
A22: MP016 | B22: Suma de MP016 | C22: 5348 | D22: 5631 | E22: 5749 | F22: 5437 | G22: 5821 | H22: 5531 | I22: 10638 | J22: 5282 | K22: 5432 | L22: 1503 | M22: 1454 | N22: 1398 | O22: 59224 | P22: 16728 | Q22: 16789 | R22: 21352 | S22: 4355 | T22: 33517 | U22: 25707
A23: MP017 | B23: Suma de MP017 | C23: 0 | D23: 1 | E23: 0 | F23: 0 | G23: 0 | H23: 0 | I23: 0 | J23: 0 | K23: 0 | L23: 0 | M23: 0 | N23: 0 | O23: 1 | P23: 1 | Q23: 0 | R23: 0 | S23: 0 | T23: 1 | U23: 0
A24: MP018 | B24: Suma de MP018 | C24: 131 | D24: 126 | E24: 126 | F24: 159 | G24: 156 | H24: 130 | I24: 295 | J24: 156 | K24: 122 | L24: 52 | M24: 56 | N24: 32 | O24: 1541 | P24: 383 | Q24: 445 | R24: 573 | S24: 140 | T24: 828 | U24: 713
A25: MP019 | B25: Suma de MP019 | C25: 1001 | D25: 1001 | E25: 1019 | F25: 917 | G25: 985 | H25: 995 | I25: 1998 | J25: 940 | K25: 961 | L25: 325 | M25: 314 | N25: 288 | O25: =SUM(C25:N25) -> 10744 | P25: =SUM(C25:E25) -> 3021 | Q25: =SUM(F25:H25) -> 2897 | R25: =SUM(I25:K25) -> 3899 | S25: =SUM(L25:N25) -> 927 | T25: =SUM(C25:H25) -> 5918 | U25: =SUM(I25:N25) -> 4826
A26: MP020 | B26: Suma de MP020 | C26: 542 | D26: 603 | E26: 567 | F26: 527 | G26: 538 | H26: 520 | I26: 1058 | J26: 542 | K26: 539 | L26: 142 | M26: 153 | N26: 164 | O26: 5895 | P26: 1712 | Q26: 1585 | R26: 2139 | S26: 459 | T26: 3297 | U26: 2598
A27: MP021 | B27: Suma de MP021 | C27: 0 | D27: 0 | E27: 0 | F27: 0 | G27: 0 | H27: 0 | I27: 0 | J27: 0 | K27: 0 | L27: 0 | M27: 0 | N27: 0 | O27: 0 | P27: 0 | Q27: 0 | R27: 0 | S27: 0 | T27: 0 | U27: 0
A28: MP022 | B28: Suma de MP022 | C28: 15 | D28: 8 | E28: 12 | F28: 7 | G28: 11 | H28: 10 | I28: 21 | J28: 11 | K28: 12 | L28: 5 | M28: 7 | N28: 2 | O28: 121 | P28: 35 | Q28: 28 | R28: 44 | S28: 14 | T28: 63 | U28: 58
A29: MP023 | B29: Suma de MP023 | C29: 89 | D29: 77 | E29: 90 | F29: 29 | G29: 114 | H29: 117 | I29: 178 | J29: 85 | K29: 82 | L29: 22 | M29: 19 | N29: 20 | O29: 922 | P29: 256 | Q29: 260 | R29: 345 | S29: 61 | T29: 516 | U29: 406
A30: MP024 | B30: Suma de MP024 | C30: 60 | D30: 54 | E30: 49 | F30: 29 | G30: 51 | H30: 52 | I30: 127 | J30: 53 | K30: 54 | L30: 12 | M30: 14 | N30: 15 | O30: 570 | P30: 163 | Q30: 132 | R30: 234 | S30: 41 | T30: 295 | U30: 275
A31: MP025 | B31: Suma de MP025 | C31: 0 | D31: 0 | E31: 0 | F31: 0 | G31: 0 | H31: 0 | I31: 0 | J31: 0 | K31: 0 | L31: 0 | M31: 0 | N31: 0 | O31: 0 | P31: 0 | Q31: 0 | R31: 0 | S31: 0 | T31: 0 | U31: 0
A32: MP026 | B32: Suma de MP026 | C32: 0 | D32: 0 | E32: 1 | F32: 0 | G32: 0 | H32: 0 | I32: 0 | J32: 0 | K32: 0 | L32: 0 | M32: 0 | N32: 0 | O32: 1 | P32: 1 | Q32: 0 | R32: 0 | S32: 0 | T32: 1 | U32: 0
A33: MP027 | B33: Suma de MP027 | C33: 0 | D33: 22 | E33: 11 | F33: 0 | G33: 1 | H33: 2 | I33: 10 | J33: 1 | K33: 3 | L33: 1 | M33: 2 | N33: 6 | O33: 59 | P33: 33 | Q33: 3 | R33: 14 | S33: 9 | T33: 36 | U33: 23
A34: MP028 | B34: Suma de MP028 | C34: 7 | D34: 31 | E34: 24 | F34: 0 | G34: 13 | H34: 15 | I34: 19 | J34: 11 | K34: 21 | L34: 8 | M34: 10 | N34: 26 | O34: 185 | P34: 62 | Q34: 28 | R34: 51 | S34: 44 | T34: 90 | U34: 95
A35: MP029 | B35: Suma de MP029 | C35: 1 | D35: 0 | E35: 0 | F35: 0 | G35: 0 | H35: 0 | I35: 0 | J35: 0 | K35: 0 | L35: 0 | M35: 0 | N35: 0 | O35: 1 | P35: 1 | Q35: 0 | R35: 0 | S35: 0 | T35: 1 | U35: 0
A36: MP030 | B36: Suma de MP030 | C36: 172 | D36: 157 | E36: 158 | F36: 157 | G36: 197 | H36: 135 | I36: 271 | J36: 174 | K36: 143 | L36: 53 | M36: 50 | N36: 38 | O36: 1705 | P36: 487 | Q36: 489 | R36: 588 | S36: 141 | T36: 976 | U36: 729
A37: MP031 | B37: Suma de MP031 | C37: 964 | D37: 912 | E37: 892 | F37: 888 | G37: 1044 | H37: 932 | I37: 1848 | J37: 973 | K37: 1052 | L37: 308 | M37: 271 | N37: 180 | O37: 10264 | P37: 2768 | Q37: 2864 | R37: 3873 | S37: 759 | T37: 5632 | U37: 4632
A38: MP032 | B38: Suma de MP032 | C38: 491 | D38: 513 | E38: 470 | F38: 510 | G38: 532 | H38: 471 | I38: 1044 | J38: 562 | K38: 598 | L38: 157 | M38: 155 | N38: 96 | O38: 5599 | P38: 1474 | Q38: 1513 | R38: 2204 | S38: 408 | T38: 2987 | U38: 2612
A39: MP033 | B39: Suma de MP033 | C39: 0 | D39: 0 | E39: 0 | F39: 0 | G39: 0 | H39: 0 | I39: 0 | J39: 0 | K39: 0 | L39: 0 | M39: 0 | N39: 0 | O39: 0 | P39: 0 | Q39: 0 | R39: 0 | S39: 0 | T39: 0 | U39: 0
A40: MP034 | B40: Suma de MP034 | C40: 74 | D40: 65 | E40: 72 | F40: 83 | G40: 102 | H40: 80 | I40: 129 | J40: 79 | K40: 60 | L40: 29 | M40: 19 | N40: 20 | O40: 812 | P40: 211 | Q40: 265 | R40: 268 | S40: 68 | T40: 476 | U40: 336
A41: MP035 | B41: Suma de MP035 | C41: 554 | D41: 591 | E41: 583 | F41: 573 | G41: 581 | H41: 578 | I41: 1080 | J41: 485 | K41: 452 | L41: 168 | M41: 143 | N41: 138 | O41: 5926 | P41: 1728 | Q41: 1732 | R41: 2017 | S41: 449 | T41: 3460 | U41: 2466
A42: MP036 | B42: Suma de MP036 | C42: 277 | D42: 348 | E42: 300 | F42: 305 | G42: 340 | H42: 278 | I42: 577 | J42: 296 | K42: 275 | L42: 88 | M42: 73 | N42: 82 | O42: 3239 | P42: 925 | Q42: 923 | R42: 1148 | S42: 243 | T42: 1848 | U42: 1391
A43: MP037 | B43: Suma de MP037 | C43: 1 | D43: 0 | E43: 0 | F43: 0 | G43: 0 | H43: 0 | I43: 0 | J43: 0 | K43: 1 | L43: 0 | M43: 0 | N43: 0 | O43: 2 | P43: 1 | Q43: 0 | R43: 1 | S43: 0 | T43: 1 | U43: 1
A44: MP038 | B44: Suma de MP038 | C44: 221 | D44: 191 | E44: 194 | F44: 186 | G44: 199 | H44: 159 | I44: 290 | J44: 169 | K44: 168 | L44: 64 | M44: 55 | N44: 40 | O44: 1936 | P44: 606 | Q44: 544 | R44: 627 | S44: 159 | T44: 1150 | U44: 786
A45: MP039 | B45: Suma de MP039 | C45: 1280 | D45: 1174 | E45: 1214 | F45: 1103 | G45: 1247 | H45: 1090 | I45: 2265 | J45: 993 | K45: 1126 | L45: 354 | M45: 303 | N45: 246 | O45: 12395 | P45: 3668 | Q45: 3440 | R45: 4384 | S45: 903 | T45: 7108 | U45: 5287
A46: MP040 | B46: Suma de MP040 | C46: 658 | D46: 655 | E46: 615 | F46: 624 | G46: 669 | H46: 506 | I46: 1156 | J46: 529 | K46: 641 | L46: 188 | M46: 167 | N46: 131 | O46: 6539 | P46: 1928 | Q46: 1799 | R46: 2326 | S46: 486 | T46: 3727 | U46: 2812
A47: MP041 | B47: Suma de MP041 | C47: 0 | D47: 0 | E47: 0 | F47: 0 | G47: 0 | H47: 0 | I47: 0 | J47: 0 | K47: 0 | L47: 0 | M47: 0 | N47: 0 | O47: =SUM(C47:N47) -> 0 | P47: =SUM(C47:E47) -> 0 | Q47: =SUM(F47:H47) -> 0 | R47: =SUM(I47:K47) -> 0 | S47: =SUM(L47:N47) -> 0 | T47: =SUM(C47:H47) -> 0 | U47: =SUM(I47:N47) -> 0
A48: MP042 | B48: Suma de MP042 | C48: 78 | D48: 77 | E48: 84 | F48: 80 | G48: 93 | H48: 84 | I48: 92 | J48: 60 | K48: 83 | L48: 45 | M48: 35 | N48: 20 | O48: 831 | P48: 239 | Q48: 257 | R48: 235 | S48: 100 | T48: 496 | U48: 335
A49: MP043 | B49: Suma de MP043 | C49: 412 | D49: 473 | E49: 363 | F49: 384 | G49: 448 | H49: 462 | I49: 756 | J49: 407 | K49: 433 | L49: 283 | M49: 231 | N49: 123 | O49: 4775 | P49: 1248 | Q49: 1294 | R49: 1596 | S49: 637 | T49: 2542 | U49: 2233
A50: MP044 | B50: Suma de MP044 | C50: 204 | D50: 290 | E50: 238 | F50: 207 | G50: 253 | H50: 286 | I50: 452 | J50: 233 | K50: 280 | L50: 168 | M50: 128 | N50: 77 | O50: 2816 | P50: 732 | Q50: 746 | R50: 965 | S50: 373 | T50: 1478 | U50: 1338
A51: MP045 | B51: Suma de MP045 | C51: 0 | D51: 0 | E51: 1 | F51: 0 | G51: 0 | H51: 2 | I51: 0 | J51: 1 | K51: 0 | L51: 0 | M51: 0 | N51: 0 | O51: 4 | P51: 1 | Q51: 2 | R51: 1 | S51: 0 | T51: 3 | U51: 1
A52: MP046 | B52: Suma de MP046 | C52: 34 | D52: 58 | E52: 43 | F52: 42 | G52: 44 | H52: 58 | I52: 75 | J52: 39 | K52: 35 | L52: 18 | M52: 14 | N52: 6 | O52: 466 | P52: 135 | Q52: 144 | R52: 149 | S52: 38 | T52: 279 | U52: 187
A53: MP047 | B53: Suma de MP047 | C53: 242 | D53: 269 | E53: 300 | F53: 270 | G53: 306 | H53: 295 | I53: 409 | J53: 225 | K53: 230 | L53: 122 | M53: 94 | N53: 51 | O53: 2813 | P53: 811 | Q53: 871 | R53: 864 | S53: 267 | T53: 1682 | U53: 1131
A54: MP048 | B54: Suma de MP048 | C54: 122 | D54: 154 | E54: 145 | F54: 120 | G54: 158 | H54: 188 | I54: 239 | J54: 143 | K54: 144 | L54: 65 | M54: 54 | N54: 23 | O54: 1555 | P54: 421 | Q54: 466 | R54: 526 | S54: 142 | T54: 887 | U54: 668
A55: MP049 | B55: Suma de MP049 | C55: 0 | D55: 0 | E55: 0 | F55: 0 | G55: 0 | H55: 0 | I55: 0 | J55: 0 | K55: 0 | L55: 0 | M55: 0 | N55: 0 | O55: 0 | P55: 0 | Q55: 0 | R55: 0 | S55: 0 | T55: 0 | U55: 0
A56: MP050 | B56: Suma de MP050 | C56: 10 | D56: 12 | E56: 9 | F56: 17 | G56: 12 | H56: 15 | I56: 26 | J56: 20 | K56: 11 | L56: 4 | M56: 3 | N56: 1 | O56: 140 | P56: 31 | Q56: 44 | R56: 57 | S56: 8 | T56: 75 | U56: 65
A57: MP051 | B57: Suma de MP051 | C57: 88 | D57: 97 | E57: 105 | F57: 94 | G57: 120 | H57: 128 | I57: 208 | J57: 95 | K57: 79 | L57: 38 | M57: 24 | N57: 11 | O57: 1087 | P57: 290 | Q57: 342 | R57: 382 | S57: 73 | T57: 632 | U57: 455
A58: MP052 | B58: Suma de MP052 | C58: 55 | D58: 56 | E58: 42 | F58: 61 | G58: 45 | H58: 67 | I58: 109 | J58: 60 | K58: 38 | L58: 7 | M58: 8 | N58: 3 | O58: 551 | P58: 153 | Q58: 173 | R58: 207 | S58: 18 | T58: 326 | U58: 225
A59: MP053 | B59: Suma de MP053 | C59: 0 | D59: 0 | E59: 0 | F59: 1 | G59: 0 | H59: 0 | I59: 0 | J59: 0 | K59: 1 | L59: 0 | M59: 0 | N59: 0 | O59: 2 | P59: 0 | Q59: 1 | R59: 1 | S59: 0 | T59: 1 | U59: 1
A60: MP054 | B60: Suma de MP054 | C60: 365 | D60: 361 | E60: 389 | F60: 409 | G60: 417 | H60: 395 | I60: 727 | J60: 412 | K60: 377 | L60: 102 | M60: 113 | N60: 86 | O60: 4153 | P60: 1115 | Q60: 1221 | R60: 1516 | S60: 301 | T60: 2336 | U60: 1817
A61: MP055 | B61: Suma de MP055 | C61: 2438 | D61: 2353 | E61: 2491 | F61: 2370 | G61: 2497 | H61: 2402 | I61: 5114 | J61: 2483 | K61: 2581 | L61: 606 | M61: 601 | N61: 502 | O61: 26438 | P61: 7282 | Q61: 7269 | R61: 10178 | S61: 1709 | T61: 14551 | U61: 11887
A62: MP056 | B62: Suma de MP056 | C62: 1349 | D62: 1401 | E62: 1384 | F62: 1326 | G62: 1482 | H62: 1366 | I62: 2622 | J62: 1453 | K62: 1533 | L62: 313 | M62: 316 | N62: 259 | O62: 14804 | P62: 4134 | Q62: 4174 | R62: 5608 | S62: 888 | T62: 8308 | U62: 6496
A63: MP057 | B63: Suma de MP057 | C63: 0 | D63: 0 | E63: 0 | F63: 0 | G63: 0 | H63: 0 | I63: 0 | J63: 0 | K63: 0 | L63: 0 | M63: 0 | N63: 0 | O63: 0 | P63: 0 | Q63: 0 | R63: 0 | S63: 0 | T63: 0 | U63: 0
A64: MP058 | B64: Suma de MP058 | C64: 77 | D64: 80 | E64: 71 | F64: 71 | G64: 74 | H64: 72 | I64: 149 | J64: 76 | K64: 62 | L64: 18 | M64: 16 | N64: 20 | O64: 786 | P64: 228 | Q64: 217 | R64: 287 | S64: 54 | T64: 445 | U64: 341
A65: MP059 | B65: Suma de MP059 | C65: 423 | D65: 452 | E65: 432 | F65: 416 | G65: 470 | H65: 461 | I65: 870 | J65: 415 | K65: 479 | L65: 81 | M65: 93 | N65: 83 | O65: 4675 | P65: 1307 | Q65: 1347 | R65: 1764 | S65: 257 | T65: 2654 | U65: 2021
A66: MP060 | B66: Suma de MP060 | C66: 204 | D66: 236 | E66: 230 | F66: 188 | G66: 230 | H66: 219 | I66: 457 | J66: 222 | K66: 250 | L66: 40 | M66: 51 | N66: 45 | O66: 2372 | P66: 670 | Q66: 637 | R66: 929 | S66: 136 | T66: 1307 | U66: 1065
A67: MP061 | B67: Suma de MP061 | C67: 0 | D67: 1 | E67: 0 | F67: 1 | G67: 0 | H67: 0 | I67: 0 | J67: 1 | K67: 1 | L67: 0 | M67: 0 | N67: 0 | O67: 4 | P67: 1 | Q67: 1 | R67: 2 | S67: 0 | T67: 2 | U67: 2
A68: MP062 | B68: Suma de MP062 | C68: 492 | D68: 472 | E68: 510 | F68: 492 | G68: 448 | H68: 459 | I68: 856 | J68: 443 | K68: 408 | L68: 96 | M68: 98 | N68: 91 | O68: 4865 | P68: 1474 | Q68: 1399 | R68: 1707 | S68: 285 | T68: 2873 | U68: 1992
A69: MP063 | B69: Suma de MP063 | C69: 3215 | D69: 3062 | E69: 3482 | F69: 3086 | G69: 3042 | H69: 2806 | I69: 5777 | J69: 2978 | K69: 3062 | L69: 543 | M69: 528 | N69: 552 | O69: 32133 | P69: 9759 | Q69: 8934 | R69: 11817 | S69: 1623 | T69: 18693 | U69: 13440
A70: =MID(B70,9,5) -> MP064 | B70: Suma de MP064 | C70: 1806 | D70: 1851 | E70: 2028 | F70: 1755 | G70: 1753 | H70: 1644 | I70: 3078 | J70: 1658 | K70: 1820 | L70: 297 | M70: 293 | N70: 279 | O70: 18262 | P70: 5685 | Q70: 5152 | R70: 6556 | S70: 869 | T70: 10837 | U70: 7425
A71: MP065 | B71: Suma de MP065 | C71: 0 | D71: 0 | E71: 0 | F71: 0 | G71: 0 | H71: 0 | I71: 0 | J71: 0 | K71: 0 | L71: 0 | M71: 0 | N71: 0 | O71: =SUM(C71:N71) -> 0 | P71: =SUM(C71:E71) -> 0 | Q71: =SUM(F71:H71) -> 0 | R71: =SUM(I71:K71) -> 0 | S71: =SUM(L71:N71) -> 0 | T71: =SUM(C71:H71) -> 0 | U71: =SUM(I71:N71) -> 0
A72: =MID(B72,9,5) -> MP066 | B72: Suma de MP066 | C72: 11 | D72: 17 | E72: 11 | F72: 7 | G72: 4 | H72: 4 | I72: 18 | J72: 7 | K72: 7 | L72: 2 | M72: 2 | N72: 3 | O72: =SUM(C72:N72) -> 93 | P72: =SUM(C72:E72) -> 39 | Q72: =SUM(F72:H72) -> 15 | R72: =SUM(I72:K72) -> 32 | S72: =SUM(L72:N72) -> 7 | T72: =SUM(C72:H72) -> 54 | U72: =SUM(I72:N72) -> 39
A73: MP067 | B73: Suma de MP067 | C73: 75 | D73: 63 | E73: 91 | F73: 49 | G73: 56 | H73: 57 | I73: 90 | J73: 45 | K73: 53 | L73: 10 | M73: 5 | N73: 13 | O73: =SUM(C73:N73) -> 607 | P73: =SUM(C73:E73) -> 229 | Q73: =SUM(F73:H73) -> 162 | R73: =SUM(I73:K73) -> 188 | S73: =SUM(L73:N73) -> 28 | T73: =SUM(C73:H73) -> 391 | U73: =SUM(I73:N73) -> 216
A74: =MID(B74,9,5) -> MP068 | B74: Suma de MP068 | C74: 38 | D74: 55 | E74: 57 | F74: 28 | G74: 23 | H74: 24 | I74: 60 | J74: 20 | K74: 28 | L74: 6 | M74: 5 | N74: 5 | O74: =SUM(C74:N74) -> 349 | P74: =SUM(C74:E74) -> 150 | Q74: =SUM(F74:H74) -> 75 | R74: =SUM(I74:K74) -> 108 | S74: =SUM(L74:N74) -> 16 | T74: =SUM(C74:H74) -> 225 | U74: =SUM(I74:N74) -> 124
A75: MP069 | B75: Suma de MP069 | C75: 0 | D75: 0 | E75: 0 | F75: 0 | G75: 0 | H75: 0 | I75: 0 | J75: 0 | K75: 0 | L75: 0 | M75: 0 | N75: 0 | O75: 0 | P75: 0 | Q75: 0 | R75: 0 | S75: 0 | T75: 0 | U75: 0
A76: MP070 | B76: Suma de MP070 | C76: 36 | D76: 33 | E76: 35 | F76: 46 | G76: 35 | H76: 19 | I76: 40 | J76: 27 | K76: 29 | L76: 7 | M76: 9 | N76: 3 | O76: 319 | P76: 104 | Q76: 100 | R76: 96 | S76: 19 | T76: 204 | U76: 115
A77: MP071 | B77: Suma de MP071 | C77: 304 | D77: 317 | E77: 327 | F77: 305 | G77: 229 | H77: 240 | I77: 404 | J77: 222 | K77: 211 | L77: 41 | M77: 49 | N77: 35 | O77: 2684 | P77: 948 | Q77: 774 | R77: 837 | S77: 125 | T77: 1722 | U77: 962
A78: MP072 | B78: Suma de MP072 | C78: 186 | D78: 167 | E78: 164 | F78: 143 | G78: 138 | H78: 110 | I78: 207 | J78: 108 | K78: 103 | L78: 24 | M78: 29 | N78: 12 | O78: 1391 | P78: 517 | Q78: 391 | R78: 418 | S78: 65 | T78: 908 | U78: 483
A79: MP073 | B79: Suma de MP073 | C79: 0 | D79: 0 | E79: 0 | F79: 0 | G79: 0 | H79: 0 | I79: 0 | J79: 0 | K79: 0 | L79: 0 | M79: 0 | N79: 0 | O79: 0 | P79: 0 | Q79: 0 | R79: 0 | S79: 0 | T79: 0 | U79: 0
A80: MP074 | B80: Suma de MP074 | C80: 6 | D80: 4 | E80: 9 | F80: 10 | G80: 9 | H80: 8 | I80: 23 | J80: 18 | K80: 8 | L80: 4 | M80: 7 | N80: 7 | O80: 113 | P80: 19 | Q80: 27 | R80: 49 | S80: 18 | T80: 46 | U80: 67
A81: MP075 | B81: Suma de MP075 | C81: 46 | D81: 64 | E81: 50 | F81: 56 | G81: 90 | H81: 104 | I81: 139 | J81: 126 | K81: 96 | L81: 32 | M81: 49 | N81: 35 | O81: 887 | P81: 160 | Q81: 250 | R81: 361 | S81: 116 | T81: 410 | U81: 477
A82: MP076 | B82: Suma de MP076 | C82: 22 | D82: 26 | E82: 31 | F82: 40 | G82: 44 | H82: 57 | I82: 61 | J82: 51 | K82: 36 | L82: 19 | M82: 23 | N82: 19 | O82: 429 | P82: 79 | Q82: 141 | R82: 148 | S82: 61 | T82: 220 | U82: 209
A83: MP077 | B83: Suma de MP077 | C83: 0 | D83: 0 | E83: 0 | F83: 0 | G83: 0 | H83: 0 | I83: 0 | J83: 0 | K83: 0 | L83: 0 | M83: 1 | N83: 0 | O83: 1 | P83: 0 | Q83: 0 | R83: 0 | S83: 1 | T83: 0 | U83: 1
A84: MP078 | B84: Suma de MP078 | C84: 0 | D84: 0 | E84: 1 | F84: 7 | G84: 2 | H84: 7 | I84: 4 | J84: 5 | K84: 5 | L84: 1 | M84: 2 | N84: 3 | O84: 37 | P84: 1 | Q84: 16 | R84: 14 | S84: 6 | T84: 17 | U84: 20
A85: MP079 | B85: Suma de MP079 | C85: 13 | D85: 24 | E85: 19 | F85: 35 | G85: 45 | H85: 57 | I85: 96 | J85: 60 | K85: 57 | L85: 7 | M85: 22 | N85: 21 | O85: 456 | P85: 56 | Q85: 137 | R85: 213 | S85: 50 | T85: 193 | U85: 263
A86: MP080 | B86: Suma de MP080 | C86: 14 | D86: 8 | E86: 11 | F86: 19 | G86: 40 | H86: 32 | I86: 51 | J86: 24 | K86: 24 | L86: 7 | M86: 7 | N86: 5 | O86: 242 | P86: 33 | Q86: 91 | R86: 99 | S86: 19 | T86: 124 | U86: 118
A87: MP081 | B87: Suma de MP081 | C87: 1 | D87: 0 | E87: 0 | F87: 0 | G87: 1 | H87: 3 | I87: 6 | J87: 2 | K87: 4 | L87: 0 | M87: 0 | N87: 0 | O87: 17 | P87: 1 | Q87: 4 | R87: 12 | S87: 0 | T87: 5 | U87: 12
A88: MP082 | B88: Suma de MP082 | C88: 38 | D88: 28 | E88: 7 | F88: 0 | G88: 44 | H88: 76 | I88: 127 | J88: 77 | K88: 66 | L88: 14 | M88: 13 | N88: 8 | O88: 498 | P88: 73 | Q88: 120 | R88: 270 | S88: 35 | T88: 193 | U88: 305
A89: MP083 | B89: Suma de MP083 | C89: 254 | D89: 260 | E89: 41 | F89: 10 | G89: 369 | H89: 556 | I89: 830 | J89: 500 | K89: 524 | L89: 113 | M89: 108 | N89: 54 | O89: 3619 | P89: 555 | Q89: 935 | R89: 1854 | S89: 275 | T89: 1490 | U89: 2129
A90: MP084 | B90: Suma de MP084 | C90: 167 | D90: 145 | E90: 29 | F90: 3 | G90: 228 | H90: 315 | I90: 436 | J90: 264 | K90: 282 | L90: 61 | M90: 47 | N90: 27 | O90: 2004 | P90: 341 | Q90: 546 | R90: 982 | S90: 135 | T90: 887 | U90: 1117
A91: MP085 | B91: Suma de MP085 | C91: 8 | D91: 3 | E91: 5 | F91: 1 | G91: 6 | H91: 3 | I91: 2 | J91: 17 | K91: 1 | L91: 0 | M91: 1 | N91: 0 | O91: 47 | P91: 16 | Q91: 10 | R91: 20 | S91: 1 | T91: 26 | U91: 21
A92: MP086 | B92: Suma de MP086 | C92: 30 | D92: 39 | E92: 39 | F92: 24 | G92: 35 | H92: 43 | I92: 43 | J92: 24 | K92: 23 | L92: 7 | M92: 2 | N92: 4 | O92: 313 | P92: 108 | Q92: 102 | R92: 90 | S92: 13 | T92: 210 | U92: 103
A93: MP087 | B93: Suma de MP087 | C93: 166 | D93: 160 | E93: 157 | F93: 164 | G93: 231 | H93: 194 | I93: 409 | J93: 199 | K93: 165 | L93: 64 | M93: 53 | N93: 44 | O93: =SUM(C93:N93) -> 2006 | P93: =SUM(C93:E93) -> 483 | Q93: =SUM(F93:H93) -> 589 | R93: =SUM(I93:K93) -> 773 | S93: =SUM(L93:N93) -> 161 | T93: =SUM(C93:H93) -> 1072 | U93: =SUM(I93:N93) -> 934
A94: MP088 | B94: Suma de MP088 | C94: 85 | D94: 86 | E94: 84 | F94: 60 | G94: 112 | H94: 84 | I94: 192 | J94: 95 | K94: 100 | L94: 26 | M94: 24 | N94: 19 | O94: 967 | P94: 255 | Q94: 256 | R94: 387 | S94: 69 | T94: 511 | U94: 456
A95: MP089 | B95: Suma de MP089 | C95: 1 | D95: 0 | E95: 0 | F95: 0 | G95: 0 | H95: 0 | I95: 2 | J95: 0 | K95: 0 | L95: 0 | M95: 1 | N95: 0 | O95: 4 | P95: 1 | Q95: 0 | R95: 2 | S95: 1 | T95: 1 | U95: 3
A96: MP090 | B96: Suma de MP090 | C96: 23 | D96: 21 | E96: 25 | F96: 30 | G96: 29 | H96: 31 | I96: 72 | J96: 32 | K96: 25 | L96: 25 | M96: 16 | N96: 15 | O96: 344 | P96: 69 | Q96: 90 | R96: 129 | S96: 56 | T96: 159 | U96: 185
A97: MP091 | B97: Suma de MP091 | C97: 183 | D97: 178 | E97: 174 | F97: 229 | G97: 223 | H97: 274 | I97: 507 | J97: 222 | K97: 212 | L97: 133 | M97: 121 | N97: 145 | O97: 2601 | P97: 535 | Q97: 726 | R97: 941 | S97: 399 | T97: 1261 | U97: 1340
A98: MP092 | B98: Suma de MP092 | C98: 75 | D98: 74 | E98: 90 | F98: 104 | G98: 111 | H98: 140 | I98: 276 | J98: 105 | K98: 130 | L98: 64 | M98: 70 | N98: 67 | O98: 1306 | P98: 239 | Q98: 355 | R98: 511 | S98: 201 | T98: 594 | U98: 712
A99: MP093 | B99: Suma de MP093 | C99: 0 | D99: 0 | E99: 0 | F99: 0 | G99: 1 | H99: 0 | I99: 0 | J99: 0 | K99: 0 | L99: 0 | M99: 0 | N99: 0 | O99: 1 | P99: 0 | Q99: 1 | R99: 0 | S99: 0 | T99: 1 | U99: 0
A100: MP094 | B100: Suma de MP094 | C100: 7 | D100: 12 | E100: 22 | F100: 25 | G100: 22 | H100: 24 | I100: 28 | J100: 15 | K100: 18 | L100: 14 | M100: 24 | N100: 11 | O100: 222 | P100: 41 | Q100: 71 | R100: 61 | S100: 49 | T100: 112 | U100: 110
A101: MP095 | B101: Suma de MP095 | C101: 95 | D101: 123 | E101: 139 | F101: 159 | G101: 165 | H101: 176 | I101: 248 | J101: 238 | K101: 160 | L101: 99 | M101: 114 | N101: 73 | O101: 1789 | P101: 357 | Q101: 500 | R101: 646 | S101: 286 | T101: 857 | U101: 932
A102: MP096 | B102: Suma de MP096 | C102: 32 | D102: 57 | E102: 84 | F102: 115 | G102: 112 | H102: 86 | I102: 194 | J102: 131 | K102: 104 | L102: 84 | M102: 43 | N102: 47 | O102: 1089 | P102: 173 | Q102: 313 | R102: 429 | S102: 174 | T102: 486 | U102: 603
A103: MP097 | B103: Suma de MP097 | C103: 0 | D103: 0 | E103: 0 | F103: 0 | G103: 0 | H103: 0 | I103: 0 | J103: 0 | K103: 0 | L103: 0 | M103: 0 | N103: 0 | O103: 0 | P103: 0 | Q103: 0 | R103: 0 | S103: 0 | T103: 0 | U103: 0
A104: MP098 | B104: Suma de MP098 | C104: 0 | D104: 2 | E104: 1 | F104: 1 | G104: 1 | H104: 4 | I104: 11 | J104: 3 | K104: 2 | L104: 0 | M104: 0 | N104: 0 | O104: 25 | P104: 3 | Q104: 6 | R104: 16 | S104: 0 | T104: 9 | U104: 16
A105: MP099 | B105: Suma de MP099 | C105: 1 | D105: 7 | E105: 10 | F105: 14 | G105: 7 | H105: 22 | I105: 83 | J105: 18 | K105: 18 | L105: 14 | M105: 0 | N105: 24 | O105: 218 | P105: 18 | Q105: 43 | R105: 119 | S105: 38 | T105: 61 | U105: 157
A106: MP100 | B106: Suma de MP100 | C106: 0 | D106: 6 | E106: 3 | F106: 6 | G106: 1 | H106: 7 | I106: 28 | J106: 7 | K106: 0 | L106: 2 | M106: 0 | N106: 1 | O106: 61 | P106: 9 | Q106: 14 | R106: 35 | S106: 3 | T106: 23 | U106: 38
A107: MP101 | B107: Suma de MP101 | C107: 0 | D107: 0 | E107: 0 | F107: 0 | G107: 0 | H107: 0 | I107: 0 | J107: 0 | K107: 0 | L107: 0 | M107: 0 | N107: 0 | O107: 0 | P107: 0 | Q107: 0 | R107: 0 | S107: 0 | T107: 0 | U107: 0
A108: MP102 | B108: Suma de MP102 | C108: 1 | D108: 1 | E108: 0 | F108: 0 | G108: 0 | H108: 2 | I108: 0 | J108: 1 | K108: 2 | L108: 0 | M108: 0 | N108: 0 | O108: 7 | P108: 2 | Q108: 2 | R108: 3 | S108: 0 | T108: 4 | U108: 3
A109: MP103 | B109: Suma de MP103 | C109: 9 | D109: 0 | E109: 1 | F109: 9 | G109: 5 | H109: 6 | I109: 13 | J109: 12 | K109: 13 | L109: 0 | M109: 7 | N109: 0 | O109: 75 | P109: 10 | Q109: 20 | R109: 38 | S109: 7 | T109: 30 | U109: 45
A110: MP104 | B110: Suma de MP104 | C110: 3 | D110: 1 | E110: 0 | F110: 1 | G110: 0 | H110: 4 | I110: 0 | J110: 3 | K110: 2 | L110: 0 | M110: 1 | N110: 0 | O110: 15 | P110: 4 | Q110: 5 | R110: 5 | S110: 1 | T110: 9 | U110: 6
A111: MP105 | B111: Suma de MP105 | C111: 0 | D111: 0 | E111: 0 | F111: 0 | G111: 0 | H111: 0 | I111: 0 | J111: 0 | K111: 0 | L111: 0 | M111: 0 | N111: 0 | O111: =SUM(C111:N111) -> 0 | P111: =SUM(C111:E111) -> 0 | Q111: =SUM(F111:H111) -> 0 | R111: =SUM(I111:K111) -> 0 | S111: =SUM(L111:N111) -> 0 | T111: =SUM(C111:H111) -> 0 | U111: =SUM(I111:N111) -> 0
A112: MP106 | B112: Suma de MP106 | C112: 0 | D112: 0 | E112: 0 | F112: 0 | G112: 0 | H112: 3 | I112: 9 | J112: 3 | K112: 2 | L112: 0 | M112: 0 | N112: 0 | O112: 17 | P112: 0 | Q112: 3 | R112: 14 | S112: 0 | T112: 3 | U112: 14
A113: MP107 | B113: Suma de MP107 | C113: 0 | D113: 2 | E113: 0 | F113: 8 | G113: 3 | H113: 29 | I113: 44 | J113: 15 | K113: 14 | L113: 0 | M113: 0 | N113: 24 | O113: 139 | P113: 2 | Q113: 40 | R113: 73 | S113: 24 | T113: 42 | U113: 97
A114: MP108 | B114: Suma de MP108 | C114: 0 | D114: 4 | E114: 0 | F114: 5 | G114: 2 | H114: 8 | I114: 20 | J114: 6 | K114: 0 | L114: 0 | M114: 0 | N114: 1 | O114: 46 | P114: 4 | Q114: 15 | R114: 26 | S114: 1 | T114: 19 | U114: 27
A115: MP109 | B115: Suma de MP109 | C115: 0 | D115: 0 | E115: 0 | F115: 0 | G115: 0 | H115: 0 | I115: 0 | J115: 0 | K115: 0 | L115: 0 | M115: 0 | N115: 0 | O115: 0 | P115: 0 | Q115: 0 | R115: 0 | S115: 0 | T115: 0 | U115: 0
A116: MP110 | B116: Suma de MP110 | C116: 0 | D116: 0 | E116: 0 | F116: 0 | G116: 0 | H116: 2 | I116: 0 | J116: 1 | K116: 2 | L116: 0 | M116: 0 | N116: 0 | O116: 5 | P116: 0 | Q116: 2 | R116: 3 | S116: 0 | T116: 2 | U116: 3
A117: MP111 | B117: Suma de MP111 | C117: 0 | D117: 0 | E117: 0 | F117: 9 | G117: 5 | H117: 6 | I117: 15 | J117: 11 | K117: 10 | L117: 0 | M117: 6 | N117: 0 | O117: 62 | P117: 0 | Q117: 20 | R117: 36 | S117: 6 | T117: 20 | U117: 42
A118: MP112 | B118: Suma de MP112 | C118: 0 | D118: 0 | E118: 0 | F118: 2 | G118: 0 | H118: 4 | I118: 4 | J118: 3 | K118: 1 | L118: 0 | M118: 1 | N118: 0 | O118: 15 | P118: 0 | Q118: 6 | R118: 8 | S118: 1 | T118: 6 | U118: 9
A119: MP113 | B119: Suma de MP113 | C119: 0 | D119: 0 | E119: 0 | F119: 0 | G119: 0 | H119: 0 | I119: 0 | J119: 0 | K119: 0 | L119: 0 | M119: 0 | N119: 0 | O119: 0 | P119: 0 | Q119: 0 | R119: 0 | S119: 0 | T119: 0 | U119: 0
A120: MP114 | B120: Suma de MP114 | C120: 12 | D120: 11 | E120: 20 | F120: 20 | G120: 11 | H120: 16 | I120: 24 | J120: 18 | K120: 14 | L120: 3 | M120: 3 | N120: 11 | O120: 163 | P120: 43 | Q120: 47 | R120: 56 | S120: 17 | T120: 90 | U120: 73
A121: MP115 | B121: Suma de MP115 | C121: 91 | D121: 80 | E121: 107 | F121: 100 | G121: 94 | H121: 95 | I121: 154 | J121: 80 | K121: 81 | L121: 15 | M121: 15 | N121: 40 | O121: 952 | P121: 278 | Q121: 289 | R121: 315 | S121: 70 | T121: 567 | U121: 385
A122: MP116 | B122: Suma de MP116 | C122: 43 | D122: 57 | E122: 54 | F122: 45 | G122: 38 | H122: 40 | I122: 74 | J122: 33 | K122: 32 | L122: 14 | M122: 9 | N122: 16 | O122: 455 | P122: 154 | Q122: 123 | R122: 139 | S122: 39 | T122: 277 | U122: 178
A123: MP117 | B123: Suma de MP117 | C123: 0 | D123: 0 | E123: 0 | F123: 0 | G123: 0 | H123: 0 | I123: 0 | J123: 0 | K123: 0 | L123: 0 | M123: 0 | N123: 0 | O123: 0 | P123: 0 | Q123: 0 | R123: 0 | S123: 0 | T123: 0 | U123: 0
A124: MP118 | B124: Suma de MP118 | C124: 5 | D124: 10 | E124: 7 | F124: 5 | G124: 12 | H124: 1 | I124: 16 | J124: 4 | K124: 4 | L124: 0 | M124: 1 | N124: 2 | O124: 67 | P124: 22 | Q124: 18 | R124: 24 | S124: 3 | T124: 40 | U124: 27
A125: MP119 | B125: Suma de MP119 | C125: 30 | D125: 32 | E125: 45 | F125: 47 | G125: 37 | H125: 31 | I125: 78 | J125: 21 | K125: 17 | L125: 7 | M125: 5 | N125: 4 | O125: 354 | P125: 107 | Q125: 115 | R125: 116 | S125: 16 | T125: 222 | U125: 132
A126: MP120 | B126: Suma de MP120 | C126: 17 | D126: 14 | E126: 15 | F126: 16 | G126: 10 | H126: 8 | I126: 14 | J126: 14 | K126: 11 | L126: 4 | M126: 0 | N126: 1 | O126: 124 | P126: 46 | Q126: 34 | R126: 39 | S126: 5 | T126: 80 | U126: 44
A127: MP121 | B127: Suma de MP121 | C127: 0 | D127: 0 | E127: 0 | F127: 0 | G127: 0 | H127: 0 | I127: 0 | J127: 0 | K127: 0 | L127: 0 | M127: 0 | N127: 0 | O127: 0 | P127: 0 | Q127: 0 | R127: 0 | S127: 0 | T127: 0 | U127: 0
A128: MP122 | B128: Suma de MP122 | C128: 0 | D128: 0 | E128: 0 | F128: 0 | G128: 0 | H128: 0 | I128: 0 | J128: 0 | K128: 0 | L128: 0 | M128: 0 | N128: 0 | O128: 0 | P128: 0 | Q128: 0 | R128: 0 | S128: 0 | T128: 0 | U128: 0
A129: MP123 | B129: Suma de MP123 | C129: 0 | D129: 1 | E129: 1 | F129: 0 | G129: 0 | H129: 3 | I129: 2 | J129: 1 | K129: 0 | L129: 0 | M129: 0 | N129: 0 | O129: =SUM(C129:N129) -> 8 | P129: =SUM(C129:E129) -> 2 | Q129: =SUM(F129:H129) -> 3 | R129: =SUM(I129:K129) -> 3 | S129: =SUM(L129:N129) -> 0 | T129: =SUM(C129:H129) -> 5 | U129: =SUM(I129:N129) -> 3
A130: MP124 | B130: Suma de MP124 | C130: 0 | D130: 2 | E130: 1 | F130: 0 | G130: 0 | H130: 1 | I130: 2 | J130: 0 | K130: 0 | L130: 0 | M130: 0 | N130: 0 | O130: 6 | P130: 3 | Q130: 1 | R130: 2 | S130: 0 | T130: 4 | U130: 2
A131: MP125 | B131: Suma de MP125 | C131: 0 | D131: 0 | E131: 0 | F131: 0 | G131: 0 | H131: 0 | I131: 0 | J131: 0 | K131: 0 | L131: 0 | M131: 0 | N131: 0 | O131: 0 | P131: 0 | Q131: 0 | R131: 0 | S131: 0 | T131: 0 | U131: 0
A132: MP126 | B132: Suma de MP126 | C132: 1 | D132: 0 | E132: 0 | F132: 2 | G132: 1 | H132: 2 | I132: 0 | J132: 0 | K132: 0 | L132: 0 | M132: 0 | N132: 0 | O132: 6 | P132: 1 | Q132: 5 | R132: 0 | S132: 0 | T132: 6 | U132: 0
A133: MP127 | B133: Suma de MP127 | C133: 2 | D133: 0 | E133: 5 | F133: 11 | G133: 7 | H133: 3 | I133: 20 | J133: 3 | K133: 4 | L133: 0 | M133: 0 | N133: 0 | O133: 55 | P133: 7 | Q133: 21 | R133: 27 | S133: 0 | T133: 28 | U133: 27
A134: MP128 | B134: Suma de MP128 | C134: 1 | D134: 2 | E134: 3 | F134: 6 | G134: 6 | H134: 5 | I134: 16 | J134: 2 | K134: 2 | L134: 0 | M134: 0 | N134: 0 | O134: 43 | P134: 6 | Q134: 17 | R134: 20 | S134: 0 | T134: 23 | U134: 20
A135: MP129 | B135: Suma de MP129 | C135: 0 | D135: 0 | E135: 0 | F135: 0 | G135: 0 | H135: 0 | I135: 0 | J135: 0 | K135: 0 | L135: 0 | M135: 0 | N135: 0 | O135: 0 | P135: 0 | Q135: 0 | R135: 0 | S135: 0 | T135: 0 | U135: 0
A136: MP130 | B136: Suma de MP130 | C136: 14 | D136: 14 | E136: 14 | F136: 15 | G136: 8 | H136: 12 | I136: 11 | J136: 8 | K136: 3 | L136: 1 | M136: 2 | N136: 5 | O136: 107 | P136: 42 | Q136: 35 | R136: 22 | S136: 8 | T136: 77 | U136: 30
A137: MP131 | B137: Suma de MP131 | C137: 74 | D137: 75 | E137: 78 | F137: 77 | G137: 71 | H137: 73 | I137: 115 | J137: 50 | K137: 42 | L137: 12 | M137: 18 | N137: 5 | O137: 690 | P137: 227 | Q137: 221 | R137: 207 | S137: 35 | T137: 448 | U137: 242
A138: =MID(B138,9,5) -> MP132 | B138: Suma de MP132 | C138: 30 | D138: 42 | E138: 50 | F138: 30 | G138: 29 | H138: 25 | I138: 58 | J138: 19 | K138: 21 | L138: 8 | M138: 7 | N138: 5 | O138: 324 | P138: 122 | Q138: 84 | R138: 98 | S138: 20 | T138: 206 | U138: 118
A139: MP133 | B139: Suma de MP133 | C139: 0 | D139: 0 | E139: 0 | F139: 0 | G139: 0 | H139: 0 | I139: 0 | J139: 0 | K139: 0 | L139: 0 | M139: 0 | N139: 0 | O139: 0 | P139: 0 | Q139: 0 | R139: 0 | S139: 0 | T139: 0 | U139: 0
A140: MP134 | B140: Suma de MP134 | C140: 0 | D140: 0 | E140: 0 | F140: 0 | G140: 0 | H140: 1 | I140: 2 | J140: 1 | K140: 0 | L140: 1 | M140: 1 | N140: 0 | O140: 6 | P140: 0 | Q140: 1 | R140: 3 | S140: 2 | T140: 1 | U140: 5
A141: MP135 | B141: Suma de MP135 | C141: 2 | D141: 2 | E141: 8 | F141: 9 | G141: 5 | H141: 7 | I141: 17 | J141: 3 | K141: 1 | L141: 0 | M141: 0 | N141: 0 | O141: 54 | P141: 12 | Q141: 21 | R141: 21 | S141: 0 | T141: 33 | U141: 21
A142: MP136 | B142: Suma de MP136 | C142: 3 | D142: 1 | E142: 1 | F142: 5 | G142: 3 | H142: 2 | I142: 12 | J142: 0 | K142: 5 | L142: 0 | M142: 0 | N142: 0 | O142: 32 | P142: 5 | Q142: 10 | R142: 17 | S142: 0 | T142: 15 | U142: 17
A143: MP137 | B143: Suma de MP137 | C143: 0 | D143: 0 | E143: 0 | F143: 0 | G143: 0 | H143: 0 | I143: 0 | J143: 0 | K143: 1 | L143: 0 | M143: 0 | N143: 1 | O143: 2 | P143: 0 | Q143: 0 | R143: 1 | S143: 1 | T143: 0 | U143: 2
A144: MP138 | B144: Suma de MP138 | C144: 182 | D144: 182 | E144: 152 | F144: 166 | G144: 202 | H144: 162 | I144: 294 | J144: 179 | K144: 157 | L144: 57 | M144: 57 | N144: 51 | O144: 1841 | P144: 516 | Q144: 530 | R144: 630 | S144: 165 | T144: 1046 | U144: 795
A145: MP139 | B145: Suma de MP139 | C145: 996 | D145: 988 | E145: 971 | F145: 927 | G145: 1064 | H145: 989 | I145: 2053 | J145: 1075 | K145: 1145 | L145: 399 | M145: 343 | N145: 247 | O145: 11197 | P145: 2955 | Q145: 2980 | R145: 4273 | S145: 989 | T145: 5935 | U145: 5262
A146: MP140 | B146: Suma de MP140 | C146: 522 | D146: 549 | E146: 511 | F146: 515 | G146: 604 | H146: 499 | I146: 1178 | J146: 622 | K146: 663 | L146: 190 | M146: 174 | N146: 153 | O146: =SUM(C146:N146) -> 6180 | P146: =SUM(C146:E146) -> 1582 | Q146: =SUM(F146:H146) -> 1618 | R146: =SUM(I146:K146) -> 2463 | S146: =SUM(L146:N146) -> 517 | T146: =SUM(C146:H146) -> 3200 | U146: =SUM(I146:N146) -> 2980
A147: MP141 | B147: Suma de MP141 | C147: 0 | D147: 0 | E147: 0 | F147: 0 | G147: 0 | H147: 0 | I147: 0 | J147: 0 | K147: 1 | L147: 0 | M147: 0 | N147: 0 | O147: 1 | P147: 0 | Q147: 0 | R147: 1 | S147: 0 | T147: 0 | U147: 1
A148: MP142 | B148: Suma de MP142 | C148: 239 | D148: 218 | E148: 210 | F148: 208 | G148: 244 | H148: 202 | I148: 362 | J148: 184 | K148: 162 | L148: 66 | M148: 64 | N148: 46 | O148: 2205 | P148: 667 | Q148: 654 | R148: 708 | S148: 176 | T148: 1321 | U148: 884
A149: MP143 | B149: Suma de MP143 | C149: 1332 | D149: 1259 | E149: 1229 | F149: 1153 | G149: 1349 | H149: 1214 | I149: 2480 | J149: 1078 | K149: 1090 | L149: 395 | M149: 331 | N149: 256 | O149: 13166 | P149: 3820 | Q149: 3716 | R149: 4648 | S149: 982 | T149: 7536 | U149: 5630
A150: MP144 | B150: Suma de MP144 | C150: 687 | D150: 692 | E150: 642 | F150: 663 | G150: 730 | H150: 580 | I150: 1358 | J150: 572 | K150: 641 | L150: 207 | M150: 182 | N150: 145 | O150: 7099 | P150: 2021 | Q150: 1973 | R150: 2571 | S150: 534 | T150: 3994 | U150: 3105
A151: MP145 | B151: Suma de MP145 | C151: 0 | D151: 1 | E151: 0 | F151: 0 | G151: 0 | H151: 0 | I151: 2 | J151: 0 | K151: 1 | L151: 0 | M151: 0 | N151: 0 | O151: 4 | P151: 1 | Q151: 0 | R151: 3 | S151: 0 | T151: 1 | U151: 3
A152: MP146 | B152: Suma de MP146 | C152: 99 | D152: 87 | E152: 94 | F152: 85 | G152: 119 | H152: 102 | I152: 168 | J152: 66 | K152: 75 | L152: 18 | M152: 22 | N152: 22 | O152: 957 | P152: 280 | Q152: 306 | R152: 309 | S152: 62 | T152: 586 | U152: 371
A153: MP147 | B153: Suma de MP147 | C153: 629 | D153: 660 | E153: 610 | F153: 500 | G153: 621 | H153: 620 | I153: 1052 | J153: 474 | K153: 446 | L153: 160 | M153: 160 | N153: 106 | O153: =SUM(C153:N153) -> 6038 | P153: =SUM(C153:E153) -> 1899 | Q153: =SUM(F153:H153) -> 1741 | R153: =SUM(I153:K153) -> 1972 | S153: =SUM(L153:N153) -> 426 | T153: =SUM(C153:H153) -> 3640 | U153: =SUM(I153:N153) -> 2398
A154: MP148 | B154: Suma de MP148 | C154: 407 | D154: 374 | E154: 335 | F154: 281 | G154: 364 | H154: 335 | I154: 624 | J154: 265 | K154: 231 | L154: 91 | M154: 85 | N154: 50 | O154: 3442 | P154: 1116 | Q154: 980 | R154: 1120 | S154: 226 | T154: 2096 | U154: 1346
A155: MP149 | B155: Suma de MP149 | C155: 0 | D155: 0 | E155: 0 | F155: 0 | G155: 0 | H155: 0 | I155: 0 | J155: 1 | K155: 0 | L155: 0 | M155: 0 | N155: 0 | O155: 1 | P155: 0 | Q155: 0 | R155: 1 | S155: 0 | T155: 0 | U155: 1
A156: MP150 | B156: Suma de MP150 | C156: 38 | D156: 40 | E156: 43 | F156: 39 | G156: 59 | H156: 55 | I156: 85 | J156: 41 | K156: 38 | L156: 10 | M156: 12 | N156: 17 | O156: 477 | P156: 121 | Q156: 153 | R156: 164 | S156: 39 | T156: 274 | U156: 203
A157: MP151 | B157: Suma de MP151 | C157: 355 | D157: 297 | E157: 341 | F157: 308 | G157: 351 | H157: 309 | I157: 647 | J157: 264 | K157: 226 | L157: 70 | M157: 91 | N157: 57 | O157: 3316 | P157: 993 | Q157: 968 | R157: 1137 | S157: 218 | T157: 1961 | U157: 1355
A158: MP152 | B158: Suma de MP152 | C158: 183 | D158: 189 | E158: 204 | F158: 182 | G158: 214 | H158: 195 | I158: 371 | J158: 145 | K158: 154 | L158: 43 | M158: 54 | N158: 31 | O158: 1965 | P158: 576 | Q158: 591 | R158: 670 | S158: 128 | T158: 1167 | U158: 798
A159: MP153 | B159: Suma de MP153 | C159: 1 | D159: 0 | E159: 1 | F159: 0 | G159: 0 | H159: 0 | I159: 0 | J159: 0 | K159: 1 | L159: 0 | M159: 0 | N159: 0 | O159: 3 | P159: 2 | Q159: 0 | R159: 1 | S159: 0 | T159: 2 | U159: 1
A160: MP154 | B160: Suma de MP154 | C160: 46 | D160: 59 | E160: 63 | F160: 65 | G160: 78 | H160: 72 | I160: 130 | J160: 69 | K160: 59 | L160: 14 | M160: 22 | N160: 19 | O160: 696 | P160: 168 | Q160: 215 | R160: 258 | S160: 55 | T160: 383 | U160: 313
A161: MP155 | B161: Suma de MP155 | C161: 463 | D161: 416 | E161: 495 | F161: 489 | G161: 478 | H161: 495 | I161: 885 | J161: 442 | K161: 417 | L161: 124 | M161: 122 | N161: 103 | O161: 4929 | P161: 1374 | Q161: 1462 | R161: 1744 | S161: 349 | T161: 2836 | U161: 2093
A162: MP156 | B162: Suma de MP156 | C162: 229 | D162: 254 | E162: 302 | F162: 272 | G162: 300 | H162: 308 | I162: 595 | J162: 256 | K162: 254 | L162: 73 | M162: 77 | N162: 52 | O162: 2972 | P162: 785 | Q162: 880 | R162: 1105 | S162: 202 | T162: 1665 | U162: 1307
A163: MP157 | B163: Suma de MP157 | C163: 0 | D163: 0 | E163: 0 | F163: 0 | G163: 0 | H163: 0 | I163: 0 | J163: 0 | K163: 0 | L163: 0 | M163: 0 | N163: 0 | O163: 0 | P163: 0 | Q163: 0 | R163: 0 | S163: 0 | T163: 0 | U163: 0
A164: MP158 | B164: Suma de MP158 | C164: 0 | D164: 5 | E164: 2 | F164: 12 | G164: 6 | H164: 2 | I164: 6 | J164: 6 | K164: 4 | L164: 1 | M164: 1 | N164: 1 | O164: 46 | P164: 7 | Q164: 20 | R164: 16 | S164: 3 | T164: 27 | U164: 19
A165: MP159 | B165: Suma de MP159 | C165: 19 | D165: 24 | E165: 38 | F165: 21 | G165: 17 | H165: 26 | I165: 58 | J165: 32 | K165: 12 | L165: 4 | M165: 4 | N165: 4 | O165: =SUM(C165:N165) -> 259 | P165: =SUM(C165:E165) -> 81 | Q165: =SUM(F165:H165) -> 64 | R165: =SUM(I165:K165) -> 102 | S165: =SUM(L165:N165) -> 12 | T165: =SUM(C165:H165) -> 145 | U165: =SUM(I165:N165) -> 114
A166: MP160 | B166: Suma de MP160 | C166: 9 | D166: 9 | E166: 14 | F166: 10 | G166: 9 | H166: 16 | I166: 27 | J166: 12 | K166: 10 | L166: 3 | M166: 1 | N166: 1 | O166: 121 | P166: 32 | Q166: 35 | R166: 49 | S166: 5 | T166: 67 | U166: 54
A167: MP161 | B167: Suma de MP161 | C167: 0 | D167: 0 | E167: 0 | F167: 0 | G167: 0 | H167: 0 | I167: 0 | J167: 1 | K167: 0 | L167: 0 | M167: 0 | N167: 0 | O167: 1 | P167: 0 | Q167: 0 | R167: 1 | S167: 0 | T167: 0 | U167: 1
A168: MP162 | B168: Suma de MP162 | C168: 6 | D168: 9 | E168: 10 | F168: 7 | G168: 4 | H168: 4 | I168: 16 | J168: 8 | K168: 8 | L168: 3 | M168: 1 | N168: 1 | O168: 77 | P168: 25 | Q168: 15 | R168: 32 | S168: 5 | T168: 40 | U168: 37
A169: MP163 | B169: Suma de MP163 | C169: 67 | D169: 52 | E169: 55 | F169: 84 | G169: 57 | H169: 52 | I169: 135 | J169: 87 | K169: 75 | L169: 6 | M169: 11 | N169: 8 | O169: 689 | P169: 174 | Q169: 193 | R169: 297 | S169: 25 | T169: 367 | U169: 322
A170: MP164 | B170: Suma de MP164 | C170: 39 | D170: 43 | E170: 31 | F170: 48 | G170: 46 | H170: 53 | I170: 77 | J170: 37 | K170: 42 | L170: 4 | M170: 3 | N170: 4 | O170: 427 | P170: 113 | Q170: 147 | R170: 156 | S170: 11 | T170: 260 | U170: 167
A171: MP165 | B171: Suma de MP165 | C171: 0 | D171: 0 | E171: 0 | F171: 0 | G171: 0 | H171: 0 | I171: 0 | J171: 0 | K171: 0 | L171: 0 | M171: 0 | N171: 0 | O171: 0 | P171: 0 | Q171: 0 | R171: 0 | S171: 0 | T171: 0 | U171: 0
A172: MP166 | B172: Suma de MP166 | C172: 1 | D172: 0 | E172: 1 | F172: 0 | G172: 0 | H172: 0 | I172: 2 | J172: 1 | K172: 0 | L172: 1 | M172: 1 | N172: 0 | O172: 7 | P172: 2 | Q172: 0 | R172: 3 | S172: 2 | T172: 2 | U172: 5
A173: MP167 | B173: Suma de MP167 | C173: 4 | D173: 9 | E173: 5 | F173: 2 | G173: 5 | H173: 3 | I173: 6 | J173: 2 | K173: 3 | L173: 1 | M173: 0 | N173: 2 | O173: 42 | P173: 18 | Q173: 10 | R173: 11 | S173: 3 | T173: 28 | U173: 14
A174: MP168 | B174: Suma de MP168 | C174: 7 | D174: 4 | E174: 6 | F174: 11 | G174: 10 | H174: 6 | I174: 2 | J174: 6 | K174: 4 | L174: 4 | M174: 0 | N174: 0 | O174: 60 | P174: 17 | Q174: 27 | R174: 12 | S174: 4 | T174: 44 | U174: 16
A175: MP169 | B175: Suma de MP169 | C175: 0 | D175: 0 | E175: 0 | F175: 0 | G175: 0 | H175: 1 | I175: 0 | J175: 0 | K175: 0 | L175: 0 | M175: 0 | N175: 0 | O175: 1 | P175: 0 | Q175: 1 | R175: 0 | S175: 0 | T175: 1 | U175: 0
A176: MP170 | B176: Suma de MP170 | C176: 22 | D176: 25 | E176: 22 | F176: 30 | G176: 28 | H176: 20 | I176: 34 | J176: 7 | K176: 23 | L176: 5 | M176: 2 | N176: 5 | O176: 223 | P176: 69 | Q176: 78 | R176: 64 | S176: 12 | T176: 147 | U176: 76
A177: MP171 | B177: Suma de MP171 | C177: 138 | D177: 110 | E177: 120 | F177: 103 | G177: 97 | H177: 128 | I177: 261 | J177: 128 | K177: 123 | L177: 22 | M177: 35 | N177: 20 | O177: 1285 | P177: 368 | Q177: 328 | R177: 512 | S177: 77 | T177: 696 | U177: 589
A178: MP172 | B178: Suma de MP172 | C178: 60 | D178: 62 | E178: 73 | F178: 47 | G178: 49 | H178: 80 | I178: 100 | J178: 56 | K178: 61 | L178: 10 | M178: 17 | N178: 16 | O178: 631 | P178: 195 | Q178: 176 | R178: 217 | S178: 43 | T178: 371 | U178: 260
A179: MP173 | B179: Suma de MP173 | C179: 1 | D179: 1 | E179: 0 | F179: 4 | G179: 0 | H179: 0 | I179: 4 | J179: 3 | K179: 1 | L179: 0 | M179: 1 | N179: 1 | O179: 16 | P179: 2 | Q179: 4 | R179: 8 | S179: 2 | T179: 6 | U179: 10
A180: MP174 | B180: Suma de MP174 | C180: 190 | D180: 192 | E180: 194 | F180: 202 | G180: 199 | H180: 203 | I180: 327 | J180: 167 | K180: 150 | L180: 53 | M180: 43 | N180: 51 | O180: 1971 | P180: 576 | Q180: 604 | R180: 644 | S180: 147 | T180: 1180 | U180: 791
A181: MP175 | B181: Suma de MP175 | C181: 1037 | D181: 1103 | E181: 1075 | F181: 1066 | G181: 1027 | H181: 985 | I181: 1863 | J181: 961 | K181: 943 | L181: 237 | M181: 221 | N181: 213 | O181: =SUM(C181:N181) -> 10731 | P181: =SUM(C181:E181) -> 3215 | Q181: =SUM(F181:H181) -> 3078 | R181: =SUM(I181:K181) -> 3767 | S181: =SUM(L181:N181) -> 671 | T181: =SUM(C181:H181) -> 6293 | U181: =SUM(I181:N181) -> 4438
A182: MP176 | B182: Suma de MP176 | C182: 489 | D182: 598 | E182: 599 | F182: 531 | G182: 522 | H182: 512 | I182: 874 | J182: 487 | K182: 494 | L182: 121 | M182: 122 | N182: 122 | O182: 5471 | P182: 1686 | Q182: 1565 | R182: 1855 | S182: 365 | T182: 3251 | U182: 2220
A183: MP177 | B183: Suma de MP177 | C183: 0 | D183: 0 | E183: 0 | F183: 0 | G183: 0 | H183: 0 | I183: 0 | J183: 0 | K183: 0 | L183: 0 | M183: 0 | N183: 0 | O183: 0 | P183: 0 | Q183: 0 | R183: 0 | S183: 0 | T183: 0 | U183: 0
A184: MP178 | B184: Suma de MP178 | C184: 0 | D184: 2 | E184: 0 | F184: 1 | G184: 5 | H184: 0 | I184: 0 | J184: 6 | K184: 2 | L184: 0 | M184: 0 | N184: 0 | O184: 16 | P184: 2 | Q184: 6 | R184: 8 | S184: 0 | T184: 8 | U184: 8
A185: MP179 | B185: Suma de MP179 | C185: 14 | D185: 8 | E185: 8 | F185: 11 | G185: 10 | H185: 8 | I185: 12 | J185: 7 | K185: 10 | L185: 1 | M185: 1 | N185: 0 | O185: 90 | P185: 30 | Q185: 29 | R185: 29 | S185: 2 | T185: 59 | U185: 31
A186: MP180 | B186: Suma de MP180 | C186: 1 | D186: 1 | E186: 5 | F186: 3 | G186: 6 | H186: 5 | I186: 14 | J186: 6 | K186: 3 | L186: 1 | M186: 0 | N186: 1 | O186: 46 | P186: 7 | Q186: 14 | R186: 23 | S186: 2 | T186: 21 | U186: 25
A187: MP181 | B187: Suma de MP181 | C187: 0 | D187: 0 | E187: 0 | F187: 0 | G187: 0 | H187: 0 | I187: 0 | J187: 0 | K187: 0 | L187: 0 | M187: 0 | N187: 0 | O187: 0 | P187: 0 | Q187: 0 | R187: 0 | S187: 0 | T187: 0 | U187: 0
A188: MP182 | B188: Suma de MP182 | C188: 2 | D188: 0 | E188: 2 | F188: 1 | G188: 0 | H188: 1 | I188: 0 | J188: 0 | K188: 0 | L188: 0 | M188: 0 | N188: 0 | O188: 6 | P188: 4 | Q188: 2 | R188: 0 | S188: 0 | T188: 6 | U188: 0
A189: MP183 | B189: Suma de MP183 | C189: 0 | D189: 1 | E189: 4 | F189: 2 | G189: 1 | H189: 4 | I189: 8 | J189: 2 | K189: 3 | L189: 4 | M189: 0 | N189: 1 | O189: 30 | P189: 5 | Q189: 7 | R189: 13 | S189: 5 | T189: 12 | U189: 18
A190: MP184 | B190: Suma de MP184 | C190: 3 | D190: 1 | E190: 5 | F190: 1 | G190: 0 | H190: 17 | I190: 22 | J190: 1 | K190: 1 | L190: 1 | M190: 0 | N190: 1 | O190: 53 | P190: 9 | Q190: 18 | R190: 24 | S190: 2 | T190: 27 | U190: 26
A191: MP185 | B191: Suma de MP185 | C191: 0 | D191: 0 | E191: 0 | F191: 0 | G191: 0 | H191: 0 | I191: 0 | J191: 0 | K191: 0 | L191: 0 | M191: 0 | N191: 0 | O191: 0 | P191: 0 | Q191: 0 | R191: 0 | S191: 0 | T191: 0 | U191: 0
A192: MP186 | B192: Suma de MP186 | C192: 5 | D192: 2 | E192: 6 | F192: 6 | G192: 5 | H192: 4 | I192: 20 | J192: 13 | K192: 3 | L192: 1 | M192: 1 | N192: 1 | O192: 67 | P192: 13 | Q192: 15 | R192: 36 | S192: 3 | T192: 28 | U192: 39
A193: MP187 | B193: Suma de MP187 | C193: 24 | D193: 38 | E193: 32 | F193: 44 | G193: 45 | H193: 45 | I193: 79 | J193: 54 | K193: 39 | L193: 11 | M193: 11 | N193: 9 | O193: =SUM(C193:N193) -> 431 | P193: =SUM(C193:E193) -> 94 | Q193: =SUM(F193:H193) -> 134 | R193: =SUM(I193:K193) -> 172 | S193: =SUM(L193:N193) -> 31 | T193: =SUM(C193:H193) -> 228 | U193: =SUM(I193:N193) -> 203
A194: MP188 | B194: Suma de MP188 | C194: 33 | D194: 51 | E194: 47 | F194: 42 | G194: 37 | H194: 44 | I194: 105 | J194: 40 | K194: 36 | L194: 6 | M194: 6 | N194: 11 | O194: 458 | P194: 131 | Q194: 123 | R194: 181 | S194: 23 | T194: 254 | U194: 204
A195: MP189 | B195: Suma de MP189 | C195: 0 | D195: 0 | E195: 0 | F195: 0 | G195: 0 | H195: 0 | I195: 0 | J195: 0 | K195: 0 | L195: 0 | M195: 0 | N195: 0 | O195: 0 | P195: 0 | Q195: 0 | R195: 0 | S195: 0 | T195: 0 | U195: 0
A196: MP190 | B196: Suma de MP190 | C196: 0 | D196: 0 | E196: 1 | F196: 1 | G196: 0 | H196: 0 | I196: 0 | J196: 0 | K196: 0 | L196: 0 | M196: 0 | N196: 0 | O196: 2 | P196: 1 | Q196: 1 | R196: 0 | S196: 0 | T196: 2 | U196: 0
A197: MP191 | B197: Suma de MP191 | C197: 4 | D197: 7 | E197: 3 | F197: 2 | G197: 4 | H197: 2 | I197: 8 | J197: 1 | K197: 4 | L197: 0 | M197: 1 | N197: 0 | O197: 36 | P197: 14 | Q197: 8 | R197: 13 | S197: 1 | T197: 22 | U197: 14
A198: MP192 | B198: Suma de MP192 | C198: 7 | D198: 13 | E198: 8 | F198: 2 | G198: 3 | H198: 4 | I198: 6 | J198: 8 | K198: 3 | L198: 1 | M198: 0 | N198: 0 | O198: 55 | P198: 28 | Q198: 9 | R198: 17 | S198: 1 | T198: 37 | U198: 18
A199: MP193 | B199: Suma de MP193 | C199: 0 | D199: 0 | E199: 0 | F199: 0 | G199: 0 | H199: 0 | I199: 0 | J199: 0 | K199: 0 | L199: 0 | M199: 0 | N199: 0 | O199: 0 | P199: 0 | Q199: 0 | R199: 0 | S199: 0 | T199: 0 | U199: 0
A200: MP194 | B200: Suma de MP194 | C200: 2 | D200: 3 | E200: 1 | F200: 5 | G200: 7 | H200: 0 | I200: 2 | J200: 6 | K200: 7 | L200: 0 | M200: 3 | N200: 2 | O200: 38 | P200: 6 | Q200: 12 | R200: 15 | S200: 5 | T200: 18 | U200: 20
A201: MP195 | B201: Suma de MP195 | C201: 21 | D201: 19 | E201: 22 | F201: 23 | G201: 31 | H201: 31 | I201: 33 | J201: 31 | K201: 29 | L201: 15 | M201: 11 | N201: 9 | O201: 275 | P201: 62 | Q201: 85 | R201: 93 | S201: 35 | T201: 147 | U201: 128
A202: =MID(B202,9,5) -> MP196 | B202: Suma de MP196 | C202: 9 | D202: 10 | E202: 15 | F202: 18 | G202: 20 | H202: 20 | I202: 26 | J202: 18 | K202: 13 | L202: 15 | M202: 4 | N202: 8 | O202: 176 | P202: 34 | Q202: 58 | R202: 57 | S202: 27 | T202: 92 | U202: 84
... 259 more rows

Sheet REPORTE MATERNO
H2: REPORTE DE ACTIVIDADES DE LA DIRECCIÓN DE SALUD SEXUAL Y REPORDUCTIVA
A3: MES: | B3: Total | D3: 2022
A4: Componente Materno Perinatal | F4: REGION | J4: PIURA
A6: I. ATENCION PRENATAL REENFOCADA
A7: Grupo Etáreo | B7: Gestante | H7: Papanicolaou | J7: Gestante con Bateria Completa | L7: Violencia Basada en Género (VBG) | N7: Ecografía | Q7: Tamizaje de Bacteriuria | S7: Tamizaje de Proteniuria | U7: Gestante con Atención Prenatal Reenfocada | V7: Vacuna Antitetá-nica | Y7: Atencion odontologica
B8: Atendida | F8: Aten- ciones | G8: Contro- lada | V8: dt | W8: HvB | X8: Influenza
B9: Total | C9: I Trim | D9: II Trim | E9: III Trim | H9: Toma de Muestra | I9: Positivo | J9: 1° Bateria | K9: 2° Bateria | L9: Tamizada FED | M9: Tamizada | N9: 1º Ecografía | O9: 2º Ecografía | P9: 3º Ecografía | Q9: N° | R9: Positivo | S9: N° | T9: Positivo | V9: Protegidas | W9: Protegidas | X9: Protegidas | Y9: Protegidas
A10: < 12 a. | B10: =SUM(C10:E10) -> 0 | C10: =IFERROR(VLOOKUP('TRAMA - MP'!C10,TABLA!$A$4:$U$485,PANEL!$D$105,0),0) -> 0 | D10: =IFERROR(VLOOKUP('TRAMA - MP'!D10,TABLA!$A$4:$U$485,PANEL!$D$105,0),0) -> 0 | E10: =IFERROR(VLOOKUP('TRAMA - MP'!E10,TABLA!$A$4:$U$485,PANEL!$D$105,0),0) -> 0 | F10: =IFERROR(VLOOKUP('TRAMA - MP'!F10,TABLA!$A$4:$U$485,PANEL!$D$105,0),0) -> 9 | G10: =IFERROR(VLOOKUP('TRAMA - MP'!G10,TABLA!$A$4:$U$485,PANEL!$D$105,0),0) -> 1 | H10: =IFERROR(VLOOKUP('TRAMA - MP'!H10,TABLA!$A$4:$U$485,PANEL!$D$105,0),0) -> 0 | I10: =IFERROR(VLOOKUP('TRAMA - MP'!I10,TABLA!$A$4:$U$485,PANEL!$D$105,0),0) -> 0 | J10: =IFERROR(VLOOKUP('TRAMA - MP'!J10,TABLA!$A$4:$U$485,PANEL!$D$105,0),0) -> 1 | K10: =IFERROR(VLOOKUP('TRAMA - MP'!K10,TABLA!$A$4:$U$485,PANEL!$D$105,0),0) -> 0 | L10: =IFERROR(VLOOKUP('TRAMA - MP'!L10,TABLA!$A$4:$U$485,PANEL!$D$105,0),0) -> 1 | M10: =IFERROR(VLOOKUP('TRAMA - MP'!M10,TABLA!$A$4:$U$485,PANEL!$D$105,0),0) -> 2 | N10: =IFERROR(VLOOKUP('TRAMA - MP'!N10,TABLA!$A$4:$U$485,PANEL!$D$105,0),0) -> 0 | O10: =IFERROR(VLOOKUP('TRAMA - MP'!O10,TABLA!$A$4:$U$485,PANEL!$D$105,0),0) -> 4 | P10: =IFERROR(VLOOKUP('TRAMA - MP'!P10,TABLA!$A$4:$U$485,PANEL!$D$105,0),0) -> 0 | Q10: =IFERROR(VLOOKUP('TRAMA - MP'!Q10,TABLA!$A$4:$U$485,PANEL!$D$105,0),0) -> 2 | R10: =IFERROR(VLOOKUP('TRAMA - MP'!R10,TABLA!$A$4:$U$485,PANEL!$D$105,0),0) -> 0 | S10: =IFERROR(VLOOKUP('TRAMA - MP'!S10,TABLA!$A$4:$U$485,PANEL!$D$105,0),0) -> 4 | T10: =IFERROR(VLOOKUP('TRAMA - MP'!T10,TABLA!$A$4:$U$485,PANEL!$D$105,0),0) -> 0 | U10: =IFERROR(VLOOKUP('TRAMA - MP'!U10,TABLA!$A$4:$U$485,PANEL!$D$105,0),0) -> 0 | V10: =IFERROR(VLOOKUP('TRAMA - MP'!V10,TABLA!$A$4:$U$485,PANEL!$D$105,0),0) -> 0 | W10: =IFERROR(VLOOKUP('TRAMA - MP'!W10,TABLA!$A$4:$U$485,PANEL!$D$105,0),0) -> 1 | X10: =IFERROR(VLOOKUP('TRAMA - MP'!X10,TABLA!$A$4:$U$485,PANEL!$D$105,0),0) -> 17 | Y10: =IFERROR(VLOOKUP('TRAMA - MP'!Y10,TABLA!$A$4:$U$485,PANEL!$D$105,0),0) -> 47
A11: 12-17 | B11: =SUM(C11:E11) -> 2485 | C11: =IFERROR(VLOOKUP('TRAMA - MP'!C11,TABLA!$A$4:$U$485,PANEL!$D$105,0),0) -> 1452 | D11: =IFERROR(VLOOKUP('TRAMA - MP'!D11,TABLA!$A$4:$U$485,PANEL!$D$105,0),0) -> 720 | E11: =IFERROR(VLOOKUP('TRAMA - MP'!E11,TABLA!$A$4:$U$485,PANEL!$D$105,0),0) -> 313 | F11: =IFERROR(VLOOKUP('TRAMA - MP'!F11,TABLA!$A$4:$U$485,PANEL!$D$105,0),0) -> 15962 | G11: =IFERROR(VLOOKUP('TRAMA - MP'!G11,TABLA!$A$4:$U$485,PANEL!$D$105,0),0) -> 1541 | H11: =IFERROR(VLOOKUP('TRAMA - MP'!H11,TABLA!$A$4:$U$485,PANEL!$D$105,0),0) -> 121 | I11: =IFERROR(VLOOKUP('TRAMA - MP'!I11,TABLA!$A$4:$U$485,PANEL!$D$105,0),0) -> 1 | J11: =IFERROR(VLOOKUP('TRAMA - MP'!J11,TABLA!$A$4:$U$485,PANEL!$D$105,0),0) -> 1705 | K11: =IFERROR(VLOOKUP('TRAMA - MP'!K11,TABLA!$A$4:$U$485,PANEL!$D$105,0),0) -> 812 | L11: =IFERROR(VLOOKUP('TRAMA - MP'!L11,TABLA!$A$4:$U$485,PANEL!$D$105,0),0) -> 1747 | M11: =IFERROR(VLOOKUP('TRAMA - MP'!M11,TABLA!$A$4:$U$485,PANEL!$D$105,0),0) -> 1936 | N11: =IFERROR(VLOOKUP('TRAMA - MP'!N11,TABLA!$A$4:$U$485,PANEL!$D$105,0),0) -> 831 | O11: =IFERROR(VLOOKUP('TRAMA - MP'!O11,TABLA!$A$4:$U$485,PANEL!$D$105,0),0) -> 466 | P11: =IFERROR(VLOOKUP('TRAMA - MP'!P11,TABLA!$A$4:$U$485,PANEL!$D$105,0),0) -> 140 | Q11: =IFERROR(VLOOKUP('TRAMA - MP'!Q11,TABLA!$A$4:$U$485,PANEL!$D$105,0),0) -> 4153 | R11: =IFERROR(VLOOKUP('TRAMA - MP'!R11,TABLA!$A$4:$U$485,PANEL!$D$105,0),0) -> 786 | S11: =IFERROR(VLOOKUP('TRAMA - MP'!S11,TABLA!$A$4:$U$485,PANEL!$D$105,0),0) -> 4865 | T11: =IFERROR(VLOOKUP('TRAMA - MP'!T11,TABLA!$A$4:$U$485,PANEL!$D$105,0),0) -> 93 | U11: =IFERROR(VLOOKUP('TRAMA - MP'!U11,TABLA!$A$4:$U$485,PANEL!$D$105,0),0) -> 319 | V11: =IFERROR(VLOOKUP('TRAMA - MP'!V11,TABLA!$A$4:$U$485,PANEL!$D$105,0),0) -> 113 | W11: =IFERROR(VLOOKUP('TRAMA - MP'!W11,TABLA!$A$4:$U$485,PANEL!$D$105,0),0) -> 37 | X11: =IFERROR(VLOOKUP('TRAMA - MP'!X11,TABLA!$A$4:$U$485,PANEL!$D$105,0),0) -> 498 | Y11: =IFERROR(VLOOKUP('TRAMA - MP'!Y11,TABLA!$A$4:$U$485,PANEL!$D$105,0),0) -> 313
A12: 18-29 | B12: =SUM(C12:E12) -> 15387 | C12: =IFERROR(VLOOKUP('TRAMA - MP'!C12,TABLA!$A$4:$U$485,PANEL!$D$105,0),0) -> 9191 | D12: =IFERROR(VLOOKUP('TRAMA - MP'!D12,TABLA!$A$4:$U$485,PANEL!$D$105,0),0) -> 3980 | E12: =IFERROR(VLOOKUP('TRAMA - MP'!E12,TABLA!$A$4:$U$485,PANEL!$D$105,0),0) -> 2216 | F12: =IFERROR(VLOOKUP('TRAMA - MP'!F12,TABLA!$A$4:$U$485,PANEL!$D$105,0),0) -> 108275 | G12: =IFERROR(VLOOKUP('TRAMA - MP'!G12,TABLA!$A$4:$U$485,PANEL!$D$105,0),0) -> 10744 | H12: =IFERROR(VLOOKUP('TRAMA - MP'!H12,TABLA!$A$4:$U$485,PANEL!$D$105,0),0) -> 922 | I12: =IFERROR(VLOOKUP('TRAMA - MP'!I12,TABLA!$A$4:$U$485,PANEL!$D$105,0),0) -> 59 | J12: =IFERROR(VLOOKUP('TRAMA - MP'!J12,TABLA!$A$4:$U$485,PANEL!$D$105,0),0) -> 10264 | K12: =IFERROR(VLOOKUP('TRAMA - MP'!K12,TABLA!$A$4:$U$485,PANEL!$D$105,0),0) -> 5926 | L12: =IFERROR(VLOOKUP('TRAMA - MP'!L12,TABLA!$A$4:$U$485,PANEL!$D$105,0),0) -> 10908 | M12: =IFERROR(VLOOKUP('TRAMA - MP'!M12,TABLA!$A$4:$U$485,PANEL!$D$105,0),0) -> 12395 | N12: =IFERROR(VLOOKUP('TRAMA - MP'!N12,TABLA!$A$4:$U$485,PANEL!$D$105,0),0) -> 4775 | O12: =IFERROR(VLOOKUP('TRAMA - MP'!O12,TABLA!$A$4:$U$485,PANEL!$D$105,0),0) -> 2813 | P12: =IFERROR(VLOOKUP('TRAMA - MP'!P12,TABLA!$A$4:$U$485,PANEL!$D$105,0),0) -> 1087 | Q12: =IFERROR(VLOOKUP('TRAMA - MP'!Q12,TABLA!$A$4:$U$485,PANEL!$D$105,0),0) -> 26438 | R12: =IFERROR(VLOOKUP('TRAMA - MP'!R12,TABLA!$A$4:$U$485,PANEL!$D$105,0),0) -> 4675 | S12: =IFERROR(VLOOKUP('TRAMA - MP'!S12,TABLA!$A$4:$U$485,PANEL!$D$105,0),0) -> 32133 | T12: =IFERROR(VLOOKUP('TRAMA - MP'!T12,TABLA!$A$4:$U$485,PANEL!$D$105,0),0) -> 607 | U12: =IFERROR(VLOOKUP('TRAMA - MP'!U12,TABLA!$A$4:$U$485,PANEL!$D$105,0),0) -> 2684 | V12: =IFERROR(VLOOKUP('TRAMA - MP'!V12,TABLA!$A$4:$U$485,PANEL!$D$105,0),0) -> 887 | W12: =IFERROR(VLOOKUP('TRAMA - MP'!W12,TABLA!$A$4:$U$485,PANEL!$D$105,0),0) -> 456 | X12: =IFERROR(VLOOKUP('TRAMA - MP'!X12,TABLA!$A$4:$U$485,PANEL!$D$105,0),0) -> 3619 | Y12: =IFERROR(VLOOKUP('TRAMA - MP'!Y12,TABLA!$A$4:$U$485,PANEL!$D$105,0),0) -> 2006
A13: 30-59 | B13: =SUM(C13:E13) -> 8580 | C13: =IFERROR(VLOOKUP('TRAMA - MP'!C13,TABLA!$A$4:$U$485,PANEL!$D$105,0),0) -> 4988 | D13: =IFERROR(VLOOKUP('TRAMA - MP'!D13,TABLA!$A$4:$U$485,PANEL!$D$105,0),0) -> 2178 | E13: =IFERROR(VLOOKUP('TRAMA - MP'!E13,TABLA!$A$4:$U$485,PANEL!$D$105,0),0) -> 1414 | F13: =IFERROR(VLOOKUP('TRAMA - MP'!F13,TABLA!$A$4:$U$485,PANEL!$D$105,0),0) -> 59224 | G13: =IFERROR(VLOOKUP('TRAMA - MP'!G13,TABLA!$A$4:$U$485,PANEL!$D$105,0),0) -> 5895 | H13: =IFERROR(VLOOKUP('TRAMA - MP'!H13,TABLA!$A$4:$U$485,PANEL!$D$105,0),0) -> 570 | I13: =IFERROR(VLOOKUP('TRAMA - MP'!I13,TABLA!$A$4:$U$485,PANEL!$D$105,0),0) -> 185 | J13: =IFERROR(VLOOKUP('TRAMA - MP'!J13,TABLA!$A$4:$U$485,PANEL!$D$105,0),0) -> 5599 | K13: =IFERROR(VLOOKUP('TRAMA - MP'!K13,TABLA!$A$4:$U$485,PANEL!$D$105,0),0) -> 3239 | L13: =IFERROR(VLOOKUP('TRAMA - MP'!L13,TABLA!$A$4:$U$485,PANEL!$D$105,0),0) -> 5837 | M13: =IFERROR(VLOOKUP('TRAMA - MP'!M13,TABLA!$A$4:$U$485,PANEL!$D$105,0),0) -> 6539 | N13: =IFERROR(VLOOKUP('TRAMA - MP'!N13,TABLA!$A$4:$U$485,PANEL!$D$105,0),0) -> 2816 | O13: =IFERROR(VLOOKUP('TRAMA - MP'!O13,TABLA!$A$4:$U$485,PANEL!$D$105,0),0) -> 1555 | P13: =IFERROR(VLOOKUP('TRAMA - MP'!P13,TABLA!$A$4:$U$485,PANEL!$D$105,0),0) -> 551 | Q13: =IFERROR(VLOOKUP('TRAMA - MP'!Q13,TABLA!$A$4:$U$485,PANEL!$D$105,0),0) -> 14804 | R13: =IFERROR(VLOOKUP('TRAMA - MP'!R13,TABLA!$A$4:$U$485,PANEL!$D$105,0),0) -> 2372 | S13: =IFERROR(VLOOKUP('TRAMA - MP'!S13,TABLA!$A$4:$U$485,PANEL!$D$105,0),0) -> 18262 | T13: =IFERROR(VLOOKUP('TRAMA - MP'!T13,TABLA!$A$4:$U$485,PANEL!$D$105,0),0) -> 349 | U13: =IFERROR(VLOOKUP('TRAMA - MP'!U13,TABLA!$A$4:$U$485,PANEL!$D$105,0),0) -> 1391 | V13: =IFERROR(VLOOKUP('TRAMA - MP'!V13,TABLA!$A$4:$U$485,PANEL!$D$105,0),0) -> 429 | W13: =IFERROR(VLOOKUP('TRAMA - MP'!W13,TABLA!$A$4:$U$485,PANEL!$D$105,0),0) -> 242 | X13: =IFERROR(VLOOKUP('TRAMA - MP'!X13,TABLA!$A$4:$U$485,PANEL!$D$105,0),0) -> 2004 | Y13: =IFERROR(VLOOKUP('TRAMA - MP'!Y13,TABLA!$A$4:$U$485,PANEL!$D$105,0),0) -> 967
A14: TOTAL | B14: =SUM(B10:B13) -> 26452 | C14: 15631 | D14: 6878 | E14: 3943 | F14: 183470 | G14: 18181 | H14: 1613 | I14: 245 | J14: 17569 | K14: 9977 | L14: 18493 | M14: 20872 | N14: 8422 | O14: 4838 | P14: 1778 | Q14: 45397 | R14: 7833 | S14: 55264 | T14: 1049 | U14: 4394 | V14: 1429 | W14: 736 | X14: 6138 | Y14: 3333
I17: II. ANEMIA
A18: Grupo Etáreo | B18: Evaluación de Bienestar Fetal | D18: Psicoprofilaxis | F18: Estimulación Prenatal | I18: Grupo Etáreo | J18: GESTANTE | S18: Plan de Parto
D19: Atendida | E19: Prepa- rada | F19: 1º Sesión | G19: 6º Sesión | J19: ANEMIA | N19: Manejo Terapeitico | P19: Dosaje de Hemoglobina | S19: 1º Entrevista | T19: 2º Entrevista | U19: 3º Entrevista | V19: Efectivo
B20: 1º Monitoreo | C20: 2º Monitoreo | J20: Leve | K20: Moderada | L20: Severa | M20: Recuperada | N20: 1º entrega | O20: 6ta. Entrega | P20: 1º Dosaje
A21: < 12 a. | B21: =IFERROR(VLOOKUP('TRAMA - MP'!B21,TABLA!$A$4:$U$485,PANEL!$D$105,0),0) -> 4 | C21: =IFERROR(VLOOKUP('TRAMA - MP'!C21,TABLA!$A$4:$U$485,PANEL!$D$105,0),0) -> 1 | D21: =IFERROR(VLOOKUP('TRAMA - MP'!D21,TABLA!$A$4:$U$485,PANEL!$D$105,0),0) -> 0 | E21: =IFERROR(VLOOKUP('TRAMA - MP'!E21,TABLA!$A$4:$U$485,PANEL!$D$105,0),0) -> 0 | F21: =IFERROR(VLOOKUP('TRAMA - MP'!F21,TABLA!$A$4:$U$485,PANEL!$D$105,0),0) -> 0 | G21: =IFERROR(VLOOKUP('TRAMA - MP'!G21,TABLA!$A$4:$U$485,PANEL!$D$105,0),0) -> 0 | I21: < 12 a. | J21: =IFERROR(VLOOKUP('TRAMA - MP'!J21,TABLA!$A$4:$U$485,PANEL!$D$105,0),0) -> 0 | K21: =IFERROR(VLOOKUP('TRAMA - MP'!K21,TABLA!$A$4:$U$485,PANEL!$D$105,0),0) -> 0 | L21: =IFERROR(VLOOKUP('TRAMA - MP'!L21,TABLA!$A$4:$U$485,PANEL!$D$105,0),0) -> 0 | M21: =IFERROR(VLOOKUP('TRAMA - MP'!M21,TABLA!$A$4:$U$485,PANEL!$D$105,0),0) -> 0 | N21: =IFERROR(VLOOKUP('TRAMA - MP'!N21,TABLA!$A$4:$U$485,PANEL!$D$105,0),0) -> 0 | O21: =IFERROR(VLOOKUP('TRAMA - MP'!O21,TABLA!$A$4:$U$485,PANEL!$D$105,0),0) -> 0 | P21: =IFERROR(VLOOKUP('TRAMA - MP'!P21,TABLA!$A$4:$U$485,PANEL!$D$105,0),0) -> 2 | S21: =IFERROR(VLOOKUP('TRAMA - MP'!S21,TABLA!$A$4:$U$485,PANEL!$D$105,0),0) -> 1 | T21: =IFERROR(VLOOKUP('TRAMA - MP'!T21,TABLA!$A$4:$U$485,PANEL!$D$105,0),0) -> 4 | U21: =IFERROR(VLOOKUP('TRAMA - MP'!U21,TABLA!$A$4:$U$485,PANEL!$D$105,0),0) -> 1 | V21: =IFERROR(VLOOKUP('TRAMA - MP'!V21,TABLA!$A$4:$U$485,PANEL!$D$105,0),0) -> 3
A22: 12-17 | B22: =IFERROR(VLOOKUP('TRAMA - MP'!B22,TABLA!$A$4:$U$485,PANEL!$D$105,0),0) -> 344 | C22: =IFERROR(VLOOKUP('TRAMA - MP'!C22,TABLA!$A$4:$U$485,PANEL!$D$105,0),0) -> 222 | D22: =IFERROR(VLOOKUP('TRAMA - MP'!D22,TABLA!$A$4:$U$485,PANEL!$D$105,0),0) -> 25 | E22: =IFERROR(VLOOKUP('TRAMA - MP'!E22,TABLA!$A$4:$U$485,PANEL!$D$105,0),0) -> 7 | F22: =IFERROR(VLOOKUP('TRAMA - MP'!F22,TABLA!$A$4:$U$485,PANEL!$D$105,0),0) -> 17 | G22: =IFERROR(VLOOKUP('TRAMA - MP'!G22,TABLA!$A$4:$U$485,PANEL!$D$105,0),0) -> 5 | I22: 12-17 | J22: =IFERROR(VLOOKUP('TRAMA - MP'!J22,TABLA!$A$4:$U$485,PANEL!$D$105,0),0) -> 163 | K22: =IFERROR(VLOOKUP('TRAMA - MP'!K22,TABLA!$A$4:$U$485,PANEL!$D$105,0),0) -> 67 | L22: =IFERROR(VLOOKUP('TRAMA - MP'!L22,TABLA!$A$4:$U$485,PANEL!$D$105,0),0) -> 0 | M22: =IFERROR(VLOOKUP('TRAMA - MP'!M22,TABLA!$A$4:$U$485,PANEL!$D$105,0),0) -> 6 | N22: =IFERROR(VLOOKUP('TRAMA - MP'!N22,TABLA!$A$4:$U$485,PANEL!$D$105,0),0) -> 107 | O22: =IFERROR(VLOOKUP('TRAMA - MP'!O22,TABLA!$A$4:$U$485,PANEL!$D$105,0),0) -> 6 | P22: =IFERROR(VLOOKUP('TRAMA - MP'!P22,TABLA!$A$4:$U$485,PANEL!$D$105,0),0) -> 1841 | S22: =IFERROR(VLOOKUP('TRAMA - MP'!S22,TABLA!$A$4:$U$485,PANEL!$D$105,0),0) -> 2205 | T22: =IFERROR(VLOOKUP('TRAMA - MP'!T22,TABLA!$A$4:$U$485,PANEL!$D$105,0),0) -> 957 | U22: =IFERROR(VLOOKUP('TRAMA - MP'!U22,TABLA!$A$4:$U$485,PANEL!$D$105,0),0) -> 477 | V22: =IFERROR(VLOOKUP('TRAMA - MP'!V22,TABLA!$A$4:$U$485,PANEL!$D$105,0),0) -> 696
A23: 18-29 | B23: =IFERROR(VLOOKUP('TRAMA - MP'!B23,TABLA!$A$4:$U$485,PANEL!$D$105,0),0) -> 2601 | C23: =IFERROR(VLOOKUP('TRAMA - MP'!C23,TABLA!$A$4:$U$485,PANEL!$D$105,0),0) -> 1789 | D23: =IFERROR(VLOOKUP('TRAMA - MP'!D23,TABLA!$A$4:$U$485,PANEL!$D$105,0),0) -> 218 | E23: =IFERROR(VLOOKUP('TRAMA - MP'!E23,TABLA!$A$4:$U$485,PANEL!$D$105,0),0) -> 75 | F23: =IFERROR(VLOOKUP('TRAMA - MP'!F23,TABLA!$A$4:$U$485,PANEL!$D$105,0),0) -> 139 | G23: =IFERROR(VLOOKUP('TRAMA - MP'!G23,TABLA!$A$4:$U$485,PANEL!$D$105,0),0) -> 62 | I23: 18-29 | J23: =IFERROR(VLOOKUP('TRAMA - MP'!J23,TABLA!$A$4:$U$485,PANEL!$D$105,0),0) -> 952 | K23: =IFERROR(VLOOKUP('TRAMA - MP'!K23,TABLA!$A$4:$U$485,PANEL!$D$105,0),0) -> 354 | L23: =IFERROR(VLOOKUP('TRAMA - MP'!L23,TABLA!$A$4:$U$485,PANEL!$D$105,0),0) -> 8 | M23: =IFERROR(VLOOKUP('TRAMA - MP'!M23,TABLA!$A$4:$U$485,PANEL!$D$105,0),0) -> 55 | N23: =IFERROR(VLOOKUP('TRAMA - MP'!N23,TABLA!$A$4:$U$485,PANEL!$D$105,0),0) -> 690 | O23: =IFERROR(VLOOKUP('TRAMA - MP'!O23,TABLA!$A$4:$U$485,PANEL!$D$105,0),0) -> 54 | P23: =IFERROR(VLOOKUP('TRAMA - MP'!P23,TABLA!$A$4:$U$485,PANEL!$D$105,0),0) -> 11197 | S23: =IFERROR(VLOOKUP('TRAMA - MP'!S23,TABLA!$A$4:$U$485,PANEL!$D$105,0),0) -> 13166 | T23: =IFERROR(VLOOKUP('TRAMA - MP'!T23,TABLA!$A$4:$U$485,PANEL!$D$105,0),0) -> 6038 | U23: =IFERROR(VLOOKUP('TRAMA - MP'!U23,TABLA!$A$4:$U$485,PANEL!$D$105,0),0) -> 3316 | V23: =IFERROR(VLOOKUP('TRAMA - MP'!V23,TABLA!$A$4:$U$485,PANEL!$D$105,0),0) -> 4929
A24: 30-59 | B24: =IFERROR(VLOOKUP('TRAMA - MP'!B24,TABLA!$A$4:$U$485,PANEL!$D$105,0),0) -> 1306 | C24: =IFERROR(VLOOKUP('TRAMA - MP'!C24,TABLA!$A$4:$U$485,PANEL!$D$105,0),0) -> 1089 | D24: =IFERROR(VLOOKUP('TRAMA - MP'!D24,TABLA!$A$4:$U$485,PANEL!$D$105,0),0) -> 61 | E24: =IFERROR(VLOOKUP('TRAMA - MP'!E24,TABLA!$A$4:$U$485,PANEL!$D$105,0),0) -> 15 | F24: =IFERROR(VLOOKUP('TRAMA - MP'!F24,TABLA!$A$4:$U$485,PANEL!$D$105,0),0) -> 46 | G24: =IFERROR(VLOOKUP('TRAMA - MP'!G24,TABLA!$A$4:$U$485,PANEL!$D$105,0),0) -> 15 | I24: 30-59 | J24: =IFERROR(VLOOKUP('TRAMA - MP'!J24,TABLA!$A$4:$U$485,PANEL!$D$105,0),0) -> 455 | K24: =IFERROR(VLOOKUP('TRAMA - MP'!K24,TABLA!$A$4:$U$485,PANEL!$D$105,0),0) -> 124 | L24: =IFERROR(VLOOKUP('TRAMA - MP'!L24,TABLA!$A$4:$U$485,PANEL!$D$105,0),0) -> 6 | M24: =IFERROR(VLOOKUP('TRAMA - MP'!M24,TABLA!$A$4:$U$485,PANEL!$D$105,0),0) -> 43 | N24: =IFERROR(VLOOKUP('TRAMA - MP'!N24,TABLA!$A$4:$U$485,PANEL!$D$105,0),0) -> 324 | O24: =IFERROR(VLOOKUP('TRAMA - MP'!O24,TABLA!$A$4:$U$485,PANEL!$D$105,0),0) -> 32 | P24: =IFERROR(VLOOKUP('TRAMA - MP'!P24,TABLA!$A$4:$U$485,PANEL!$D$105,0),0) -> 6180 | S24: =IFERROR(VLOOKUP('TRAMA - MP'!S24,TABLA!$A$4:$U$485,PANEL!$D$105,0),0) -> 7099 | T24: =IFERROR(VLOOKUP('TRAMA - MP'!T24,TABLA!$A$4:$U$485,PANEL!$D$105,0),0) -> 3442 | U24: =IFERROR(VLOOKUP('TRAMA - MP'!U24,TABLA!$A$4:$U$485,PANEL!$D$105,0),0) -> 1965 | V24: =IFERROR(VLOOKUP('TRAMA - MP'!V24,TABLA!$A$4:$U$485,PANEL!$D$105,0),0) -> 2972
A25: TOTAL | B25: =SUM(B21:B24) -> 4255 | C25: 3101 | D25: 304 | E25: 97 | F25: 202 | G25: 82 | I25: TOTAL | J25: =SUM(J21:J24) -> 1570 | K25: 545 | L25: 14 | M25: 104 | N25: 1121 | O25: 92 | P25: 19220 | S25: =SUM(S21:S24) -> 22471 | T25: =SUM(T21:T24) -> 10441 | U25: =SUM(U21:U24) -> 5759 | V25: =SUM(V21:V24) -> 8600
A28: IV. ATENCION DE LA GESTANTE CON COMPLICACIONES | V28: V. MORBILIDAD DEL RN
A29: COMPLICACIONES | G29: TOTAL | H29: < 12 a. | I29: 12-17 | J29: 18-29 | K29: 30-59 | L29: COMPLICACIONES | P29: TOTAL | Q29: < 12 a. | R29: 12-17 | S29: 18-29 | T29: 30-59 | V29: Causas de Morbilidad | Z29: Nº
A30: Amenaza de parto prematuro | G30: =SUM(H30:K30) -> 426 | H30: =IFERROR(VLOOKUP('TRAMA - MP'!H30,TABLA!$A$4:$U$485,PANEL!$D$105,0),0) -> 0 | I30: =IFERROR(VLOOKUP('TRAMA - MP'!I30,TABLA!$A$4:$U$485,PANEL!$D$105,0),0) -> 46 | J30: =IFERROR(VLOOKUP('TRAMA - MP'!J30,TABLA!$A$4:$U$485,PANEL!$D$105,0),0) -> 259 | K30: =IFERROR(VLOOKUP('TRAMA - MP'!K30,TABLA!$A$4:$U$485,PANEL!$D$105,0),0) -> 121 | L30: Trastornos metabólicos del embarazo | P30: =SUM(AF29:AI29) -> 0 | Q30: =IFERROR(VLOOKUP('TRAMA - MP'!Q30,TABLA!$A$4:$U$485,PANEL!$D$105,0),0) -> 0 | R30: =IFERROR(VLOOKUP('TRAMA - MP'!R30,TABLA!$A$4:$U$485,PANEL!$D$105,0),0) -> 2 | S30: =IFERROR(VLOOKUP('TRAMA - MP'!S30,TABLA!$A$4:$U$485,PANEL!$D$105,0),0) -> 36 | T30: =IFERROR(VLOOKUP('TRAMA - MP'!T30,TABLA!$A$4:$U$485,PANEL!$D$105,0),0) -> 55 | V30: Bajo Peso | Z30: =IFERROR(VLOOKUP('TRAMA - MP'!Z30,TABLA!$A$4:$U$485,PANEL!$D$105,0),0) -> 814
A31: Hemorragias de la 1º mitad del embarazo sin laparotomía | G31: 1194 | H31: =IFERROR(VLOOKUP('TRAMA - MP'!H31,TABLA!$A$4:$U$485,PANEL!$D$105,0),0) -> 1 | I31: =IFERROR(VLOOKUP('TRAMA - MP'!I31,TABLA!$A$4:$U$485,PANEL!$D$105,0),0) -> 77 | J31: =IFERROR(VLOOKUP('TRAMA - MP'!J31,TABLA!$A$4:$U$485,PANEL!$D$105,0),0) -> 689 | K31: =IFERROR(VLOOKUP('TRAMA - MP'!K31,TABLA!$A$4:$U$485,PANEL!$D$105,0),0) -> 427 | L31: Otras enfermedades del embarazo | P31: =SUM(Q31:AI31) -> 503 | Q31: =IFERROR(VLOOKUP('TRAMA - MP'!Q31,TABLA!$A$4:$U$485,PANEL!$D$105,0),0) -> 0 | R31: =IFERROR(VLOOKUP('TRAMA - MP'!R31,TABLA!$A$4:$U$485,PANEL!$D$105,0),0) -> 38 | S31: =IFERROR(VLOOKUP('TRAMA - MP'!S31,TABLA!$A$4:$U$485,PANEL!$D$105,0),0) -> 275 | T31: =IFERROR(VLOOKUP('TRAMA - MP'!T31,TABLA!$A$4:$U$485,PANEL!$D$105,0),0) -> 176 | V31: Prematuro | Z31: =IFERROR(VLOOKUP('TRAMA - MP'!Z31,TABLA!$A$4:$U$485,PANEL!$D$105,0),0) -> 14
A32: Hemorragia de la 2º mitad del embarazo | G32: 109 | H32: =IFERROR(VLOOKUP('TRAMA - MP'!H32,TABLA!$A$4:$U$485,PANEL!$D$105,0),0) -> 0 | I32: =IFERROR(VLOOKUP('TRAMA - MP'!I32,TABLA!$A$4:$U$485,PANEL!$D$105,0),0) -> 7 | J32: =IFERROR(VLOOKUP('TRAMA - MP'!J32,TABLA!$A$4:$U$485,PANEL!$D$105,0),0) -> 42 | K32: =IFERROR(VLOOKUP('TRAMA - MP'!K32,TABLA!$A$4:$U$485,PANEL!$D$105,0),0) -> 60 | L32: Sepsis | P32: 31 | Q32: =IFERROR(VLOOKUP('TRAMA - MP'!Q32,TABLA!$A$4:$U$485,PANEL!$D$105,0),0) -> 0 | R32: =IFERROR(VLOOKUP('TRAMA - MP'!R32,TABLA!$A$4:$U$485,PANEL!$D$105,0),0) -> 3 | S32: =IFERROR(VLOOKUP('TRAMA - MP'!S32,TABLA!$A$4:$U$485,PANEL!$D$105,0),0) -> 13 | T32: =IFERROR(VLOOKUP('TRAMA - MP'!T32,TABLA!$A$4:$U$485,PANEL!$D$105,0),0) -> 13 | V32: Hipoxia | Z32: =IFERROR(VLOOKUP('TRAMA - MP'!Z32,TABLA!$A$4:$U$485,PANEL!$D$105,0),0) -> 2
A33: Hiperémesis gravídica | G33: 2140 | H33: =IFERROR(VLOOKUP('TRAMA - MP'!H33,TABLA!$A$4:$U$485,PANEL!$D$105,0),0) -> 1 | I33: =IFERROR(VLOOKUP('TRAMA - MP'!I33,TABLA!$A$4:$U$485,PANEL!$D$105,0),0) -> 223 | J33: =IFERROR(VLOOKUP('TRAMA - MP'!J33,TABLA!$A$4:$U$485,PANEL!$D$105,0),0) -> 1285 | K33: =IFERROR(VLOOKUP('TRAMA - MP'!K33,TABLA!$A$4:$U$485,PANEL!$D$105,0),0) -> 631 | L33: TBC | P33: 32 | Q33: =IFERROR(VLOOKUP('TRAMA - MP'!Q33,TABLA!$A$4:$U$485,PANEL!$D$105,0),0) -> 0 | R33: =IFERROR(VLOOKUP('TRAMA - MP'!R33,TABLA!$A$4:$U$485,PANEL!$D$105,0),0) -> 2 | S33: =IFERROR(VLOOKUP('TRAMA - MP'!S33,TABLA!$A$4:$U$485,PANEL!$D$105,0),0) -> 3 | T33: =IFERROR(VLOOKUP('TRAMA - MP'!T33,TABLA!$A$4:$U$485,PANEL!$D$105,0),0) -> 3 | V33: Síndrome de Distrés Respiratorio | Z33: =IFERROR(VLOOKUP('TRAMA - MP'!Z33,TABLA!$A$4:$U$485,PANEL!$D$105,0),0) -> 24
A34: Infección del tracto urinario en el embarazo | G34: 18189 | H34: =IFERROR(VLOOKUP('TRAMA - MP'!H34,TABLA!$A$4:$U$485,PANEL!$D$105,0),0) -> 16 | I34: =IFERROR(VLOOKUP('TRAMA - MP'!I34,TABLA!$A$4:$U$485,PANEL!$D$105,0),0) -> 1971 | J34: =IFERROR(VLOOKUP('TRAMA - MP'!J34,TABLA!$A$4:$U$485,PANEL!$D$105,0),0) -> 10731 | K34: =IFERROR(VLOOKUP('TRAMA - MP'!K34,TABLA!$A$4:$U$485,PANEL!$D$105,0),0) -> 5471 | L34: Retención de Placentaria | P34: 180 | Q34: =IFERROR(VLOOKUP('TRAMA - MP'!Q34,TABLA!$A$4:$U$485,PANEL!$D$105,0),0) -> 0 | R34: =IFERROR(VLOOKUP('TRAMA - MP'!R34,TABLA!$A$4:$U$485,PANEL!$D$105,0),0) -> 3 | S34: =IFERROR(VLOOKUP('TRAMA - MP'!S34,TABLA!$A$4:$U$485,PANEL!$D$105,0),0) -> 47 | T34: =IFERROR(VLOOKUP('TRAMA - MP'!T34,TABLA!$A$4:$U$485,PANEL!$D$105,0),0) -> 27 | V34: Sepsis Neonatal | Z34: =IFERROR(VLOOKUP('TRAMA - MP'!Z34,TABLA!$A$4:$U$485,PANEL!$D$105,0),0) -> 103
A35: Ruptura prematura de membranas y otras relacionadas | G35: 152 | H35: =IFERROR(VLOOKUP('TRAMA - MP'!H35,TABLA!$A$4:$U$485,PANEL!$D$105,0),0) -> 0 | I35: =IFERROR(VLOOKUP('TRAMA - MP'!I35,TABLA!$A$4:$U$485,PANEL!$D$105,0),0) -> 16 | J35: =IFERROR(VLOOKUP('TRAMA - MP'!J35,TABLA!$A$4:$U$485,PANEL!$D$105,0),0) -> 90 | K35: =IFERROR(VLOOKUP('TRAMA - MP'!K35,TABLA!$A$4:$U$485,PANEL!$D$105,0),0) -> 46 | L35: Ruptura prematura de las membranas | P35: 465 | Q35: =IFERROR(VLOOKUP('TRAMA - MP'!Q35,TABLA!$A$4:$U$485,PANEL!$D$105,0),0) -> 0 | R35: =IFERROR(VLOOKUP('TRAMA - MP'!R35,TABLA!$A$4:$U$485,PANEL!$D$105,0),0) -> 36 | S35: =IFERROR(VLOOKUP('TRAMA - MP'!S35,TABLA!$A$4:$U$485,PANEL!$D$105,0),0) -> 259 | T35: =IFERROR(VLOOKUP('TRAMA - MP'!T35,TABLA!$A$4:$U$485,PANEL!$D$105,0),0) -> 168 | V35: Sífilis Congénita | Z35: =IFERROR(VLOOKUP('TRAMA - MP'!Z35,TABLA!$A$4:$U$485,PANEL!$D$105,0),0) -> 2
A36: Hemorragias de la 1º mitad del embarazo con laparotomía | G36: 89 | H36: =IFERROR(VLOOKUP('TRAMA - MP'!H36,TABLA!$A$4:$U$485,PANEL!$D$105,0),0) -> 0 | I36: =IFERROR(VLOOKUP('TRAMA - MP'!I36,TABLA!$A$4:$U$485,PANEL!$D$105,0),0) -> 6 | J36: =IFERROR(VLOOKUP('TRAMA - MP'!J36,TABLA!$A$4:$U$485,PANEL!$D$105,0),0) -> 30 | K36: =IFERROR(VLOOKUP('TRAMA - MP'!K36,TABLA!$A$4:$U$485,PANEL!$D$105,0),0) -> 53 | L36: Desprendimiento Prematuro de la Placenta | P36: 12 | Q36: =IFERROR(VLOOKUP('TRAMA - MP'!Q36,TABLA!$A$4:$U$485,PANEL!$D$105,0),0) -> 4 | R36: =IFERROR(VLOOKUP('TRAMA - MP'!R36,TABLA!$A$4:$U$485,PANEL!$D$105,0),0) -> 0 | S36: =IFERROR(VLOOKUP('TRAMA - MP'!S36,TABLA!$A$4:$U$485,PANEL!$D$105,0),0) -> 3 | T36: =IFERROR(VLOOKUP('TRAMA - MP'!T36,TABLA!$A$4:$U$485,PANEL!$D$105,0),0) -> 5 | V36: RN - VIH Expuesto | Z36: =IFERROR(VLOOKUP('TRAMA - MP'!Z36,TABLA!$A$4:$U$485,PANEL!$D$105,0),0) -> 0
A37: Trastorno hipertensivos en el Embarazo | G37: 956 | H37: =IFERROR(VLOOKUP('TRAMA - MP'!H37,TABLA!$A$4:$U$485,PANEL!$D$105,0),0) -> 0 | I37: =IFERROR(VLOOKUP('TRAMA - MP'!I37,TABLA!$A$4:$U$485,PANEL!$D$105,0),0) -> 67 | J37: =IFERROR(VLOOKUP('TRAMA - MP'!J37,TABLA!$A$4:$U$485,PANEL!$D$105,0),0) -> 431 | K37: =IFERROR(VLOOKUP('TRAMA - MP'!K37,TABLA!$A$4:$U$485,PANEL!$D$105,0),0) -> 458
A41: VI. ADMINISTRACIÓN CON MICRONUTRIENTES | K41: VII. ATENCION DE PUERPERIO
A42: Grupo Etáreo | B42: Suplem. con Sulfato Ferroso | E42: Suplem. Ácido Fólico | G42: Suplem. Cálcio | I42: Vitamina A | K42: Grupo Etáreo | L42: Atendida | M42: Controlada | N42: Compli-cada | P42: VIII. VISITA DOMICILIARIA
B43: Atendida | C43: Suplementada | E43: 1° | F43: 2° | G43: Atendida 1º Dosis | H43: Suplem. 5º Dosis | I43: Puérpera | P43: A Gestante | R43: =IFERROR(VLOOKUP('TRAMA - MP'!R43,TABLA!$A$4:$U$485,PANEL!$D$105,0),0) -> 18742
C44: Gestante | D44: Puérpera | P44: A Puérpera | R44: =IFERROR(VLOOKUP('TRAMA - MP'!R44,TABLA!$A$4:$U$485,PANEL!$D$105,0),0) -> 5474
A45: < 12a | B45: =IFERROR(VLOOKUP('TRAMA - MP'!B45,TABLA!$A$4:$U$485,PANEL!$D$105,0),0) -> 0 | C45: =IFERROR(VLOOKUP('TRAMA - MP'!C45,TABLA!$A$4:$U$485,PANEL!$D$105,0),0) -> 0 | D45: =IFERROR(VLOOKUP('TRAMA - MP'!D45,TABLA!$A$4:$U$485,PANEL!$D$105,0),0) -> 0 | E45: =IFERROR(VLOOKUP('TRAMA - MP'!E45,TABLA!$A$4:$U$485,PANEL!$D$105,0),0) -> 1 | F45: =IFERROR(VLOOKUP('TRAMA - MP'!F45,TABLA!$A$4:$U$485,PANEL!$D$105,0),0) -> 0 | G45: =IFERROR(VLOOKUP('TRAMA - MP'!G45,TABLA!$A$4:$U$485,PANEL!$D$105,0),0) -> 2 | H45: =IFERROR(VLOOKUP('TRAMA - MP'!H45,TABLA!$A$4:$U$485,PANEL!$D$105,0),0) -> 0 | I45: =IFERROR(VLOOKUP('TRAMA - MP'!I45,TABLA!$A$4:$U$485,PANEL!$D$105,0),0) -> 0 | K45: < 12a | L45: =IFERROR(VLOOKUP('TRAMA - MP'!L45,TABLA!$A$4:$U$485,PANEL!$D$105,0),0) -> 2 | M45: =IFERROR(VLOOKUP('TRAMA - MP'!M45,TABLA!$A$4:$U$485,PANEL!$D$105,0),0) -> 3 | N45: =IFERROR(VLOOKUP('TRAMA - MP'!N45,TABLA!$A$4:$U$485,PANEL!$D$105,0),0) -> 4
A46: 12a - 17a | B46: =IFERROR(VLOOKUP('TRAMA - MP'!B46,TABLA!$A$4:$U$485,PANEL!$D$105,0),0) -> 1632 | C46: =IFERROR(VLOOKUP('TRAMA - MP'!C46,TABLA!$A$4:$U$485,PANEL!$D$105,0),0) -> 808 | D46: =IFERROR(VLOOKUP('TRAMA - MP'!D46,TABLA!$A$4:$U$485,PANEL!$D$105,0),0) -> 918 | E46: =IFERROR(VLOOKUP('TRAMA - MP'!E46,TABLA!$A$4:$U$485,PANEL!$D$105,0),0) -> 1190 | F46: =IFERROR(VLOOKUP('TRAMA - MP'!F46,TABLA!$A$4:$U$485,PANEL!$D$105,0),0) -> 347 | G46: =IFERROR(VLOOKUP('TRAMA - MP'!G46,TABLA!$A$4:$U$485,PANEL!$D$105,0),0) -> 1166 | H46: =IFERROR(VLOOKUP('TRAMA - MP'!H46,TABLA!$A$4:$U$485,PANEL!$D$105,0),0) -> 383 | I46: =IFERROR(VLOOKUP('TRAMA - MP'!I46,TABLA!$A$4:$U$485,PANEL!$D$105,0),0) -> 61 | K46: 12a - 17a | L46: =IFERROR(VLOOKUP('TRAMA - MP'!L46,TABLA!$A$4:$U$485,PANEL!$D$105,0),0) -> 1526 | M46: =IFERROR(VLOOKUP('TRAMA - MP'!M46,TABLA!$A$4:$U$485,PANEL!$D$105,0),0) -> 1297 | N46: =IFERROR(VLOOKUP('TRAMA - MP'!N46,TABLA!$A$4:$U$485,PANEL!$D$105,0),0) -> 90
A47: 18a - 29a | B47: =IFERROR(VLOOKUP('TRAMA - MP'!B47,TABLA!$A$4:$U$485,PANEL!$D$105,0),0) -> 10036 | C47: =IFERROR(VLOOKUP('TRAMA - MP'!C47,TABLA!$A$4:$U$485,PANEL!$D$105,0),0) -> 6099 | D47: =IFERROR(VLOOKUP('TRAMA - MP'!D47,TABLA!$A$4:$U$485,PANEL!$D$105,0),0) -> 6404 | E47: =IFERROR(VLOOKUP('TRAMA - MP'!E47,TABLA!$A$4:$U$485,PANEL!$D$105,0),0) -> 7381 | F47: =IFERROR(VLOOKUP('TRAMA - MP'!F47,TABLA!$A$4:$U$485,PANEL!$D$105,0),0) -> 2266 | G47: =IFERROR(VLOOKUP('TRAMA - MP'!G47,TABLA!$A$4:$U$485,PANEL!$D$105,0),0) -> 7744 | H47: =IFERROR(VLOOKUP('TRAMA - MP'!H47,TABLA!$A$4:$U$485,PANEL!$D$105,0),0) -> 2861 | I47: =IFERROR(VLOOKUP('TRAMA - MP'!I47,TABLA!$A$4:$U$485,PANEL!$D$105,0),0) -> 492 | K47: 18a - 29a | L47: =IFERROR(VLOOKUP('TRAMA - MP'!L47,TABLA!$A$4:$U$485,PANEL!$D$105,0),0) -> 11085 | M47: =IFERROR(VLOOKUP('TRAMA - MP'!M47,TABLA!$A$4:$U$485,PANEL!$D$105,0),0) -> 9624 | N47: =IFERROR(VLOOKUP('TRAMA - MP'!N47,TABLA!$A$4:$U$485,PANEL!$D$105,0),0) -> 593
A48: 30a - 59a | B48: =IFERROR(VLOOKUP('TRAMA - MP'!B48,TABLA!$A$4:$U$485,PANEL!$D$105,0),0) -> 5453 | C48: =IFERROR(VLOOKUP('TRAMA - MP'!C48,TABLA!$A$4:$U$485,PANEL!$D$105,0),0) -> 3442 | D48: =IFERROR(VLOOKUP('TRAMA - MP'!D48,TABLA!$A$4:$U$485,PANEL!$D$105,0),0) -> 3658 | E48: =IFERROR(VLOOKUP('TRAMA - MP'!E48,TABLA!$A$4:$U$485,PANEL!$D$105,0),0) -> 4062 | F48: =IFERROR(VLOOKUP('TRAMA - MP'!F48,TABLA!$A$4:$U$485,PANEL!$D$105,0),0) -> 1157 | G48: =IFERROR(VLOOKUP('TRAMA - MP'!G48,TABLA!$A$4:$U$485,PANEL!$D$105,0),0) -> 4238 | H48: =IFERROR(VLOOKUP('TRAMA - MP'!H48,TABLA!$A$4:$U$485,PANEL!$D$105,0),0) -> 1612 | I48: =IFERROR(VLOOKUP('TRAMA - MP'!I48,TABLA!$A$4:$U$485,PANEL!$D$105,0),0) -> 305 | K48: 30a - 59a | L48: =IFERROR(VLOOKUP('TRAMA - MP'!L48,TABLA!$A$4:$U$485,PANEL!$D$105,0),0) -> 6442 | M48: =IFERROR(VLOOKUP('TRAMA - MP'!M48,TABLA!$A$4:$U$485,PANEL!$D$105,0),0) -> 5655 | N48: =IFERROR(VLOOKUP('TRAMA - MP'!N48,TABLA!$A$4:$U$485,PANEL!$D$105,0),0) -> 388
A49: TOTAL | B49: =SUM(B45:B48) -> 17121 | C49: 10349 | D49: 10980 | E49: 12634 | F49: 3770 | G49: 13150 | H49: 4856 | I49: 858 | K49: TOTAL | L49: =SUM(L45:L48) -> 19055 | M49: =SUM(M45:M48) -> 16579 | N49: =SUM(N45:N48) -> 1075
A51: IX. TRANSMISIÓN VERTICAL
A53: Grupo Etáreo | B53: GESTANTES
B54: PRUEBAS DUALES | P54: HEPATITIS
B55: VIH/SIDA | I55: SIFILIS
B56: 1º TAMIZAJE | F56: 2º TAMIZAJE | I56: 1º TAMIZAJE | M56: 2º TAMIZAJE | P56: 1º TAMIZAJE CON PRUEBA RAPIDA
B57: I Trim | C57: II Trim | D57: III Trim | E57: Reactivo | F57: II Trim | G57: III Trim | H57: Reactivo | I57: I Trim | J57: II Trim | K57: III Trim | L57: Positivo | M57: II Trim | N57: III Trim | O57: Positivo | P57: I Trim | Q57: II Trim | R57: III Trim | S57: Reactivo
A58: < 12 a. | B58: =IFERROR(VLOOKUP('TRAMA - MP'!B58,TABLA!$A$4:$U$485,PANEL!$D$105,0),0) -> 0 | C58: =IFERROR(VLOOKUP('TRAMA - MP'!C58,TABLA!$A$4:$U$485,PANEL!$D$105,0),0) -> 0 | D58: =IFERROR(VLOOKUP('TRAMA - MP'!D58,TABLA!$A$4:$U$485,PANEL!$D$105,0),0) -> 0 | E58: =IFERROR(VLOOKUP('TRAMA - MP'!E58,TABLA!$A$4:$U$485,PANEL!$D$105,0),0) -> 0 | F58: =IFERROR(VLOOKUP('TRAMA - MP'!F58,TABLA!$A$4:$U$485,PANEL!$D$105,0),0) -> 0 | G58: =IFERROR(VLOOKUP('TRAMA - MP'!G58,TABLA!$A$4:$U$485,PANEL!$D$105,0),0) -> 0 | H58: =IFERROR(VLOOKUP('TRAMA - MP'!H58,TABLA!$A$4:$U$485,PANEL!$D$105,0),0) -> 0 | I58: =IFERROR(VLOOKUP('TRAMA - MP'!I58,TABLA!$A$4:$U$485,PANEL!$D$105,0),0) -> 0 | J58: =IFERROR(VLOOKUP('TRAMA - MP'!J58,TABLA!$A$4:$U$485,PANEL!$D$105,0),0) -> 0 | K58: =IFERROR(VLOOKUP('TRAMA - MP'!K58,TABLA!$A$4:$U$485,PANEL!$D$105,0),0) -> 0 | L58: =IFERROR(VLOOKUP('TRAMA - MP'!L58,TABLA!$A$4:$U$485,PANEL!$D$105,0),0) -> 0 | M58: =IFERROR(VLOOKUP('TRAMA - MP'!M58,TABLA!$A$4:$U$485,PANEL!$D$105,0),0) -> 0 | N58: =IFERROR(VLOOKUP('TRAMA - MP'!N58,TABLA!$A$4:$U$485,PANEL!$D$105,0),0) -> 0 | O58: =IFERROR(VLOOKUP('TRAMA - MP'!O58,TABLA!$A$4:$U$485,PANEL!$D$105,0),0) -> 0 | P58: =IFERROR(VLOOKUP('TRAMA - MP'!P58,TABLA!$A$4:$U$485,PANEL!$D$105,0),0) -> 0 | Q58: =IFERROR(VLOOKUP('TRAMA - MP'!Q58,TABLA!$A$4:$U$485,PANEL!$D$105,0),0) -> 0 | R58: =IFERROR(VLOOKUP('TRAMA - MP'!R58,TABLA!$A$4:$U$485,PANEL!$D$105,0),0) -> 0 | S58: =IFERROR(VLOOKUP('TRAMA - MP'!S58,TABLA!$A$4:$U$485,PANEL!$D$105,0),0) -> 0
A59: ´12-17 | B59: =IFERROR(VLOOKUP('TRAMA - MP'!B59,TABLA!$A$4:$U$485,PANEL!$D$105,0),0) -> 1161 | C59: =IFERROR(VLOOKUP('TRAMA - MP'!C59,TABLA!$A$4:$U$485,PANEL!$D$105,0),0) -> 592 | D59: =IFERROR(VLOOKUP('TRAMA - MP'!D59,TABLA!$A$4:$U$485,PANEL!$D$105,0),0) -> 204 | E59: =IFERROR(VLOOKUP('TRAMA - MP'!E59,TABLA!$A$4:$U$485,PANEL!$D$105,0),0) -> 2 | F59: =IFERROR(VLOOKUP('TRAMA - MP'!F59,TABLA!$A$4:$U$485,PANEL!$D$105,0),0) -> 60 | G59: =IFERROR(VLOOKUP('TRAMA - MP'!G59,TABLA!$A$4:$U$485,PANEL!$D$105,0),0) -> 723 | H59: =IFERROR(VLOOKUP('TRAMA - MP'!H59,TABLA!$A$4:$U$485,PANEL!$D$105,0),0) -> 1 | I59: =IFERROR(VLOOKUP('TRAMA - MP'!I59,TABLA!$A$4:$U$485,PANEL!$D$105,0),0) -> 1056 | J59: =IFERROR(VLOOKUP('TRAMA - MP'!J59,TABLA!$A$4:$U$485,PANEL!$D$105,0),0) -> 536 | K59: =IFERROR(VLOOKUP('TRAMA - MP'!K59,TABLA!$A$4:$U$485,PANEL!$D$105,0),0) -> 200 | L59: =IFERROR(VLOOKUP('TRAMA - MP'!L59,TABLA!$A$4:$U$485,PANEL!$D$105,0),0) -> 2 | M59: =IFERROR(VLOOKUP('TRAMA - MP'!M59,TABLA!$A$4:$U$485,PANEL!$D$105,0),0) -> 32 | N59: =IFERROR(VLOOKUP('TRAMA - MP'!N59,TABLA!$A$4:$U$485,PANEL!$D$105,0),0) -> 426 | O59: =IFERROR(VLOOKUP('TRAMA - MP'!O59,TABLA!$A$4:$U$485,PANEL!$D$105,0),0) -> 0 | P59: =IFERROR(VLOOKUP('TRAMA - MP'!P59,TABLA!$A$4:$U$485,PANEL!$D$105,0),0) -> 592 | Q59: =IFERROR(VLOOKUP('TRAMA - MP'!Q59,TABLA!$A$4:$U$485,PANEL!$D$105,0),0) -> 295 | R59: =IFERROR(VLOOKUP('TRAMA - MP'!R59,TABLA!$A$4:$U$485,PANEL!$D$105,0),0) -> 80 | S59: =IFERROR(VLOOKUP('TRAMA - MP'!S59,TABLA!$A$4:$U$485,PANEL!$D$105,0),0) -> 0
A60: 18-29 | B60: =IFERROR(VLOOKUP('TRAMA - MP'!B60,TABLA!$A$4:$U$485,PANEL!$D$105,0),0) -> 7469 | C60: =IFERROR(VLOOKUP('TRAMA - MP'!C60,TABLA!$A$4:$U$485,PANEL!$D$105,0),0) -> 3425 | D60: =IFERROR(VLOOKUP('TRAMA - MP'!D60,TABLA!$A$4:$U$485,PANEL!$D$105,0),0) -> 1511 | E60: =IFERROR(VLOOKUP('TRAMA - MP'!E60,TABLA!$A$4:$U$485,PANEL!$D$105,0),0) -> 23 | F60: =IFERROR(VLOOKUP('TRAMA - MP'!F60,TABLA!$A$4:$U$485,PANEL!$D$105,0),0) -> 573 | G60: =IFERROR(VLOOKUP('TRAMA - MP'!G60,TABLA!$A$4:$U$485,PANEL!$D$105,0),0) -> 5557 | H60: =IFERROR(VLOOKUP('TRAMA - MP'!H60,TABLA!$A$4:$U$485,PANEL!$D$105,0),0) -> 7 | I60: =IFERROR(VLOOKUP('TRAMA - MP'!I60,TABLA!$A$4:$U$485,PANEL!$D$105,0),0) -> 6791 | J60: =IFERROR(VLOOKUP('TRAMA - MP'!J60,TABLA!$A$4:$U$485,PANEL!$D$105,0),0) -> 3084 | K60: =IFERROR(VLOOKUP('TRAMA - MP'!K60,TABLA!$A$4:$U$485,PANEL!$D$105,0),0) -> 1485 | L60: =IFERROR(VLOOKUP('TRAMA - MP'!L60,TABLA!$A$4:$U$485,PANEL!$D$105,0),0) -> 40 | M60: =IFERROR(VLOOKUP('TRAMA - MP'!M60,TABLA!$A$4:$U$485,PANEL!$D$105,0),0) -> 322 | N60: =IFERROR(VLOOKUP('TRAMA - MP'!N60,TABLA!$A$4:$U$485,PANEL!$D$105,0),0) -> 3043 | O60: =IFERROR(VLOOKUP('TRAMA - MP'!O60,TABLA!$A$4:$U$485,PANEL!$D$105,0),0) -> 8 | P60: =IFERROR(VLOOKUP('TRAMA - MP'!P60,TABLA!$A$4:$U$485,PANEL!$D$105,0),0) -> 3665 | Q60: =IFERROR(VLOOKUP('TRAMA - MP'!Q60,TABLA!$A$4:$U$485,PANEL!$D$105,0),0) -> 1567 | R60: =IFERROR(VLOOKUP('TRAMA - MP'!R60,TABLA!$A$4:$U$485,PANEL!$D$105,0),0) -> 601 | S60: =IFERROR(VLOOKUP('TRAMA - MP'!S60,TABLA!$A$4:$U$485,PANEL!$D$105,0),0) -> 6
A61: 30-59 | B61: =IFERROR(VLOOKUP('TRAMA - MP'!B61,TABLA!$A$4:$U$485,PANEL!$D$105,0),0) -> 4109 | C61: =IFERROR(VLOOKUP('TRAMA - MP'!C61,TABLA!$A$4:$U$485,PANEL!$D$105,0),0) -> 1856 | D61: =IFERROR(VLOOKUP('TRAMA - MP'!D61,TABLA!$A$4:$U$485,PANEL!$D$105,0),0) -> 804 | E61: =IFERROR(VLOOKUP('TRAMA - MP'!E61,TABLA!$A$4:$U$485,PANEL!$D$105,0),0) -> 12 | F61: =IFERROR(VLOOKUP('TRAMA - MP'!F61,TABLA!$A$4:$U$485,PANEL!$D$105,0),0) -> 286 | G61: =IFERROR(VLOOKUP('TRAMA - MP'!G61,TABLA!$A$4:$U$485,PANEL!$D$105,0),0) -> 3006 | H61: =IFERROR(VLOOKUP('TRAMA - MP'!H61,TABLA!$A$4:$U$485,PANEL!$D$105,0),0) -> 6 | I61: =IFERROR(VLOOKUP('TRAMA - MP'!I61,TABLA!$A$4:$U$485,PANEL!$D$105,0),0) -> 3738 | J61: =IFERROR(VLOOKUP('TRAMA - MP'!J61,TABLA!$A$4:$U$485,PANEL!$D$105,0),0) -> 1698 | K61: =IFERROR(VLOOKUP('TRAMA - MP'!K61,TABLA!$A$4:$U$485,PANEL!$D$105,0),0) -> 773 | L61: =IFERROR(VLOOKUP('TRAMA - MP'!L61,TABLA!$A$4:$U$485,PANEL!$D$105,0),0) -> 17 | M61: =IFERROR(VLOOKUP('TRAMA - MP'!M61,TABLA!$A$4:$U$485,PANEL!$D$105,0),0) -> 147 | N61: =IFERROR(VLOOKUP('TRAMA - MP'!N61,TABLA!$A$4:$U$485,PANEL!$D$105,0),0) -> 1720 | O61: =IFERROR(VLOOKUP('TRAMA - MP'!O61,TABLA!$A$4:$U$485,PANEL!$D$105,0),0) -> 4 | P61: =IFERROR(VLOOKUP('TRAMA - MP'!P61,TABLA!$A$4:$U$485,PANEL!$D$105,0),0) -> 2020 | Q61: =IFERROR(VLOOKUP('TRAMA - MP'!Q61,TABLA!$A$4:$U$485,PANEL!$D$105,0),0) -> 846 | R61: =IFERROR(VLOOKUP('TRAMA - MP'!R61,TABLA!$A$4:$U$485,PANEL!$D$105,0),0) -> 295 | S61: =IFERROR(VLOOKUP('TRAMA - MP'!S61,TABLA!$A$4:$U$485,PANEL!$D$105,0),0) -> 1
A62: TOTAL | B62: =SUM(B58:B61) -> 12739 | C62: 5873 | D62: 2519 | E62: 37 | F62: 919 | G62: 9286 | H62: 14 | I62: 11585 | J62: 5318 | K62: 2458 | L62: 59 | M62: 501 | N62: 5189 | O62: 12 | P62: 6277 | Q62: 2708 | R62: 976 | S62: 7
A64: Grupo Etáreo | B64: GESTANTES
B65: VIH/SIDA | M65: SIFILIS
B66: 1º TAMIZAJE CON PRUEBA RAPIDA | F66: 2º TAMIZAJE CON PRUEBA RAPIDA | I66: TAMIZAJE CON ELISA | M66: 1º PRUEBA RAPIDA | Q66: 2º TAMIZAJE CON PRUEBA RAPIDA | T66: 1º TAMIZAJE CON RPR / VDRL
B67: I Trim | C67: II Trim | D67: III Trim | E67: Reactivo | F67: II Trim | G67: III Trim | H67: Reactivo | I67: I Trim | J67: II Trim | K67: III Trim | L67: Reactivo | M67: I Trim | N67: II Trim | O67: III Trim | P67: Reactivo | Q67: II Trim | R67: III Trim | S67: Reactivo | T67: N° | U67: Reactivo
A68: < 12 a. | B68: =IFERROR(VLOOKUP('TRAMA - MP'!B68,TABLA!$A$4:$U$485,PANEL!$D$105,0),0) -> 0 | C68: =IFERROR(VLOOKUP('TRAMA - MP'!C68,TABLA!$A$4:$U$485,PANEL!$D$105,0),0) -> 0 | D68: =IFERROR(VLOOKUP('TRAMA - MP'!D68,TABLA!$A$4:$U$485,PANEL!$D$105,0),0) -> 0 | E68: =IFERROR(VLOOKUP('TRAMA - MP'!E68,TABLA!$A$4:$U$485,PANEL!$D$105,0),0) -> 0 | F68: =IFERROR(VLOOKUP('TRAMA - MP'!F68,TABLA!$A$4:$U$485,PANEL!$D$105,0),0) -> 0 | G68: =IFERROR(VLOOKUP('TRAMA - MP'!G68,TABLA!$A$4:$U$485,PANEL!$D$105,0),0) -> 0 | H68: =IFERROR(VLOOKUP('TRAMA - MP'!H68,TABLA!$A$4:$U$485,PANEL!$D$105,0),0) -> 0 | I68: =IFERROR(VLOOKUP('TRAMA - MP'!I68,TABLA!$A$4:$U$485,PANEL!$D$105,0),0) -> 0 | J68: =IFERROR(VLOOKUP('TRAMA - MP'!J68,TABLA!$A$4:$U$485,PANEL!$D$105,0),0) -> 0 | K68: =IFERROR(VLOOKUP('TRAMA - MP'!K68,TABLA!$A$4:$U$485,PANEL!$D$105,0),0) -> 0 | L68: =IFERROR(VLOOKUP('TRAMA - MP'!L68,TABLA!$A$4:$U$485,PANEL!$D$105,0),0) -> 0 | M68: =IFERROR(VLOOKUP('TRAMA - MP'!M68,TABLA!$A$4:$U$485,PANEL!$D$105,0),0) -> 0 | N68: =IFERROR(VLOOKUP('TRAMA - MP'!N68,TABLA!$A$4:$U$485,PANEL!$D$105,0),0) -> 0 | O68: =IFERROR(VLOOKUP('TRAMA - MP'!O68,TABLA!$A$4:$U$485,PANEL!$D$105,0),0) -> 0 | P68: =IFERROR(VLOOKUP('TRAMA - MP'!P68,TABLA!$A$4:$U$485,PANEL!$D$105,0),0) -> 0 | Q68: =IFERROR(VLOOKUP('TRAMA - MP'!Q68,TABLA!$A$4:$U$485,PANEL!$D$105,0),0) -> 0 | R68: =IFERROR(VLOOKUP('TRAMA - MP'!R68,TABLA!$A$4:$U$485,PANEL!$D$105,0),0) -> 0 | S68: =IFERROR(VLOOKUP('TRAMA - MP'!S68,TABLA!$A$4:$U$485,PANEL!$D$105,0),0) -> 0 | T68: =IFERROR(VLOOKUP('TRAMA - MP'!T68,TABLA!$A$4:$U$485,PANEL!$D$105,0),0) -> 0 | U68: =IFERROR(VLOOKUP('TRAMA - MP'!U68,TABLA!$A$4:$U$485,PANEL!$D$105,0),0) -> 0
A69: ´12-17 | B69: =IFERROR(VLOOKUP('TRAMA - MP'!B69,TABLA!$A$4:$U$485,PANEL!$D$105,0),0) -> 295 | C69: =IFERROR(VLOOKUP('TRAMA - MP'!C69,TABLA!$A$4:$U$485,PANEL!$D$105,0),0) -> 95 | D69: =IFERROR(VLOOKUP('TRAMA - MP'!D69,TABLA!$A$4:$U$485,PANEL!$D$105,0),0) -> 24 | E69: =IFERROR(VLOOKUP('TRAMA - MP'!E69,TABLA!$A$4:$U$485,PANEL!$D$105,0),0) -> 0 | F69: =IFERROR(VLOOKUP('TRAMA - MP'!F69,TABLA!$A$4:$U$485,PANEL!$D$105,0),0) -> 7 | G69: =IFERROR(VLOOKUP('TRAMA - MP'!G69,TABLA!$A$4:$U$485,PANEL!$D$105,0),0) -> 173 | H69: =IFERROR(VLOOKUP('TRAMA - MP'!H69,TABLA!$A$4:$U$485,PANEL!$D$105,0),0) -> 0 | I69: =IFERROR(VLOOKUP('TRAMA - MP'!I69,TABLA!$A$4:$U$485,PANEL!$D$105,0),0) -> 0 | J69: =IFERROR(VLOOKUP('TRAMA - MP'!J69,TABLA!$A$4:$U$485,PANEL!$D$105,0),0) -> 0 | K69: =IFERROR(VLOOKUP('TRAMA - MP'!K69,TABLA!$A$4:$U$485,PANEL!$D$105,0),0) -> 0 | L69: =IFERROR(VLOOKUP('TRAMA - MP'!L69,TABLA!$A$4:$U$485,PANEL!$D$105,0),0) -> 0 | M69: =IFERROR(VLOOKUP('TRAMA - MP'!M69,TABLA!$A$4:$U$485,PANEL!$D$105,0),0) -> 233 | N69: =IFERROR(VLOOKUP('TRAMA - MP'!N69,TABLA!$A$4:$U$485,PANEL!$D$105,0),0) -> 69 | O69: =IFERROR(VLOOKUP('TRAMA - MP'!O69,TABLA!$A$4:$U$485,PANEL!$D$105,0),0) -> 21 | P69: =IFERROR(VLOOKUP('TRAMA - MP'!P69,TABLA!$A$4:$U$485,PANEL!$D$105,0),0) -> 0 | Q69: =IFERROR(VLOOKUP('TRAMA - MP'!Q69,TABLA!$A$4:$U$485,PANEL!$D$105,0),0) -> 4 | R69: =IFERROR(VLOOKUP('TRAMA - MP'!R69,TABLA!$A$4:$U$485,PANEL!$D$105,0),0) -> 142 | S69: =IFERROR(VLOOKUP('TRAMA - MP'!S69,TABLA!$A$4:$U$485,PANEL!$D$105,0),0) -> 0 | T69: =IFERROR(VLOOKUP('TRAMA - MP'!T69,TABLA!$A$4:$U$485,PANEL!$D$105,0),0) -> 11 | U69: =IFERROR(VLOOKUP('TRAMA - MP'!U69,TABLA!$A$4:$U$485,PANEL!$D$105,0),0) -> 0
A70: 18-29 | B70: =IFERROR(VLOOKUP('TRAMA - MP'!B70,TABLA!$A$4:$U$485,PANEL!$D$105,0),0) -> 1612 | C70: =IFERROR(VLOOKUP('TRAMA - MP'!C70,TABLA!$A$4:$U$485,PANEL!$D$105,0),0) -> 443 | D70: =IFERROR(VLOOKUP('TRAMA - MP'!D70,TABLA!$A$4:$U$485,PANEL!$D$105,0),0) -> 182 | E70: =IFERROR(VLOOKUP('TRAMA - MP'!E70,TABLA!$A$4:$U$485,PANEL!$D$105,0),0) -> 3 | F70: =IFERROR(VLOOKUP('TRAMA - MP'!F70,TABLA!$A$4:$U$485,PANEL!$D$105,0),0) -> 75 | G70: =IFERROR(VLOOKUP('TRAMA - MP'!G70,TABLA!$A$4:$U$485,PANEL!$D$105,0),0) -> 1249 | H70: =IFERROR(VLOOKUP('TRAMA - MP'!H70,TABLA!$A$4:$U$485,PANEL!$D$105,0),0) -> 1 | I70: =IFERROR(VLOOKUP('TRAMA - MP'!I70,TABLA!$A$4:$U$485,PANEL!$D$105,0),0) -> 0 | J70: =IFERROR(VLOOKUP('TRAMA - MP'!J70,TABLA!$A$4:$U$485,PANEL!$D$105,0),0) -> 0 | K70: =IFERROR(VLOOKUP('TRAMA - MP'!K70,TABLA!$A$4:$U$485,PANEL!$D$105,0),0) -> 0 | L70: =IFERROR(VLOOKUP('TRAMA - MP'!L70,TABLA!$A$4:$U$485,PANEL!$D$105,0),0) -> 0 | M70: =IFERROR(VLOOKUP('TRAMA - MP'!M70,TABLA!$A$4:$U$485,PANEL!$D$105,0),0) -> 1249 | N70: =IFERROR(VLOOKUP('TRAMA - MP'!N70,TABLA!$A$4:$U$485,PANEL!$D$105,0),0) -> 347 | O70: =IFERROR(VLOOKUP('TRAMA - MP'!O70,TABLA!$A$4:$U$485,PANEL!$D$105,0),0) -> 154 | P70: =IFERROR(VLOOKUP('TRAMA - MP'!P70,TABLA!$A$4:$U$485,PANEL!$D$105,0),0) -> 5 | Q70: =IFERROR(VLOOKUP('TRAMA - MP'!Q70,TABLA!$A$4:$U$485,PANEL!$D$105,0),0) -> 49 | R70: =IFERROR(VLOOKUP('TRAMA - MP'!R70,TABLA!$A$4:$U$485,PANEL!$D$105,0),0) -> 1069 | S70: =IFERROR(VLOOKUP('TRAMA - MP'!S70,TABLA!$A$4:$U$485,PANEL!$D$105,0),0) -> 1 | T70: =IFERROR(VLOOKUP('TRAMA - MP'!T70,TABLA!$A$4:$U$485,PANEL!$D$105,0),0) -> 91 | U70: =IFERROR(VLOOKUP('TRAMA - MP'!U70,TABLA!$A$4:$U$485,PANEL!$D$105,0),0) -> 0
A71: 30-59 | B71: =IFERROR(VLOOKUP('TRAMA - MP'!B71,TABLA!$A$4:$U$485,PANEL!$D$105,0),0) -> 845 | C71: =IFERROR(VLOOKUP('TRAMA - MP'!C71,TABLA!$A$4:$U$485,PANEL!$D$105,0),0) -> 241 | D71: =IFERROR(VLOOKUP('TRAMA - MP'!D71,TABLA!$A$4:$U$485,PANEL!$D$105,0),0) -> 110 | E71: =IFERROR(VLOOKUP('TRAMA - MP'!E71,TABLA!$A$4:$U$485,PANEL!$D$105,0),0) -> 0 | F71: =IFERROR(VLOOKUP('TRAMA - MP'!F71,TABLA!$A$4:$U$485,PANEL!$D$105,0),0) -> 38 | G71: =IFERROR(VLOOKUP('TRAMA - MP'!G71,TABLA!$A$4:$U$485,PANEL!$D$105,0),0) -> 622 | H71: =IFERROR(VLOOKUP('TRAMA - MP'!H71,TABLA!$A$4:$U$485,PANEL!$D$105,0),0) -> 1 | I71: =IFERROR(VLOOKUP('TRAMA - MP'!I71,TABLA!$A$4:$U$485,PANEL!$D$105,0),0) -> 0 | J71: =IFERROR(VLOOKUP('TRAMA - MP'!J71,TABLA!$A$4:$U$485,PANEL!$D$105,0),0) -> 0 | K71: =IFERROR(VLOOKUP('TRAMA - MP'!K71,TABLA!$A$4:$U$485,PANEL!$D$105,0),0) -> 1 | L71: =IFERROR(VLOOKUP('TRAMA - MP'!L71,TABLA!$A$4:$U$485,PANEL!$D$105,0),0) -> 1 | M71: =IFERROR(VLOOKUP('TRAMA - MP'!M71,TABLA!$A$4:$U$485,PANEL!$D$105,0),0) -> 668 | N71: =IFERROR(VLOOKUP('TRAMA - MP'!N71,TABLA!$A$4:$U$485,PANEL!$D$105,0),0) -> 187 | O71: =IFERROR(VLOOKUP('TRAMA - MP'!O71,TABLA!$A$4:$U$485,PANEL!$D$105,0),0) -> 101 | P71: =IFERROR(VLOOKUP('TRAMA - MP'!P71,TABLA!$A$4:$U$485,PANEL!$D$105,0),0) -> 1 | Q71: =IFERROR(VLOOKUP('TRAMA - MP'!Q71,TABLA!$A$4:$U$485,PANEL!$D$105,0),0) -> 29 | R71: =IFERROR(VLOOKUP('TRAMA - MP'!R71,TABLA!$A$4:$U$485,PANEL!$D$105,0),0) -> 539 | S71: =IFERROR(VLOOKUP('TRAMA - MP'!S71,TABLA!$A$4:$U$485,PANEL!$D$105,0),0) -> 2 | T71: =IFERROR(VLOOKUP('TRAMA - MP'!T71,TABLA!$A$4:$U$485,PANEL!$D$105,0),0) -> 45 | U71: =IFERROR(VLOOKUP('TRAMA - MP'!U71,TABLA!$A$4:$U$485,PANEL!$D$105,0),0) -> 0
A72: TOTAL | B72: =SUM(B68:B71) -> 2752 | C72: 779 | D72: 316 | E72: 3 | F72: 120 | G72: 2044 | H72: 2 | I72: 0 | J72: 0 | K72: =SUM(K68:K71) -> 1 | L72: 1 | M72: =SUM(M68:M71) -> 2150 | N72: 603 | O72: 276 | P72: 6 | Q72: 82 | R72: 1750 | S72: 3 | T72: 147 | U72: 0
A75: Grupo Etáreo | B75: PUERPERAS INMEDIATAS
B76: VIH/SIDA | D76: SIFILIS | J76: 1º Prueba Rápida para VIH en Trabajo de Parto | N76: =IFERROR(VLOOKUP('TRAMA - MP'!N76,TABLA!$A$4:$U$485,PANEL!$D$105,0),0) -> 208
B77: PR / para VIH | C77: Reactivo para VIH | D77: Prueba Rápida | E77: Positivo | F77: Tamizaje RPR | G77: RPR Reactivo | J77: 1º Prueba Rápida VIH en Trabajo de Parto Reactivo | N77: =IFERROR(VLOOKUP('TRAMA - MP'!N77,TABLA!$A$4:$U$485,PANEL!$D$105,0),0) -> 208
A79: < 12 a. | B79: =IFERROR(VLOOKUP('TRAMA - MP'!B79,TABLA!$A$4:$U$485,PANEL!$D$105,0),0) -> 0 | C79: =IFERROR(VLOOKUP('TRAMA - MP'!C79,TABLA!$A$4:$U$485,PANEL!$D$105,0),0) -> 0 | D79: =IFERROR(VLOOKUP('TRAMA - MP'!D79,TABLA!$A$4:$U$485,PANEL!$D$105,0),0) -> 0 | E79: =IFERROR(VLOOKUP('TRAMA - MP'!E79,TABLA!$A$4:$U$485,PANEL!$D$105,0),0) -> 0 | F79: =IFERROR(VLOOKUP('TRAMA - MP'!F79,TABLA!$A$4:$U$485,PANEL!$D$105,0),0) -> 0 | G79: =IFERROR(VLOOKUP('TRAMA - MP'!G79,TABLA!$A$4:$U$485,PANEL!$D$105,0),0) -> 0
A80: ´12-17 | B80: =IFERROR(VLOOKUP('TRAMA - MP'!B80,TABLA!$A$4:$U$485,PANEL!$D$105,0),0) -> 16 | C80: =IFERROR(VLOOKUP('TRAMA - MP'!C80,TABLA!$A$4:$U$485,PANEL!$D$105,0),0) -> 0 | D80: =IFERROR(VLOOKUP('TRAMA - MP'!D80,TABLA!$A$4:$U$485,PANEL!$D$105,0),0) -> 14 | E80: =IFERROR(VLOOKUP('TRAMA - MP'!E80,TABLA!$A$4:$U$485,PANEL!$D$105,0),0) -> 0 | F80: =IFERROR(VLOOKUP('TRAMA - MP'!F80,TABLA!$A$4:$U$485,PANEL!$D$105,0),0) -> 0 | G80: =IFERROR(VLOOKUP('TRAMA - MP'!G80,TABLA!$A$4:$U$485,PANEL!$D$105,0),0) -> 0
A81: 18-29 | B81: =IFERROR(VLOOKUP('TRAMA - MP'!B81,TABLA!$A$4:$U$485,PANEL!$D$105,0),0) -> 111 | C81: =IFERROR(VLOOKUP('TRAMA - MP'!C81,TABLA!$A$4:$U$485,PANEL!$D$105,0),0) -> 1 | D81: =IFERROR(VLOOKUP('TRAMA - MP'!D81,TABLA!$A$4:$U$485,PANEL!$D$105,0),0) -> 90 | E81: =IFERROR(VLOOKUP('TRAMA - MP'!E81,TABLA!$A$4:$U$485,PANEL!$D$105,0),0) -> 0 | F81: =IFERROR(VLOOKUP('TRAMA - MP'!F81,TABLA!$A$4:$U$485,PANEL!$D$105,0),0) -> 0 | G81: =IFERROR(VLOOKUP('TRAMA - MP'!G81,TABLA!$A$4:$U$485,PANEL!$D$105,0),0) -> 0
A82: 30-59 | B82: =IFERROR(VLOOKUP('TRAMA - MP'!B82,TABLA!$A$4:$U$485,PANEL!$D$105,0),0) -> 60 | C82: =IFERROR(VLOOKUP('TRAMA - MP'!C82,TABLA!$A$4:$U$485,PANEL!$D$105,0),0) -> 0 | D82: =IFERROR(VLOOKUP('TRAMA - MP'!D82,TABLA!$A$4:$U$485,PANEL!$D$105,0),0) -> 43 | E82: =IFERROR(VLOOKUP('TRAMA - MP'!E82,TABLA!$A$4:$U$485,PANEL!$D$105,0),0) -> 0 | F82: =IFERROR(VLOOKUP('TRAMA - MP'!F82,TABLA!$A$4:$U$485,PANEL!$D$105,0),0) -> 1 | G82: =IFERROR(VLOOKUP('TRAMA - MP'!G82,TABLA!$A$4:$U$485,PANEL!$D$105,0),0) -> 0
A83: TOTAL | B83: =SUM(B79:B82) -> 187 | C83: 1 | D83: 147 | E83: 0 | F83: 1 | G83: 0

Sheet DATA
A1: SUBREGION | B1: PROVINCIA | C1: Ubigueo_Establecimiento | D1: RENAES | E1: ESTABLECIMIENTO | F1: Categoria | G1: DISTRITO | H1: CLAS | I1: Red | J1: MicroRed | K1: Ejecutora | L1: MES | M1: MP001 | N1: MP002 | O1: MP003 | P1: MP004 | Q1: MP005 | R1: MP006 | S1: MP007 | T1: MP008 | U1: MP009 | V1: MP010 | W1: MP011 | X1: MP012 | Y1: MP013 | Z1: MP014 | AA1: MP015 | AB1: MP016 | AC1: MP017 | AD1: MP018 | AE1: MP019 | AF1: MP020 | AG1: MP021 | AH1: MP022 | AI1: MP023 | AJ1: MP024 | AK1: MP025 | AL1: MP026 | AM1: MP027 | AN1: MP028 | AO1: MP029 | AP1: MP030 | AQ1: MP031 | AR1: MP032 | AS1: MP033 | AT1: MP034 | AU1: MP035 | AV1: MP036 | AW1: MP037 | AX1: MP038 | AY1: MP039 | AZ1: MP040 | BA1: MP041 | BB1: MP042 | BC1: MP043 | BD1: MP044 | BE1: MP045 | BF1: MP046 | BG1: MP047 | BH1: MP048 | BI1: MP049 | BJ1: MP050 | BK1: MP051 | BL1: MP052 | BM1: MP053 | BN1: MP054 | BO1: MP055 | BP1: MP056 | BQ1: MP057 | BR1: MP058 | BS1: MP059 | BT1: MP060 | BU1: MP061 | BV1: MP062 | BW1: MP063 | BX1: MP064 | BY1: MP065 | BZ1: MP066 | CA1: MP067 | CB1: MP068 | CC1: MP069 | CD1: MP070 | CE1: MP071 | CF1: MP072 | CG1: MP073 | CH1: MP074 | CI1: MP075 | CJ1: MP076 | CK1: MP077 | CL1: MP078 | CM1: MP079 | CN1: MP080 | CO1: MP081 | CP1: MP082 | CQ1: MP083 | CR1: MP084 | CS1: MP085 | CT1: MP086 | CU1: MP087 | CV1: MP088 | CW1: MP089 | CX1: MP090 | CY1: MP091 | CZ1: MP092 | DA1: MP093 | DB1: MP094 | DC1: MP095 | DD1: MP096 | DE1: MP097 | DF1: MP098 | DG1: MP099 | DH1: MP100 | DI1: MP101 | DJ1: MP102 | DK1: MP103 | DL1: MP104 | DM1: MP105 | DN1: MP106 | DO1: MP107 | DP1: MP108 | DQ1: MP109 | DR1: MP110 | DS1: MP111 | DT1: MP112 | DU1: MP113 | DV1: MP114 | DW1: MP115 | DX1: MP116 | DY1: MP117 | DZ1: MP118 | EA1: MP119 | EB1: MP120 | EC1: MP121 | ED1: MP122 | EE1: MP123 | EF1: MP124 | EG1: MP125 | EH1: MP126 | EI1: MP127 | EJ1: MP128 | EK1: MP129 | EL1: MP130 | EM1: MP131 | EN1: MP132 | EO1: MP133 | EP1: MP134 | EQ1: MP135 | ER1: MP136 | ES1: MP137 | ET1: MP138 | EU1: MP139 | EV1: MP140 | EW1: MP141 | EX1: MP142 | EY1: MP143 | EZ1: MP144 | FA1: MP145 | FB1: MP146 | FC1: MP147 | FD1: MP148 | FE1: MP149 | FF1: MP150 | FG1: MP151 | FH1: MP152 | FI1: MP153 | FJ1: MP154 | FK1: MP155 | FL1: MP156 | FM1: MP157 | FN1: MP158 | FO1: MP159 | FP1: MP160 | FQ1: MP161 | FR1: MP162 | FS1: MP163 | FT1: MP164 | FU1: MP165 | FV1: MP166 | FW1: MP167 | FX1: MP168 | FY1: MP169 | FZ1: MP170 | GA1: MP171 | GB1: MP172 | GC1: MP173 | GD1: MP174 | GE1: MP175 | GF1: MP176 | GG1: MP177 | GH1: MP178 | GI1: MP179 | GJ1: MP180 | GK1: MP181 | GL1: MP182 | GM1: MP183 | GN1: MP184 | GO1: MP185 | GP1: MP186 | GQ1: MP187 | GR1: MP188 | GS1: MP189 | GT1: MP190 | GU1: MP191 | GV1: MP192 | GW1: MP193 | GX1: MP194 | GY1: MP195 | GZ1: MP196 | HA1: MP197 | HB1: MP198 | HC1: MP199 | HD1: MP200 | HE1: MP201 | HF1: MP202 | HG1: MP203 | HH1: MP204 | HI1: MP205 | HJ1: MP206 | HK1: MP207 | HL1: MP208 | HM1: MP209 | HN1: MP210 | HO1: MP211 | HP1: MP212 | HQ1: MP213 | HR1: MP214 | HS1: MP215 | HT1: MP216 | HU1: MP217 | HV1: MP218 | HW1: MP219 | HX1: MP220 | HY1: MP221 | HZ1: MP222 | IA1: MP223 | IB1: MP224 | IC1: MP225 | ID1: MP226 | IE1: MP227 | IF1: MP228 | IG1: MP229 | IH1: MP230 | II1: MP231 | IJ1: MP232 | IK1: MP233 | IL1: MP234 | IM1: MP235 | IN1: MP236 | IO1: MP237 | IP1: MP238 | IQ1: MP239 | IR1: MP240 | IS1: MP241 | IT1: MP242 | IU1: MP243 | IV1: MP244 | IW1: MP245 | IX1: MP246 | IY1: MP247 | IZ1: MP248 | JA1: MP249 | JB1: MP250 | JC1: MP251 | JD1: MP252 | JE1: MP253 | JF1: MP254 | JG1: MP255 | JH1: MP256 | JI1: MP257 | JJ1: MP258 | JK1: MP259 | JL1: MP260 | JM1: MP261 | JN1: MP262 | JO1: MP263 | JP1: MP264 | JQ1: MP265 | JR1: MP266 | JS1: MP267 | JT1: MP268 | JU1: MP269 | JV1: MP270 | JW1: MP271 | JX1: MP272 | JY1: MP273 | JZ1: MP274 | KA1: MP275 | KB1: MP276 | KC1: MP277 | KD1: MP278 | KE1: MP279 | KF1: MP280 | KG1: MP281 | KH1: MP282 | KI1: MP283 | KJ1: MP284 | KK1: MP285 | KL1: MP286 | KM1: MP287 | KN1: MP288 | KO1: MP289 | KP1: MP290 | KQ1: MP291 | KR1: MP292 | KS1: MP293 | KT1: MP294 | KU1: MP295 | KV1: MP296 | KW1: MP297 | KX1: MP298 | KY1: MP299 | KZ1: MP300 | LA1: MP301 | LB1: MP302 | LC1: MP303 | LD1: MP304 | LE1: MP305 | LF1: MP306 | LG1: MP307 | LH1: MP308 | LI1: MP309 | LJ1: MP310 | LK1: MP311 | LL1: MP312 | LM1: MP313 | LN1: MP314 | LO1: MP315 | LP1: MP316 | LQ1: MP317 | LR1: MP318 | LS1: MP319 | LT1: MP320 | LU1: MP321 | LV1: MP322 | LW1: MP323 | LX1: MP324 | LY1: MP325 | LZ1: MP326 | MA1: MP327 | MB1: MP328 | MC1: MP329 | MD1: MP330 | ME1: MP331 | MF1: MP332 | MG1: MP333 | MH1: MP334 | MI1: MP335 | MJ1: MP336 | MK1: MP337 | ML1: MP338 | MM1: MP339 | MN1: MP340 | MO1: MP341 | MP1: MP342 | MQ1: MP343 | MR1: MP344 | MS1: MP345 | MT1: MP346 | MU1: MP347 | MV1: MP348 | MW1: MP349 | MX1: MP350 | MY1: MP351 | MZ1: MP352 | NA1: MP353 | NB1: MP354 | NC1: MP355 | ND1: MP356 | NE1: MP357 | NF1: MP358 | NG1: MP359 | NH1: MP360 | NI1: MP361 | NJ1: MP362 | NK1: MP363 | NL1: MP364 | NM1: MP365 | NN1: MP366 | NO1: MP367 | NP1: MP368 | NQ1: MP369 | NR1: MP370 | NS1: MP371 | NT1: MP372 | NU1: MP373 | NV1: MP374 | NW1: MP375 | NX1: MP376 | NY1: MP377 | NZ1: MP378 | OA1: MP379 | OB1: MP380 | OC1: MP381 | OD1: MP382 | OE1: MP383 | OF1: MP384 | OG1: MP385 | OH1: MP386 | OI1: MP387 | OJ1: MP388 | OK1: MP389 | OL1: MP390 | OM1: MP391 | ON1: MP392 | OO1: MP393 | OP1: MP394 | OQ1: MP395 | OR1: MP396 | OS1: MP397 | OT1: MP398 | OU1: MP399 | OV1: MP400 | OW1: MP401 | OX1: MP402 | OY1: MP403 | OZ1: MP404 | PA1: MP405 | PB1: MP406 | PC1: MP407 | PD1: MP408 | PE1: MP409 | PF1: MP410 | PG1: MP411 | PH1: MP412 | PI1: MP413 | PJ1: MP414 | PK1: MP415 | PL1: MP416 | PM1: MP417 | PN1: MP418 | PO1: MP419 | PP1: MP420 | PQ1: MP421 | PR1: MP422 | PS1: MP423 | PT1: MP424 | PU1: MP425 | PV1: MP426 | PW1: MP427 | PX1: MP428 | PY1: MP429 | PZ1: MP430 | QA1: MP431 | QB1: MP432 | QC1: MP433 | QD1: MP434 | QE1: MP435 | QF1: MP436 | QG1: MP437 | QH1: MP438 | QI1: MP439 | QJ1: MP440 | QK1: MP441 | QL1: MP442 | QM1: MP443 | QN1: MP444 | QO1: MP445 | QP1: MP446 | QQ1: MP447 | QR1: MP448 | QS1: MP449 | QT1: MP450 | QU1: MP451
A2: LUCIANO CASTILLO COLONNA | B2: SULLANA | C2: 200601 | D2: 1910 | E2: HOSPITAL DE APOYO II - 2, SULLANA | F2: II-2 | G2: SULLANA | H2: CLAS HOSPITALES SULLANA | I2: NO PERTENECE A NINGUNA RED | J2: NO PERTENECE A NINGUNA MICRORED | K2: HOSPITAL DE APOYO III SULLANA | L2: 3 | M2: 0 | N2: 0 | O2: 0 | P2: 0 | Q2: 0 | R2: 0 | S2: 0 | T2: 0 | U2: 0 | V2: 0 | W2: 0 | X2: 0 | Y2: 0 | Z2: 0 | AA2: 1 | AB2: 0 | AC2: 0 | AD2: 0 | AE2: 0 | AF2: 0 | AG2: 0 | AH2: 0 | AI2: 0 | AJ2: 0 | AK2: 0 | AL2: 0 | AM2: 0 | AN2: 0 | AO2: 0 | AP2: 0 | AQ2: 0 | AR2: 0 | AS2: 0 | AT2: 0 | AU2: 0 | AV2: 0 | AW2: 0 | AX2: 0 | AY2: 0 | AZ2: 0 | BA2: 0 | BB2: 0 | BC2: 0 | BD2: 0 | BE2: 0 | BF2: 0 | BG2: 0 | BH2: 0 | BI2: 0 | BJ2: 0 | BK2: 0 | BL2: 0 | BM2: 0 | BN2: 0 | BO2: 0 | BP2: 0 | BQ2: 0 | BR2: 0 | BS2: 0 | BT2: 0 | BU2: 0 | BV2: 0 | BW2: 0 | BX2: 0 | BY2: 0 | BZ2: 0 | CA2: 0 | CB2: 0 | CC2: 0 | CD2: 0 | CE2: 0 | CF2: 0 | CG2: 0 | CH2: 0 | CI2: 0 | CJ2: 0 | CK2: 0 | CL2: 0 | CM2: 0 | CN2: 0 | CO2: 0 | CP2: 0 | CQ2: 0 | CR2: 0 | CS2: 0 | CT2: 0 | CU2: 0 | CV2: 0 | CW2: 0 | CX2: 16 | CY2: 56 | CZ2: 42 | DA2: 0 | DB2: 19 | DC2: 107 | DD2: 67 | DE2: 0 | DF2: 0 | DG2: 0 | DH2: 0 | DI2: 0 | DJ2: 0 | DK2: 0 | DL2: 0 | DM2: 0 | DN2: 0 | DO2: 0 | DP2: 0 | DQ2: 0 | DR2: 0 | DS2: 0 | DT2: 0 | DU2: 0 | DV2: 0 | DW2: 0 | DX2: 0 | DY2: 0 | DZ2: 0 | EA2: 0 | EB2: 0 | EC2: 0 | ED2: 0 | EE2: 0 | EF2: 0 | EG2: 0 | EH2: 0 | EI2: 0 | EJ2: 0 | EK2: 0 | EL2: 0 | EM2: 0 | EN2: 0 | EO2: 0 | EP2: 0 | EQ2: 0 | ER2: 0 | ES2: 0 | ET2: 0 | EU2: 0 | EV2: 0 | EW2: 0 | EX2: 0 | EY2: 0 | EZ2: 0 | FA2: 0 | FB2: 0 | FC2: 0 | FD2: 0 | FE2: 0 | FF2: 0 | FG2: 0 | FH2: 0 | FI2: 0 | FJ2: 0 | FK2: 0 | FL2: 0 | FM2: 0 | FN2: 0 | FO2: 0 | FP2: 0 | FQ2: 0 | FR2: 0 | FS2: 0 | FT2: 0 | FU2: 0 | FV2: 0 | FW2: 1 | FX2: 0 | FY2: 0 | FZ2: 0 | GA2: 0 | GB2: 0 | GC2: 0 | GD2: 0 | GE2: 0 | GF2: 0 | GG2: 0 | GH2: 0 | GI2: 0 | GJ2: 0 | GK2: 0 | GL2: 0 | GM2: 2 | GN2: 1 | GO2: 0 | GP2: 0 | GQ2: 0 | GR2: 3 | GS2: 0 | GT2: 0 | GU2: 0 | GV2: 0 | GW2: 0 | GX2: 0 | GY2: 2 | GZ2: 0 | HA2: 0 | HB2: 0 | HC2: 0 | HD2: 0 | HE2: 0 | HF2: 0 | HG2: 0 | HH2: 0 | HI2: 0 | HJ2: 0 | HK2: 0 | HL2: 0 | HM2: 0 | HN2: 0 | HO2: 0 | HP2: 0 | HQ2: 0 | HR2: 0 | HS2: 0 | HT2: 0 | HU2: 0 | HV2: 0 | HW2: 0 | HX2: 0 | HY2: 0 | HZ2: 0 | IA2: 0 | IB2: 0 | IC2: 0 | ID2: 0 | IE2: 0 | IF2: 0 | IG2: 0 | IH2: 0 | II2: 0 | IJ2: 0 | IK2: 0 | IL2: 0 | IM2: 0 | IN2: 0 | IO2: 0 | IP2: 0 | IQ2: 0 | IR2: 0 | IS2: 0 | IT2: 0 | IU2: 0 | IV2: 0 | IW2: 0 | IX2: 0 | IY2: 0 | IZ2: 0 | JA2: 0 | JB2: 0 | JC2: 0 | JD2: 0 | JE2: 0 | JF2: 0 | JG2: 0 | JH2: 0 | JI2: 0 | JJ2: 0 | JK2: 5 | JL2: 2 | JM2: 0 | JN2: 0 | JO2: 0 | JP2: 0 | JQ2: 0 | JR2: 0 | JS2: 0 | JT2: 0 | JU2: 0 | JV2: 0 | JW2: 0 | JX2: 0 | JY2: 0 | JZ2: 0 | KA2: 0 | KB2: 0 | KC2: 0 | KD2: 0 | KE2: 0 | KF2: 0 | KG2: 0 | KH2: 0 | KI2: 0 | KJ2: 0 | KK2: 0 | KL2: 0 | KM2: 0 | KN2: 0 | KO2: 0 | KP2: 0 | KQ2: 0 | KR2: 0 | KS2: 0 | KT2: 0 | KU2: 0 | KV2: 0 | KW2: 0 | KX2: 0 | KY2: 0 | KZ2: 0 | LA2: 0 | LB2: 0 | LC2: 0 | LD2: 0 | LE2: 0 | LF2: 0 | LG2: 0 | LH2: 0 | LI2: 0 | LJ2: 0 | LK2: 0 | LL2: 0 | LM2: 0 | LN2: 0 | LO2: 0 | LP2: 0 | LQ2: 0 | LR2: 0 | LS2: 0 | LT2: 0 | LU2: 0 | LV2: 0 | LW2: 0 | LX2: 0 | LY2: 0 | LZ2: 0 | MA2: 0 | MB2: 0 | MC2: 0 | MD2: 0 | ME2: 0 | MF2: 0 | MG2: 0 | MH2: 0 | MI2: 0 | MJ2: 0 | MK2: 0 | ML2: 0 | MM2: 0 | MN2: 0 | MO2: 0 | MP2: 0 | MQ2: 0 | MR2: 0 | MS2: 0 | MT2: 0 | MU2: 0 | MV2: 0 | MW2: 0 | MX2: 0 | MY2: 0 | MZ2: 0 | NA2: 0 | NB2: 0 | NC2: 0 | ND2: 0 | NE2: 0 | NF2: 0 | NG2: 0 | NH2: 0 | NI2: 0 | NJ2: 0 | NK2: 0 | NL2: 0 | NM2: 0 | NN2: 0 | NO2: 0 | NP2: 0 | NQ2: 0 | NR2: 0 | NS2: 0 | NT2: 0 | NU2: 0 | NV2: 0 | NW2: 0 | NX2: 0 | NY2: 0 | NZ2: 0 | OA2: 0 | OB2: 0 | OC2: 0 | OD2: 0 | OE2: 0 | OF2: 0 | OG2: 0 | OH2: 0 | OI2: 0 | OJ2: 0 | OK2: 0 | OL2: 0 | OM2: 0 | ON2: 0 | OO2: 0 | OP2: 0 | OQ2: 0 | OR2: 0 | OS2: 0 | OT2: 0 | OU2: 0 | OV2: 0 | OW2: 0 | OX2: 0 | OY2: 0 | OZ2: 0 | PA2: 0 | PB2: 0 | PC2: 0 | PD2: 0 | PE2: 0 | PF2: 0 | PG2: 0 | PH2: 0 | PI2: 0 | PJ2: 0 | PK2: 0 | PL2: 0 | PM2: 0 | PN2: 0 | PO2: 0 | PP2: 0 | PQ2: 0 | PR2: 0 | PS2: 0 | PT2: 0 | PU2: 0 | PV2: 0 | PW2: 0 | PX2: 0 | PY2: 0 | PZ2: 0 | QA2: 0 | QB2: 0 | QC2: 0 | QD2: 0 | QE2: 0 | QF2: 0 | QG2: 0 | QH2: 0 | QI2: 0 | QJ2: 0 | QK2: 9 | QL2: 0 | QM2: 0 | QN2: 0 | QO2: 2 | QP2: 0 | QQ2: 0 | QR2: 0 | QS2: 0 | QT2: 0 | QU2: 0
A3: LUCIANO CASTILLO COLONNA | B3: SULLANA | C3: 200601 | D3: 1910 | E3: HOSPITAL DE APOYO II - 2, SULLANA | F3: II-2 | G3: SULLANA | H3: CLAS HOSPITALES SULLANA | I3: NO PERTENECE A NINGUNA RED | J3: NO PERTENECE A NINGUNA MICRORED | K3: HOSPITAL DE APOYO III SULLANA | L3: 1 | M3: 0 | N3: 0 | O3: 0 | P3: 0 | Q3: 0 | R3: 0 | S3: 0 | T3: 0 | U3: 0 | V3: 0 | W3: 0 | X3: 0 | Y3: 0 | Z3: 0 | AA3: 0 | AB3: 0 | AC3: 0 | AD3: 0 | AE3: 0 | AF3: 0 | AG3: 0 | AH3: 0 | AI3: 0 | AJ3: 0 | AK3: 0 | AL3: 0 | AM3: 0 | AN3: 0 | AO3: 0 | AP3: 0 | AQ3: 0 | AR3: 0 | AS3: 0 | AT3: 0 | AU3: 0 | AV3: 0 | AW3: 0 | AX3: 0 | AY3: 0 | AZ3: 0 | BA3: 0 | BB3: 0 | BC3: 0 | BD3: 0 | BE3: 0 | BF3: 0 | BG3: 0 | BH3: 0 | BI3: 0 | BJ3: 0 | BK3: 0 | BL3: 0 | BM3: 0 | BN3: 0 | BO3: 0 | BP3: 0 | BQ3: 0 | BR3: 0 | BS3: 0 | BT3: 0 | BU3: 0 | BV3: 0 | BW3: 0 | BX3: 0 | BY3: 0 | BZ3: 0 | CA3: 0 | CB3: 0 | CC3: 0 | CD3: 0 | CE3: 0 | CF3: 0 | CG3: 0 | CH3: 0 | CI3: 0 | CJ3: 0 | CK3: 0 | CL3: 0 | CM3: 0 | CN3: 0 | CO3: 0 | CP3: 0 | CQ3: 0 | CR3: 0 | CS3: 0 | CT3: 0 | CU3: 0 | CV3: 0 | CW3: 1 | CX3: 11 | CY3: 58 | CZ3: 24 | DA3: 0 | DB3: 5 | DC3: 63 | DD3: 19 | DE3: 0 | DF3: 0 | DG3: 0 | DH3: 0 | DI3: 0 | DJ3: 0 | DK3: 0 | DL3: 0 | DM3: 0 | DN3: 0 | DO3: 0 | DP3: 0 | DQ3: 0 | DR3: 0 | DS3: 0 | DT3: 0 | DU3: 0 | DV3: 0 | DW3: 0 | DX3: 0 | DY3: 0 | DZ3: 0 | EA3: 0 | EB3: 0 | EC3: 0 | ED3: 0 | EE3: 0 | EF3: 0 | EG3: 0 | EH3: 0 | EI3: 0 | EJ3: 0 | EK3: 0 | EL3: 0 | EM3: 0 | EN3: 0 | EO3: 0 | EP3: 0 | EQ3: 0 | ER3: 0 | ES3: 0 | ET3: 0 | EU3: 0 | EV3: 0 | EW3: 0 | EX3: 0 | EY3: 0 | EZ3: 0 | FA3: 0 | FB3: 0 | FC3: 0 | FD3: 0 | FE3: 0 | FF3: 0 | FG3: 0 | FH3: 0 | FI3: 0 | FJ3: 0 | FK3: 0 | FL3: 0 | FM3: 0 | FN3: 0 | FO3: 0 | FP3: 0 | FQ3: 0 | FR3: 0 | FS3: 0 | FT3: 0 | FU3: 0 | FV3: 0 | FW3: 0 | FX3: 1 | FY3: 0 | FZ3: 0 | GA3: 0 | GB3: 0 | GC3: 0 | GD3: 0 | GE3: 0 | GF3: 0 | GG3: 0 | GH3: 0 | GI3: 0 | GJ3: 0 | GK3: 0 | GL3: 0 | GM3: 0 | GN3: 3 | GO3: 0 | GP3: 0 | GQ3: 0 | GR3: 0 | GS3: 0 | GT3: 0 | GU3: 1 | GV3: 0 | GW3: 0 | GX3: 0 | GY3: 0 | GZ3: 0 | HA3: 0 | HB3: 0 | HC3: 0 | HD3: 0 | HE3: 0 | HF3: 0 | HG3: 0 | HH3: 0 | HI3: 0 | HJ3: 0 | HK3: 0 | HL3: 0 | HM3: 0 | HN3: 0 | HO3: 0 | HP3: 0 | HQ3: 0 | HR3: 0 | HS3: 0 | HT3: 0 | HU3: 0 | HV3: 0 | HW3: 0 | HX3: 0 | HY3: 0 | HZ3: 0 | IA3: 0 | IB3: 0 | IC3: 0 | ID3: 0 | IE3: 0 | IF3: 0 | IG3: 0 | IH3: 0 | II3: 0 | IJ3: 0 | IK3: 0 | IL3: 0 | IM3: 0 | IN3: 0 | IO3: 0 | IP3: 0 | IQ3: 0 | IR3: 0 | IS3: 0 | IT3: 0 | IU3: 0 | IV3: 0 | IW3: 0 | IX3: 0 | IY3: 0 | IZ3: 0 | JA3: 0 | JB3: 0 | JC3: 0 | JD3: 0 | JE3: 0 | JF3: 0 | JG3: 0 | JH3: 0 | JI3: 0 | JJ3: 1 | JK3: 13 | JL3: 10 | JM3: 0 | JN3: 0 | JO3: 0 | JP3: 0 | JQ3: 0 | JR3: 0 | JS3: 0 | JT3: 0 | JU3: 0 | JV3: 0 | JW3: 0 | JX3: 0 | JY3: 0 | JZ3: 0 | KA3: 0 | KB3: 0 | KC3: 0 | KD3: 0 | KE3: 0 | KF3: 0 | KG3: 0 | KH3: 0 | KI3: 0 | KJ3: 0 | KK3: 0 | KL3: 0 | KM3: 0 | KN3: 0 | KO3: 0 | KP3: 0 | KQ3: 0 | KR3: 0 | KS3: 0 | KT3: 0 | KU3: 0 | KV3: 0 | KW3: 0 | KX3: 0 | KY3: 0 | KZ3: 0 | LA3: 0 | LB3: 0 | LC3: 0 | LD3: 0 | LE3: 0 | LF3: 0 | LG3: 0 | LH3: 0 | LI3: 0 | LJ3: 0 | LK3: 0 | LL3: 0 | LM3: 0 | LN3: 0 | LO3: 0 | LP3: 0 | LQ3: 0 | LR3: 0 | LS3: 0 | LT3: 0 | LU3: 0 | LV3: 0 | LW3: 0 | LX3: 0 | LY3: 0 | LZ3: 0 | MA3: 0 | MB3: 0 | MC3: 0 | MD3: 0 | ME3: 0 | MF3: 0 | MG3: 0 | MH3: 0 | MI3: 0 | MJ3: 0 | MK3: 0 | ML3: 0 | MM3: 0 | MN3: 0 | MO3: 0 | MP3: 0 | MQ3: 0 | MR3: 0 | MS3: 0 | MT3: 0 | MU3: 0 | MV3: 0 | MW3: 0 | MX3: 0 | MY3: 0 | MZ3: 0 | NA3: 0 | NB3: 0 | NC3: 0 | ND3: 0 | NE3: 0 | NF3: 0 | NG3: 0 | NH3: 0 | NI3: 0 | NJ3: 0 | NK3: 0 | NL3: 0 | NM3: 0 | NN3: 0 | NO3: 0 | NP3: 0 | NQ3: 0 | NR3: 0 | NS3: 0 | NT3: 0 | NU3: 0 | NV3: 0 | NW3: 0 | NX3: 0 | NY3: 0 | NZ3: 0 | OA3: 0 | OB3: 0 | OC3: 0 | OD3: 0 | OE3: 0 | OF3: 0 | OG3: 0 | OH3: 0 | OI3: 0 | OJ3: 0 | OK3: 0 | OL3: 0 | OM3: 0 | ON3: 0 | OO3: 0 | OP3: 0 | OQ3: 0 | OR3: 0 | OS3: 0 | OT3: 0 | OU3: 0 | OV3: 0 | OW3: 0 | OX3: 0 | OY3: 0 | OZ3: 0 | PA3: 0 | PB3: 0 | PC3: 0 | PD3: 0 | PE3: 0 | PF3: 0 | PG3: 0 | PH3: 0 | PI3: 0 | PJ3: 0 | PK3: 0 | PL3: 0 | PM3: 0 | PN3: 0 | PO3: 0 | PP3: 0 | PQ3: 0 | PR3: 0 | PS3: 0 | PT3: 0 | PU3: 0 | PV3: 0 | PW3: 0 | PX3: 0 | PY3: 0 | PZ3: 0 | QA3: 0 | QB3: 0 | QC3: 0 | QD3: 0 | QE3: 0 | QF3: 0 | QG3: 0 | QH3: 0 | QI3: 0 | QJ3: 0 | QK3: 27 | QL3: 0 | QM3: 0 | QN3: 0 | QO3: 4 | QP3: 0 | QQ3: 0 | QR3: 0 | QS3: 0 | QT3: 0 | QU3: 0
A4: LUCIANO CASTILLO COLONNA | B4: SULLANA | C4: 200601 | D4: 1910 | E4: HOSPITAL DE APOYO II - 2, SULLANA | F4: II-2 | G4: SULLANA | H4: CLAS HOSPITALES SULLANA | I4: NO PERTENECE A NINGUNA RED | J4: NO PERTENECE A NINGUNA MICRORED | K4: HOSPITAL DE APOYO III SULLANA | L4: 2 | M4: 0 | N4: 0 | O4: 0 | P4: 0 | Q4: 0 | R4: 0 | S4: 0 | T4: 0 | U4: 0 | V4: 0 | W4: 0 | X4: 0 | Y4: 0 | Z4: 0 | AA4: 0 | AB4: 0 | AC4: 0 | AD4: 0 | AE4: 0 | AF4: 0 | AG4: 0 | AH4: 0 | AI4: 0 | AJ4: 0 | AK4: 0 | AL4: 0 | AM4: 0 | AN4: 0 | AO4: 0 | AP4: 0 | AQ4: 0 | AR4: 0 | AS4: 0 | AT4: 0 | AU4: 0 | AV4: 0 | AW4: 0 | AX4: 0 | AY4: 0 | AZ4: 0 | BA4: 0 | BB4: 0 | BC4: 0 | BD4: 0 | BE4: 0 | BF4: 0 | BG4: 0 | BH4: 0 | BI4: 0 | BJ4: 0 | BK4: 0 | BL4: 0 | BM4: 0 | BN4: 0 | BO4: 0 | BP4: 0 | BQ4: 0 | BR4: 0 | BS4: 0 | BT4: 0 | BU4: 0 | BV4: 0 | BW4: 0 | BX4: 0 | BY4: 0 | BZ4: 0 | CA4: 0 | CB4: 0 | CC4: 0 | CD4: 0 | CE4: 0 | CF4: 0 | CG4: 0 | CH4: 0 | CI4: 0 | CJ4: 0 | CK4: 0 | CL4: 0 | CM4: 0 | CN4: 0 | CO4: 0 | CP4: 0 | CQ4: 0 | CR4: 0 | CS4: 0 | CT4: 0 | CU4: 0 | CV4: 0 | CW4: 0 | CX4: 10 | CY4: 67 | CZ4: 22 | DA4: 0 | DB4: 7 | DC4: 100 | DD4: 41 | DE4: 0 | DF4: 0 | DG4: 0 | DH4: 0 | DI4: 0 | DJ4: 0 | DK4: 0 | DL4: 0 | DM4: 0 | DN4: 0 | DO4: 0 | DP4: 0 | DQ4: 0 | DR4: 0 | DS4: 0 | DT4: 0 | DU4: 0 | DV4: 0 | DW4: 0 | DX4: 0 | DY4: 0 | DZ4: 0 | EA4: 0 | EB4: 0 | EC4: 0 | ED4: 0 | EE4: 0 | EF4: 0 | EG4: 0 | EH4: 0 | EI4: 0 | EJ4: 0 | EK4: 0 | EL4: 0 | EM4: 0 | EN4: 0 | EO4: 0 | EP4: 0 | EQ4: 0 | ER4: 0 | ES4: 0 | ET4: 0 | EU4: 0 | EV4: 0 | EW4: 0 | EX4: 0 | EY4: 0 | EZ4: 0 | FA4: 0 | FB4: 0 | FC4: 0 | FD4: 0 | FE4: 0 | FF4: 0 | FG4: 0 | FH4: 0 | FI4: 0 | FJ4: 0 | FK4: 0 | FL4: 0 | FM4: 0 | FN4: 0 | FO4: 0 | FP4: 0 | FQ4: 0 | FR4: 0 | FS4: 1 | FT4: 0 | FU4: 0 | FV4: 0 | FW4: 0 | FX4: 0 | FY4: 0 | FZ4: 0 | GA4: 0 | GB4: 0 | GC4: 0 | GD4: 0 | GE4: 1 | GF4: 0 | GG4: 0 | GH4: 0 | GI4: 0 | GJ4: 0 | GK4: 0 | GL4: 0 | GM4: 0 | GN4: 0 | GO4: 0 | GP4: 0 | GQ4: 2 | GR4: 0 | GS4: 0 | GT4: 0 | GU4: 0 | GV4: 0 | GW4: 0 | GX4: 0 | GY4: 1 | GZ4: 0 | HA4: 0 | HB4: 0 | HC4: 0 | HD4: 0 | HE4: 0 | HF4: 0 | HG4: 0 | HH4: 0 | HI4: 0 | HJ4: 0 | HK4: 0 | HL4: 0 | HM4: 0 | HN4: 0 | HO4: 0 | HP4: 0 | HQ4: 0 | HR4: 0 | HS4: 0 | HT4: 0 | HU4: 0 | HV4: 0 | HW4: 0 | HX4: 0 | HY4: 0 | HZ4: 0 | IA4: 0 | IB4: 0 | IC4: 0 | ID4: 0 | IE4: 0 | IF4: 0 | IG4: 0 | IH4: 0 | II4: 0 | IJ4: 0 | IK4: 0 | IL4: 0 | IM4: 0 | IN4: 0 | IO4: 0 | IP4: 0 | IQ4: 0 | IR4: 0 | IS4: 0 | IT4: 0 | IU4: 0 | IV4: 0 | IW4: 0 | IX4: 0 | IY4: 0 | IZ4: 0 | JA4: 0 | JB4: 0 | JC4: 3 | JD4: 4 | JE4: 0 | JF4: 0 | JG4: 0 | JH4: 0 | JI4: 0 | JJ4: 0 | JK4: 10 | JL4: 5 | JM4: 0 | JN4: 0 | JO4: 0 | JP4: 0 | JQ4: 0 | JR4: 0 | JS4: 0 | JT4: 0 | JU4: 0 | JV4: 0 | JW4: 0 | JX4: 0 | JY4: 0 | JZ4: 0 | KA4: 0 | KB4: 0 | KC4: 0 | KD4: 0 | KE4: 0 | KF4: 0 | KG4: 0 | KH4: 0 | KI4: 0 | KJ4: 0 | KK4: 0 | KL4: 0 | KM4: 0 | KN4: 0 | KO4: 0 | KP4: 0 | KQ4: 0 | KR4: 0 | KS4: 0 | KT4: 0 | KU4: 0 | KV4: 0 | KW4: 0 | KX4: 0 | KY4: 0 | KZ4: 0 | LA4: 0 | LB4: 0 | LC4: 0 | LD4: 0 | LE4: 0 | LF4: 0 | LG4: 0 | LH4: 0 | LI4: 0 | LJ4: 0 | LK4: 0 | LL4: 0 | LM4: 0 | LN4: 0 | LO4: 0 | LP4: 0 | LQ4: 0 | LR4: 0 | LS4: 0 | LT4: 0 | LU4: 0 | LV4: 0 | LW4: 0 | LX4: 0 | LY4: 0 | LZ4: 0 | MA4: 0 | MB4: 0 | MC4: 0 | MD4: 0 | ME4: 0 | MF4: 0 | MG4: 0 | MH4: 0 | MI4: 0 | MJ4: 0 | MK4: 0 | ML4: 0 | MM4: 0 | MN4: 0 | MO4: 0 | MP4: 0 | MQ4: 0 | MR4: 0 | MS4: 0 | MT4: 0 | MU4: 0 | MV4: 0 | MW4: 0 | MX4: 0 | MY4: 0 | MZ4: 0 | NA4: 0 | NB4: 0 | NC4: 0 | ND4: 0 | NE4: 0 | NF4: 0 | NG4: 0 | NH4: 0 | NI4: 0 | NJ4: 0 | NK4: 0 | NL4: 0 | NM4: 0 | NN4: 0 | NO4: 0 | NP4: 0 | NQ4: 0 | NR4: 0 | NS4: 0 | NT4: 0 | NU4: 0 | NV4: 0 | NW4: 0 | NX4: 0 | NY4: 0 | NZ4: 0 | OA4: 0 | OB4: 0 | OC4: 0 | OD4: 0 | OE4: 0 | OF4: 0 | OG4: 0 | OH4: 0 | OI4: 0 | OJ4: 0 | OK4: 0 | OL4: 0 | OM4: 0 | ON4: 0 | OO4: 0 | OP4: 0 | OQ4: 0 | OR4: 0 | OS4: 0 | OT4: 0 | OU4: 0 | OV4: 0 | OW4: 0 | OX4: 0 | OY4: 0 | OZ4: 0 | PA4: 0 | PB4: 0 | PC4: 0 | PD4: 0 | PE4: 0 | PF4: 0 | PG4: 0 | PH4: 0 | PI4: 0 | PJ4: 0 | PK4: 0 | PL4: 0 | PM4: 0 | PN4: 0 | PO4: 0 | PP4: 0 | PQ4: 0 | PR4: 0 | PS4: 0 | PT4: 0 | PU4: 0 | PV4: 0 | PW4: 0 | PX4: 0 | PY4: 0 | PZ4: 0 | QA4: 0 | QB4: 0 | QC4: 0 | QD4: 0 | QE4: 0 | QF4: 0 | QG4: 0 | QH4: 0 | QI4: 0 | QJ4: 0 | QK4: 46 | QL4: 0 | QM4: 0 | QN4: 0 | QO4: 2 | QP4: 0 | QQ4: 0 | QR4: 0 | QS4: 0 | QT4: 0 | QU4: 0
A5: LUCIANO CASTILLO COLONNA | B5: AYABACA | C5: 200201 | D5: 1911 | E5: AYABACA | F5: I-4 | G5: AYABACA | H5: NINGUN CLAS | I5: AYABACA | J5: AYABACA | K5: SALUD LUCIANO CASTILLO COLONNA | L5: 2 | M5: 0 | N5: 0 | O5: 0 | P5: 2 | Q5: 1 | R5: 0 | S5: 2 | T5: 2 | U5: 0 | V5: 6 | W5: 1 | X5: 0 | Y5: 0 | Z5: 7 | AA5: 41 | AB5: 32 | AC5: 0 | AD5: 0 | AE5: 8 | AF5: 5 | AG5: 0 | AH5: 0 | AI5: 0 | AJ5: 0 | AK5: 0 | AL5: 0 | AM5: 0 | AN5: 0 | AO5: 0 | AP5: 0 | AQ5: 1 | AR5: 7 | AS5: 0 | AT5: 0 | AU5: 1 | AV5: 3 | AW5: 0 | AX5: 3 | AY5: 4 | AZ5: 7 | BA5: 0 | BB5: 0 | BC5: 0 | BD5: 0 | BE5: 0 | BF5: 0 | BG5: 0 | BH5: 0 | BI5: 0 | BJ5: 0 | BK5: 0 | BL5: 0 | BM5: 0 | BN5: 1 | BO5: 3 | BP5: 8 | BQ5: 0 | BR5: 1 | BS5: 1 | BT5: 4 | BU5: 0 | BV5: 0 | BW5: 0 | BX5: 0 | BY5: 0 | BZ5: 0 | CA5: 0 | CB5: 0 | CC5: 0 | CD5: 0 | CE5: 0 | CF5: 0 | CG5: 0 | CH5: 0 | CI5: 0 | CJ5: 0 | CK5: 0 | CL5: 0 | CM5: 0 | CN5: 0 | CO5: 0 | CP5: 0 | CQ5: 0 | CR5: 0 | CS5: 0 | CT5: 0 | CU5: 0 | CV5: 0 | CW5: 0 | CX5: 0 | CY5: 0 | CZ5: 0 | DA5: 0 | DB5: 0 | DC5: 0 | DD5: 0 | DE5: 0 | DF5: 0 | DG5: 0 | DH5: 0 | DI5: 0 | DJ5: 0 | DK5: 0 | DL5: 0 | DM5: 0 | DN5: 0 | DO5: 0 | DP5: 0 | DQ5: 0 | DR5: 0 | DS5: 0 | DT5: 0 | DU5: 0 | DV5: 0 | DW5: 0 | DX5: 0 | DY5: 0 | DZ5: 0 | EA5: 0 | EB5: 0 | EC5: 0 | ED5: 0 | EE5: 0 | EF5: 0 | EG5: 0 | EH5: 0 | EI5: 0 | EJ5: 0 | EK5: 0 | EL5: 0 | EM5: 0 | EN5: 0 | EO5: 0 | EP5: 0 | EQ5: 0 | ER5: 0 | ES5: 0 | ET5: 2 | EU5: 2 | EV5: 7 | EW5: 0 | EX5: 3 | EY5: 3 | EZ5: 7 | FA5: 0 | FB5: 0 | FC5: 2 | FD5: 1 | FE5: 0 | FF5: 0 | FG5: 0 | FH5: 0 | FI5: 0 | FJ5: 0 | FK5: 2 | FL5: 0 | FM5: 0 | FN5: 0 | FO5: 0 | FP5: 0 | FQ5: 0 | FR5: 0 | FS5: 0 | FT5: 0 | FU5: 0 | FV5: 0 | FW5: 0 | FX5: 0 | FY5: 0 | FZ5: 0 | GA5: 0 | GB5: 0 | GC5: 0 | GD5: 0 | GE5: 1 | GF5: 2 | GG5: 0 | GH5: 0 | GI5: 0 | GJ5: 0 | GK5: 0 | GL5: 0 | GM5: 0 | GN5: 0 | GO5: 0 | GP5: 0 | GQ5: 0 | GR5: 0 | GS5: 0 | GT5: 0 | GU5: 0 | GV5: 0 | GW5: 0 | GX5: 0 | GY5: 0 | GZ5: 0 | HA5: 0 | HB5: 0 | HC5: 0 | HD5: 0 | HE5: 0 | HF5: 0 | HG5: 0 | HH5: 0 | HI5: 0 | HJ5: 0 | HK5: 0 | HL5: 0 | HM5: 0 | HN5: 0 | HO5: 0 | HP5: 0 | HQ5: 0 | HR5: 0 | HS5: 0 | HT5: 0 | HU5: 0 | HV5: 0 | HW5: 6 | HX5: 2 | HY5: 0 | HZ5: 0 | IA5: 1 | IB5: 0 | IC5: 0 | ID5: 0 | IE5: 4 | IF5: 0 | IG5: 0 | IH5: 2 | II5: 1 | IJ5: 3 | IK5: 0 | IL5: 0 | IM5: 0 | IN5: 0 | IO5: 0 | IP5: 0 | IQ5: 7 | IR5: 2 | IS5: 0 | IT5: 0 | IU5: 1 | IV5: 0 | IW5: 0 | IX5: 0 | IY5: 0 | IZ5: 0 | JA5: 0 | JB5: 0 | JC5: 4 | JD5: 0 | JE5: 0 | JF5: 0 | JG5: 0 | JH5: 0 | JI5: 0 | JJ5: 0 | JK5: 1 | JL5: 0 | JM5: 16 | JN5: 0 | JO5: 0 | JP5: 2 | JQ5: 1 | JR5: 6 | JS5: 0 | JT5: 1 | JU5: 2 | JV5: 1 | JW5: 0 | JX5: 0 | JY5: 0 | JZ5: 0 | KA5: 0 | KB5: 0 | KC5: 0 | KD5: 0 | KE5: 0 | KF5: 0 | KG5: 0 | KH5: 0 | KI5: 0 | KJ5: 0 | KK5: 1 | KL5: 1 | KM5: 0 | KN5: 0 | KO5: 0 | KP5: 0 | KQ5: 0 | KR5: 1 | KS5: 1 | KT5: 5 | KU5: 0 | KV5: 1 | KW5: 2 | KX5: 1 | KY5: 0 | KZ5: 0 | LA5: 0 | LB5: 0 | LC5: 0 | LD5: 0 | LE5: 0 | LF5: 0 | LG5: 0 | LH5: 0 | LI5: 0 | LJ5: 0 | LK5: 0 | LL5: 0 | LM5: 1 | LN5: 1 | LO5: 0 | LP5: 0 | LQ5: 0 | LR5: 0 | LS5: 0 | LT5: 0 | LU5: 1 | LV5: 1 | LW5: 0 | LX5: 1 | LY5: 1 | LZ5: 0 | MA5: 0 | MB5: 0 | MC5: 0 | MD5: 0 | ME5: 0 | MF5: 0 | MG5: 0 | MH5: 0 | MI5: 0 | MJ5: 0 | MK5: 0 | ML5: 0 | MM5: 0 | MN5: 0 | MO5: 0 | MP5: 0 | MQ5: 0 | MR5: 0 | MS5: 0 | MT5: 0 | MU5: 0 | MV5: 0 | MW5: 0 | MX5: 0 | MY5: 0 | MZ5: 0 | NA5: 0 | NB5: 0 | NC5: 0 | ND5: 0 | NE5: 0 | NF5: 0 | NG5: 0 | NH5: 0 | NI5: 0 | NJ5: 0 | NK5: 0 | NL5: 0 | NM5: 0 | NN5: 0 | NO5: 0 | NP5: 0 | NQ5: 0 | NR5: 0 | NS5: 0 | NT5: 0 | NU5: 0 | NV5: 0 | NW5: 0 | NX5: 0 | NY5: 0 | NZ5: 0 | OA5: 0 | OB5: 0 | OC5: 0 | OD5: 0 | OE5: 0 | OF5: 0 | OG5: 0 | OH5: 0 | OI5: 0 | OJ5: 0 | OK5: 0 | OL5: 0 | OM5: 0 | ON5: 0 | OO5: 0 | OP5: 0 | OQ5: 0 | OR5: 0 | OS5: 0 | OT5: 0 | OU5: 0 | OV5: 0 | OW5: 0 | OX5: 0 | OY5: 0 | OZ5: 0 | PA5: 0 | PB5: 0 | PC5: 0 | PD5: 0 | PE5: 0 | PF5: 0 | PG5: 0 | PH5: 0 | PI5: 0 | PJ5: 0 | PK5: 0 | PL5: 0 | PM5: 0 | PN5: 0 | PO5: 0 | PP5: 0 | PQ5: 0 | PR5: 0 | PS5: 0 | PT5: 0 | PU5: 0 | PV5: 0 | PW5: 0 | PX5: 0 | PY5: 0 | PZ5: 0 | QA5: 0 | QB5: 0 | QC5: 0 | QD5: 0 | QE5: 0 | QF5: 0 | QG5: 0 | QH5: 0 | QI5: 0 | QJ5: 0 | QK5: 0 | QL5: 0 | QM5: 0 | QN5: 0 | QO5: 0 | QP5: 0 | QQ5: 0 | QR5: 0 | QS5: 3 | QT5: 4 | QU5: 7
A6: LUCIANO CASTILLO COLONNA | B6: AYABACA | C6: 200201 | D6: 1911 | E6: AYABACA | F6: I-4 | G6: AYABACA | H6: NINGUN CLAS | I6: AYABACA | J6: AYABACA | K6: SALUD LUCIANO CASTILLO COLONNA | L6: 1 | M6: 0 | N6: 0 | O6: 0 | P6: 0 | Q6: 0 | R6: 0 | S6: 6 | T6: 1 | U6: 1 | V6: 4 | W6: 1 | X6: 2 | Y6: 0 | Z6: 2 | AA6: 45 | AB6: 36 | AC6: 0 | AD6: 0 | AE6: 3 | AF6: 1 | AG6: 0 | AH6: 0 | AI6: 2 | AJ6: 2 | AK6: 0 | AL6: 0 | AM6: 0 | AN6: 0 | AO6: 0 | AP6: 0 | AQ6: 3 | AR6: 2 | AS6: 0 | AT6: 0 | AU6: 1 | AV6: 0 | AW6: 0 | AX6: 0 | AY6: 8 | AZ6: 8 | BA6: 0 | BB6: 0 | BC6: 0 | BD6: 0 | BE6: 0 | BF6: 0 | BG6: 0 | BH6: 0 | BI6: 0 | BJ6: 0 | BK6: 0 | BL6: 0 | BM6: 0 | BN6: 0 | BO6: 10 | BP6: 7 | BQ6: 0 | BR6: 0 | BS6: 5 | BT6: 3 | BU6: 0 | BV6: 0 | BW6: 0 | BX6: 1 | BY6: 0 | BZ6: 0 | CA6: 0 | CB6: 0 | CC6: 0 | CD6: 0 | CE6: 0 | CF6: 0 | CG6: 0 | CH6: 0 | CI6: 0 | CJ6: 0 | CK6: 0 | CL6: 0 | CM6: 0 | CN6: 0 | CO6: 0 | CP6: 0 | CQ6: 0 | CR6: 0 | CS6: 0 | CT6: 0 | CU6: 0 | CV6: 0 | CW6: 0 | CX6: 0 | CY6: 0 | CZ6: 0 | DA6: 0 | DB6: 0 | DC6: 0 | DD6: 0 | DE6: 0 | DF6: 0 | DG6: 0 | DH6: 0 | DI6: 0 | DJ6: 0 | DK6: 0 | DL6: 0 | DM6: 0 | DN6: 0 | DO6: 0 | DP6: 0 | DQ6: 0 | DR6: 0 | DS6: 0 | DT6: 0 | DU6: 0 | DV6: 0 | DW6: 0 | DX6: 0 | DY6: 0 | DZ6: 0 | EA6: 0 | EB6: 0 | EC6: 0 | ED6: 0 | EE6: 0 | EF6: 0 | EG6: 0 | EH6: 0 | EI6: 0 | EJ6: 0 | EK6: 0 | EL6: 0 | EM6: 0 | EN6: 0 | EO6: 0 | EP6: 0 | EQ6: 0 | ER6: 0 | ES6: 0 | ET6: 0 | EU6: 4 | EV6: 6 | EW6: 0 | EX6: 0 | EY6: 8 | EZ6: 8 | FA6: 0 | FB6: 0 | FC6: 4 | FD6: 5 | FE6: 0 | FF6: 0 | FG6: 0 | FH6: 2 | FI6: 0 | FJ6: 0 | FK6: 1 | FL6: 0 | FM6: 0 | FN6: 0 | FO6: 0 | FP6: 0 | FQ6: 0 | FR6: 0 | FS6: 1 | FT6: 1 | FU6: 0 | FV6: 0 | FW6: 0 | FX6: 0 | FY6: 0 | FZ6: 0 | GA6: 0 | GB6: 0 | GC6: 0 | GD6: 0 | GE6: 0 | GF6: 1 | GG6: 0 | GH6: 0 | GI6: 0 | GJ6: 0 | GK6: 0 | GL6: 0 | GM6: 0 | GN6: 0 | GO6: 0 | GP6: 0 | GQ6: 0 | GR6: 0 | GS6: 0 | GT6: 0 | GU6: 0 | GV6: 0 | GW6: 0 | GX6: 0 | GY6: 0 | GZ6: 0 | HA6: 0 | HB6: 0 | HC6: 0 | HD6: 0 | HE6: 0 | HF6: 0 | HG6: 0 | HH6: 0 | HI6: 0 | HJ6: 0 | HK6: 0 | HL6: 0 | HM6: 0 | HN6: 0 | HO6: 0 | HP6: 0 | HQ6: 0 | HR6: 0 | HS6: 0 | HT6: 0 | HU6: 0 | HV6: 0 | HW6: 4 | HX6: 9 | HY6: 0 | HZ6: 0 | IA6: 5 | IB6: 3 | IC6: 0 | ID6: 0 | IE6: 3 | IF6: 2 | IG6: 0 | IH6: 0 | II6: 3 | IJ6: 4 | IK6: 0 | IL6: 0 | IM6: 0 | IN6: 0 | IO6: 0 | IP6: 1 | IQ6: 3 | IR6: 2 | IS6: 0 | IT6: 0 | IU6: 3 | IV6: 3 | IW6: 0 | IX6: 0 | IY6: 0 | IZ6: 0 | JA6: 0 | JB6: 0 | JC6: 3 | JD6: 2 | JE6: 0 | JF6: 0 | JG6: 1 | JH6: 0 | JI6: 0 | JJ6: 0 | JK6: 1 | JL6: 0 | JM6: 17 | JN6: 0 | JO6: 0 | JP6: 0 | JQ6: 6 | JR6: 4 | JS6: 0 | JT6: 0 | JU6: 1 | JV6: 1 | JW6: 0 | JX6: 0 | JY6: 1 | JZ6: 1 | KA6: 0 | KB6: 0 | KC6: 0 | KD6: 0 | KE6: 0 | KF6: 0 | KG6: 0 | KH6: 0 | KI6: 0 | KJ6: 0 | KK6: 1 | KL6: 0 | KM6: 0 | KN6: 0 | KO6: 0 | KP6: 0 | KQ6: 0 | KR6: 0 | KS6: 4 | KT6: 4 | KU6: 0 | KV6: 0 | KW6: 1 | KX6: 1 | KY6: 0 | KZ6: 0 | LA6: 0 | LB6: 2 | LC6: 0 | LD6: 0 | LE6: 0 | LF6: 0 | LG6: 0 | LH6: 0 | LI6: 0 | LJ6: 0 | LK6: 0 | LL6: 0 | LM6: 1 | LN6: 0 | LO6: 0 | LP6: 0 | LQ6: 0 | LR6: 0 | LS6: 0 | LT6: 0 | LU6: 2 | LV6: 4 | LW6: 0 | LX6: 0 | LY6: 1 | LZ6: 0 | MA6: 0 | MB6: 0 | MC6: 0 | MD6: 0 | ME6: 0 | MF6: 0 | MG6: 0 | MH6: 0 | MI6: 0 | MJ6: 0 | MK6: 0 | ML6: 0 | MM6: 0 | MN6: 0 | MO6: 0 | MP6: 0 | MQ6: 0 | MR6: 0 | MS6: 0 | MT6: 0 | MU6: 0 | MV6: 0 | MW6: 0 | MX6: 0 | MY6: 0 | MZ6: 0 | NA6: 0 | NB6: 0 | NC6: 0 | ND6: 0 | NE6: 0 | NF6: 0 | NG6: 0 | NH6: 0 | NI6: 0 | NJ6: 0 | NK6: 0 | NL6: 0 | NM6: 0 | NN6: 0 | NO6: 0 | NP6: 0 | NQ6: 0 | NR6: 0 | NS6: 0 | NT6: 0 | NU6: 0 | NV6: 0 | NW6: 0 | NX6: 0 | NY6: 0 | NZ6: 0 | OA6: 0 | OB6: 0 | OC6: 0 | OD6: 0 | OE6: 0 | OF6: 0 | OG6: 0 | OH6: 0 | OI6: 0 | OJ6: 0 | OK6: 0 | OL6: 0 | OM6: 0 | ON6: 0 | OO6: 0 | OP6: 0 | OQ6: 0 | OR6: 0 | OS6: 0 | OT6: 0 | OU6: 0 | OV6: 0 | OW6: 0 | OX6: 0 | OY6: 0 | OZ6: 0 | PA6: 0 | PB6: 0 | PC6: 0 | PD6: 0 | PE6: 0 | PF6: 0 | PG6: 0 | PH6: 0 | PI6: 0 | PJ6: 0 | PK6: 0 | PL6: 0 | PM6: 0 | PN6: 0 | PO6: 0 | PP6: 0 | PQ6: 0 | PR6: 0 | PS6: 0 | PT6: 0 | PU6: 0 | PV6: 0 | PW6: 0 | PX6: 0 | PY6: 0 | PZ6: 0 | QA6: 0 | QB6: 0 | QC6: 0 | QD6: 0 | QE6: 0 | QF6: 0 | QG6: 0 | QH6: 0 | QI6: 0 | QJ6: 0 | QK6: 0 | QL6: 0 | QM6: 0 | QN6: 0 | QO6: 0 | QP6: 0 | QQ6: 0 | QR6: 0 | QS6: 0 | QT6: 7 | QU6: 7
A7: LUCIANO CASTILLO COLONNA | B7: AYABACA | C7: 200201 | D7: 1911 | E7: AYABACA | F7: I-4 | G7: AYABACA | H7: NINGUN CLAS | I7: AYABACA | J7: AYABACA | K7: SALUD LUCIANO CASTILLO COLONNA | L7: 3 | M7: 0 | N7: 0 | O7: 0 | P7: 2 | Q7: 0 | R7: 0 | S7: 7 | T7: 4 | U7: 1 | V7: 2 | W7: 0 | X7: 0 | Y7: 0 | Z7: 6 | AA7: 62 | AB7: 28 | AC7: 0 | AD7: 1 | AE7: 4 | AF7: 1 | AG7: 0 | AH7: 0 | AI7: 1 | AJ7: 0 | AK7: 0 | AL7: 0 | AM7: 0 | AN7: 0 | AO7: 0 | AP7: 1 | AQ7: 8 | AR7: 0 | AS7: 0 | AT7: 0 | AU7: 2 | AV7: 0 | AW7: 0 | AX7: 2 | AY7: 12 | AZ7: 2 | BA7: 0 | BB7: 0 | BC7: 0 | BD7: 0 | BE7: 0 | BF7: 0 | BG7: 0 | BH7: 0 | BI7: 0 | BJ7: 0 | BK7: 0 | BL7: 0 | BM7: 0 | BN7: 2 | BO7: 15 | BP7: 2 | BQ7: 0 | BR7: 1 | BS7: 9 | BT7: 0 | BU7: 0 | BV7: 0 | BW7: 1 | BX7: 0 | BY7: 0 | BZ7: 0 | CA7: 0 | CB7: 0 | CC7: 0 | CD7: 0 | CE7: 0 | CF7: 1 | CG7: 0 | CH7: 0 | CI7: 0 | CJ7: 0 | CK7: 0 | CL7: 0 | CM7: 0 | CN7: 0 | CO7: 0 | CP7: 0 | CQ7: 0 | CR7: 0 | CS7: 0 | CT7: 0 | CU7: 0 | CV7: 0 | CW7: 0 | CX7: 0 | CY7: 0 | CZ7: 0 | DA7: 0 | DB7: 0 | DC7: 0 | DD7: 0 | DE7: 0 | DF7: 0 | DG7: 0 | DH7: 0 | DI7: 0 | DJ7: 0 | DK7: 0 | DL7: 0 | DM7: 0 | DN7: 0 | DO7: 0 | DP7: 0 | DQ7: 0 | DR7: 0 | DS7: 0 | DT7: 0 | DU7: 0 | DV7: 0 | DW7: 0 | DX7: 0 | DY7: 0 | DZ7: 0 | EA7: 0 | EB7: 0 | EC7: 0 | ED7: 0 | EE7: 0 | EF7: 0 | EG7: 0 | EH7: 0 | EI7: 0 | EJ7: 0 | EK7: 0 | EL7: 0 | EM7: 0 | EN7: 0 | EO7: 0 | EP7: 0 | EQ7: 0 | ER7: 0 | ES7: 0 | ET7: 2 | EU7: 10 | EV7: 1 | EW7: 0 | EX7: 2 | EY7: 12 | EZ7: 1 | FA7: 0 | FB7: 0 | FC7: 3 | FD7: 0 | FE7: 0 | FF7: 0 | FG7: 2 | FH7: 0 | FI7: 0 | FJ7: 0 | FK7: 1 | FL7: 3 | FM7: 0 | FN7: 0 | FO7: 0 | FP7: 0 | FQ7: 0 | FR7: 0 | FS7: 0 | FT7: 0 | FU7: 0 | FV7: 0 | FW7: 1 | FX7: 0 | FY7: 0 | FZ7: 0 | GA7: 0 | GB7: 0 | GC7: 0 | GD7: 0 | GE7: 8 | GF7: 3 | GG7: 0 | GH7: 0 | GI7: 0 | GJ7: 0 | GK7: 0 | GL7: 0 | GM7: 0 | GN7: 0 | GO7: 0 | GP7: 0 | GQ7: 0 | GR7: 0 | GS7: 0 | GT7: 0 | GU7: 0 | GV7: 0 | GW7: 0 | GX7: 0 | GY7: 0 | GZ7: 0 | HA7: 0 | HB7: 0 | HC7: 0 | HD7: 0 | HE7: 0 | HF7: 0 | HG7: 0 | HH7: 0 | HI7: 0 | HJ7: 0 | HK7: 0 | HL7: 0 | HM7: 0 | HN7: 0 | HO7: 0 | HP7: 0 | HQ7: 0 | HR7: 0 | HS7: 0 | HT7: 0 | HU7: 0 | HV7: 1 | HW7: 4 | HX7: 0 | HY7: 0 | HZ7: 1 | IA7: 3 | IB7: 1 | IC7: 0 | ID7: 0 | IE7: 2 | IF7: 3 | IG7: 0 | IH7: 1 | II7: 5 | IJ7: 2 | IK7: 0 | IL7: 0 | IM7: 1 | IN7: 1 | IO7: 0 | IP7: 1 | IQ7: 10 | IR7: 6 | IS7: 0 | IT7: 0 | IU7: 4 | IV7: 1 | IW7: 0 | IX7: 0 | IY7: 0 | IZ7: 0 | JA7: 0 | JB7: 0 | JC7: 2 | JD7: 5 | JE7: 0 | JF7: 0 | JG7: 0 | JH7: 1 | JI7: 0 | JJ7: 0 | JK7: 1 | JL7: 0 | JM7: 13 | JN7: 0 | JO7: 0 | JP7: 1 | JQ7: 4 | JR7: 1 | JS7: 0 | JT7: 0 | JU7: 2 | JV7: 0 | JW7: 0 | JX7: 0 | JY7: 1 | JZ7: 0 | KA7: 0 | KB7: 0 | KC7: 0 | KD7: 0 | KE7: 0 | KF7: 0 | KG7: 0 | KH7: 0 | KI7: 0 | KJ7: 0 | KK7: 3 | KL7: 1 | KM7: 0 | KN7: 0 | KO7: 0 | KP7: 0 | KQ7: 0 | KR7: 2 | KS7: 5 | KT7: 1 | KU7: 0 | KV7: 0 | KW7: 2 | KX7: 0 | KY7: 0 | KZ7: 0 | LA7: 1 | LB7: 1 | LC7: 0 | LD7: 0 | LE7: 0 | LF7: 0 | LG7: 0 | LH7: 0 | LI7: 0 | LJ7: 0 | LK7: 0 | LL7: 0 | LM7: 2 | LN7: 0 | LO7: 0 | LP7: 0 | LQ7: 0 | LR7: 0 | LS7: 0 | LT7: 1 | LU7: 2 | LV7: 1 | LW7: 0 | LX7: 0 | LY7: 1 | LZ7: 0 | MA7: 0 | MB7: 0 | MC7: 1 | MD7: 1 | ME7: 0 | MF7: 0 | MG7: 0 | MH7: 0 | MI7: 0 | MJ7: 0 | MK7: 0 | ML7: 0 | MM7: 0 | MN7: 0 | MO7: 0 | MP7: 0 | MQ7: 0 | MR7: 0 | MS7: 0 | MT7: 0 | MU7: 0 | MV7: 0 | MW7: 0 | MX7: 0 | MY7: 0 | MZ7: 0 | NA7: 0 | NB7: 0 | NC7: 0 | ND7: 0 | NE7: 0 | NF7: 0 | NG7: 0 | NH7: 0 | NI7: 0 | NJ7: 0 | NK7: 0 | NL7: 0 | NM7: 0 | NN7: 0 | NO7: 0 | NP7: 0 | NQ7: 0 | NR7: 0 | NS7: 0 | NT7: 0 | NU7: 0 | NV7: 0 | NW7: 0 | NX7: 0 | NY7: 0 | NZ7: 0 | OA7: 0 | OB7: 0 | OC7: 0 | OD7: 0 | OE7: 0 | OF7: 0 | OG7: 0 | OH7: 0 | OI7: 0 | OJ7: 0 | OK7: 0 | OL7: 0 | OM7: 0 | ON7: 0 | OO7: 0 | OP7: 0 | OQ7: 0 | OR7: 0 | OS7: 0 | OT7: 0 | OU7: 0 | OV7: 0 | OW7: 0 | OX7: 0 | OY7: 0 | OZ7: 0 | PA7: 0 | PB7: 0 | PC7: 0 | PD7: 0 | PE7: 0 | PF7: 0 | PG7: 0 | PH7: 0 | PI7: 0 | PJ7: 0 | PK7: 0 | PL7: 0 | PM7: 1 | PN7: 2 | PO7: 0 | PP7: 0 | PQ7: 0 | PR7: 0 | PS7: 0 | PT7: 0 | PU7: 1 | PV7: 2 | PW7: 0 | PX7: 0 | PY7: 0 | PZ7: 0 | QA7: 0 | QB7: 0 | QC7: 0 | QD7: 0 | QE7: 0 | QF7: 0 | QG7: 0 | QH7: 0 | QI7: 0 | QJ7: 0 | QK7: 2 | QL7: 0 | QM7: 0 | QN7: 0 | QO7: 0 | QP7: 0 | QQ7: 0 | QR7: 0 | QS7: 2 | QT7: 11 | QU7: 2
A8: LUCIANO CASTILLO COLONNA | B8: AYABACA | C8: 200201 | D8: 1912 | E8: TAPAL | F8: I-2 | G8: AYABACA | H8: NINGUN CLAS | I8: AYABACA | J8: AYABACA | K8: SALUD LUCIANO CASTILLO COLONNA | L8: 1 | M8: 0 | N8: 0 | O8: 0 | P8: 0 | Q8: 1 | R8: 0 | S8: 2 | T8: 1 | U8: 0 | V8: 1 | W8: 0 | X8: 0 | Y8: 0 | Z8: 1 | AA8: 6 | AB8: 7 | AC8: 0 | AD8: 0 | AE8: 0 | AF8: 0 | AG8: 0 | AH8: 0 | AI8: 0 | AJ8: 0 | AK8: 0 | AL8: 0 | AM8: 0 | AN8: 0 | AO8: 0 | AP8: 0 | AQ8: 0 | AR8: 0 | AS8: 0 | AT8: 0 | AU8: 0 | AV8: 0 | AW8: 0 | AX8: 1 | AY8: 3 | AZ8: 3 | BA8: 0 | BB8: 0 | BC8: 0 | BD8: 0 | BE8: 0 | BF8: 0 | BG8: 0 | BH8: 0 | BI8: 0 | BJ8: 0 | BK8: 0 | BL8: 0 | BM8: 0 | BN8: 1 | BO8: 3 | BP8: 3 | BQ8: 0 | BR8: 0 | BS8: 0 | BT8: 0 | BU8: 0 | BV8: 0 | BW8: 0 | BX8: 0 | BY8: 0 | BZ8: 0 | CA8: 0 | CB8: 0 | CC8: 0 | CD8: 0 | CE8: 0 | CF8: 0 | CG8: 0 | CH8: 0 | CI8: 0 | CJ8: 0 | CK8: 0 | CL8: 0 | CM8: 0 | CN8: 0 | CO8: 0 | CP8: 0 | CQ8: 0 | CR8: 0 | CS8: 0 | CT8: 0 | CU8: 0 | CV8: 0 | CW8: 0 | CX8: 0 | CY8: 0 | CZ8: 0 | DA8: 0 | DB8: 0 | DC8: 0 | DD8: 0 | DE8: 0 | DF8: 0 | DG8: 0 | DH8: 0 | DI8: 0 | DJ8: 0 | DK8: 0 | DL8: 0 | DM8: 0 | DN8: 0 | DO8: 0 | DP8: 0 | DQ8: 0 | DR8: 0 | DS8: 0 | DT8: 0 | DU8: 0 | DV8: 0 | DW8: 0 | DX8: 0 | DY8: 0 | DZ8: 0 | EA8: 0 | EB8: 0 | EC8: 0 | ED8: 0 | EE8: 0 | EF8: 0 | EG8: 0 | EH8: 0 | EI8: 0 | EJ8: 0 | EK8: 0 | EL8: 0 | EM8: 0 | EN8: 0 | EO8: 0 | EP8: 0 | EQ8: 0 | ER8: 0 | ES8: 0 | ET8: 0 | EU8: 1 | EV8: 1 | EW8: 0 | EX8: 0 | EY8: 3 | EZ8: 1 | FA8: 0 | FB8: 0 | FC8: 0 | FD8: 1 | FE8: 0 | FF8: 0 | FG8: 0 | FH8: 0 | FI8: 0 | FJ8: 0 | FK8: 0 | FL8: 0 | FM8: 0 | FN8: 0 | FO8: 0 | FP8: 0 | FQ8: 0 | FR8: 0 | FS8: 0 | FT8: 0 | FU8: 0 | FV8: 0 | FW8: 0 | FX8: 0 | FY8: 0 | FZ8: 0 | GA8: 0 | GB8: 0 | GC8: 0 | GD8: 0 | GE8: 0 | GF8: 1 | GG8: 0 | GH8: 0 | GI8: 0 | GJ8: 0 | GK8: 0 | GL8: 0 | GM8: 0 | GN8: 0 | GO8: 0 | GP8: 0 | GQ8: 0 | GR8: 0 | GS8: 0 | GT8: 0 | GU8: 0 | GV8: 0 | GW8: 0 | GX8: 0 | GY8: 0 | GZ8: 0 | HA8: 0 | HB8: 0 | HC8: 0 | HD8: 0 | HE8: 0 | HF8: 0 | HG8: 0 | HH8: 0 | HI8: 0 | HJ8: 0 | HK8: 0 | HL8: 0 | HM8: 0 | HN8: 0 | HO8: 0 | HP8: 0 | HQ8: 0 | HR8: 0 | HS8: 0 | HT8: 0 | HU8: 0 | HV8: 0 | HW8: 1 | HX8: 0 | HY8: 0 | HZ8: 0 | IA8: 0 | IB8: 0 | IC8: 0 | ID8: 0 | IE8: 0 | IF8: 0 | IG8: 0 | IH8: 0 | II8: 0 | IJ8: 0 | IK8: 0 | IL8: 0 | IM8: 0 | IN8: 0 | IO8: 0 | IP8: 0 | IQ8: 0 | IR8: 0 | IS8: 0 | IT8: 0 | IU8: 0 | IV8: 1 | IW8: 0 | IX8: 0 | IY8: 0 | IZ8: 0 | JA8: 0 | JB8: 0 | JC8: 0 | JD8: 3 | JE8: 0 | JF8: 0 | JG8: 2 | JH8: 0 | JI8: 0 | JJ8: 0 | JK8: 0 | JL8: 0 | JM8: 0 | JN8: 0 | JO8: 0 | JP8: 0 | JQ8: 2 | JR8: 1 | JS8: 0 | JT8: 0 | JU8: 1 | JV8: 0 | JW8: 0 | JX8: 0 | JY8: 0 | JZ8: 0 | KA8: 0 | KB8: 0 | KC8: 0 | KD8: 0 | KE8: 0 | KF8: 1 | KG8: 0 | KH8: 1 | KI8: 0 | KJ8: 0 | KK8: 0 | KL8: 1 | KM8: 0 | KN8: 0 | KO8: 0 | KP8: 0 | KQ8: 0 | KR8: 0 | KS8: 2 | KT8: 1 | KU8: 0 | KV8: 0 | KW8: 1 | KX8: 0 | KY8: 0 | KZ8: 0 | LA8: 0 | LB8: 0 | LC8: 0 | LD8: 0 | LE8: 0 | LF8: 0 | LG8: 0 | LH8: 1 | LI8: 0 | LJ8: 1 | LK8: 0 | LL8: 0 | LM8: 0 | LN8: 1 | LO8: 0 | LP8: 0 | LQ8: 0 | LR8: 0 | LS8: 0 | LT8: 0 | LU8: 0 | LV8: 0 | LW8: 0 | LX8: 0 | LY8: 0 | LZ8: 0 | MA8: 0 | MB8: 0 | MC8: 0 | MD8: 0 | ME8: 0 | MF8: 0 | MG8: 0 | MH8: 0 | MI8: 0 | MJ8: 0 | MK8: 0 | ML8: 0 | MM8: 0 | MN8: 0 | MO8: 0 | MP8: 0 | MQ8: 0 | MR8: 0 | MS8: 0 | MT8: 0 | MU8: 0 | MV8: 0 | MW8: 0 | MX8: 0 | MY8: 0 | MZ8: 0 | NA8: 0 | NB8: 0 | NC8: 0 | ND8: 0 | NE8: 0 | NF8: 0 | NG8: 0 | NH8: 0 | NI8: 0 | NJ8: 0 | NK8: 0 | NL8: 0 | NM8: 0 | NN8: 0 | NO8: 0 | NP8: 0 | NQ8: 0 | NR8: 0 | NS8: 0 | NT8: 0 | NU8: 0 | NV8: 0 | NW8: 0 | NX8: 0 | NY8: 0 | NZ8: 0 | OA8: 0 | OB8: 0 | OC8: 0 | OD8: 0 | OE8: 0 | OF8: 0 | OG8: 0 | OH8: 0 | OI8: 0 | OJ8: 0 | OK8: 0 | OL8: 0 | OM8: 0 | ON8: 0 | OO8: 0 | OP8: 0 | OQ8: 0 | OR8: 0 | OS8: 0 | OT8: 0 | OU8: 0 | OV8: 0 | OW8: 0 | OX8: 0 | OY8: 0 | OZ8: 0 | PA8: 0 | PB8: 0 | PC8: 0 | PD8: 0 | PE8: 0 | PF8: 0 | PG8: 0 | PH8: 0 | PI8: 0 | PJ8: 0 | PK8: 0 | PL8: 0 | PM8: 0 | PN8: 0 | PO8: 0 | PP8: 0 | PQ8: 0 | PR8: 0 | PS8: 0 | PT8: 0 | PU8: 0 | PV8: 0 | PW8: 0 | PX8: 0 | PY8: 0 | PZ8: 0 | QA8: 0 | QB8: 0 | QC8: 0 | QD8: 0 | QE8: 0 | QF8: 0 | QG8: 0 | QH8: 0 | QI8: 0 | QJ8: 0 | QK8: 0 | QL8: 0 | QM8: 0 | QN8: 0 | QO8: 0 | QP8: 0 | QQ8: 0 | QR8: 0 | QS8: 1 | QT8: 3 | QU8: 1
A9: LUCIANO CASTILLO COLONNA | B9: AYABACA | C9: 200201 | D9: 1912 | E9: TAPAL | F9: I-2 | G9: AYABACA | H9: NINGUN CLAS | I9: AYABACA | J9: AYABACA | K9: SALUD LUCIANO CASTILLO COLONNA | L9: 3 | M9: 0 | N9: 0 | O9: 0 | P9: 1 | Q9: 0 | R9: 0 | S9: 0 | T9: 1 | U9: 0 | V9: 2 | W9: 0 | X9: 0 | Y9: 0 | Z9: 2 | AA9: 7 | AB9: 8 | AC9: 0 | AD9: 1 | AE9: 1 | AF9: 2 | AG9: 0 | AH9: 0 | AI9: 0 | AJ9: 0 | AK9: 0 | AL9: 0 | AM9: 0 | AN9: 0 | AO9: 0 | AP9: 0 | AQ9: 0 | AR9: 0 | AS9: 0 | AT9: 0 | AU9: 0 | AV9: 0 | AW9: 0 | AX9: 1 | AY9: 1 | AZ9: 2 | BA9: 0 | BB9: 0 | BC9: 0 | BD9: 0 | BE9: 0 | BF9: 0 | BG9: 0 | BH9: 0 | BI9: 0 | BJ9: 0 | BK9: 0 | BL9: 0 | BM9: 0 | BN9: 1 | BO9: 1 | BP9: 2 | BQ9: 0 | BR9: 0 | BS9: 0 | BT9: 0 | BU9: 0 | BV9: 0 | BW9: 0 | BX9: 0 | BY9: 0 | BZ9: 0 | CA9: 0 | CB9: 0 | CC9: 0 | CD9: 0 | CE9: 0 | CF9: 0 | CG9: 0 | CH9: 0 | CI9: 0 | CJ9: 0 | CK9: 0 | CL9: 0 | CM9: 0 | CN9: 0 | CO9: 0 | CP9: 0 | CQ9: 0 | CR9: 0 | CS9: 0 | CT9: 0 | CU9: 0 | CV9: 0 | CW9: 0 | CX9: 0 | CY9: 0 | CZ9: 0 | DA9: 0 | DB9: 0 | DC9: 0 | DD9: 0 | DE9: 0 | DF9: 0 | DG9: 0 | DH9: 0 | DI9: 0 | DJ9: 0 | DK9: 0 | DL9: 0 | DM9: 0 | DN9: 0 | DO9: 0 | DP9: 0 | DQ9: 0 | DR9: 0 | DS9: 0 | DT9: 0 | DU9: 0 | DV9: 0 | DW9: 0 | DX9: 0 | DY9: 0 | DZ9: 0 | EA9: 0 | EB9: 0 | EC9: 0 | ED9: 0 | EE9: 0 | EF9: 0 | EG9: 0 | EH9: 0 | EI9: 0 | EJ9: 0 | EK9: 0 | EL9: 0 | EM9: 0 | EN9: 0 | EO9: 0 | EP9: 0 | EQ9: 0 | ER9: 0 | ES9: 0 | ET9: 0 | EU9: 0 | EV9: 1 | EW9: 0 | EX9: 0 | EY9: 1 | EZ9: 2 | FA9: 0 | FB9: 0 | FC9: 0 | FD9: 1 | FE9: 0 | FF9: 0 | FG9: 0 | FH9: 0 | FI9: 0 | FJ9: 0 | FK9: 0 | FL9: 0 | FM9: 0 | FN9: 0 | FO9: 0 | FP9: 0 | FQ9: 0 | FR9: 0 | FS9: 0 | FT9: 0 | FU9: 0 | FV9: 0 | FW9: 0 | FX9: 0 | FY9: 0 | FZ9: 0 | GA9: 0 | GB9: 0 | GC9: 0 | GD9: 1 | GE9: 1 | GF9: 1 | GG9: 0 | GH9: 0 | GI9: 0 | GJ9: 0 | GK9: 0 | GL9: 0 | GM9: 0 | GN9: 0 | GO9: 0 | GP9: 0 | GQ9: 0 | GR9: 0 | GS9: 0 | GT9: 0 | GU9: 0 | GV9: 0 | GW9: 0 | GX9: 0 | GY9: 0 | GZ9: 0 | HA9: 0 | HB9: 0 | HC9: 0 | HD9: 0 | HE9: 0 | HF9: 0 | HG9: 0 | HH9: 0 | HI9: 0 | HJ9: 0 | HK9: 0 | HL9: 0 | HM9: 0 | HN9: 0 | HO9: 0 | HP9: 0 | HQ9: 0 | HR9: 0 | HS9: 0 | HT9: 0 | HU9: 0 | HV9: 0 | HW9: 0 | HX9: 0 | HY9: 0 | HZ9: 1 | IA9: 1 | IB9: 2 | IC9: 0 | ID9: 0 | IE9: 0 | IF9: 0 | IG9: 0 | IH9: 1 | II9: 1 | IJ9: 2 | IK9: 0 | IL9: 0 | IM9: 0 | IN9: 1 | IO9: 0 | IP9: 0 | IQ9: 0 | IR9: 0 | IS9: 0 | IT9: 0 | IU9: 1 | IV9: 0 | IW9: 0 | IX9: 0 | IY9: 0 | IZ9: 0 | JA9: 0 | JB9: 0 | JC9: 0 | JD9: 3 | JE9: 0 | JF9: 0 | JG9: 0 | JH9: 0 | JI9: 0 | JJ9: 0 | JK9: 0 | JL9: 0 | JM9: 0 | JN9: 0 | JO9: 0 | JP9: 1 | JQ9: 0 | JR9: 2 | JS9: 0 | JT9: 0 | JU9: 1 | JV9: 0 | JW9: 0 | JX9: 0 | JY9: 0 | JZ9: 0 | KA9: 0 | KB9: 0 | KC9: 0 | KD9: 0 | KE9: 0 | KF9: 0 | KG9: 0 | KH9: 0 | KI9: 0 | KJ9: 0 | KK9: 0 | KL9: 0 | KM9: 0 | KN9: 0 | KO9: 0 | KP9: 0 | KQ9: 0 | KR9: 1 | KS9: 0 | KT9: 2 | KU9: 0 | KV9: 0 | KW9: 1 | KX9: 0 | KY9: 0 | KZ9: 0 | LA9: 0 | LB9: 0 | LC9: 0 | LD9: 0 | LE9: 0 | LF9: 0 | LG9: 0 | LH9: 0 | LI9: 0 | LJ9: 0 | LK9: 0 | LL9: 0 | LM9: 0 | LN9: 0 | LO9: 0 | LP9: 0 | LQ9: 0 | LR9: 0 | LS9: 0 | LT9: 0 | LU9: 0 | LV9: 0 | LW9: 0 | LX9: 0 | LY9: 0 | LZ9: 0 | MA9: 0 | MB9: 0 | MC9: 0 | MD9: 0 | ME9: 0 | MF9: 0 | MG9: 0 | MH9: 0 | MI9: 0 | MJ9: 0 | MK9: 0 | ML9: 0 | MM9: 0 | MN9: 0 | MO9: 0 | MP9: 0 | MQ9: 0 | MR9: 0 | MS9: 0 | MT9: 0 | MU9: 0 | MV9: 0 | MW9: 0 | MX9: 0 | MY9: 0 | MZ9: 0 | NA9: 0 | NB9: 0 | NC9: 0 | ND9: 0 | NE9: 0 | NF9: 0 | NG9: 0 | NH9: 0 | NI9: 0 | NJ9: 0 | NK9: 0 | NL9: 0 | NM9: 0 | NN9: 0 | NO9: 0 | NP9: 0 | NQ9: 0 | NR9: 0 | NS9: 0 | NT9: 0 | NU9: 0 | NV9: 0 | NW9: 0 | NX9: 0 | NY9: 0 | NZ9: 0 | OA9: 0 | OB9: 0 | OC9: 0 | OD9: 0 | OE9: 0 | OF9: 0 | OG9: 0 | OH9: 0 | OI9: 0 | OJ9: 0 | OK9: 0 | OL9: 0 | OM9: 0 | ON9: 0 | OO9: 0 | OP9: 0 | OQ9: 0 | OR9: 0 | OS9: 0 | OT9: 0 | OU9: 0 | OV9: 0 | OW9: 0 | OX9: 0 | OY9: 0 | OZ9: 0 | PA9: 0 | PB9: 0 | PC9: 0 | PD9: 0 | PE9: 0 | PF9: 0 | PG9: 0 | PH9: 0 | PI9: 0 | PJ9: 0 | PK9: 0 | PL9: 0 | PM9: 0 | PN9: 0 | PO9: 0 | PP9: 0 | PQ9: 0 | PR9: 0 | PS9: 0 | PT9: 0 | PU9: 0 | PV9: 0 | PW9: 0 | PX9: 0 | PY9: 0 | PZ9: 0 | QA9: 0 | QB9: 0 | QC9: 0 | QD9: 0 | QE9: 0 | QF9: 0 | QG9: 0 | QH9: 0 | QI9: 0 | QJ9: 0 | QK9: 0 | QL9: 0 | QM9: 0 | QN9: 0 | QO9: 0 | QP9: 0 | QQ9: 0 | QR9: 0 | QS9: 1 | QT9: 1 | QU9: 2
A10: LUCIANO CASTILLO COLONNA | B10: AYABACA | C10: 200201 | D10: 1912 | E10: TAPAL | F10: I-2 | G10: AYABACA | H10: NINGUN CLAS | I10: AYABACA | J10: AYABACA | K10: SALUD LUCIANO CASTILLO COLONNA | L10: 2 | M10: 0 | N10: 0 | O10: 0 | P10: 0 | Q10: 0 | R10: 0 | S10: 0 | T10: 0 | U10: 0 | V10: 2 | W10: 0 | X10: 0 | Y10: 0 | Z10: 1 | AA10: 7 | AB10: 11 | AC10: 0 | AD10: 0 | AE10: 0 | AF10: 1 | AG10: 0 | AH10: 0 | AI10: 0 | AJ10: 0 | AK10: 0 | AL10: 0 | AM10: 0 | AN10: 0 | AO10: 0 | AP10: 0 | AQ10: 0 | AR10: 0 | AS10: 0 | AT10: 0 | AU10: 0 | AV10: 0 | AW10: 0 | AX10: 0 | AY10: 1 | AZ10: 6 | BA10: 0 | BB10: 0 | BC10: 0 | BD10: 0 | BE10: 0 | BF10: 0 | BG10: 0 | BH10: 0 | BI10: 0 | BJ10: 0 | BK10: 0 | BL10: 0 | BM10: 0 | BN10: 0 | BO10: 0 | BP10: 3 | BQ10: 0 | BR10: 0 | BS10: 0 | BT10: 0 | BU10: 0 | BV10: 0 | BW10: 0 | BX10: 0 | BY10: 0 | BZ10: 0 | CA10: 0 | CB10: 0 | CC10: 0 | CD10: 0 | CE10: 0 | CF10: 0 | CG10: 0 | CH10: 0 | CI10: 0 | CJ10: 0 | CK10: 0 | CL10: 0 | CM10: 0 | CN10: 0 | CO10: 0 | CP10: 0 | CQ10: 0 | CR10: 0 | CS10: 0 | CT10: 0 | CU10: 0 | CV10: 0 | CW10: 0 | CX10: 0 | CY10: 0 | CZ10: 0 | DA10: 0 | DB10: 0 | DC10: 0 | DD10: 0 | DE10: 0 | DF10: 0 | DG10: 0 | DH10: 0 | DI10: 0 | DJ10: 0 | DK10: 0 | DL10: 0 | DM10: 0 | DN10: 0 | DO10: 0 | DP10: 0 | DQ10: 0 | DR10: 0 | DS10: 0 | DT10: 0 | DU10: 0 | DV10: 0 | DW10: 0 | DX10: 0 | DY10: 0 | DZ10: 0 | EA10: 0 | EB10: 0 | EC10: 0 | ED10: 0 | EE10: 0 | EF10: 0 | EG10: 0 | EH10: 0 | EI10: 0 | EJ10: 0 | EK10: 0 | EL10: 0 | EM10: 0 | EN10: 0 | EO10: 0 | EP10: 0 | EQ10: 0 | ER10: 0 | ES10: 0 | ET10: 0 | EU10: 0 | EV10: 2 | EW10: 0 | EX10: 0 | EY10: 0 | EZ10: 2 | FA10: 0 | FB10: 0 | FC10: 0 | FD10: 0 | FE10: 0 | FF10: 0 | FG10: 0 | FH10: 0 | FI10: 0 | FJ10: 0 | FK10: 0 | FL10: 0 | FM10: 0 | FN10: 0 | FO10: 0 | FP10: 0 | FQ10: 0 | FR10: 0 | FS10: 0 | FT10: 0 | FU10: 0 | FV10: 0 | FW10: 0 | FX10: 0 | FY10: 0 | FZ10: 0 | GA10: 0 | GB10: 0 | GC10: 0 | GD10: 0 | GE10: 0 | GF10: 1 | GG10: 0 | GH10: 0 | GI10: 0 | GJ10: 0 | GK10: 0 | GL10: 0 | GM10: 0 | GN10: 0 | GO10: 0 | GP10: 0 | GQ10: 0 | GR10: 0 | GS10: 0 | GT10: 0 | GU10: 0 | GV10: 0 | GW10: 0 | GX10: 0 | GY10: 0 | GZ10: 0 | HA10: 0 | HB10: 0 | HC10: 0 | HD10: 0 | HE10: 0 | HF10: 0 | HG10: 0 | HH10: 0 | HI10: 0 | HJ10: 0 | HK10: 0 | HL10: 0 | HM10: 0 | HN10: 0 | HO10: 0 | HP10: 0 | HQ10: 0 | HR10: 0 | HS10: 0 | HT10: 0 | HU10: 0 | HV10: 0 | HW10: 0 | HX10: 0 | HY10: 0 | HZ10: 0 | IA10: 0 | IB10: 1 | IC10: 0 | ID10: 0 | IE10: 0 | IF10: 0 | IG10: 0 | IH10: 0 | II10: 0 | IJ10: 2 | IK10: 0 | IL10: 0 | IM10: 1 | IN10: 0 | IO10: 0 | IP10: 0 | IQ10: 0 | IR10: 0 | IS10: 0 | IT10: 1 | IU10: 2 | IV10: 1 | IW10: 0 | IX10: 0 | IY10: 0 | IZ10: 0 | JA10: 0 | JB10: 0 | JC10: 0 | JD10: 0 | JE10: 0 | JF10: 1 | JG10: 0 | JH10: 1 | JI10: 0 | JJ10: 0 | JK10: 0 | JL10: 0 | JM10: 0 | JN10: 0 | JO10: 0 | JP10: 0 | JQ10: 0 | JR10: 2 | JS10: 0 | JT10: 0 | JU10: 0 | JV10: 0 | JW10: 0 | JX10: 0 | JY10: 0 | JZ10: 0 | KA10: 0 | KB10: 0 | KC10: 0 | KD10: 0 | KE10: 0 | KF10: 0 | KG10: 0 | KH10: 0 | KI10: 0 | KJ10: 0 | KK10: 0 | KL10: 1 | KM10: 0 | KN10: 0 | KO10: 0 | KP10: 0 | KQ10: 0 | KR10: 0 | KS10: 0 | KT10: 2 | KU10: 0 | KV10: 0 | KW10: 0 | KX10: 0 | KY10: 0 | KZ10: 0 | LA10: 0 | LB10: 0 | LC10: 0 | LD10: 0 | LE10: 0 | LF10: 0 | LG10: 0 | LH10: 0 | LI10: 0 | LJ10: 0 | LK10: 0 | LL10: 0 | LM10: 0 | LN10: 1 | LO10: 0 | LP10: 0 | LQ10: 0 | LR10: 0 | LS10: 0 | LT10: 0 | LU10: 0 | LV10: 0 | LW10: 0 | LX10: 0 | LY10: 0 | LZ10: 0 | MA10: 0 | MB10: 0 | MC10: 0 | MD10: 0 | ME10: 0 | MF10: 0 | MG10: 0 | MH10: 0 | MI10: 0 | MJ10: 0 | MK10: 0 | ML10: 0 | MM10: 0 | MN10: 0 | MO10: 0 | MP10: 0 | MQ10: 0 | MR10: 0 | MS10: 0 | MT10: 0 | MU10: 0 | MV10: 0 | MW10: 0 | MX10: 0 | MY10: 0 | MZ10: 0 | NA10: 0 | NB10: 0 | NC10: 0 | ND10: 0 | NE10: 0 | NF10: 0 | NG10: 0 | NH10: 0 | NI10: 0 | NJ10: 0 | NK10: 0 | NL10: 0 | NM10: 0 | NN10: 0 | NO10: 0 | NP10: 0 | NQ10: 0 | NR10: 0 | NS10: 0 | NT10: 0 | NU10: 0 | NV10: 0 | NW10: 0 | NX10: 0 | NY10: 0 | NZ10: 0 | OA10: 0 | OB10: 0 | OC10: 0 | OD10: 0 | OE10: 0 | OF10: 0 | OG10: 0 | OH10: 0 | OI10: 0 | OJ10: 0 | OK10: 0 | OL10: 0 | OM10: 0 | ON10: 0 | OO10: 0 | OP10: 0 | OQ10: 0 | OR10: 0 | OS10: 0 | OT10: 0 | OU10: 0 | OV10: 0 | OW10: 0 | OX10: 0 | OY10: 0 | OZ10: 0 | PA10: 0 | PB10: 0 | PC10: 0 | PD10: 0 | PE10: 0 | PF10: 0 | PG10: 0 | PH10: 0 | PI10: 0 | PJ10: 0 | PK10: 0 | PL10: 0 | PM10: 0 | PN10: 0 | PO10: 0 | PP10: 0 | PQ10: 0 | PR10: 0 | PS10: 0 | PT10: 0 | PU10: 0 | PV10: 0 | PW10: 0 | PX10: 0 | PY10: 0 | PZ10: 0 | QA10: 0 | QB10: 0 | QC10: 0 | QD10: 0 | QE10: 0 | QF10: 0 | QG10: 0 | QH10: 0 | QI10: 0 | QJ10: 0 | QK10: 0 | QL10: 0 | QM10: 0 | QN10: 0 | QO10: 0 | QP10: 0 | QQ10: 0 | QR10: 0 | QS10: 0 | QT10: 0 | QU10: 2
A11: LUCIANO CASTILLO COLONNA | B11: AYABACA | C11: 200201 | D11: 1913 | E11: CHINCHIN | F11: I-1 | G11: AYABACA | H11: NINGUN CLAS | I11: AYABACA | J11: AYABACA | K11: SALUD LUCIANO CASTILLO COLONNA | L11: 2 | M11: 0 | N11: 0 | O11: 0 | P11: 0 | Q11: 0 | R11: 0 | S11: 0 | T11: 0 | U11: 0 | V11: 0 | W11: 0 | X11: 0 | Y11: 0 | Z11: 0 | AA11: 1 | AB11: 0 | AC11: 0 | AD11: 0 | AE11: 0 | AF11: 0 | AG11: 0 | AH11: 0 | AI11: 0 | AJ11: 0 | AK11: 0 | AL11: 0 | AM11: 0 | AN11: 0 | AO11: 0 | AP11: 0 | AQ11: 0 | AR11: 0 | AS11: 0 | AT11: 0 | AU11: 0 | AV11: 0 | AW11: 0 | AX11: 0 | AY11: 0 | AZ11: 0 | BA11: 0 | BB11: 0 | BC11: 0 | BD11: 0 | BE11: 0 | BF11: 0 | BG11: 0 | BH11: 0 | BI11: 0 | BJ11: 0 | BK11: 0 | BL11: 0 | BM11: 0 | BN11: 0 | BO11: 0 | BP11: 0 | BQ11: 0 | BR11: 0 | BS11: 0 | BT11: 0 | BU11: 0 | BV11: 0 | BW11: 0 | BX11: 0 | BY11: 0 | BZ11: 0 | CA11: 0 | CB11: 0 | CC11: 0 | CD11: 0 | CE11: 0 | CF11: 0 | CG11: 0 | CH11: 0 | CI11: 0 | CJ11: 0 | CK11: 0 | CL11: 0 | CM11: 0 | CN11: 0 | CO11: 0 | CP11: 0 | CQ11: 0 | CR11: 0 | CS11: 0 | CT11: 0 | CU11: 0 | CV11: 0 | CW11: 0 | CX11: 0 | CY11: 0 | CZ11: 0 | DA11: 0 | DB11: 0 | DC11: 0 | DD11: 0 | DE11: 0 | DF11: 0 | DG11: 0 | DH11: 0 | DI11: 0 | DJ11: 0 | DK11: 0 | DL11: 0 | DM11: 0 | DN11: 0 | DO11: 0 | DP11: 0 | DQ11: 0 | DR11: 0 | DS11: 0 | DT11: 0 | DU11: 0 | DV11: 0 | DW11: 0 | DX11: 0 | DY11: 0 | DZ11: 0 | EA11: 0 | EB11: 0 | EC11: 0 | ED11: 0 | EE11: 0 | EF11: 0 | EG11: 0 | EH11: 0 | EI11: 0 | EJ11: 0 | EK11: 0 | EL11: 0 | EM11: 0 | EN11: 0 | EO11: 0 | EP11: 0 | EQ11: 0 | ER11: 0 | ES11: 0 | ET11: 0 | EU11: 0 | EV11: 0 | EW11: 0 | EX11: 0 | EY11: 0 | EZ11: 0 | FA11: 0 | FB11: 0 | FC11: 0 | FD11: 0 | FE11: 0 | FF11: 0 | FG11: 0 | FH11: 0 | FI11: 0 | FJ11: 0 | FK11: 0 | FL11: 0 | FM11: 0 | FN11: 0 | FO11: 0 | FP11: 0 | FQ11: 0 | FR11: 0 | FS11: 0 | FT11: 0 | FU11: 0 | FV11: 0 | FW11: 0 | FX11: 0 | FY11: 0 | FZ11: 0 | GA11: 0 | GB11: 0 | GC11: 0 | GD11: 0 | GE11: 0 | GF11: 0 | GG11: 0 | GH11: 0 | GI11: 0 | GJ11: 0 | GK11: 0 | GL11: 0 | GM11: 0 | GN11: 0 | GO11: 0 | GP11: 0 | GQ11: 0 | GR11: 0 | GS11: 0 | GT11: 0 | GU11: 0 | GV11: 0 | GW11: 0 | GX11: 0 | GY11: 0 | GZ11: 0 | HA11: 0 | HB11: 0 | HC11: 0 | HD11: 0 | HE11: 0 | HF11: 0 | HG11: 0 | HH11: 0 | HI11: 0 | HJ11: 0 | HK11: 0 | HL11: 0 | HM11: 0 | HN11: 0 | HO11: 0 | HP11: 0 | HQ11: 0 | HR11: 0 | HS11: 0 | HT11: 0 | HU11: 0 | HV11: 0 | HW11: 0 | HX11: 0 | HY11: 0 | HZ11: 0 | IA11: 0 | IB11: 0 | IC11: 0 | ID11: 0 | IE11: 0 | IF11: 0 | IG11: 0 | IH11: 0 | II11: 0 | IJ11: 0 | IK11: 0 | IL11: 0 | IM11: 0 | IN11: 0 | IO11: 0 | IP11: 0 | IQ11: 0 | IR11: 0 | IS11: 0 | IT11: 0 | IU11: 0 | IV11: 0 | IW11: 0 | IX11: 0 | IY11: 0 | IZ11: 0 | JA11: 0 | JB11: 0 | JC11: 0 | JD11: 0 | JE11: 0 | JF11: 0 | JG11: 0 | JH11: 0 | JI11: 0 | JJ11: 0 | JK11: 0 | JL11: 0 | JM11: 0 | JN11: 0 | JO11: 0 | JP11: 0 | JQ11: 0 | JR11: 0 | JS11: 0 | JT11: 0 | JU11: 0 | JV11: 0 | JW11: 0 | JX11: 0 | JY11: 0 | JZ11: 0 | KA11: 0 | KB11: 0 | KC11: 0 | KD11: 0 | KE11: 0 | KF11: 0 | KG11: 0 | KH11: 0 | KI11: 0 | KJ11: 0 | KK11: 0 | KL11: 0 | KM11: 0 | KN11: 0 | KO11: 0 | KP11: 0 | KQ11: 0 | KR11: 0 | KS11: 0 | KT11: 0 | KU11: 0 | KV11: 0 | KW11: 0 | KX11: 0 | KY11: 0 | KZ11: 0 | LA11: 0 | LB11: 0 | LC11: 0 | LD11: 0 | LE11: 0 | LF11: 0 | LG11: 0 | LH11: 0 | LI11: 0 | LJ11: 0 | LK11: 0 | LL11: 0 | LM11: 0 | LN11: 0 | LO11: 0 | LP11: 0 | LQ11: 0 | LR11: 0 | LS11: 0 | LT11: 0 | LU11: 0 | LV11: 0 | LW11: 0 | LX11: 0 | LY11: 0 | LZ11: 0 | MA11: 0 | MB11: 0 | MC11: 0 | MD11: 0 | ME11: 0 | MF11: 0 | MG11: 0 | MH11: 0 | MI11: 0 | MJ11: 0 | MK11: 0 | ML11: 0 | MM11: 0 | MN11: 0 | MO11: 0 | MP11: 0 | MQ11: 0 | MR11: 0 | MS11: 0 | MT11: 0 | MU11: 0 | MV11: 0 | MW11: 0 | MX11: 0 | MY11: 0 | MZ11: 0 | NA11: 0 | NB11: 0 | NC11: 0 | ND11: 0 | NE11: 0 | NF11: 0 | NG11: 0 | NH11: 0 | NI11: 0 | NJ11: 0 | NK11: 0 | NL11: 0 | NM11: 0 | NN11: 0 | NO11: 0 | NP11: 0 | NQ11: 0 | NR11: 0 | NS11: 0 | NT11: 0 | NU11: 0 | NV11: 0 | NW11: 0 | NX11: 0 | NY11: 0 | NZ11: 0 | OA11: 0 | OB11: 0 | OC11: 0 | OD11: 0 | OE11: 0 | OF11: 0 | OG11: 0 | OH11: 0 | OI11: 0 | OJ11: 0 | OK11: 0 | OL11: 0 | OM11: 0 | ON11: 0 | OO11: 0 | OP11: 0 | OQ11: 0 | OR11: 0 | OS11: 0 | OT11: 0 | OU11: 0 | OV11: 0 | OW11: 0 | OX11: 0 | OY11: 0 | OZ11: 0 | PA11: 0 | PB11: 0 | PC11: 0 | PD11: 0 | PE11: 0 | PF11: 0 | PG11: 0 | PH11: 0 | PI11: 0 | PJ11: 0 | PK11: 0 | PL11: 0 | PM11: 0 | PN11: 0 | PO11: 0 | PP11: 0 | PQ11: 0 | PR11: 0 | PS11: 0 | PT11: 0 | PU11: 0 | PV11: 0 | PW11: 0 | PX11: 0 | PY11: 0 | PZ11: 0 | QA11: 0 | QB11: 0 | QC11: 0 | QD11: 0 | QE11: 0 | QF11: 0 | QG11: 0 | QH11: 0 | QI11: 0 | QJ11: 0 | QK11: 0 | QL11: 0 | QM11: 0 | QN11: 0 | QO11: 0 | QP11: 0 | QQ11: 0 | QR11: 0 | QS11: 0 | QT11: 0 | QU11: 0
A12: LUCIANO CASTILLO COLONNA | B12: AYABACA | C12: 200201 | D12: 1913 | E12: CHINCHIN | F12: I-1 | G12: AYABACA | H12: NINGUN CLAS | I12: AYABACA | J12: AYABACA | K12: SALUD LUCIANO CASTILLO COLONNA | L12: 3 | M12: 0 | N12: 0 | O12: 0 | P12: 0 | Q12: 0 | R12: 0 | S12: 0 | T12: 0 | U12: 0 | V12: 0 | W12: 0 | X12: 0 | Y12: 0 | Z12: 0 | AA12: 0 | AB12: 0 | AC12: 0 | AD12: 0 | AE12: 0 | AF12: 0 | AG12: 0 | AH12: 0 | AI12: 0 | AJ12: 0 | AK12: 0 | AL12: 0 | AM12: 0 | AN12: 0 | AO12: 0 | AP12: 0 | AQ12: 0 | AR12: 0 | AS12: 0 | AT12: 0 | AU12: 0 | AV12: 0 | AW12: 0 | AX12: 0 | AY12: 0 | AZ12: 0 | BA12: 0 | BB12: 0 | BC12: 0 | BD12: 0 | BE12: 0 | BF12: 0 | BG12: 0 | BH12: 0 | BI12: 0 | BJ12: 0 | BK12: 0 | BL12: 0 | BM12: 0 | BN12: 0 | BO12: 0 | BP12: 0 | BQ12: 0 | BR12: 0 | BS12: 0 | BT12: 0 | BU12: 0 | BV12: 0 | BW12: 0 | BX12: 0 | BY12: 0 | BZ12: 0 | CA12: 0 | CB12: 0 | CC12: 0 | CD12: 0 | CE12: 0 | CF12: 0 | CG12: 0 | CH12: 0 | CI12: 0 | CJ12: 0 | CK12: 0 | CL12: 0 | CM12: 0 | CN12: 0 | CO12: 0 | CP12: 0 | CQ12: 0 | CR12: 0 | CS12: 0 | CT12: 0 | CU12: 0 | CV12: 0 | CW12: 0 | CX12: 0 | CY12: 0 | CZ12: 0 | DA12: 0 | DB12: 0 | DC12: 0 | DD12: 0 | DE12: 0 | DF12: 0 | DG12: 0 | DH12: 0 | DI12: 0 | DJ12: 0 | DK12: 0 | DL12: 0 | DM12: 0 | DN12: 0 | DO12: 0 | DP12: 0 | DQ12: 0 | DR12: 0 | DS12: 0 | DT12: 0 | DU12: 0 | DV12: 0 | DW12: 0 | DX12: 0 | DY12: 0 | DZ12: 0 | EA12: 0 | EB12: 0 | EC12: 0 | ED12: 0 | EE12: 0 | EF12: 0 | EG12: 0 | EH12: 0 | EI12: 0 | EJ12: 0 | EK12: 0 | EL12: 0 | EM12: 0 | EN12: 0 | EO12: 0 | EP12: 0 | EQ12: 0 | ER12: 0 | ES12: 0 | ET12: 0 | EU12: 0 | EV12: 0 | EW12: 0 | EX12: 0 | EY12: 0 | EZ12: 0 | FA12: 0 | FB12: 0 | FC12: 0 | FD12: 0 | FE12: 0 | FF12: 0 | FG12: 0 | FH12: 0 | FI12: 0 | FJ12: 0 | FK12: 0 | FL12: 0 | FM12: 0 | FN12: 0 | FO12: 0 | FP12: 0 | FQ12: 0 | FR12: 0 | FS12: 0 | FT12: 0 | FU12: 0 | FV12: 0 | FW12: 0 | FX12: 0 | FY12: 0 | FZ12: 0 | GA12: 0 | GB12: 0 | GC12: 0 | GD12: 0 | GE12: 0 | GF12: 0 | GG12: 0 | GH12: 0 | GI12: 0 | GJ12: 0 | GK12: 0 | GL12: 0 | GM12: 0 | GN12: 0 | GO12: 0 | GP12: 0 | GQ12: 0 | GR12: 0 | GS12: 0 | GT12: 0 | GU12: 0 | GV12: 0 | GW12: 0 | GX12: 0 | GY12: 0 | GZ12: 0 | HA12: 0 | HB12: 0 | HC12: 0 | HD12: 0 | HE12: 0 | HF12: 0 | HG12: 0 | HH12: 0 | HI12: 0 | HJ12: 0 | HK12: 0 | HL12: 0 | HM12: 0 | HN12: 0 | HO12: 0 | HP12: 0 | HQ12: 0 | HR12: 0 | HS12: 0 | HT12: 0 | HU12: 0 | HV12: 0 | HW12: 0 | HX12: 0 | HY12: 0 | HZ12: 0 | IA12: 0 | IB12: 0 | IC12: 0 | ID12: 0 | IE12: 0 | IF12: 0 | IG12: 0 | IH12: 0 | II12: 0 | IJ12: 0 | IK12: 0 | IL12: 0 | IM12: 0 | IN12: 0 | IO12: 0 | IP12: 0 | IQ12: 0 | IR12: 0 | IS12: 0 | IT12: 0 | IU12: 0 | IV12: 0 | IW12: 0 | IX12: 0 | IY12: 0 | IZ12: 0 | JA12: 0 | JB12: 0 | JC12: 0 | JD12: 0 | JE12: 0 | JF12: 0 | JG12: 0 | JH12: 0 | JI12: 0 | JJ12: 0 | JK12: 0 | JL12: 0 | JM12: 0 | JN12: 0 | JO12: 0 | JP12: 0 | JQ12: 0 | JR12: 0 | JS12: 0 | JT12: 0 | JU12: 0 | JV12: 0 | JW12: 0 | JX12: 0 | JY12: 0 | JZ12: 0 | KA12: 0 | KB12: 0 | KC12: 0 | KD12: 0 | KE12: 0 | KF12: 0 | KG12: 0 | KH12: 0 | KI12: 0 | KJ12: 0 | KK12: 0 | KL12: 0 | KM12: 0 | KN12: 0 | KO12: 0 | KP12: 0 | KQ12: 0 | KR12: 0 | KS12: 0 | KT12: 0 | KU12: 0 | KV12: 0 | KW12: 0 | KX12: 0 | KY12: 0 | KZ12: 0 | LA12: 0 | LB12: 0 | LC12: 0 | LD12: 0 | LE12: 0 | LF12: 0 | LG12: 0 | LH12: 0 | LI12: 0 | LJ12: 0 | LK12: 0 | LL12: 0 | LM12: 0 | LN12: 0 | LO12: 0 | LP12: 0 | LQ12: 0 | LR12: 0 | LS12: 0 | LT12: 0 | LU12: 0 | LV12: 0 | LW12: 0 | LX12: 0 | LY12: 0 | LZ12: 0 | MA12: 0 | MB12: 0 | MC12: 0 | MD12: 0 | ME12: 0 | MF12: 0 | MG12: 0 | MH12: 0 | MI12: 0 | MJ12: 0 | MK12: 0 | ML12: 0 | MM12: 0 | MN12: 0 | MO12: 0 | MP12: 0 | MQ12: 0 | MR12: 0 | MS12: 0 | MT12: 0 | MU12: 0 | MV12: 0 | MW12: 0 | MX12: 0 | MY12: 0 | MZ12: 0 | NA12: 0 | NB12: 0 | NC12: 0 | ND12: 0 | NE12: 0 | NF12: 0 | NG12: 0 | NH12: 0 | NI12: 0 | NJ12: 0 | NK12: 0 | NL12: 0 | NM12: 0 | NN12: 0 | NO12: 0 | NP12: 0 | NQ12: 0 | NR12: 0 | NS12: 0 | NT12: 0 | NU12: 0 | NV12: 0 | NW12: 0 | NX12: 0 | NY12: 0 | NZ12: 0 | OA12: 0 | OB12: 0 | OC12: 0 | OD12: 0 | OE12: 0 | OF12: 0 | OG12: 0 | OH12: 0 | OI12: 0 | OJ12: 0 | OK12: 0 | OL12: 0 | OM12: 0 | ON12: 0 | OO12: 0 | OP12: 0 | OQ12: 0 | OR12: 0 | OS12: 0 | OT12: 0 | OU12: 0 | OV12: 0 | OW12: 0 | OX12: 0 | OY12: 0 | OZ12: 0 | PA12: 0 | PB12: 0 | PC12: 0 | PD12: 0 | PE12: 0 | PF12: 0 | PG12: 0 | PH12: 0 | PI12: 0 | PJ12: 0 | PK12: 0 | PL12: 0 | PM12: 0 | PN12: 0 | PO12: 0 | PP12: 0 | PQ12: 0 | PR12: 0 | PS12: 0 | PT12: 0 | PU12: 0 | PV12: 0 | PW12: 0 | PX12: 0 | PY12: 0 | PZ12: 0 | QA12: 0 | QB12: 0 | QC12: 0 | QD12: 0 | QE12: 0 | QF12: 0 | QG12: 0 | QH12: 0 | QI12: 0 | QJ12: 0 | QK12: 0 | QL12: 0 | QM12: 0 | QN12: 0 | QO12: 0 | QP12: 0 | QQ12: 0 | QR12: 0 | QS12: 0 | QT12: 0 | QU12: 0
A13: LUCIANO CASTILLO COLONNA | B13: AYABACA | C13: 200201 | D13: 1913 | E13: CHINCHIN | F13: I-1 | G13: AYABACA | H13: NINGUN CLAS | I13: AYABACA | J13: AYABACA | K13: SALUD LUCIANO CASTILLO COLONNA | L13: 1 | M13: 0 | N13: 0 | O13: 0 | P13: 0 | Q13: 0 | R13: 0 | S13: 0 | T13: 0 | U13: 0 | V13: 0 | W13: 0 | X13: 0 | Y13: 0 | Z13: 0 | AA13: 1 | AB13: 0 | AC13: 0 | AD13: 0 | AE13: 0 | AF13: 0 | AG13: 0 | AH13: 0 | AI13: 0 | AJ13: 0 | AK13: 0 | AL13: 0 | AM13: 0 | AN13: 0 | AO13: 0 | AP13: 0 | AQ13: 0 | AR13: 0 | AS13: 0 | AT13: 0 | AU13: 0 | AV13: 0 | AW13: 0 | AX13: 0 | AY13: 0 | AZ13: 0 | BA13: 0 | BB13: 0 | BC13: 0 | BD13: 0 | BE13: 0 | BF13: 0 | BG13: 0 | BH13: 0 | BI13: 0 | BJ13: 0 | BK13: 0 | BL13: 0 | BM13: 0 | BN13: 0 | BO13: 0 | BP13: 0 | BQ13: 0 | BR13: 0 | BS13: 0 | BT13: 0 | BU13: 0 | BV13: 0 | BW13: 0 | BX13: 0 | BY13: 0 | BZ13: 0 | CA13: 0 | CB13: 0 | CC13: 0 | CD13: 0 | CE13: 0 | CF13: 0 | CG13: 0 | CH13: 0 | CI13: 0 | CJ13: 0 | CK13: 0 | CL13: 0 | CM13: 0 | CN13: 0 | CO13: 0 | CP13: 0 | CQ13: 0 | CR13: 0 | CS13: 0 | CT13: 0 | CU13: 0 | CV13: 0 | CW13: 0 | CX13: 0 | CY13: 0 | CZ13: 0 | DA13: 0 | DB13: 0 | DC13: 0 | DD13: 0 | DE13: 0 | DF13: 0 | DG13: 0 | DH13: 0 | DI13: 0 | DJ13: 0 | DK13: 0 | DL13: 0 | DM13: 0 | DN13: 0 | DO13: 0 | DP13: 0 | DQ13: 0 | DR13: 0 | DS13: 0 | DT13: 0 | DU13: 0 | DV13: 0 | DW13: 0 | DX13: 0 | DY13: 0 | DZ13: 0 | EA13: 0 | EB13: 0 | EC13: 0 | ED13: 0 | EE13: 0 | EF13: 0 | EG13: 0 | EH13: 0 | EI13: 0 | EJ13: 0 | EK13: 0 | EL13: 0 | EM13: 0 | EN13: 0 | EO13: 0 | EP13: 0 | EQ13: 0 | ER13: 0 | ES13: 0 | ET13: 0 | EU13: 0 | EV13: 0 | EW13: 0 | EX13: 0 | EY13: 0 | EZ13: 0 | FA13: 0 | FB13: 0 | FC13: 0 | FD13: 0 | FE13: 0 | FF13: 0 | FG13: 0 | FH13: 0 | FI13: 0 | FJ13: 0 | FK13: 0 | FL13: 0 | FM13: 0 | FN13: 0 | FO13: 0 | FP13: 0 | FQ13: 0 | FR13: 0 | FS13: 0 | FT13: 0 | FU13: 0 | FV13: 0 | FW13: 0 | FX13: 0 | FY13: 0 | FZ13: 0 | GA13: 0 | GB13: 0 | GC13: 0 | GD13: 0 | GE13: 0 | GF13: 0 | GG13: 0 | GH13: 0 | GI13: 0 | GJ13: 0 | GK13: 0 | GL13: 0 | GM13: 0 | GN13: 0 | GO13: 0 | GP13: 0 | GQ13: 0 | GR13: 0 | GS13: 0 | GT13: 0 | GU13: 0 | GV13: 0 | GW13: 0 | GX13: 0 | GY13: 0 | GZ13: 0 | HA13: 0 | HB13: 0 | HC13: 0 | HD13: 0 | HE13: 0 | HF13: 0 | HG13: 0 | HH13: 0 | HI13: 0 | HJ13: 0 | HK13: 0 | HL13: 0 | HM13: 0 | HN13: 0 | HO13: 0 | HP13: 0 | HQ13: 0 | HR13: 0 | HS13: 0 | HT13: 0 | HU13: 0 | HV13: 0 | HW13: 0 | HX13: 0 | HY13: 0 | HZ13: 0 | IA13: 0 | IB13: 0 | IC13: 0 | ID13: 0 | IE13: 0 | IF13: 0 | IG13: 0 | IH13: 0 | II13: 0 | IJ13: 0 | IK13: 0 | IL13: 0 | IM13: 0 | IN13: 0 | IO13: 0 | IP13: 0 | IQ13: 0 | IR13: 0 | IS13: 0 | IT13: 0 | IU13: 0 | IV13: 0 | IW13: 0 | IX13: 0 | IY13: 0 | IZ13: 0 | JA13: 0 | JB13: 0 | JC13: 0 | JD13: 0 | JE13: 0 | JF13: 0 | JG13: 0 | JH13: 0 | JI13: 0 | JJ13: 0 | JK13: 0 | JL13: 0 | JM13: 0 | JN13: 0 | JO13: 0 | JP13: 0 | JQ13: 0 | JR13: 0 | JS13: 0 | JT13: 0 | JU13: 0 | JV13: 0 | JW13: 0 | JX13: 0 | JY13: 0 | JZ13: 0 | KA13: 0 | KB13: 0 | KC13: 0 | KD13: 0 | KE13: 0 | KF13: 0 | KG13: 0 | KH13: 0 | KI13: 0 | KJ13: 0 | KK13: 0 | KL13: 0 | KM13: 0 | KN13: 0 | KO13: 0 | KP13: 0 | KQ13: 0 | KR13: 0 | KS13: 0 | KT13: 0 | KU13: 0 | KV13: 0 | KW13: 0 | KX13: 0 | KY13: 0 | KZ13: 0 | LA13: 0 | LB13: 0 | LC13: 0 | LD13: 0 | LE13: 0 | LF13: 0 | LG13: 0 | LH13: 0 | LI13: 0 | LJ13: 0 | LK13: 0 | LL13: 0 | LM13: 0 | LN13: 0 | LO13: 0 | LP13: 0 | LQ13: 0 | LR13: 0 | LS13: 0 | LT13: 0 | LU13: 0 | LV13: 0 | LW13: 0 | LX13: 0 | LY13: 0 | LZ13: 0 | MA13: 0 | MB13: 0 | MC13: 0 | MD13: 0 | ME13: 0 | MF13: 0 | MG13: 0 | MH13: 0 | MI13: 0 | MJ13: 0 | MK13: 0 | ML13: 0 | MM13: 0 | MN13: 0 | MO13: 0 | MP13: 0 | MQ13: 0 | MR13: 0 | MS13: 0 | MT13: 0 | MU13: 0 | MV13: 0 | MW13: 0 | MX13: 0 | MY13: 0 | MZ13: 0 | NA13: 0 | NB13: 0 | NC13: 0 | ND13: 0 | NE13: 0 | NF13: 0 | NG13: 0 | NH13: 0 | NI13: 0 | NJ13: 0 | NK13: 0 | NL13: 0 | NM13: 0 | NN13: 0 | NO13: 0 | NP13: 0 | NQ13: 0 | NR13: 0 | NS13: 0 | NT13: 0 | NU13: 0 | NV13: 0 | NW13: 0 | NX13: 0 | NY13: 0 | NZ13: 0 | OA13: 0 | OB13: 0 | OC13: 0 | OD13: 0 | OE13: 0 | OF13: 0 | OG13: 0 | OH13: 0 | OI13: 0 | OJ13: 0 | OK13: 0 | OL13: 0 | OM13: 0 | ON13: 0 | OO13: 0 | OP13: 0 | OQ13: 0 | OR13: 0 | OS13: 0 | OT13: 0 | OU13: 0 | OV13: 0 | OW13: 0 | OX13: 0 | OY13: 0 | OZ13: 0 | PA13: 0 | PB13: 0 | PC13: 0 | PD13: 0 | PE13: 0 | PF13: 0 | PG13: 0 | PH13: 0 | PI13: 0 | PJ13: 0 | PK13: 0 | PL13: 0 | PM13: 0 | PN13: 0 | PO13: 0 | PP13: 0 | PQ13: 0 | PR13: 0 | PS13: 0 | PT13: 0 | PU13: 0 | PV13: 0 | PW13: 0 | PX13: 0 | PY13: 0 | PZ13: 0 | QA13: 0 | QB13: 0 | QC13: 0 | QD13: 0 | QE13: 0 | QF13: 0 | QG13: 0 | QH13: 0 | QI13: 0 | QJ13: 0 | QK13: 0 | QL13: 0 | QM13: 0 | QN13: 0 | QO13: 0 | QP13: 0 | QQ13: 0 | QR13: 0 | QS13: 0 | QT13: 0 | QU13: 0
A14: LUCIANO CASTILLO COLONNA | B14: AYABACA | C14: 200201 | D14: 1914 | E14: OLLEROS | F14: I-2 | G14: AYABACA | H14: NINGUN CLAS | I14: AYABACA | J14: AYABACA | K14: SALUD LUCIANO CASTILLO COLONNA | L14: 3 | M14: 0 | N14: 0 | O14: 0 | P14: 0 | Q14: 0 | R14: 0 | S14: 0 | T14: 0 | U14: 0 | V14: 1 | W14: 0 | X14: 0 | Y14: 0 | Z14: 0 | AA14: 2 | AB14: 1 | AC14: 0 | AD14: 0 | AE14: 0 | AF14: 0 | AG14: 0 | AH14: 0 | AI14: 0 | AJ14: 0 | AK14: 0 | AL14: 0 | AM14: 0 | AN14: 0 | AO14: 0 | AP14: 0 | AQ14: 0 | AR14: 1 | AS14: 0 | AT14: 0 | AU14: 0 | AV14: 0 | AW14: 0 | AX14: 0 | AY14: 0 | AZ14: 1 | BA14: 0 | BB14: 0 | BC14: 0 | BD14: 0 | BE14: 0 | BF14: 0 | BG14: 0 | BH14: 0 | BI14: 0 | BJ14: 0 | BK14: 0 | BL14: 0 | BM14: 0 | BN14: 0 | BO14: 0 | BP14: 1 | BQ14: 0 | BR14: 0 | BS14: 0 | BT14: 0 | BU14: 0 | BV14: 0 | BW14: 0 | BX14: 1 | BY14: 0 | BZ14: 0 | CA14: 0 | CB14: 0 | CC14: 0 | CD14: 0 | CE14: 0 | CF14: 0 | CG14: 0 | CH14: 0 | CI14: 0 | CJ14: 0 | CK14: 0 | CL14: 0 | CM14: 0 | CN14: 0 | CO14: 0 | CP14: 0 | CQ14: 0 | CR14: 0 | CS14: 0 | CT14: 0 | CU14: 0 | CV14: 0 | CW14: 0 | CX14: 0 | CY14: 0 | CZ14: 0 | DA14: 0 | DB14: 0 | DC14: 0 | DD14: 0 | DE14: 0 | DF14: 0 | DG14: 0 | DH14: 0 | DI14: 0 | DJ14: 0 | DK14: 0 | DL14: 0 | DM14: 0 | DN14: 0 | DO14: 0 | DP14: 0 | DQ14: 0 | DR14: 0 | DS14: 0 | DT14: 0 | DU14: 0 | DV14: 0 | DW14: 0 | DX14: 0 | DY14: 0 | DZ14: 0 | EA14: 0 | EB14: 0 | EC14: 0 | ED14: 0 | EE14: 0 | EF14: 0 | EG14: 0 | EH14: 0 | EI14: 0 | EJ14: 0 | EK14: 0 | EL14: 0 | EM14: 0 | EN14: 0 | EO14: 0 | EP14: 0 | EQ14: 0 | ER14: 0 | ES14: 0 | ET14: 0 | EU14: 0 | EV14: 1 | EW14: 0 | EX14: 0 | EY14: 0 | EZ14: 1 | FA14: 0 | FB14: 0 | FC14: 0 | FD14: 0 | FE14: 0 | FF14: 0 | FG14: 1 | FH14: 0 | FI14: 0 | FJ14: 0 | FK14: 0 | FL14: 0 | FM14: 0 | FN14: 0 | FO14: 0 | FP14: 0 | FQ14: 0 | FR14: 0 | FS14: 0 | FT14: 0 | FU14: 0 | FV14: 0 | FW14: 0 | FX14: 0 | FY14: 0 | FZ14: 0 | GA14: 0 | GB14: 0 | GC14: 0 | GD14: 0 | GE14: 0 | GF14: 1 | GG14: 0 | GH14: 0 | GI14: 0 | GJ14: 0 | GK14: 0 | GL14: 0 | GM14: 0 | GN14: 0 | GO14: 0 | GP14: 0 | GQ14: 0 | GR14: 0 | GS14: 0 | GT14: 0 | GU14: 0 | GV14: 0 | GW14: 0 | GX14: 0 | GY14: 0 | GZ14: 0 | HA14: 0 | HB14: 0 | HC14: 0 | HD14: 0 | HE14: 0 | HF14: 0 | HG14: 0 | HH14: 0 | HI14: 0 | HJ14: 0 | HK14: 0 | HL14: 0 | HM14: 0 | HN14: 0 | HO14: 0 | HP14: 0 | HQ14: 0 | HR14: 0 | HS14: 0 | HT14: 0 | HU14: 0 | HV14: 0 | HW14: 0 | HX14: 0 | HY14: 0 | HZ14: 0 | IA14: 1 | IB14: 0 | IC14: 0 | ID14: 0 | IE14: 0 | IF14: 0 | IG14: 0 | IH14: 0 | II14: 0 | IJ14: 1 | IK14: 0 | IL14: 0 | IM14: 0 | IN14: 0 | IO14: 0 | IP14: 0 | IQ14: 0 | IR14: 0 | IS14: 0 | IT14: 0 | IU14: 0 | IV14: 0 | IW14: 0 | IX14: 0 | IY14: 0 | IZ14: 0 | JA14: 0 | JB14: 0 | JC14: 0 | JD14: 0 | JE14: 0 | JF14: 0 | JG14: 0 | JH14: 0 | JI14: 0 | JJ14: 0 | JK14: 0 | JL14: 0 | JM14: 14 | JN14: 0 | JO14: 0 | JP14: 0 | JQ14: 0 | JR14: 1 | JS14: 0 | JT14: 0 | JU14: 0 | JV14: 0 | JW14: 0 | JX14: 0 | JY14: 0 | JZ14: 0 | KA14: 0 | KB14: 0 | KC14: 0 | KD14: 0 | KE14: 0 | KF14: 0 | KG14: 0 | KH14: 0 | KI14: 0 | KJ14: 0 | KK14: 0 | KL14: 0 | KM14: 0 | KN14: 0 | KO14: 0 | KP14: 0 | KQ14: 0 | KR14: 0 | KS14: 0 | KT14: 0 | KU14: 0 | KV14: 0 | KW14: 0 | KX14: 0 | KY14: 0 | KZ14: 0 | LA14: 0 | LB14: 0 | LC14: 0 | LD14: 0 | LE14: 0 | LF14: 0 | LG14: 0 | LH14: 0 | LI14: 0 | LJ14: 0 | LK14: 0 | LL14: 0 | LM14: 0 | LN14: 0 | LO14: 0 | LP14: 0 | LQ14: 0 | LR14: 0 | LS14: 0 | LT14: 0 | LU14: 0 | LV14: 1 | LW14: 0 | LX14: 0 | LY14: 0 | LZ14: 0 | MA14: 0 | MB14: 0 | MC14: 0 | MD14: 0 | ME14: 0 | MF14: 0 | MG14: 0 | MH14: 0 | MI14: 0 | MJ14: 0 | MK14: 0 | ML14: 0 | MM14: 0 | MN14: 0 | MO14: 0 | MP14: 0 | MQ14: 0 | MR14: 0 | MS14: 0 | MT14: 0 | MU14: 0 | MV14: 0 | MW14: 0 | MX14: 0 | MY14: 0 | MZ14: 0 | NA14: 0 | NB14: 0 | NC14: 0 | ND14: 0 | NE14: 0 | NF14: 0 | NG14: 0 | NH14: 0 | NI14: 0 | NJ14: 0 | NK14: 0 | NL14: 0 | NM14: 0 | NN14: 0 | NO14: 0 | NP14: 0 | NQ14: 0 | NR14: 0 | NS14: 0 | NT14: 0 | NU14: 0 | NV14: 0 | NW14: 0 | NX14: 0 | NY14: 0 | NZ14: 0 | OA14: 0 | OB14: 0 | OC14: 0 | OD14: 0 | OE14: 0 | OF14: 0 | OG14: 0 | OH14: 0 | OI14: 0 | OJ14: 0 | OK14: 0 | OL14: 0 | OM14: 0 | ON14: 0 | OO14: 0 | OP14: 0 | OQ14: 0 | OR14: 0 | OS14: 0 | OT14: 0 | OU14: 0 | OV14: 0 | OW14: 0 | OX14: 0 | OY14: 0 | OZ14: 0 | PA14: 0 | PB14: 0 | PC14: 0 | PD14: 0 | PE14: 0 | PF14: 0 | PG14: 0 | PH14: 0 | PI14: 0 | PJ14: 0 | PK14: 0 | PL14: 0 | PM14: 0 | PN14: 0 | PO14: 0 | PP14: 0 | PQ14: 0 | PR14: 0 | PS14: 0 | PT14: 0 | PU14: 0 | PV14: 0 | PW14: 0 | PX14: 0 | PY14: 0 | PZ14: 0 | QA14: 0 | QB14: 0 | QC14: 0 | QD14: 0 | QE14: 0 | QF14: 0 | QG14: 0 | QH14: 0 | QI14: 0 | QJ14: 0 | QK14: 0 | QL14: 0 | QM14: 0 | QN14: 0 | QO14: 0 | QP14: 0 | QQ14: 0 | QR14: 0 | QS14: 0 | QT14: 0 | QU14: 1
A15: LUCIANO CASTILLO COLONNA | B15: AYABACA | C15: 200201 | D15: 1914 | E15: OLLEROS | F15: I-2 | G15: AYABACA | H15: NINGUN CLAS | I15: AYABACA | J15: AYABACA | K15: SALUD LUCIANO CASTILLO COLONNA | L15: 2 | M15: 0 | N15: 0 | O15: 0 | P15: 0 | Q15: 0 | R15: 0 | S15: 1 | T15: 0 | U15: 0 | V15: 1 | W15: 0 | X15: 0 | Y15: 0 | Z15: 4 | AA15: 17 | AB15: 7 | AC15: 0 | AD15: 0 | AE15: 2 | AF15: 0 | AG15: 0 | AH15: 0 | AI15: 0 | AJ15: 0 | AK15: 0 | AL15: 0 | AM15: 0 | AN15: 0 | AO15: 0 | AP15: 0 | AQ15: 1 | AR15: 1 | AS15: 0 | AT15: 0 | AU15: 2 | AV15: 0 | AW15: 0 | AX15: 3 | AY15: 1 | AZ15: 1 | BA15: 0 | BB15: 0 | BC15: 0 | BD15: 0 | BE15: 0 | BF15: 0 | BG15: 0 | BH15: 0 | BI15: 0 | BJ15: 0 | BK15: 0 | BL15: 0 | BM15: 0 | BN15: 0 | BO15: 4 | BP15: 2 | BQ15: 0 | BR15: 0 | BS15: 0 | BT15: 0 | BU15: 0 | BV15: 0 | BW15: 5 | BX15: 2 | BY15: 0 | BZ15: 0 | CA15: 0 | CB15: 0 | CC15: 0 | CD15: 0 | CE15: 0 | CF15: 0 | CG15: 0 | CH15: 0 | CI15: 0 | CJ15: 0 | CK15: 0 | CL15: 0 | CM15: 0 | CN15: 0 | CO15: 0 | CP15: 0 | CQ15: 0 | CR15: 0 | CS15: 0 | CT15: 0 | CU15: 0 | CV15: 0 | CW15: 0 | CX15: 0 | CY15: 0 | CZ15: 0 | DA15: 0 | DB15: 0 | DC15: 0 | DD15: 0 | DE15: 0 | DF15: 0 | DG15: 0 | DH15: 0 | DI15: 0 | DJ15: 0 | DK15: 0 | DL15: 0 | DM15: 0 | DN15: 0 | DO15: 0 | DP15: 0 | DQ15: 0 | DR15: 0 | DS15: 0 | DT15: 0 | DU15: 0 | DV15: 0 | DW15: 0 | DX15: 0 | DY15: 0 | DZ15: 0 | EA15: 0 | EB15: 0 | EC15: 0 | ED15: 0 | EE15: 0 | EF15: 0 | EG15: 0 | EH15: 0 | EI15: 0 | EJ15: 0 | EK15: 0 | EL15: 0 | EM15: 0 | EN15: 0 | EO15: 0 | EP15: 0 | EQ15: 0 | ER15: 0 | ES15: 0 | ET15: 0 | EU15: 1 | EV15: 1 | EW15: 0 | EX15: 0 | EY15: 1 | EZ15: 1 | FA15: 0 | FB15: 2 | FC15: 2 | FD15: 1 | FE15: 0 | FF15: 0 | FG15: 2 | FH15: 0 | FI15: 0 | FJ15: 0 | FK15: 4 | FL15: 0 | FM15: 0 | FN15: 0 | FO15: 0 | FP15: 0 | FQ15: 0 | FR15: 0 | FS15: 0 | FT15: 0 | FU15: 0 | FV15: 0 | FW15: 0 | FX15: 0 | FY15: 0 | FZ15: 0 | GA15: 0 | GB15: 0 | GC15: 0 | GD15: 0 | GE15: 0 | GF15: 0 | GG15: 0 | GH15: 0 | GI15: 0 | GJ15: 0 | GK15: 0 | GL15: 0 | GM15: 0 | GN15: 0 | GO15: 0 | GP15: 0 | GQ15: 0 | GR15: 0 | GS15: 0 | GT15: 0 | GU15: 0 | GV15: 0 | GW15: 0 | GX15: 0 | GY15: 0 | GZ15: 0 | HA15: 0 | HB15: 0 | HC15: 0 | HD15: 0 | HE15: 0 | HF15: 0 | HG15: 0 | HH15: 0 | HI15: 0 | HJ15: 0 | HK15: 0 | HL15: 0 | HM15: 0 | HN15: 0 | HO15: 0 | HP15: 0 | HQ15: 0 | HR15: 0 | HS15: 0 | HT15: 0 | HU15: 0 | HV15: 0 | HW15: 1 | HX15: 2 | HY15: 0 | HZ15: 0 | IA15: 2 | IB15: 0 | IC15: 0 | ID15: 0 | IE15: 4 | IF15: 0 | IG15: 0 | IH15: 0 | II15: 0 | IJ15: 1 | IK15: 0 | IL15: 0 | IM15: 1 | IN15: 1 | IO15: 0 | IP15: 0 | IQ15: 0 | IR15: 0 | IS15: 0 | IT15: 0 | IU15: 0 | IV15: 0 | IW15: 0 | IX15: 0 | IY15: 0 | IZ15: 0 | JA15: 0 | JB15: 0 | JC15: 2 | JD15: 0 | JE15: 0 | JF15: 0 | JG15: 2 | JH15: 0 | JI15: 0 | JJ15: 0 | JK15: 0 | JL15: 0 | JM15: 15 | JN15: 0 | JO15: 0 | JP15: 0 | JQ15: 1 | JR15: 1 | JS15: 0 | JT15: 0 | JU15: 0 | JV15: 0 | JW15: 0 | JX15: 0 | JY15: 0 | JZ15: 0 | KA15: 0 | KB15: 0 | KC15: 0 | KD15: 0 | KE15: 0 | KF15: 0 | KG15: 0 | KH15: 0 | KI15: 0 | KJ15: 0 | KK15: 3 | KL15: 0 | KM15: 0 | KN15: 0 | KO15: 0 | KP15: 0 | KQ15: 0 | KR15: 0 | KS15: 0 | KT15: 0 | KU15: 0 | KV15: 0 | KW15: 0 | KX15: 0 | KY15: 0 | KZ15: 0 | LA15: 0 | LB15: 0 | LC15: 0 | LD15: 0 | LE15: 0 | LF15: 0 | LG15: 0 | LH15: 0 | LI15: 0 | LJ15: 0 | LK15: 0 | LL15: 0 | LM15: 3 | LN15: 0 | LO15: 0 | LP15: 0 | LQ15: 0 | LR15: 0 | LS15: 0 | LT15: 0 | LU15: 1 | LV15: 1 | LW15: 0 | LX15: 0 | LY15: 0 | LZ15: 0 | MA15: 0 | MB15: 0 | MC15: 0 | MD15: 0 | ME15: 0 | MF15: 0 | MG15: 0 | MH15: 0 | MI15: 0 | MJ15: 0 | MK15: 0 | ML15: 0 | MM15: 0 | MN15: 0 | MO15: 0 | MP15: 0 | MQ15: 0 | MR15: 0 | MS15: 0 | MT15: 0 | MU15: 0 | MV15: 0 | MW15: 0 | MX15: 0 | MY15: 0 | MZ15: 0 | NA15: 0 | NB15: 0 | NC15: 0 | ND15: 0 | NE15: 0 | NF15: 0 | NG15: 0 | NH15: 0 | NI15: 0 | NJ15: 0 | NK15: 0 | NL15: 0 | NM15: 0 | NN15: 0 | NO15: 0 | NP15: 0 | NQ15: 0 | NR15: 0 | NS15: 0 | NT15: 0 | NU15: 0 | NV15: 0 | NW15: 0 | NX15: 0 | NY15: 0 | NZ15: 0 | OA15: 0 | OB15: 0 | OC15: 0 | OD15: 0 | OE15: 0 | OF15: 0 | OG15: 0 | OH15: 0 | OI15: 0 | OJ15: 0 | OK15: 0 | OL15: 0 | OM15: 0 | ON15: 0 | OO15: 0 | OP15: 0 | OQ15: 0 | OR15: 0 | OS15: 0 | OT15: 0 | OU15: 0 | OV15: 0 | OW15: 0 | OX15: 0 | OY15: 0 | OZ15: 0 | PA15: 0 | PB15: 0 | PC15: 0 | PD15: 0 | PE15: 0 | PF15: 0 | PG15: 0 | PH15: 0 | PI15: 0 | PJ15: 0 | PK15: 0 | PL15: 0 | PM15: 2 | PN15: 0 | PO15: 0 | PP15: 0 | PQ15: 0 | PR15: 0 | PS15: 0 | PT15: 0 | PU15: 1 | PV15: 0 | PW15: 0 | PX15: 0 | PY15: 0 | PZ15: 0 | QA15: 0 | QB15: 0 | QC15: 0 | QD15: 0 | QE15: 0 | QF15: 0 | QG15: 0 | QH15: 0 | QI15: 0 | QJ15: 0 | QK15: 0 | QL15: 0 | QM15: 0 | QN15: 0 | QO15: 0 | QP15: 0 | QQ15: 0 | QR15: 0 | QS15: 0 | QT15: 1 | QU15: 1
A16: LUCIANO CASTILLO COLONNA | B16: AYABACA | C16: 200201 | D16: 1914 | E16: OLLEROS | F16: I-2 | G16: AYABACA | H16: NINGUN CLAS | I16: AYABACA | J16: AYABACA | K16: SALUD LUCIANO CASTILLO COLONNA | L16: 1 | M16: 0 | N16: 0 | O16: 0 | P16: 0 | Q16: 1 | R16: 0 | S16: 1 | T16: 0 | U16: 0 | V16: 2 | W16: 0 | X16: 0 | Y16: 0 | Z16: 5 | AA16: 22 | AB16: 6 | AC16: 0 | AD16: 0 | AE16: 2 | AF16: 0 | AG16: 0 | AH16: 0 | AI16: 0 | AJ16: 0 | AK16: 0 | AL16: 0 | AM16: 0 | AN16: 0 | AO16: 0 | AP16: 1 | AQ16: 2 | AR16: 2 | AS16: 0 | AT16: 0 | AU16: 0 | AV16: 0 | AW16: 0 | AX16: 1 | AY16: 2 | AZ16: 1 | BA16: 0 | BB16: 0 | BC16: 0 | BD16: 0 | BE16: 0 | BF16: 0 | BG16: 0 | BH16: 0 | BI16: 0 | BJ16: 0 | BK16: 0 | BL16: 0 | BM16: 0 | BN16: 1 | BO16: 4 | BP16: 2 | BQ16: 0 | BR16: 0 | BS16: 0 | BT16: 0 | BU16: 0 | BV16: 1 | BW16: 9 | BX16: 2 | BY16: 0 | BZ16: 0 | CA16: 0 | CB16: 0 | CC16: 0 | CD16: 0 | CE16: 0 | CF16: 0 | CG16: 0 | CH16: 0 | CI16: 0 | CJ16: 0 | CK16: 0 | CL16: 0 | CM16: 0 | CN16: 0 | CO16: 0 | CP16: 0 | CQ16: 0 | CR16: 0 | CS16: 0 | CT16: 0 | CU16: 0 | CV16: 0 | CW16: 0 | CX16: 0 | CY16: 0 | CZ16: 0 | DA16: 0 | DB16: 0 | DC16: 0 | DD16: 0 | DE16: 0 | DF16: 0 | DG16: 0 | DH16: 0 | DI16: 0 | DJ16: 0 | DK16: 0 | DL16: 0 | DM16: 0 | DN16: 0 | DO16: 0 | DP16: 0 | DQ16: 0 | DR16: 0 | DS16: 0 | DT16: 0 | DU16: 0 | DV16: 1 | DW16: 1 | DX16: 0 | DY16: 0 | DZ16: 0 | EA16: 0 | EB16: 0 | EC16: 0 | ED16: 0 | EE16: 0 | EF16: 0 | EG16: 0 | EH16: 0 | EI16: 0 | EJ16: 0 | EK16: 0 | EL16: 0 | EM16: 0 | EN16: 0 | EO16: 0 | EP16: 0 | EQ16: 0 | ER16: 0 | ES16: 0 | ET16: 1 | EU16: 2 | EV16: 2 | EW16: 0 | EX16: 1 | EY16: 2 | EZ16: 2 | FA16: 0 | FB16: 1 | FC16: 1 | FD16: 1 | FE16: 0 | FF16: 0 | FG16: 3 | FH16: 0 | FI16: 0 | FJ16: 0 | FK16: 3 | FL16: 0 | FM16: 0 | FN16: 0 | FO16: 0 | FP16: 0 | FQ16: 0 | FR16: 0 | FS16: 0 | FT16: 0 | FU16: 0 | FV16: 0 | FW16: 0 | FX16: 0 | FY16: 0 | FZ16: 0 | GA16: 1 | GB16: 1 | GC16: 0 | GD16: 1 | GE16: 1 | GF16: 1 | GG16: 0 | GH16: 0 | GI16: 0 | GJ16: 0 | GK16: 0 | GL16: 0 | GM16: 0 | GN16: 0 | GO16: 0 | GP16: 0 | GQ16: 0 | GR16: 0 | GS16: 0 | GT16: 0 | GU16: 0 | GV16: 0 | GW16: 0 | GX16: 0 | GY16: 0 | GZ16: 0 | HA16: 0 | HB16: 0 | HC16: 0 | HD16: 0 | HE16: 0 | HF16: 0 | HG16: 0 | HH16: 0 | HI16: 0 | HJ16: 0 | HK16: 0 | HL16: 0 | HM16: 0 | HN16: 0 | HO16: 0 | HP16: 0 | HQ16: 0 | HR16: 0 | HS16: 0 | HT16: 0 | HU16: 0 | HV16: 3 | HW16: 4 | HX16: 0 | HY16: 0 | HZ16: 0 | IA16: 3 | IB16: 0 | IC16: 0 | ID16: 0 | IE16: 3 | IF16: 0 | IG16: 0 | IH16: 0 | II16: 1 | IJ16: 1 | IK16: 0 | IL16: 1 | IM16: 0 | IN16: 1 | IO16: 0 | IP16: 0 | IQ16: 0 | IR16: 0 | IS16: 0 | IT16: 0 | IU16: 0 | IV16: 0 | IW16: 0 | IX16: 0 | IY16: 0 | IZ16: 0 | JA16: 0 | JB16: 0 | JC16: 1 | JD16: 0 | JE16: 0 | JF16: 0 | JG16: 2 | JH16: 0 | JI16: 0 | JJ16: 0 | JK16: 0 | JL16: 0 | JM16: 15 | JN16: 0 | JO16: 0 | JP16: 0 | JQ16: 1 | JR16: 1 | JS16: 0 | JT16: 1 | JU16: 1 | JV16: 0 | JW16: 0 | JX16: 0 | JY16: 0 | JZ16: 0 | KA16: 0 | KB16: 0 | KC16: 0 | KD16: 0 | KE16: 0 | KF16: 0 | KG16: 0 | KH16: 0 | KI16: 0 | KJ16: 0 | KK16: 2 | KL16: 0 | KM16: 0 | KN16: 0 | KO16: 0 | KP16: 0 | KQ16: 0 | KR16: 0 | KS16: 1 | KT16: 2 | KU16: 0 | KV16: 1 | KW16: 1 | KX16: 0 | KY16: 0 | KZ16: 0 | LA16: 0 | LB16: 0 | LC16: 0 | LD16: 0 | LE16: 0 | LF16: 0 | LG16: 0 | LH16: 0 | LI16: 0 | LJ16: 0 | LK16: 0 | LL16: 0 | LM16: 2 | LN16: 0 | LO16: 0 | LP16: 0 | LQ16: 0 | LR16: 0 | LS16: 0 | LT16: 0 | LU16: 1 | LV16: 2 | LW16: 0 | LX16: 1 | LY16: 1 | LZ16: 0 | MA16: 0 | MB16: 0 | MC16: 0 | MD16: 0 | ME16: 0 | MF16: 0 | MG16: 0 | MH16: 0 | MI16: 0 | MJ16: 0 | MK16: 0 | ML16: 0 | MM16: 0 | MN16: 0 | MO16: 0 | MP16: 0 | MQ16: 0 | MR16: 0 | MS16: 0 | MT16: 0 | MU16: 0 | MV16: 0 | MW16: 0 | MX16: 0 | MY16: 0 | MZ16: 0 | NA16: 0 | NB16: 0 | NC16: 0 | ND16: 0 | NE16: 0 | NF16: 0 | NG16: 0 | NH16: 0 | NI16: 0 | NJ16: 0 | NK16: 0 | NL16: 0 | NM16: 0 | NN16: 0 | NO16: 0 | NP16: 0 | NQ16: 0 | NR16: 0 | NS16: 0 | NT16: 0 | NU16: 0 | NV16: 0 | NW16: 0 | NX16: 0 | NY16: 0 | NZ16: 0 | OA16: 0 | OB16: 0 | OC16: 0 | OD16: 0 | OE16: 0 | OF16: 0 | OG16: 0 | OH16: 0 | OI16: 0 | OJ16: 0 | OK16: 0 | OL16: 0 | OM16: 0 | ON16: 0 | OO16: 0 | OP16: 0 | OQ16: 0 | OR16: 0 | OS16: 0 | OT16: 0 | OU16: 0 | OV16: 0 | OW16: 0 | OX16: 0 | OY16: 0 | OZ16: 0 | PA16: 0 | PB16: 0 | PC16: 0 | PD16: 0 | PE16: 0 | PF16: 0 | PG16: 0 | PH16: 0 | PI16: 0 | PJ16: 0 | PK16: 0 | PL16: 0 | PM16: 1 | PN16: 0 | PO16: 0 | PP16: 0 | PQ16: 0 | PR16: 0 | PS16: 0 | PT16: 0 | PU16: 1 | PV16: 0 | PW16: 0 | PX16: 0 | PY16: 0 | PZ16: 0 | QA16: 0 | QB16: 0 | QC16: 0 | QD16: 0 | QE16: 0 | QF16: 0 | QG16: 0 | QH16: 0 | QI16: 0 | QJ16: 0 | QK16: 0 | QL16: 0 | QM16: 0 | QN16: 0 | QO16: 0 | QP16: 0 | QQ16: 0 | QR16: 0 | QS16: 1 | QT16: 1 | QU16: 1
A17: LUCIANO CASTILLO COLONNA | B17: AYABACA | C17: 200201 | D17: 1915 | E17: ARAGOTO | F17: I-2 | G17: AYABACA | H17: NINGUN CLAS | I17: AYABACA | J17: AYABACA | K17: SALUD LUCIANO CASTILLO COLONNA | L17: 3 | M17: 0 | N17: 0 | O17: 0 | P17: 0 | Q17: 0 | R17: 0 | S17: 0 | T17: 2 | U17: 0 | V17: 1 | W17: 0 | X17: 0 | Y17: 0 | Z17: 0 | AA17: 6 | AB17: 2 | AC17: 0 | AD17: 0 | AE17: 0 | AF17: 0 | AG17: 0 | AH17: 0 | AI17: 0 | AJ17: 0 | AK17: 0 | AL17: 0 | AM17: 0 | AN17: 0 | AO17: 0 | AP17: 0 | AQ17: 2 | AR17: 1 | AS17: 0 | AT17: 0 | AU17: 0 | AV17: 0 | AW17: 0 | AX17: 0 | AY17: 2 | AZ17: 1 | BA17: 0 | BB17: 0 | BC17: 0 | BD17: 0 | BE17: 0 | BF17: 0 | BG17: 0 | BH17: 0 | BI17: 0 | BJ17: 0 | BK17: 0 | BL17: 0 | BM17: 0 | BN17: 0 | BO17: 4 | BP17: 2 | BQ17: 0 | BR17: 0 | BS17: 1 | BT17: 0 | BU17: 0 | BV17: 0 | BW17: 2 | BX17: 1 | BY17: 0 | BZ17: 0 | CA17: 0 | CB17: 0 | CC17: 0 | CD17: 0 | CE17: 0 | CF17: 0 | CG17: 0 | CH17: 0 | CI17: 0 | CJ17: 0 | CK17: 0 | CL17: 0 | CM17: 0 | CN17: 0 | CO17: 0 | CP17: 0 | CQ17: 0 | CR17: 0 | CS17: 0 | CT17: 0 | CU17: 0 | CV17: 0 | CW17: 0 | CX17: 0 | CY17: 0 | CZ17: 0 | DA17: 0 | DB17: 0 | DC17: 0 | DD17: 0 | DE17: 0 | DF17: 0 | DG17: 0 | DH17: 0 | DI17: 0 | DJ17: 0 | DK17: 0 | DL17: 0 | DM17: 0 | DN17: 0 | DO17: 0 | DP17: 0 | DQ17: 0 | DR17: 0 | DS17: 0 | DT17: 0 | DU17: 0 | DV17: 0 | DW17: 0 | DX17: 0 | DY17: 0 | DZ17: 0 | EA17: 0 | EB17: 0 | EC17: 0 | ED17: 0 | EE17: 0 | EF17: 0 | EG17: 0 | EH17: 0 | EI17: 0 | EJ17: 0 | EK17: 0 | EL17: 0 | EM17: 0 | EN17: 0 | EO17: 0 | EP17: 0 | EQ17: 0 | ER17: 0 | ES17: 0 | ET17: 0 | EU17: 2 | EV17: 1 | EW17: 0 | EX17: 0 | EY17: 2 | EZ17: 1 | FA17: 0 | FB17: 0 | FC17: 0 | FD17: 0 | FE17: 0 | FF17: 0 | FG17: 0 | FH17: 1 | FI17: 0 | FJ17: 0 | FK17: 1 | FL17: 0 | FM17: 0 | FN17: 0 | FO17: 0 | FP17: 0 | FQ17: 0 | FR17: 0 | FS17: 0 | FT17: 0 | FU17: 0 | FV17: 0 | FW17: 0 | FX17: 0 | FY17: 0 | FZ17: 0 | GA17: 0 | GB17: 0 | GC17: 0 | GD17: 0 | GE17: 0 | GF17: 0 | GG17: 0 | GH17: 0 | GI17: 0 | GJ17: 0 | GK17: 0 | GL17: 0 | GM17: 0 | GN17: 0 | GO17: 0 | GP17: 0 | GQ17: 0 | GR17: 0 | GS17: 0 | GT17: 0 | GU17: 0 | GV17: 0 | GW17: 0 | GX17: 0 | GY17: 0 | GZ17: 0 | HA17: 0 | HB17: 0 | HC17: 0 | HD17: 0 | HE17: 0 | HF17: 0 | HG17: 0 | HH17: 0 | HI17: 0 | HJ17: 0 | HK17: 0 | HL17: 0 | HM17: 0 | HN17: 0 | HO17: 0 | HP17: 0 | HQ17: 0 | HR17: 0 | HS17: 0 | HT17: 0 | HU17: 0 | HV17: 0 | HW17: 2 | HX17: 0 | HY17: 0 | HZ17: 0 | IA17: 0 | IB17: 0 | IC17: 0 | ID17: 0 | IE17: 1 | IF17: 0 | IG17: 0 | IH17: 0 | II17: 0 | IJ17: 1 | IK17: 0 | IL17: 0 | IM17: 0 | IN17: 0 | IO17: 0 | IP17: 0 | IQ17: 1 | IR17: 0 | IS17: 0 | IT17: 0 | IU17: 0 | IV17: 0 | IW17: 0 | IX17: 0 | IY17: 0 | IZ17: 0 | JA17: 0 | JB17: 0 | JC17: 1 | JD17: 0 | JE17: 0 | JF17: 0 | JG17: 0 | JH17: 0 | JI17: 0 | JJ17: 0 | JK17: 0 | JL17: 0 | JM17: 1 | JN17: 1 | JO17: 0 | JP17: 0 | JQ17: 0 | JR17: 0 | JS17: 0 | JT17: 0 | JU17: 1 | JV17: 0 | JW17: 0 | JX17: 0 | JY17: 0 | JZ17: 0 | KA17: 0 | KB17: 0 | KC17: 0 | KD17: 0 | KE17: 0 | KF17: 0 | KG17: 0 | KH17: 0 | KI17: 0 | KJ17: 0 | KK17: 0 | KL17: 0 | KM17: 0 | KN17: 0 | KO17: 0 | KP17: 0 | KQ17: 0 | KR17: 0 | KS17: 0 | KT17: 0 | KU17: 0 | KV17: 0 | KW17: 1 | KX17: 0 | KY17: 0 | KZ17: 0 | LA17: 0 | LB17: 0 | LC17: 0 | LD17: 0 | LE17: 0 | LF17: 0 | LG17: 0 | LH17: 0 | LI17: 0 | LJ17: 0 | LK17: 0 | LL17: 0 | LM17: 0 | LN17: 0 | LO17: 0 | LP17: 0 | LQ17: 0 | LR17: 0 | LS17: 0 | LT17: 0 | LU17: 0 | LV17: 0 | LW17: 0 | LX17: 0 | LY17: 1 | LZ17: 0 | MA17: 0 | MB17: 0 | MC17: 0 | MD17: 0 | ME17: 0 | MF17: 0 | MG17: 0 | MH17: 0 | MI17: 0 | MJ17: 0 | MK17: 0 | ML17: 1 | MM17: 0 | MN17: 0 | MO17: 1 | MP17: 0 | MQ17: 0 | MR17: 0 | MS17: 0 | MT17: 0 | MU17: 0 | MV17: 0 | MW17: 0 | MX17: 0 | MY17: 0 | MZ17: 0 | NA17: 0 | NB17: 0 | NC17: 0 | ND17: 0 | NE17: 0 | NF17: 0 | NG17: 0 | NH17: 0 | NI17: 0 | NJ17: 0 | NK17: 0 | NL17: 0 | NM17: 0 | NN17: 0 | NO17: 0 | NP17: 0 | NQ17: 0 | NR17: 0 | NS17: 0 | NT17: 0 | NU17: 0 | NV17: 0 | NW17: 0 | NX17: 0 | NY17: 0 | NZ17: 0 | OA17: 0 | OB17: 0 | OC17: 0 | OD17: 1 | OE17: 0 | OF17: 0 | OG17: 1 | OH17: 0 | OI17: 0 | OJ17: 0 | OK17: 0 | OL17: 0 | OM17: 0 | ON17: 0 | OO17: 0 | OP17: 0 | OQ17: 0 | OR17: 0 | OS17: 0 | OT17: 0 | OU17: 0 | OV17: 0 | OW17: 0 | OX17: 0 | OY17: 0 | OZ17: 0 | PA17: 0 | PB17: 0 | PC17: 0 | PD17: 0 | PE17: 0 | PF17: 0 | PG17: 0 | PH17: 0 | PI17: 0 | PJ17: 0 | PK17: 0 | PL17: 0 | PM17: 0 | PN17: 0 | PO17: 0 | PP17: 0 | PQ17: 0 | PR17: 0 | PS17: 0 | PT17: 0 | PU17: 0 | PV17: 0 | PW17: 0 | PX17: 0 | PY17: 0 | PZ17: 0 | QA17: 0 | QB17: 0 | QC17: 0 | QD17: 0 | QE17: 0 | QF17: 0 | QG17: 0 | QH17: 0 | QI17: 0 | QJ17: 0 | QK17: 0 | QL17: 0 | QM17: 0 | QN17: 0 | QO17: 0 | QP17: 0 | QQ17: 0 | QR17: 0 | QS17: 0 | QT17: 2 | QU17: 1
A18: LUCIANO CASTILLO COLONNA | B18: AYABACA | C18: 200201 | D18: 1915 | E18: ARAGOTO | F18: I-2 | G18: AYABACA | H18: NINGUN CLAS | I18: AYABACA | J18: AYABACA | K18: SALUD LUCIANO CASTILLO COLONNA | L18: 2 | M18: 0 | N18: 0 | O18: 0 | P18: 0 | Q18: 0 | R18: 0 | S18: 0 | T18: 0 | U18: 0 | V18: 0 | W18: 0 | X18: 0 | Y18: 0 | Z18: 0 | AA18: 3 | AB18: 1 | AC18: 0 | AD18: 0 | AE18: 0 | AF18: 0 | AG18: 0 | AH18: 0 | AI18: 0 | AJ18: 0 | AK18: 0 | AL18: 0 | AM18: 0 | AN18: 0 | AO18: 0 | AP18: 0 | AQ18: 0 | AR18: 0 | AS18: 0 | AT18: 0 | AU18: 0 | AV18: 0 | AW18: 0 | AX18: 0 | AY18: 0 | AZ18: 0 | BA18: 0 | BB18: 0 | BC18: 0 | BD18: 0 | BE18: 0 | BF18: 0 | BG18: 0 | BH18: 0 | BI18: 0 | BJ18: 0 | BK18: 0 | BL18: 0 | BM18: 0 | BN18: 0 | BO18: 3 | BP18: 1 | BQ18: 0 | BR18: 0 | BS18: 0 | BT18: 0 | BU18: 0 | BV18: 0 | BW18: 2 | BX18: 1 | BY18: 0 | BZ18: 0 | CA18: 0 | CB18: 0 | CC18: 0 | CD18: 0 | CE18: 0 | CF18: 0 | CG18: 0 | CH18: 0 | CI18: 0 | CJ18: 0 | CK18: 0 | CL18: 0 | CM18: 0 | CN18: 0 | CO18: 0 | CP18: 0 | CQ18: 0 | CR18: 0 | CS18: 0 | CT18: 0 | CU18: 0 | CV18: 0 | CW18: 0 | CX18: 0 | CY18: 0 | CZ18: 0 | DA18: 0 | DB18: 0 | DC18: 0 | DD18: 0 | DE18: 0 | DF18: 0 | DG18: 0 | DH18: 0 | DI18: 0 | DJ18: 0 | DK18: 0 | DL18: 0 | DM18: 0 | DN18: 0 | DO18: 0 | DP18: 0 | DQ18: 0 | DR18: 0 | DS18: 0 | DT18: 0 | DU18: 0 | DV18: 0 | DW18: 0 | DX18: 0 | DY18: 0 | DZ18: 0 | EA18: 0 | EB18: 0 | EC18: 0 | ED18: 0 | EE18: 0 | EF18: 0 | EG18: 0 | EH18: 0 | EI18: 0 | EJ18: 0 | EK18: 0 | EL18: 0 | EM18: 0 | EN18: 0 | EO18: 0 | EP18: 0 | EQ18: 0 | ER18: 0 | ES18: 0 | ET18: 0 | EU18: 0 | EV18: 0 | EW18: 0 | EX18: 0 | EY18: 0 | EZ18: 0 | FA18: 0 | FB18: 0 | FC18: 1 | FD18: 0 | FE18: 0 | FF18: 0 | FG18: 1 | FH18: 0 | FI18: 0 | FJ18: 0 | FK18: 1 | FL18: 1 | FM18: 0 | FN18: 0 | FO18: 0 | FP18: 0 | FQ18: 0 | FR18: 0 | FS18: 0 | FT18: 0 | FU18: 0 | FV18: 0 | FW18: 0 | FX18: 0 | FY18: 0 | FZ18: 0 | GA18: 0 | GB18: 0 | GC18: 0 | GD18: 0 | GE18: 0 | GF18: 0 | GG18: 0 | GH18: 0 | GI18: 0 | GJ18: 0 | GK18: 0 | GL18: 0 | GM18: 0 | GN18: 0 | GO18: 0 | GP18: 0 | GQ18: 0 | GR18: 0 | GS18: 0 | GT18: 0 | GU18: 0 | GV18: 0 | GW18: 0 | GX18: 0 | GY18: 0 | GZ18: 0 | HA18: 0 | HB18: 0 | HC18: 0 | HD18: 0 | HE18: 0 | HF18: 0 | HG18: 0 | HH18: 0 | HI18: 0 | HJ18: 0 | HK18: 0 | HL18: 0 | HM18: 0 | HN18: 0 | HO18: 0 | HP18: 0 | HQ18: 0 | HR18: 0 | HS18: 0 | HT18: 0 | HU18: 0 | HV18: 0 | HW18: 1 | HX18: 0 | HY18: 0 | HZ18: 0 | IA18: 1 | IB18: 0 | IC18: 0 | ID18: 0 | IE18: 1 | IF18: 1 | IG18: 0 | IH18: 0 | II18: 0 | IJ18: 0 | IK18: 0 | IL18: 0 | IM18: 0 | IN18: 0 | IO18: 0 | IP18: 0 | IQ18: 0 | IR18: 0 | IS18: 0 | IT18: 0 | IU18: 0 | IV18: 0 | IW18: 0 | IX18: 0 | IY18: 0 | IZ18: 0 | JA18: 0 | JB18: 0 | JC18: 1 | JD18: 1 | JE18: 0 | JF18: 1 | JG18: 0 | JH18: 1 | JI18: 0 | JJ18: 0 | JK18: 0 | JL18: 0 | JM18: 1 | JN18: 4 | JO18: 0 | JP18: 0 | JQ18: 0 | JR18: 0 | JS18: 0 | JT18: 0 | JU18: 0 | JV18: 0 | JW18: 0 | JX18: 0 | JY18: 0 | JZ18: 0 | KA18: 0 | KB18: 0 | KC18: 0 | KD18: 0 | KE18: 0 | KF18: 0 | KG18: 0 | KH18: 0 | KI18: 0 | KJ18: 0 | KK18: 0 | KL18: 0 | KM18: 0 | KN18: 0 | KO18: 0 | KP18: 0 | KQ18: 0 | KR18: 0 | KS18: 0 | KT18: 0 | KU18: 0 | KV18: 0 | KW18: 0 | KX18: 0 | KY18: 0 | KZ18: 0 | LA18: 0 | LB18: 0 | LC18: 0 | LD18: 0 | LE18: 0 | LF18: 0 | LG18: 0 | LH18: 0 | LI18: 0 | LJ18: 0 | LK18: 0 | LL18: 0 | LM18: 0 | LN18: 0 | LO18: 0 | LP18: 0 | LQ18: 0 | LR18: 0 | LS18: 0 | LT18: 0 | LU18: 0 | LV18: 0 | LW18: 0 | LX18: 0 | LY18: 0 | LZ18: 0 | MA18: 0 | MB18: 0 | MC18: 0 | MD18: 0 | ME18: 0 | MF18: 0 | MG18: 0 | MH18: 0 | MI18: 0 | MJ18: 0 | MK18: 0 | ML18: 0 | MM18: 0 | MN18: 0 | MO18: 0 | MP18: 0 | MQ18: 0 | MR18: 0 | MS18: 0 | MT18: 0 | MU18: 0 | MV18: 0 | MW18: 0 | MX18: 0 | MY18: 0 | MZ18: 0 | NA18: 0 | NB18: 0 | NC18: 0 | ND18: 0 | NE18: 0 | NF18: 0 | NG18: 0 | NH18: 0 | NI18: 0 | NJ18: 0 | NK18: 0 | NL18: 0 | NM18: 0 | NN18: 0 | NO18: 0 | NP18: 0 | NQ18: 0 | NR18: 0 | NS18: 0 | NT18: 0 | NU18: 0 | NV18: 0 | NW18: 0 | NX18: 0 | NY18: 0 | NZ18: 0 | OA18: 0 | OB18: 0 | OC18: 0 | OD18: 0 | OE18: 0 | OF18: 0 | OG18: 0 | OH18: 0 | OI18: 0 | OJ18: 0 | OK18: 0 | OL18: 0 | OM18: 0 | ON18: 0 | OO18: 0 | OP18: 0 | OQ18: 0 | OR18: 0 | OS18: 0 | OT18: 0 | OU18: 0 | OV18: 0 | OW18: 0 | OX18: 0 | OY18: 0 | OZ18: 0 | PA18: 0 | PB18: 0 | PC18: 0 | PD18: 0 | PE18: 0 | PF18: 0 | PG18: 0 | PH18: 0 | PI18: 0 | PJ18: 0 | PK18: 0 | PL18: 0 | PM18: 0 | PN18: 0 | PO18: 0 | PP18: 0 | PQ18: 0 | PR18: 0 | PS18: 0 | PT18: 0 | PU18: 0 | PV18: 0 | PW18: 0 | PX18: 0 | PY18: 0 | PZ18: 0 | QA18: 0 | QB18: 0 | QC18: 0 | QD18: 0 | QE18: 0 | QF18: 0 | QG18: 0 | QH18: 0 | QI18: 0 | QJ18: 0 | QK18: 0 | QL18: 0 | QM18: 0 | QN18: 0 | QO18: 0 | QP18: 0 | QQ18: 0 | QR18: 0 | QS18: 0 | QT18: 0 | QU18: 0
A19: LUCIANO CASTILLO COLONNA | B19: AYABACA | C19: 200201 | D19: 1915 | E19: ARAGOTO | F19: I-2 | G19: AYABACA | H19: NINGUN CLAS | I19: AYABACA | J19: AYABACA | K19: SALUD LUCIANO CASTILLO COLONNA | L19: 1 | M19: 0 | N19: 0 | O19: 0 | P19: 0 | Q19: 0 | R19: 0 | S19: 0 | T19: 0 | U19: 0 | V19: 0 | W19: 0 | X19: 0 | Y19: 0 | Z19: 1 | AA19: 1 | AB19: 3 | AC19: 0 | AD19: 0 | AE19: 1 | AF19: 0 | AG19: 0 | AH19: 0 | AI19: 0 | AJ19: 0 | AK19: 0 | AL19: 0 | AM19: 0 | AN19: 0 | AO19: 0 | AP19: 0 | AQ19: 1 | AR19: 0 | AS19: 0 | AT19: 0 | AU19: 1 | AV19: 1 | AW19: 0 | AX19: 0 | AY19: 0 | AZ19: 0 | BA19: 0 | BB19: 0 | BC19: 0 | BD19: 0 | BE19: 0 | BF19: 0 | BG19: 0 | BH19: 0 | BI19: 0 | BJ19: 0 | BK19: 0 | BL19: 0 | BM19: 0 | BN19: 1 | BO19: 1 | BP19: 3 | BQ19: 0 | BR19: 0 | BS19: 1 | BT19: 0 | BU19: 0 | BV19: 1 | BW19: 1 | BX19: 3 | BY19: 0 | BZ19: 0 | CA19: 0 | CB19: 0 | CC19: 0 | CD19: 0 | CE19: 0 | CF19: 0 | CG19: 0 | CH19: 0 | CI19: 0 | CJ19: 0 | CK19: 0 | CL19: 0 | CM19: 0 | CN19: 0 | CO19: 0 | CP19: 0 | CQ19: 0 | CR19: 0 | CS19: 0 | CT19: 0 | CU19: 0 | CV19: 0 | CW19: 0 | CX19: 0 | CY19: 0 | CZ19: 0 | DA19: 0 | DB19: 0 | DC19: 0 | DD19: 0 | DE19: 0 | DF19: 0 | DG19: 0 | DH19: 0 | DI19: 0 | DJ19: 0 | DK19: 0 | DL19: 0 | DM19: 0 | DN19: 0 | DO19: 0 | DP19: 0 | DQ19: 0 | DR19: 0 | DS19: 0 | DT19: 0 | DU19: 0 | DV19: 0 | DW19: 0 | DX19: 0 | DY19: 0 | DZ19: 0 | EA19: 0 | EB19: 0 | EC19: 0 | ED19: 0 | EE19: 0 | EF19: 0 | EG19: 0 | EH19: 0 | EI19: 0 | EJ19: 0 | EK19: 0 | EL19: 0 | EM19: 0 | EN19: 0 | EO19: 0 | EP19: 0 | EQ19: 0 | ER19: 0 | ES19: 0 | ET19: 0 | EU19: 0 | EV19: 1 | EW19: 0 | EX19: 0 | EY19: 0 | EZ19: 0 | FA19: 0 | FB19: 0 | FC19: 0 | FD19: 0 | FE19: 0 | FF19: 0 | FG19: 0 | FH19: 1 | FI19: 0 | FJ19: 0 | FK19: 0 | FL19: 0 | FM19: 0 | FN19: 0 | FO19: 0 | FP19: 0 | FQ19: 0 | FR19: 0 | FS19: 0 | FT19: 0 | FU19: 0 | FV19: 0 | FW19: 0 | FX19: 0 | FY19: 0 | FZ19: 0 | GA19: 0 | GB19: 0 | GC19: 0 | GD19: 0 | GE19: 0 | GF19: 0 | GG19: 0 | GH19: 0 | GI19: 0 | GJ19: 0 | GK19: 0 | GL19: 0 | GM19: 0 | GN19: 0 | GO19: 0 | GP19: 0 | GQ19: 0 | GR19: 0 | GS19: 0 | GT19: 0 | GU19: 0 | GV19: 0 | GW19: 0 | GX19: 0 | GY19: 0 | GZ19: 0 | HA19: 0 | HB19: 0 | HC19: 0 | HD19: 0 | HE19: 0 | HF19: 0 | HG19: 0 | HH19: 0 | HI19: 0 | HJ19: 0 | HK19: 0 | HL19: 0 | HM19: 0 | HN19: 0 | HO19: 0 | HP19: 0 | HQ19: 0 | HR19: 0 | HS19: 0 | HT19: 0 | HU19: 0 | HV19: 0 | HW19: 0 | HX19: 0 | HY19: 0 | HZ19: 0 | IA19: 0 | IB19: 2 | IC19: 0 | ID19: 0 | IE19: 0 | IF19: 0 | IG19: 0 | IH19: 0 | II19: 0 | IJ19: 0 | IK19: 0 | IL19: 0 | IM19: 0 | IN19: 0 | IO19: 0 | IP19: 0 | IQ19: 0 | IR19: 0 | IS19: 0 | IT19: 0 | IU19: 0 | IV19: 0 | IW19: 0 | IX19: 0 | IY19: 0 | IZ19: 0 | JA19: 0 | JB19: 0 | JC19: 0 | JD19: 0 | JE19: 0 | JF19: 0 | JG19: 0 | JH19: 0 | JI19: 0 | JJ19: 0 | JK19: 0 | JL19: 0 | JM19: 0 | JN19: 0 | JO19: 0 | JP19: 0 | JQ19: 0 | JR19: 0 | JS19: 0 | JT19: 0 | JU19: 0 | JV19: 0 | JW19: 0 | JX19: 0 | JY19: 0 | JZ19: 0 | KA19: 0 | KB19: 0 | KC19: 0 | KD19: 0 | KE19: 0 | KF19: 0 | KG19: 0 | KH19: 0 | KI19: 0 | KJ19: 0 | KK19: 1 | KL19: 1 | KM19: 0 | KN19: 0 | KO19: 0 | KP19: 0 | KQ19: 0 | KR19: 0 | KS19: 0 | KT19: 0 | KU19: 0 | KV19: 0 | KW19: 0 | KX19: 0 | KY19: 0 | KZ19: 0 | LA19: 0 | LB19: 0 | LC19: 0 | LD19: 0 | LE19: 0 | LF19: 0 | LG19: 0 | LH19: 0 | LI19: 0 | LJ19: 0 | LK19: 0 | LL19: 0 | LM19: 1 | LN19: 1 | LO19: 0 | LP19: 0 | LQ19: 0 | LR19: 0 | LS19: 0 | LT19: 0 | LU19: 0 | LV19: 0 | LW19: 0 | LX19: 0 | LY19: 0 | LZ19: 0 | MA19: 0 | MB19: 0 | MC19: 0 | MD19: 0 | ME19: 0 | MF19: 0 | MG19: 0 | MH19: 0 | MI19: 0 | MJ19: 0 | MK19: 0 | ML19: 0 | MM19: 0 | MN19: 0 | MO19: 0 | MP19: 0 | MQ19: 0 | MR19: 0 | MS19: 0 | MT19: 0 | MU19: 0 | MV19: 0 | MW19: 0 | MX19: 0 | MY19: 0 | MZ19: 0 | NA19: 0 | NB19: 0 | NC19: 0 | ND19: 0 | NE19: 0 | NF19: 0 | NG19: 0 | NH19: 0 | NI19: 0 | NJ19: 0 | NK19: 0 | NL19: 0 | NM19: 0 | NN19: 0 | NO19: 0 | NP19: 0 | NQ19: 0 | NR19: 0 | NS19: 0 | NT19: 0 | NU19: 0 | NV19: 0 | NW19: 0 | NX19: 0 | NY19: 0 | NZ19: 0 | OA19: 0 | OB19: 0 | OC19: 0 | OD19: 0 | OE19: 0 | OF19: 0 | OG19: 0 | OH19: 0 | OI19: 0 | OJ19: 0 | OK19: 0 | OL19: 0 | OM19: 0 | ON19: 0 | OO19: 0 | OP19: 0 | OQ19: 0 | OR19: 0 | OS19: 0 | OT19: 0 | OU19: 0 | OV19: 0 | OW19: 0 | OX19: 0 | OY19: 0 | OZ19: 0 | PA19: 0 | PB19: 0 | PC19: 0 | PD19: 0 | PE19: 0 | PF19: 0 | PG19: 0 | PH19: 0 | PI19: 0 | PJ19: 0 | PK19: 0 | PL19: 0 | PM19: 0 | PN19: 0 | PO19: 0 | PP19: 0 | PQ19: 0 | PR19: 0 | PS19: 0 | PT19: 0 | PU19: 0 | PV19: 0 | PW19: 0 | PX19: 0 | PY19: 0 | PZ19: 0 | QA19: 0 | QB19: 0 | QC19: 0 | QD19: 0 | QE19: 0 | QF19: 0 | QG19: 0 | QH19: 0 | QI19: 0 | QJ19: 0 | QK19: 0 | QL19: 0 | QM19: 0 | QN19: 0 | QO19: 0 | QP19: 0 | QQ19: 0 | QR19: 0 | QS19: 0 | QT19: 0 | QU19: 0
A20: LUCIANO CASTILLO COLONNA | B20: AYABACA | C20: 200201 | D20: 1916 | E20: CHOCAN | F20: I-2 | G20: AYABACA | H20: NINGUN CLAS | I20: AYABACA | J20: AYABACA | K20: SALUD LUCIANO CASTILLO COLONNA | L20: 3 | M20: 0 | N20: 0 | O20: 0 | P20: 0 | Q20: 0 | R20: 0 | S20: 0 | T20: 0 | U20: 0 | V20: 0 | W20: 0 | X20: 0 | Y20: 0 | Z20: 0 | AA20: 2 | AB20: 2 | AC20: 0 | AD20: 0 | AE20: 0 | AF20: 1 | AG20: 0 | AH20: 0 | AI20: 0 | AJ20: 0 | AK20: 0 | AL20: 0 | AM20: 0 | AN20: 0 | AO20: 0 | AP20: 0 | AQ20: 0 | AR20: 0 | AS20: 0 | AT20: 0 | AU20: 0 | AV20: 0 | AW20: 0 | AX20: 0 | AY20: 0 | AZ20: 0 | BA20: 0 | BB20: 0 | BC20: 0 | BD20: 0 | BE20: 0 | BF20: 0 | BG20: 0 | BH20: 0 | BI20: 0 | BJ20: 0 | BK20: 0 | BL20: 0 | BM20: 0 | BN20: 0 | BO20: 0 | BP20: 0 | BQ20: 0 | BR20: 0 | BS20: 0 | BT20: 0 | BU20: 0 | BV20: 0 | BW20: 0 | BX20: 0 | BY20: 0 | BZ20: 0 | CA20: 0 | CB20: 0 | CC20: 0 | CD20: 0 | CE20: 0 | CF20: 0 | CG20: 0 | CH20: 0 | CI20: 0 | CJ20: 0 | CK20: 0 | CL20: 0 | CM20: 0 | CN20: 0 | CO20: 0 | CP20: 0 | CQ20: 0 | CR20: 0 | CS20: 0 | CT20: 0 | CU20: 0 | CV20: 0 | CW20: 0 | CX20: 0 | CY20: 0 | CZ20: 0 | DA20: 0 | DB20: 0 | DC20: 0 | DD20: 0 | DE20: 0 | DF20: 0 | DG20: 0 | DH20: 0 | DI20: 0 | DJ20: 0 | DK20: 0 | DL20: 0 | DM20: 0 | DN20: 0 | DO20: 0 | DP20: 0 | DQ20: 0 | DR20: 0 | DS20: 0 | DT20: 0 | DU20: 0 | DV20: 0 | DW20: 0 | DX20: 0 | DY20: 0 | DZ20: 0 | EA20: 0 | EB20: 0 | EC20: 0 | ED20: 0 | EE20: 0 | EF20: 0 | EG20: 0 | EH20: 0 | EI20: 0 | EJ20: 0 | EK20: 0 | EL20: 0 | EM20: 0 | EN20: 0 | EO20: 0 | EP20: 0 | EQ20: 0 | ER20: 0 | ES20: 0 | ET20: 0 | EU20: 0 | EV20: 0 | EW20: 0 | EX20: 0 | EY20: 0 | EZ20: 0 | FA20: 0 | FB20: 0 | FC20: 0 | FD20: 0 | FE20: 0 | FF20: 0 | FG20: 1 | FH20: 0 | FI20: 0 | FJ20: 0 | FK20: 0 | FL20: 0 | FM20: 0 | FN20: 0 | FO20: 0 | FP20: 0 | FQ20: 0 | FR20: 0 | FS20: 0 | FT20: 0 | FU20: 0 | FV20: 0 | FW20: 0 | FX20: 0 | FY20: 0 | FZ20: 0 | GA20: 0 | GB20: 0 | GC20: 0 | GD20: 0 | GE20: 0 | GF20: 1 | GG20: 0 | GH20: 0 | GI20: 0 | GJ20: 0 | GK20: 0 | GL20: 0 | GM20: 0 | GN20: 0 | GO20: 0 | GP20: 0 | GQ20: 0 | GR20: 0 | GS20: 0 | GT20: 0 | GU20: 0 | GV20: 0 | GW20: 0 | GX20: 0 | GY20: 0 | GZ20: 0 | HA20: 0 | HB20: 0 | HC20: 0 | HD20: 0 | HE20: 0 | HF20: 0 | HG20: 0 | HH20: 0 | HI20: 0 | HJ20: 0 | HK20: 0 | HL20: 0 | HM20: 0 | HN20: 0 | HO20: 0 | HP20: 0 | HQ20: 0 | HR20: 0 | HS20: 0 | HT20: 0 | HU20: 0 | HV20: 0 | HW20: 0 | HX20: 0 | HY20: 0 | HZ20: 0 | IA20: 1 | IB20: 1 | IC20: 0 | ID20: 0 | IE20: 0 | IF20: 1 | IG20: 0 | IH20: 0 | II20: 0 | IJ20: 0 | IK20: 0 | IL20: 0 | IM20: 0 | IN20: 0 | IO20: 0 | IP20: 0 | IQ20: 0 | IR20: 0 | IS20: 0 | IT20: 0 | IU20: 0 | IV20: 0 | IW20: 0 | IX20: 0 | IY20: 0 | IZ20: 0 | JA20: 0 | JB20: 0 | JC20: 0 | JD20: 0 | JE20: 0 | JF20: 0 | JG20: 0 | JH20: 1 | JI20: 0 | JJ20: 0 | JK20: 0 | JL20: 0 | JM20: 0 | JN20: 0 | JO20: 0 | JP20: 0 | JQ20: 0 | JR20: 0 | JS20: 0 | JT20: 0 | JU20: 0 | JV20: 0 | JW20: 0 | JX20: 0 | JY20: 0 | JZ20: 0 | KA20: 0 | KB20: 0 | KC20: 0 | KD20: 0 | KE20: 0 | KF20: 0 | KG20: 0 | KH20: 0 | KI20: 0 | KJ20: 0 | KK20: 1 | KL20: 0 | KM20: 0 | KN20: 0 | KO20: 0 | KP20: 0 | KQ20: 0 | KR20: 0 | KS20: 0 | KT20: 0 | KU20: 0 | KV20: 0 | KW20: 0 | KX20: 0 | KY20: 0 | KZ20: 0 | LA20: 0 | LB20: 0 | LC20: 0 | LD20: 0 | LE20: 0 | LF20: 0 | LG20: 0 | LH20: 0 | LI20: 0 | LJ20: 0 | LK20: 0 | LL20: 0 | LM20: 0 | LN20: 0 | LO20: 0 | LP20: 0 | LQ20: 0 | LR20: 0 | LS20: 0 | LT20: 0 | LU20: 0 | LV20: 0 | LW20: 0 | LX20: 0 | LY20: 0 | LZ20: 0 | MA20: 0 | MB20: 0 | MC20: 0 | MD20: 0 | ME20: 0 | MF20: 0 | MG20: 0 | MH20: 0 | MI20: 0 | MJ20: 0 | MK20: 0 | ML20: 0 | MM20: 0 | MN20: 0 | MO20: 0 | MP20: 0 | MQ20: 0 | MR20: 0 | MS20: 0 | MT20: 0 | MU20: 0 | MV20: 0 | MW20: 0 | MX20: 0 | MY20: 0 | MZ20: 0 | NA20: 0 | NB20: 0 | NC20: 0 | ND20: 0 | NE20: 0 | NF20: 0 | NG20: 0 | NH20: 0 | NI20: 0 | NJ20: 0 | NK20: 0 | NL20: 0 | NM20: 0 | NN20: 0 | NO20: 0 | NP20: 0 | NQ20: 0 | NR20: 0 | NS20: 0 | NT20: 0 | NU20: 0 | NV20: 0 | NW20: 0 | NX20: 0 | NY20: 0 | NZ20: 0 | OA20: 0 | OB20: 0 | OC20: 0 | OD20: 0 | OE20: 0 | OF20: 0 | OG20: 0 | OH20: 0 | OI20: 0 | OJ20: 0 | OK20: 0 | OL20: 0 | OM20: 0 | ON20: 0 | OO20: 0 | OP20: 0 | OQ20: 0 | OR20: 0 | OS20: 0 | OT20: 0 | OU20: 0 | OV20: 0 | OW20: 0 | OX20: 0 | OY20: 0 | OZ20: 0 | PA20: 0 | PB20: 0 | PC20: 0 | PD20: 0 | PE20: 0 | PF20: 0 | PG20: 0 | PH20: 0 | PI20: 0 | PJ20: 0 | PK20: 0 | PL20: 0 | PM20: 0 | PN20: 0 | PO20: 0 | PP20: 0 | PQ20: 0 | PR20: 0 | PS20: 0 | PT20: 0 | PU20: 0 | PV20: 0 | PW20: 0 | PX20: 0 | PY20: 0 | PZ20: 0 | QA20: 0 | QB20: 0 | QC20: 0 | QD20: 0 | QE20: 0 | QF20: 0 | QG20: 0 | QH20: 0 | QI20: 0 | QJ20: 0 | QK20: 0 | QL20: 0 | QM20: 0 | QN20: 0 | QO20: 0 | QP20: 0 | QQ20: 0 | QR20: 0 | QS20: 0 | QT20: 0 | QU20: 0
A21: LUCIANO CASTILLO COLONNA | B21: AYABACA | C21: 200201 | D21: 1916 | E21: CHOCAN | F21: I-2 | G21: AYABACA | H21: NINGUN CLAS | I21: AYABACA | J21: AYABACA | K21: SALUD LUCIANO CASTILLO COLONNA | L21: 1 | M21: 0 | N21: 0 | O21: 0 | P21: 0 | Q21: 0 | R21: 0 | S21: 0 | T21: 0 | U21: 0 | V21: 0 | W21: 0 | X21: 1 | Y21: 0 | Z21: 0 | AA21: 2 | AB21: 1 | AC21: 0 | AD21: 0 | AE21: 0 | AF21: 0 | AG21: 0 | AH21: 0 | AI21: 0 | AJ21: 0 | AK21: 0 | AL21: 0 | AM21: 0 | AN21: 0 | AO21: 0 | AP21: 0 | AQ21: 0 | AR21: 0 | AS21: 0 | AT21: 0 | AU21: 0 | AV21: 0 | AW21: 0 | AX21: 0 | AY21: 0 | AZ21: 1 | BA21: 0 | BB21: 0 | BC21: 0 | BD21: 0 | BE21: 0 | BF21: 0 | BG21: 0 | BH21: 0 | BI21: 0 | BJ21: 0 | BK21: 0 | BL21: 0 | BM21: 0 | BN21: 0 | BO21: 0 | BP21: 0 | BQ21: 0 | BR21: 0 | BS21: 0 | BT21: 0 | BU21: 0 | BV21: 0 | BW21: 0 | BX21: 0 | BY21: 0 | BZ21: 0 | CA21: 0 | CB21: 0 | CC21: 0 | CD21: 0 | CE21: 0 | CF21: 0 | CG21: 0 | CH21: 0 | CI21: 0 | CJ21: 0 | CK21: 0 | CL21: 0 | CM21: 0 | CN21: 0 | CO21: 0 | CP21: 0 | CQ21: 0 | CR21: 0 | CS21: 0 | CT21: 0 | CU21: 0 | CV21: 0 | CW21: 0 | CX21: 0 | CY21: 0 | CZ21: 0 | DA21: 0 | DB21: 0 | DC21: 0 | DD21: 0 | DE21: 0 | DF21: 0 | DG21: 0 | DH21: 0 | DI21: 0 | DJ21: 0 | DK21: 0 | DL21: 0 | DM21: 0 | DN21: 0 | DO21: 0 | DP21: 0 | DQ21: 0 | DR21: 0 | DS21: 0 | DT21: 0 | DU21: 0 | DV21: 0 | DW21: 0 | DX21: 0 | DY21: 0 | DZ21: 0 | EA21: 0 | EB21: 0 | EC21: 0 | ED21: 0 | EE21: 0 | EF21: 0 | EG21: 0 | EH21: 0 | EI21: 0 | EJ21: 0 | EK21: 0 | EL21: 0 | EM21: 0 | EN21: 0 | EO21: 0 | EP21: 0 | EQ21: 0 | ER21: 0 | ES21: 0 | ET21: 0 | EU21: 0 | EV21: 1 | EW21: 0 | EX21: 0 | EY21: 0 | EZ21: 1 | FA21: 0 | FB21: 0 | FC21: 0 | FD21: 0 | FE21: 0 | FF21: 0 | FG21: 0 | FH21: 0 | FI21: 0 | FJ21: 0 | FK21: 0 | FL21: 0 | FM21: 0 | FN21: 0 | FO21: 0 | FP21: 0 | FQ21: 0 | FR21: 0 | FS21: 0 | FT21: 0 | FU21: 0 | FV21: 0 | FW21: 0 | FX21: 0 | FY21: 0 | FZ21: 0 | GA21: 0 | GB21: 0 | GC21: 0 | GD21: 0 | GE21: 0 | GF21: 1 | GG21: 0 | GH21: 0 | GI21: 0 | GJ21: 0 | GK21: 0 | GL21: 0 | GM21: 0 | GN21: 0 | GO21: 0 | GP21: 0 | GQ21: 1 | GR21: 0 | GS21: 0 | GT21: 0 | GU21: 0 | GV21: 0 | GW21: 0 | GX21: 0 | GY21: 0 | GZ21: 0 | HA21: 0 | HB21: 0 | HC21: 0 | HD21: 0 | HE21: 0 | HF21: 0 | HG21: 0 | HH21: 0 | HI21: 0 | HJ21: 0 | HK21: 0 | HL21: 0 | HM21: 0 | HN21: 0 | HO21: 0 | HP21: 0 | HQ21: 0 | HR21: 0 | HS21: 0 | HT21: 0 | HU21: 0 | HV21: 0 | HW21: 0 | HX21: 0 | HY21: 0 | HZ21: 0 | IA21: 0 | IB21: 0 | IC21: 0 | ID21: 0 | IE21: 5 | IF21: 0 | IG21: 0 | IH21: 0 | II21: 0 | IJ21: 0 | IK21: 0 | IL21: 0 | IM21: 0 | IN21: 0 | IO21: 0 | IP21: 0 | IQ21: 0 | IR21: 0 | IS21: 0 | IT21: 0 | IU21: 0 | IV21: 0 | IW21: 0 | IX21: 0 | IY21: 0 | IZ21: 0 | JA21: 0 | JB21: 0 | JC21: 4 | JD21: 0 | JE21: 0 | JF21: 0 | JG21: 1 | JH21: 0 | JI21: 0 | JJ21: 0 | JK21: 0 | JL21: 0 | JM21: 3 | JN21: 0 | JO21: 0 | JP21: 0 | JQ21: 0 | JR21: 0 | JS21: 0 | JT21: 0 | JU21: 0 | JV21: 0 | JW21: 0 | JX21: 0 | JY21: 0 | JZ21: 1 | KA21: 0 | KB21: 0 | KC21: 0 | KD21: 0 | KE21: 0 | KF21: 0 | KG21: 0 | KH21: 0 | KI21: 0 | KJ21: 0 | KK21: 0 | KL21: 0 | KM21: 0 | KN21: 0 | KO21: 0 | KP21: 0 | KQ21: 0 | KR21: 0 | KS21: 0 | KT21: 0 | KU21: 0 | KV21: 0 | KW21: 0 | KX21: 0 | KY21: 0 | KZ21: 0 | LA21: 0 | LB21: 0 | LC21: 0 | LD21: 0 | LE21: 0 | LF21: 0 | LG21: 0 | LH21: 0 | LI21: 0 | LJ21: 0 | LK21: 0 | LL21: 0 | LM21: 0 | LN21: 0 | LO21: 0 | LP21: 0 | LQ21: 0 | LR21: 0 | LS21: 0 | LT21: 0 | LU21: 0 | LV21: 0 | LW21: 0 | LX21: 0 | LY21: 0 | LZ21: 0 | MA21: 0 | MB21: 0 | MC21: 0 | MD21: 1 | ME21: 0 | MF21: 0 | MG21: 0 | MH21: 0 | MI21: 0 | MJ21: 0 | MK21: 0 | ML21: 0 | MM21: 0 | MN21: 0 | MO21: 0 | MP21: 0 | MQ21: 0 | MR21: 0 | MS21: 0 | MT21: 0 | MU21: 0 | MV21: 0 | MW21: 0 | MX21: 0 | MY21: 0 | MZ21: 0 | NA21: 0 | NB21: 0 | NC21: 0 | ND21: 0 | NE21: 0 | NF21: 0 | NG21: 0 | NH21: 0 | NI21: 0 | NJ21: 0 | NK21: 0 | NL21: 0 | NM21: 0 | NN21: 0 | NO21: 0 | NP21: 0 | NQ21: 0 | NR21: 0 | NS21: 0 | NT21: 0 | NU21: 0 | NV21: 0 | NW21: 0 | NX21: 0 | NY21: 0 | NZ21: 0 | OA21: 0 | OB21: 0 | OC21: 0 | OD21: 0 | OE21: 0 | OF21: 0 | OG21: 0 | OH21: 0 | OI21: 0 | OJ21: 0 | OK21: 0 | OL21: 0 | OM21: 0 | ON21: 0 | OO21: 0 | OP21: 0 | OQ21: 0 | OR21: 0 | OS21: 0 | OT21: 0 | OU21: 0 | OV21: 0 | OW21: 0 | OX21: 0 | OY21: 0 | OZ21: 0 | PA21: 0 | PB21: 0 | PC21: 0 | PD21: 0 | PE21: 0 | PF21: 0 | PG21: 0 | PH21: 0 | PI21: 0 | PJ21: 0 | PK21: 0 | PL21: 0 | PM21: 0 | PN21: 0 | PO21: 0 | PP21: 0 | PQ21: 0 | PR21: 0 | PS21: 0 | PT21: 0 | PU21: 0 | PV21: 0 | PW21: 0 | PX21: 0 | PY21: 0 | PZ21: 0 | QA21: 0 | QB21: 0 | QC21: 0 | QD21: 0 | QE21: 0 | QF21: 0 | QG21: 0 | QH21: 0 | QI21: 0 | QJ21: 0 | QK21: 0 | QL21: 0 | QM21: 0 | QN21: 0 | QO21: 0 | QP21: 0 | QQ21: 0 | QR21: 0 | QS21: 0 | QT21: 0 | QU21: 1
A22: LUCIANO CASTILLO COLONNA | B22: AYABACA | C22: 200201 | D22: 1916 | E22: CHOCAN | F22: I-2 | G22: AYABACA | H22: NINGUN CLAS | I22: AYABACA | J22: AYABACA | K22: SALUD LUCIANO CASTILLO COLONNA | L22: 2 | M22: 0 | N22: 0 | O22: 0 | P22: 0 | Q22: 0 | R22: 0 | S22: 0 | T22: 0 | U22: 0 | V22: 0 | W22: 0 | X22: 0 | Y22: 0 | Z22: 0 | AA22: 1 | AB22: 1 | AC22: 0 | AD22: 0 | AE22: 0 | AF22: 0 | AG22: 0 | AH22: 0 | AI22: 0 | AJ22: 0 | AK22: 0 | AL22: 0 | AM22: 0 | AN22: 0 | AO22: 0 | AP22: 0 | AQ22: 0 | AR22: 0 | AS22: 0 | AT22: 0 | AU22: 0 | AV22: 0 | AW22: 0 | AX22: 0 | AY22: 0 | AZ22: 0 | BA22: 0 | BB22: 0 | BC22: 0 | BD22: 0 | BE22: 0 | BF22: 0 | BG22: 0 | BH22: 0 | BI22: 0 | BJ22: 0 | BK22: 0 | BL22: 0 | BM22: 0 | BN22: 0 | BO22: 0 | BP22: 0 | BQ22: 0 | BR22: 0 | BS22: 0 | BT22: 0 | BU22: 0 | BV22: 0 | BW22: 0 | BX22: 0 | BY22: 0 | BZ22: 0 | CA22: 0 | CB22: 0 | CC22: 0 | CD22: 0 | CE22: 0 | CF22: 0 | CG22: 0 | CH22: 0 | CI22: 0 | CJ22: 0 | CK22: 0 | CL22: 0 | CM22: 0 | CN22: 0 | CO22: 0 | CP22: 0 | CQ22: 0 | CR22: 0 | CS22: 0 | CT22: 0 | CU22: 0 | CV22: 0 | CW22: 0 | CX22: 0 | CY22: 0 | CZ22: 0 | DA22: 0 | DB22: 0 | DC22: 0 | DD22: 0 | DE22: 0 | DF22: 0 | DG22: 0 | DH22: 0 | DI22: 0 | DJ22: 0 | DK22: 0 | DL22: 0 | DM22: 0 | DN22: 0 | DO22: 0 | DP22: 0 | DQ22: 0 | DR22: 0 | DS22: 0 | DT22: 0 | DU22: 0 | DV22: 0 | DW22: 0 | DX22: 0 | DY22: 0 | DZ22: 0 | EA22: 0 | EB22: 0 | EC22: 0 | ED22: 0 | EE22: 0 | EF22: 0 | EG22: 0 | EH22: 0 | EI22: 0 | EJ22: 0 | EK22: 0 | EL22: 0 | EM22: 0 | EN22: 0 | EO22: 0 | EP22: 0 | EQ22: 0 | ER22: 0 | ES22: 0 | ET22: 0 | EU22: 0 | EV22: 0 | EW22: 0 | EX22: 0 | EY22: 0 | EZ22: 1 | FA22: 0 | FB22: 0 | FC22: 0 | FD22: 0 | FE22: 0 | FF22: 0 | FG22: 0 | FH22: 0 | FI22: 0 | FJ22: 0 | FK22: 0 | FL22: 0 | FM22: 0 | FN22: 0 | FO22: 0 | FP22: 0 | FQ22: 0 | FR22: 0 | FS22: 0 | FT22: 0 | FU22: 0 | FV22: 0 | FW22: 0 | FX22: 0 | FY22: 0 | FZ22: 0 | GA22: 0 | GB22: 0 | GC22: 0 | GD22: 0 | GE22: 0 | GF22: 0 | GG22: 0 | GH22: 0 | GI22: 0 | GJ22: 0 | GK22: 0 | GL22: 0 | GM22: 0 | GN22: 0 | GO22: 0 | GP22: 0 | GQ22: 0 | GR22: 0 | GS22: 0 | GT22: 0 | GU22: 0 | GV22: 0 | GW22: 0 | GX22: 0 | GY22: 0 | GZ22: 0 | HA22: 0 | HB22: 0 | HC22: 0 | HD22: 0 | HE22: 0 | HF22: 0 | HG22: 0 | HH22: 0 | HI22: 0 | HJ22: 0 | HK22: 0 | HL22: 0 | HM22: 0 | HN22: 0 | HO22: 0 | HP22: 0 | HQ22: 0 | HR22: 0 | HS22: 0 | HT22: 0 | HU22: 0 | HV22: 0 | HW22: 0 | HX22: 0 | HY22: 0 | HZ22: 0 | IA22: 0 | IB22: 0 | IC22: 0 | ID22: 0 | IE22: 0 | IF22: 1 | IG22: 0 | IH22: 0 | II22: 0 | IJ22: 0 | IK22: 0 | IL22: 0 | IM22: 0 | IN22: 0 | IO22: 0 | IP22: 0 | IQ22: 0 | IR22: 0 | IS22: 0 | IT22: 0 | IU22: 0 | IV22: 0 | IW22: 0 | IX22: 0 | IY22: 0 | IZ22: 0 | JA22: 0 | JB22: 0 | JC22: 1 | JD22: 1 | JE22: 0 | JF22: 0 | JG22: 1 | JH22: 0 | JI22: 0 | JJ22: 0 | JK22: 0 | JL22: 0 | JM22: 1 | JN22: 0 | JO22: 0 | JP22: 0 | JQ22: 0 | JR22: 0 | JS22: 0 | JT22: 0 | JU22: 0 | JV22: 0 | JW22: 0 | JX22: 0 | JY22: 0 | JZ22: 0 | KA22: 0 | KB22: 0 | KC22: 0 | KD22: 0 | KE22: 0 | KF22: 0 | KG22: 0 | KH22: 0 | KI22: 0 | KJ22: 0 | KK22: 0 | KL22: 0 | KM22: 0 | KN22: 0 | KO22: 0 | KP22: 0 | KQ22: 0 | KR22: 0 | KS22: 0 | KT22: 0 | KU22: 0 | KV22: 0 | KW22: 0 | KX22: 0 | KY22: 0 | KZ22: 0 | LA22: 0 | LB22: 0 | LC22: 0 | LD22: 0 | LE22: 0 | LF22: 0 | LG22: 0 | LH22: 0 | LI22: 0 | LJ22: 0 | LK22: 0 | LL22: 0 | LM22: 0 | LN22: 0 | LO22: 0 | LP22: 0 | LQ22: 0 | LR22: 0 | LS22: 0 | LT22: 0 | LU22: 0 | LV22: 0 | LW22: 0 | LX22: 0 | LY22: 0 | LZ22: 0 | MA22: 0 | MB22: 0 | MC22: 0 | MD22: 0 | ME22: 0 | MF22: 0 | MG22: 0 | MH22: 0 | MI22: 0 | MJ22: 0 | MK22: 0 | ML22: 0 | MM22: 0 | MN22: 0 | MO22: 0 | MP22: 0 | MQ22: 0 | MR22: 0 | MS22: 0 | MT22: 0 | MU22: 0 | MV22: 0 | MW22: 0 | MX22: 0 | MY22: 0 | MZ22: 0 | NA22: 0 | NB22: 0 | NC22: 0 | ND22: 0 | NE22: 0 | NF22: 0 | NG22: 0 | NH22: 0 | NI22: 0 | NJ22: 0 | NK22: 0 | NL22: 0 | NM22: 0 | NN22: 0 | NO22: 0 | NP22: 0 | NQ22: 0 | NR22: 0 | NS22: 0 | NT22: 0 | NU22: 0 | NV22: 0 | NW22: 0 | NX22: 0 | NY22: 0 | NZ22: 0 | OA22: 0 | OB22: 0 | OC22: 0 | OD22: 0 | OE22: 0 | OF22: 0 | OG22: 0 | OH22: 0 | OI22: 0 | OJ22: 0 | OK22: 0 | OL22: 0 | OM22: 0 | ON22: 0 | OO22: 0 | OP22: 0 | OQ22: 0 | OR22: 0 | OS22: 0 | OT22: 0 | OU22: 0 | OV22: 0 | OW22: 0 | OX22: 0 | OY22: 0 | OZ22: 0 | PA22: 0 | PB22: 0 | PC22: 0 | PD22: 0 | PE22: 0 | PF22: 0 | PG22: 0 | PH22: 0 | PI22: 0 | PJ22: 0 | PK22: 0 | PL22: 0 | PM22: 0 | PN22: 0 | PO22: 0 | PP22: 0 | PQ22: 0 | PR22: 0 | PS22: 0 | PT22: 0 | PU22: 0 | PV22: 0 | PW22: 0 | PX22: 0 | PY22: 0 | PZ22: 0 | QA22: 0 | QB22: 0 | QC22: 0 | QD22: 0 | QE22: 0 | QF22: 0 | QG22: 0 | QH22: 0 | QI22: 0 | QJ22: 0 | QK22: 0 | QL22: 0 | QM22: 0 | QN22: 0 | QO22: 0 | QP22: 0 | QQ22: 0 | QR22: 0 | QS22: 0 | QT22: 0 | QU22: 0
A23: LUCIANO CASTILLO COLONNA | B23: AYABACA | C23: 200201 | D23: 1917 | E23: YANCHALA | F23: I-2 | G23: AYABACA | H23: NINGUN CLAS | I23: AYABACA | J23: AYABACA | K23: SALUD LUCIANO CASTILLO COLONNA | L23: 3 | M23: 0 | N23: 0 | O23: 0 | P23: 0 | Q23: 0 | R23: 0 | S23: 1 | T23: 1 | U23: 0 | V23: 1 | W23: 0 | X23: 0 | Y23: 0 | Z23: 4 | AA23: 8 | AB23: 5 | AC23: 0 | AD23: 0 | AE23: 3 | AF23: 0 | AG23: 0 | AH23: 0 | AI23: 0 | AJ23: 0 | AK23: 0 | AL23: 0 | AM23: 0 | AN23: 0 | AO23: 0 | AP23: 0 | AQ23: 1 | AR23: 1 | AS23: 0 | AT23: 0 | AU23: 0 | AV23: 0 | AW23: 0 | AX23: 0 | AY23: 2 | AZ23: 1 | BA23: 0 | BB23: 0 | BC23: 0 | BD23: 0 | BE23: 0 | BF23: 0 | BG23: 0 | BH23: 0 | BI23: 0 | BJ23: 0 | BK23: 0 | BL23: 0 | BM23: 0 | BN23: 0 | BO23: 2 | BP23: 1 | BQ23: 0 | BR23: 0 | BS23: 0 | BT23: 0 | BU23: 0 | BV23: 0 | BW23: 0 | BX23: 0 | BY23: 0 | BZ23: 0 | CA23: 0 | CB23: 0 | CC23: 0 | CD23: 0 | CE23: 0 | CF23: 0 | CG23: 0 | CH23: 0 | CI23: 0 | CJ23: 0 | CK23: 0 | CL23: 0 | CM23: 0 | CN23: 0 | CO23: 0 | CP23: 0 | CQ23: 0 | CR23: 0 | CS23: 0 | CT23: 0 | CU23: 0 | CV23: 0 | CW23: 0 | CX23: 0 | CY23: 0 | CZ23: 0 | DA23: 0 | DB23: 0 | DC23: 0 | DD23: 0 | DE23: 0 | DF23: 0 | DG23: 0 | DH23: 0 | DI23: 0 | DJ23: 0 | DK23: 0 | DL23: 0 | DM23: 0 | DN23: 0 | DO23: 0 | DP23: 0 | DQ23: 0 | DR23: 0 | DS23: 0 | DT23: 0 | DU23: 0 | DV23: 0 | DW23: 0 | DX23: 0 | DY23: 0 | DZ23: 0 | EA23: 0 | EB23: 0 | EC23: 0 | ED23: 0 | EE23: 0 | EF23: 0 | EG23: 0 | EH23: 0 | EI23: 0 | EJ23: 0 | EK23: 0 | EL23: 0 | EM23: 0 | EN23: 0 | EO23: 0 | EP23: 0 | EQ23: 0 | ER23: 0 | ES23: 0 | ET23: 0 | EU23: 2 | EV23: 1 | EW23: 0 | EX23: 0 | EY23: 2 | EZ23: 1 | FA23: 0 | FB23: 0 | FC23: 0 | FD23: 0 | FE23: 0 | FF23: 0 | FG23: 0 | FH23: 0 | FI23: 0 | FJ23: 0 | FK23: 0 | FL23: 0 | FM23: 0 | FN23: 0 | FO23: 0 | FP23: 0 | FQ23: 0 | FR23: 0 | FS23: 0 | FT23: 0 | FU23: 0 | FV23: 0 | FW23: 0 | FX23: 0 | FY23: 0 | FZ23: 0 | GA23: 0 | GB23: 0 | GC23: 0 | GD23: 0 | GE23: 0 | GF23: 0 | GG23: 0 | GH23: 0 | GI23: 0 | GJ23: 0 | GK23: 0 | GL23: 0 | GM23: 0 | GN23: 0 | GO23: 0 | GP23: 0 | GQ23: 0 | GR23: 0 | GS23: 0 | GT23: 0 | GU23: 0 | GV23: 0 | GW23: 0 | GX23: 0 | GY23: 0 | GZ23: 0 | HA23: 0 | HB23: 0 | HC23: 0 | HD23: 0 | HE23: 0 | HF23: 0 | HG23: 0 | HH23: 0 | HI23: 0 | HJ23: 0 | HK23: 0 | HL23: 0 | HM23: 0 | HN23: 0 | HO23: 0 | HP23: 0 | HQ23: 0 | HR23: 0 | HS23: 0 | HT23: 0 | HU23: 0 | HV23: 0 | HW23: 1 | HX23: 0 | HY23: 0 | HZ23: 0 | IA23: 3 | IB23: 0 | IC23: 0 | ID23: 0 | IE23: 0 | IF23: 0 | IG23: 0 | IH23: 0 | II23: 0 | IJ23: 0 | IK23: 0 | IL23: 0 | IM23: 0 | IN23: 0 | IO23: 0 | IP23: 0 | IQ23: 0 | IR23: 0 | IS23: 0 | IT23: 0 | IU23: 0 | IV23: 0 | IW23: 0 | IX23: 0 | IY23: 0 | IZ23: 0 | JA23: 0 | JB23: 0 | JC23: 0 | JD23: 0 | JE23: 0 | JF23: 0 | JG23: 0 | JH23: 0 | JI23: 0 | JJ23: 0 | JK23: 0 | JL23: 0 | JM23: 0 | JN23: 0 | JO23: 0 | JP23: 0 | JQ23: 1 | JR23: 1 | JS23: 0 | JT23: 0 | JU23: 1 | JV23: 0 | JW23: 0 | JX23: 0 | JY23: 0 | JZ23: 0 | KA23: 0 | KB23: 0 | KC23: 0 | KD23: 0 | KE23: 0 | KF23: 0 | KG23: 0 | KH23: 0 | KI23: 0 | KJ23: 0 | KK23: 0 | KL23: 0 | KM23: 0 | KN23: 0 | KO23: 0 | KP23: 0 | KQ23: 0 | KR23: 0 | KS23: 0 | KT23: 1 | KU23: 0 | KV23: 0 | KW23: 1 | KX23: 0 | KY23: 0 | KZ23: 0 | LA23: 0 | LB23: 0 | LC23: 0 | LD23: 0 | LE23: 0 | LF23: 0 | LG23: 0 | LH23: 0 | LI23: 0 | LJ23: 0 | LK23: 0 | LL23: 0 | LM23: 0 | LN23: 0 | LO23: 0 | LP23: 0 | LQ23: 0 | LR23: 0 | LS23: 0 | LT23: 0 | LU23: 0 | LV23: 1 | LW23: 0 | LX23: 0 | LY23: 1 | LZ23: 0 | MA23: 0 | MB23: 0 | MC23: 0 | MD23: 0 | ME23: 0 | MF23: 0 | MG23: 0 | MH23: 0 | MI23: 0 | MJ23: 0 | MK23: 0 | ML23: 0 | MM23: 0 | MN23: 0 | MO23: 0 | MP23: 0 | MQ23: 0 | MR23: 0 | MS23: 0 | MT23: 0 | MU23: 0 | MV23: 0 | MW23: 0 | MX23: 0 | MY23: 0 | MZ23: 0 | NA23: 0 | NB23: 0 | NC23: 0 | ND23: 0 | NE23: 0 | NF23: 0 | NG23: 0 | NH23: 0 | NI23: 0 | NJ23: 0 | NK23: 0 | NL23: 0 | NM23: 0 | NN23: 0 | NO23: 0 | NP23: 0 | NQ23: 0 | NR23: 0 | NS23: 0 | NT23: 0 | NU23: 0 | NV23: 0 | NW23: 0 | NX23: 0 | NY23: 0 | NZ23: 0 | OA23: 0 | OB23: 0 | OC23: 0 | OD23: 0 | OE23: 0 | OF23: 0 | OG23: 0 | OH23: 0 | OI23: 0 | OJ23: 0 | OK23: 0 | OL23: 0 | OM23: 0 | ON23: 0 | OO23: 0 | OP23: 0 | OQ23: 0 | OR23: 0 | OS23: 0 | OT23: 0 | OU23: 0 | OV23: 0 | OW23: 0 | OX23: 0 | OY23: 0 | OZ23: 0 | PA23: 0 | PB23: 0 | PC23: 0 | PD23: 0 | PE23: 0 | PF23: 0 | PG23: 0 | PH23: 0 | PI23: 0 | PJ23: 0 | PK23: 0 | PL23: 0 | PM23: 0 | PN23: 0 | PO23: 0 | PP23: 0 | PQ23: 0 | PR23: 0 | PS23: 0 | PT23: 0 | PU23: 0 | PV23: 0 | PW23: 0 | PX23: 0 | PY23: 0 | PZ23: 0 | QA23: 0 | QB23: 0 | QC23: 0 | QD23: 0 | QE23: 0 | QF23: 0 | QG23: 0 | QH23: 0 | QI23: 0 | QJ23: 0 | QK23: 0 | QL23: 0 | QM23: 0 | QN23: 0 | QO23: 0 | QP23: 0 | QQ23: 0 | QR23: 0 | QS23: 0 | QT23: 2 | QU23: 1
A24: LUCIANO CASTILLO COLONNA | B24: AYABACA | C24: 200201 | D24: 1917 | E24: YANCHALA | F24: I-2 | G24: AYABACA | H24: NINGUN CLAS | I24: AYABACA | J24: AYABACA | K24: SALUD LUCIANO CASTILLO COLONNA | L24: 2 | M24: 0 | N24: 0 | O24: 0 | P24: 0 | Q24: 1 | R24: 0 | S24: 0 | T24: 1 | U24: 0 | V24: 1 | W24: 0 | X24: 0 | Y24: 0 | Z24: 4 | AA24: 7 | AB24: 3 | AC24: 0 | AD24: 1 | AE24: 1 | AF24: 1 | AG24: 0 | AH24: 0 | AI24: 0 | AJ24: 0 | AK24: 0 | AL24: 0 | AM24: 0 | AN24: 0 | AO24: 0 | AP24: 1 | AQ24: 1 | AR24: 1 | AS24: 0 | AT24: 0 | AU24: 0 | AV24: 0 | AW24: 0 | AX24: 1 | AY24: 1 | AZ24: 1 | BA24: 0 | BB24: 0 | BC24: 0 | BD24: 0 | BE24: 0 | BF24: 0 | BG24: 0 | BH24: 0 | BI24: 0 | BJ24: 0 | BK24: 0 | BL24: 0 | BM24: 0 | BN24: 1 | BO24: 1 | BP24: 1 | BQ24: 0 | BR24: 0 | BS24: 0 | BT24: 0 | BU24: 0 | BV24: 0 | BW24: 0 | BX24: 0 | BY24: 0 | BZ24: 0 | CA24: 0 | CB24: 0 | CC24: 0 | CD24: 0 | CE24: 0 | CF24: 0 | CG24: 0 | CH24: 0 | CI24: 0 | CJ24: 0 | CK24: 0 | CL24: 0 | CM24: 0 | CN24: 0 | CO24: 0 | CP24: 0 | CQ24: 0 | CR24: 0 | CS24: 0 | CT24: 0 | CU24: 0 | CV24: 0 | CW24: 0 | CX24: 0 | CY24: 0 | CZ24: 0 | DA24: 0 | DB24: 0 | DC24: 0 | DD24: 0 | DE24: 0 | DF24: 0 | DG24: 0 | DH24: 0 | DI24: 0 | DJ24: 0 | DK24: 0 | DL24: 0 | DM24: 0 | DN24: 0 | DO24: 0 | DP24: 0 | DQ24: 0 | DR24: 0 | DS24: 0 | DT24: 0 | DU24: 0 | DV24: 0 | DW24: 0 | DX24: 0 | DY24: 0 | DZ24: 0 | EA24: 0 | EB24: 0 | EC24: 0 | ED24: 0 | EE24: 0 | EF24: 0 | EG24: 0 | EH24: 0 | EI24: 0 | EJ24: 0 | EK24: 0 | EL24: 0 | EM24: 0 | EN24: 0 | EO24: 0 | EP24: 0 | EQ24: 0 | ER24: 0 | ES24: 0 | ET24: 1 | EU24: 3 | EV24: 2 | EW24: 0 | EX24: 1 | EY24: 1 | EZ24: 0 | FA24: 0 | FB24: 0 | FC24: 0 | FD24: 0 | FE24: 0 | FF24: 0 | FG24: 0 | FH24: 0 | FI24: 0 | FJ24: 0 | FK24: 0 | FL24: 0 | FM24: 0 | FN24: 0 | FO24: 0 | FP24: 0 | FQ24: 0 | FR24: 0 | FS24: 0 | FT24: 0 | FU24: 0 | FV24: 0 | FW24: 0 | FX24: 0 | FY24: 0 | FZ24: 0 | GA24: 0 | GB24: 0 | GC24: 0 | GD24: 0 | GE24: 0 | GF24: 0 | GG24: 0 | GH24: 0 | GI24: 0 | GJ24: 0 | GK24: 0 | GL24: 0 | GM24: 0 | GN24: 0 | GO24: 0 | GP24: 0 | GQ24: 0 | GR24: 0 | GS24: 0 | GT24: 0 | GU24: 0 | GV24: 0 | GW24: 0 | GX24: 0 | GY24: 0 | GZ24: 0 | HA24: 0 | HB24: 0 | HC24: 0 | HD24: 0 | HE24: 0 | HF24: 0 | HG24: 0 | HH24: 0 | HI24: 0 | HJ24: 0 | HK24: 0 | HL24: 0 | HM24: 0 | HN24: 0 | HO24: 0 | HP24: 0 | HQ24: 0 | HR24: 0 | HS24: 0 | HT24: 0 | HU24: 0 | HV24: 1 | HW24: 1 | HX24: 0 | HY24: 0 | HZ24: 1 | IA24: 1 | IB24: 1 | IC24: 0 | ID24: 0 | IE24: 0 | IF24: 0 | IG24: 0 | IH24: 0 | II24: 0 | IJ24: 0 | IK24: 0 | IL24: 0 | IM24: 0 | IN24: 0 | IO24: 0 | IP24: 0 | IQ24: 0 | IR24: 0 | IS24: 0 | IT24: 0 | IU24: 0 | IV24: 0 | IW24: 0 | IX24: 0 | IY24: 0 | IZ24: 0 | JA24: 0 | JB24: 0 | JC24: 1 | JD24: 3 | JE24: 0 | JF24: 0 | JG24: 0 | JH24: 0 | JI24: 0 | JJ24: 0 | JK24: 0 | JL24: 0 | JM24: 0 | JN24: 0 | JO24: 0 | JP24: 0 | JQ24: 0 | JR24: 1 | JS24: 0 | JT24: 1 | JU24: 1 | JV24: 0 | JW24: 0 | JX24: 0 | JY24: 0 | JZ24: 0 | KA24: 0 | KB24: 0 | KC24: 0 | KD24: 0 | KE24: 0 | KF24: 0 | KG24: 0 | KH24: 0 | KI24: 0 | KJ24: 0 | KK24: 0 | KL24: 0 | KM24: 0 | KN24: 0 | KO24: 0 | KP24: 0 | KQ24: 0 | KR24: 0 | KS24: 0 | KT24: 1 | KU24: 0 | KV24: 1 | KW24: 1 | KX24: 0 | KY24: 0 | KZ24: 0 | LA24: 0 | LB24: 0 | LC24: 0 | LD24: 0 | LE24: 0 | LF24: 0 | LG24: 0 | LH24: 0 | LI24: 0 | LJ24: 0 | LK24: 0 | LL24: 0 | LM24: 0 | LN24: 0 | LO24: 0 | LP24: 0 | LQ24: 0 | LR24: 0 | LS24: 0 | LT24: 0 | LU24: 0 | LV24: 1 | LW24: 0 | LX24: 1 | LY24: 1 | LZ24: 0 | MA24: 0 | MB24: 0 | MC24: 0 | MD24: 0 | ME24: 0 | MF24: 0 | MG24: 0 | MH24: 0 | MI24: 0 | MJ24: 0 | MK24: 0 | ML24: 0 | MM24: 0 | MN24: 0 | MO24: 0 | MP24: 0 | MQ24: 0 | MR24: 0 | MS24: 0 | MT24: 0 | MU24: 0 | MV24: 0 | MW24: 0 | MX24: 0 | MY24: 0 | MZ24: 0 | NA24: 0 | NB24: 0 | NC24: 0 | ND24: 0 | NE24: 0 | NF24: 0 | NG24: 0 | NH24: 0 | NI24: 0 | NJ24: 0 | NK24: 0 | NL24: 0 | NM24: 0 | NN24: 0 | NO24: 0 | NP24: 0 | NQ24: 0 | NR24: 0 | NS24: 0 | NT24: 0 | NU24: 0 | NV24: 0 | NW24: 0 | NX24: 0 | NY24: 0 | NZ24: 0 | OA24: 0 | OB24: 0 | OC24: 0 | OD24: 0 | OE24: 0 | OF24: 0 | OG24: 0 | OH24: 0 | OI24: 0 | OJ24: 0 | OK24: 0 | OL24: 0 | OM24: 0 | ON24: 0 | OO24: 0 | OP24: 0 | OQ24: 0 | OR24: 0 | OS24: 0 | OT24: 0 | OU24: 0 | OV24: 0 | OW24: 0 | OX24: 0 | OY24: 0 | OZ24: 0 | PA24: 0 | PB24: 0 | PC24: 0 | PD24: 0 | PE24: 0 | PF24: 0 | PG24: 0 | PH24: 0 | PI24: 0 | PJ24: 0 | PK24: 0 | PL24: 0 | PM24: 0 | PN24: 0 | PO24: 0 | PP24: 0 | PQ24: 0 | PR24: 0 | PS24: 0 | PT24: 0 | PU24: 0 | PV24: 0 | PW24: 0 | PX24: 0 | PY24: 0 | PZ24: 0 | QA24: 0 | QB24: 0 | QC24: 0 | QD24: 0 | QE24: 0 | QF24: 0 | QG24: 0 | QH24: 0 | QI24: 0 | QJ24: 0 | QK24: 0 | QL24: 0 | QM24: 0 | QN24: 0 | QO24: 0 | QP24: 0 | QQ24: 0 | QR24: 0 | QS24: 1 | QT24: 1 | QU24: 1
A25: LUCIANO CASTILLO COLONNA | B25: AYABACA | C25: 200201 | D25: 1917 | E25: YANCHALA | F25: I-2 | G25: AYABACA | H25: NINGUN CLAS | I25: AYABACA | J25: AYABACA | K25: SALUD LUCIANO CASTILLO COLONNA | L25: 1 | M25: 0 | N25: 0 | O25: 0 | P25: 0 | Q25: 0 | R25: 0 | S25: 0 | T25: 0 | U25: 0 | V25: 0 | W25: 0 | X25: 0 | Y25: 0 | Z25: 2 | AA25: 8 | AB25: 5 | AC25: 0 | AD25: 1 | AE25: 1 | AF25: 1 | AG25: 0 | AH25: 0 | AI25: 0 | AJ25: 0 | AK25: 0 | AL25: 0 | AM25: 0 | AN25: 0 | AO25: 0 | AP25: 0 | AQ25: 0 | AR25: 0 | AS25: 0 | AT25: 0 | AU25: 0 | AV25: 0 | AW25: 0 | AX25: 0 | AY25: 0 | AZ25: 0 | BA25: 0 | BB25: 0 | BC25: 0 | BD25: 0 | BE25: 0 | BF25: 0 | BG25: 0 | BH25: 0 | BI25: 0 | BJ25: 0 | BK25: 0 | BL25: 0 | BM25: 0 | BN25: 0 | BO25: 0 | BP25: 0 | BQ25: 0 | BR25: 0 | BS25: 0 | BT25: 0 | BU25: 0 | BV25: 0 | BW25: 0 | BX25: 0 | BY25: 0 | BZ25: 0 | CA25: 0 | CB25: 0 | CC25: 0 | CD25: 0 | CE25: 0 | CF25: 0 | CG25: 0 | CH25: 0 | CI25: 0 | CJ25: 0 | CK25: 0 | CL25: 0 | CM25: 0 | CN25: 0 | CO25: 0 | CP25: 0 | CQ25: 0 | CR25: 0 | CS25: 0 | CT25: 0 | CU25: 0 | CV25: 0 | CW25: 0 | CX25: 0 | CY25: 0 | CZ25: 0 | DA25: 0 | DB25: 0 | DC25: 0 | DD25: 0 | DE25: 0 | DF25: 0 | DG25: 0 | DH25: 0 | DI25: 0 | DJ25: 0 | DK25: 0 | DL25: 0 | DM25: 0 | DN25: 0 | DO25: 0 | DP25: 0 | DQ25: 0 | DR25: 0 | DS25: 0 | DT25: 0 | DU25: 0 | DV25: 0 | DW25: 0 | DX25: 0 | DY25: 0 | DZ25: 0 | EA25: 0 | EB25: 0 | EC25: 0 | ED25: 0 | EE25: 0 | EF25: 0 | EG25: 0 | EH25: 0 | EI25: 0 | EJ25: 0 | EK25: 0 | EL25: 0 | EM25: 0 | EN25: 0 | EO25: 0 | EP25: 0 | EQ25: 0 | ER25: 0 | ES25: 0 | ET25: 0 | EU25: 0 | EV25: 0 | EW25: 0 | EX25: 0 | EY25: 0 | EZ25: 0 | FA25: 0 | FB25: 0 | FC25: 0 | FD25: 0 | FE25: 0 | FF25: 0 | FG25: 0 | FH25: 0 | FI25: 0 | FJ25: 0 | FK25: 0 | FL25: 0 | FM25: 0 | FN25: 0 | FO25: 0 | FP25: 0 | FQ25: 0 | FR25: 0 | FS25: 0 | FT25: 0 | FU25: 0 | FV25: 0 | FW25: 0 | FX25: 0 | FY25: 0 | FZ25: 0 | GA25: 0 | GB25: 1 | GC25: 0 | GD25: 0 | GE25: 0 | GF25: 0 | GG25: 0 | GH25: 0 | GI25: 0 | GJ25: 0 | GK25: 0 | GL25: 0 | GM25: 0 | GN25: 0 | GO25: 0 | GP25: 0 | GQ25: 0 | GR25: 0 | GS25: 0 | GT25: 0 | GU25: 0 | GV25: 0 | GW25: 0 | GX25: 0 | GY25: 0 | GZ25: 0 | HA25: 0 | HB25: 0 | HC25: 0 | HD25: 0 | HE25: 0 | HF25: 0 | HG25: 0 | HH25: 0 | HI25: 0 | HJ25: 0 | HK25: 0 | HL25: 0 | HM25: 0 | HN25: 0 | HO25: 0 | HP25: 0 | HQ25: 0 | HR25: 0 | HS25: 0 | HT25: 0 | HU25: 0 | HV25: 0 | HW25: 0 | HX25: 0 | HY25: 0 | HZ25: 1 | IA25: 1 | IB25: 1 | IC25: 0 | ID25: 0 | IE25: 0 | IF25: 0 | IG25: 0 | IH25: 0 | II25: 0 | IJ25: 0 | IK25: 0 | IL25: 0 | IM25: 0 | IN25: 0 | IO25: 0 | IP25: 0 | IQ25: 0 | IR25: 0 | IS25: 0 | IT25: 0 | IU25: 0 | IV25: 0 | IW25: 0 | IX25: 0 | IY25: 0 | IZ25: 0 | JA25: 0 | JB25: 0 | JC25: 0 | JD25: 0 | JE25: 0 | JF25: 0 | JG25: 0 | JH25: 0 | JI25: 0 | JJ25: 0 | JK25: 0 | JL25: 0 | JM25: 2 | JN25: 0 | JO25: 0 | JP25: 0 | JQ25: 0 | JR25: 0 | JS25: 0 | JT25: 0 | JU25: 0 | JV25: 0 | JW25: 0 | JX25: 0 | JY25: 0 | JZ25: 0 | KA25: 0 | KB25: 0 | KC25: 0 | KD25: 0 | KE25: 0 | KF25: 0 | KG25: 0 | KH25: 0 | KI25: 0 | KJ25: 0 | KK25: 0 | KL25: 0 | KM25: 0 | KN25: 0 | KO25: 0 | KP25: 0 | KQ25: 0 | KR25: 0 | KS25: 0 | KT25: 0 | KU25: 0 | KV25: 0 | KW25: 0 | KX25: 0 | KY25: 0 | KZ25: 0 | LA25: 0 | LB25: 0 | LC25: 0 | LD25: 0 | LE25: 0 | LF25: 0 | LG25: 0 | LH25: 0 | LI25: 0 | LJ25: 0 | LK25: 0 | LL25: 0 | LM25: 0 | LN25: 0 | LO25: 0 | LP25: 0 | LQ25: 0 | LR25: 0 | LS25: 0 | LT25: 0 | LU25: 0 | LV25: 0 | LW25: 0 | LX25: 0 | LY25: 0 | LZ25: 0 | MA25: 0 | MB25: 0 | MC25: 0 | MD25: 0 | ME25: 0 | MF25: 0 | MG25: 0 | MH25: 0 | MI25: 0 | MJ25: 0 | MK25: 0 | ML25: 0 | MM25: 0 | MN25: 0 | MO25: 0 | MP25: 0 | MQ25: 0 | MR25: 0 | MS25: 0 | MT25: 0 | MU25: 0 | MV25: 0 | MW25: 0 | MX25: 0 | MY25: 0 | MZ25: 0 | NA25: 0 | NB25: 0 | NC25: 0 | ND25: 0 | NE25: 0 | NF25: 0 | NG25: 0 | NH25: 0 | NI25: 0 | NJ25: 0 | NK25: 0 | NL25: 0 | NM25: 0 | NN25: 0 | NO25: 0 | NP25: 0 | NQ25: 0 | NR25: 0 | NS25: 0 | NT25: 0 | NU25: 0 | NV25: 0 | NW25: 0 | NX25: 0 | NY25: 0 | NZ25: 0 | OA25: 0 | OB25: 0 | OC25: 0 | OD25: 0 | OE25: 0 | OF25: 0 | OG25: 0 | OH25: 0 | OI25: 0 | OJ25: 0 | OK25: 0 | OL25: 0 | OM25: 0 | ON25: 0 | OO25: 0 | OP25: 0 | OQ25: 0 | OR25: 0 | OS25: 0 | OT25: 0 | OU25: 0 | OV25: 0 | OW25: 0 | OX25: 0 | OY25: 0 | OZ25: 0 | PA25: 0 | PB25: 0 | PC25: 0 | PD25: 0 | PE25: 0 | PF25: 0 | PG25: 0 | PH25: 0 | PI25: 0 | PJ25: 0 | PK25: 0 | PL25: 0 | PM25: 0 | PN25: 0 | PO25: 0 | PP25: 0 | PQ25: 0 | PR25: 0 | PS25: 0 | PT25: 0 | PU25: 0 | PV25: 0 | PW25: 0 | PX25: 0 | PY25: 0 | PZ25: 0 | QA25: 0 | QB25: 0 | QC25: 0 | QD25: 0 | QE25: 0 | QF25: 0 | QG25: 0 | QH25: 0 | QI25: 0 | QJ25: 0 | QK25: 0 | QL25: 0 | QM25: 0 | QN25: 0 | QO25: 0 | QP25: 0 | QQ25: 0 | QR25: 0 | QS25: 0 | QT25: 0 | QU25: 0
A26: LUCIANO CASTILLO COLONNA | B26: AYABACA | C26: 200201 | D26: 1918 | E26: ARREYPITE - PINGOLA | F26: I-1 | G26: AYABACA | H26: NINGUN CLAS | I26: AYABACA | J26: AYABACA | K26: SALUD LUCIANO CASTILLO COLONNA | L26: 3 | M26: 0 | N26: 0 | O26: 0 | P26: 1 | Q26: 0 | R26: 0 | S26: 1 | T26: 0 | U26: 0 | V26: 0 | W26: 0 | X26: 0 | Y26: 0 | Z26: 2 | AA26: 2 | AB26: 3 | AC26: 0 | AD26: 0 | AE26: 1 | AF26: 2 | AG26: 0 | AH26: 0 | AI26: 0 | AJ26: 0 | AK26: 0 | AL26: 0 | AM26: 0 | AN26: 0 | AO26: 0 | AP26: 0 | AQ26: 0 | AR26: 0 | AS26: 0 | AT26: 0 | AU26: 0 | AV26: 0 | AW26: 0 | AX26: 1 | AY26: 0 | AZ26: 0 | BA26: 0 | BB26: 0 | BC26: 0 | BD26: 0 | BE26: 0 | BF26: 0 | BG26: 0 | BH26: 0 | BI26: 0 | BJ26: 0 | BK26: 0 | BL26: 0 | BM26: 0 | BN26: 1 | BO26: 0 | BP26: 0 | BQ26: 0 | BR26: 0 | BS26: 0 | BT26: 0 | BU26: 0 | BV26: 0 | BW26: 0 | BX26: 0 | BY26: 0 | BZ26: 0 | CA26: 0 | CB26: 0 | CC26: 0 | CD26: 0 | CE26: 0 | CF26: 0 | CG26: 0 | CH26: 0 | CI26: 0 | CJ26: 0 | CK26: 0 | CL26: 0 | CM26: 0 | CN26: 0 | CO26: 0 | CP26: 0 | CQ26: 0 | CR26: 0 | CS26: 0 | CT26: 0 | CU26: 0 | CV26: 0 | CW26: 0 | CX26: 0 | CY26: 0 | CZ26: 0 | DA26: 0 | DB26: 0 | DC26: 0 | DD26: 0 | DE26: 0 | DF26: 0 | DG26: 0 | DH26: 0 | DI26: 0 | DJ26: 0 | DK26: 0 | DL26: 0 | DM26: 0 | DN26: 0 | DO26: 0 | DP26: 0 | DQ26: 0 | DR26: 0 | DS26: 0 | DT26: 0 | DU26: 0 | DV26: 0 | DW26: 0 | DX26: 0 | DY26: 0 | DZ26: 0 | EA26: 0 | EB26: 0 | EC26: 0 | ED26: 0 | EE26: 0 | EF26: 0 | EG26: 0 | EH26: 0 | EI26: 0 | EJ26: 0 | EK26: 0 | EL26: 0 | EM26: 0 | EN26: 0 | EO26: 0 | EP26: 0 | EQ26: 0 | ER26: 0 | ES26: 0 | ET26: 1 | EU26: 1 | EV26: 0 | EW26: 0 | EX26: 1 | EY26: 1 | EZ26: 0 | FA26: 0 | FB26: 0 | FC26: 0 | FD26: 0 | FE26: 0 | FF26: 0 | FG26: 0 | FH26: 0 | FI26: 0 | FJ26: 0 | FK26: 0 | FL26: 0 | FM26: 0 | FN26: 0 | FO26: 0 | FP26: 0 | FQ26: 0 | FR26: 0 | FS26: 0 | FT26: 0 | FU26: 0 | FV26: 0 | FW26: 0 | FX26: 0 | FY26: 0 | FZ26: 0 | GA26: 0 | GB26: 0 | GC26: 0 | GD26: 0 | GE26: 0 | GF26: 0 | GG26: 0 | GH26: 0 | GI26: 0 | GJ26: 0 | GK26: 0 | GL26: 0 | GM26: 0 | GN26: 0 | GO26: 0 | GP26: 0 | GQ26: 0 | GR26: 0 | GS26: 0 | GT26: 0 | GU26: 0 | GV26: 0 | GW26: 0 | GX26: 0 | GY26: 0 | GZ26: 0 | HA26: 0 | HB26: 0 | HC26: 0 | HD26: 0 | HE26: 0 | HF26: 0 | HG26: 0 | HH26: 0 | HI26: 0 | HJ26: 0 | HK26: 0 | HL26: 0 | HM26: 0 | HN26: 0 | HO26: 0 | HP26: 0 | HQ26: 0 | HR26: 0 | HS26: 0 | HT26: 0 | HU26: 0 | HV26: 0 | HW26: 0 | HX26: 0 | HY26: 0 | HZ26: 0 | IA26: 0 | IB26: 1 | IC26: 0 | ID26: 0 | IE26: 0 | IF26: 0 | IG26: 0 | IH26: 1 | II26: 0 | IJ26: 0 | IK26: 0 | IL26: 0 | IM26: 0 | IN26: 0 | IO26: 0 | IP26: 0 | IQ26: 0 | IR26: 0 | IS26: 0 | IT26: 0 | IU26: 0 | IV26: 1 | IW26: 0 | IX26: 0 | IY26: 0 | IZ26: 0 | JA26: 0 | JB26: 0 | JC26: 0 | JD26: 0 | JE26: 0 | JF26: 0 | JG26: 0 | JH26: 1 | JI26: 0 | JJ26: 0 | JK26: 0 | JL26: 0 | JM26: 1 | JN26: 0 | JO26: 0 | JP26: 1 | JQ26: 0 | JR26: 0 | JS26: 0 | JT26: 0 | JU26: 0 | JV26: 0 | JW26: 0 | JX26: 0 | JY26: 0 | JZ26: 0 | KA26: 0 | KB26: 0 | KC26: 0 | KD26: 0 | KE26: 0 | KF26: 0 | KG26: 0 | KH26: 0 | KI26: 0 | KJ26: 0 | KK26: 0 | KL26: 0 | KM26: 0 | KN26: 0 | KO26: 0 | KP26: 0 | KQ26: 0 | KR26: 1 | KS26: 0 | KT26: 0 | KU26: 0 | KV26: 0 | KW26: 0 | KX26: 0 | KY26: 0 | KZ26: 0 | LA26: 0 | LB26: 0 | LC26: 0 | LD26: 0 | LE26: 0 | LF26: 0 | LG26: 0 | LH26: 0 | LI26: 0 | LJ26: 0 | LK26: 0 | LL26: 0 | LM26: 0 | LN26: 0 | LO26: 0 | LP26: 0 | LQ26: 0 | LR26: 0 | LS26: 0 | LT26: 1 | LU26: 0 | LV26: 0 | LW26: 0 | LX26: 0 | LY26: 0 | LZ26: 0 | MA26: 0 | MB26: 0 | MC26: 0 | MD26: 0 | ME26: 0 | MF26: 0 | MG26: 0 | MH26: 0 | MI26: 0 | MJ26: 0 | MK26: 0 | ML26: 0 | MM26: 0 | MN26: 0 | MO26: 0 | MP26: 0 | MQ26: 0 | MR26: 0 | MS26: 0 | MT26: 0 | MU26: 0 | MV26: 0 | MW26: 0 | MX26: 0 | MY26: 0 | MZ26: 0 | NA26: 0 | NB26: 0 | NC26: 0 | ND26: 0 | NE26: 0 | NF26: 0 | NG26: 0 | NH26: 0 | NI26: 0 | NJ26: 0 | NK26: 0 | NL26: 0 | NM26: 0 | NN26: 0 | NO26: 0 | NP26: 0 | NQ26: 0 | NR26: 0 | NS26: 0 | NT26: 0 | NU26: 0 | NV26: 0 | NW26: 0 | NX26: 0 | NY26: 0 | NZ26: 0 | OA26: 0 | OB26: 0 | OC26: 0 | OD26: 0 | OE26: 0 | OF26: 0 | OG26: 0 | OH26: 0 | OI26: 0 | OJ26: 0 | OK26: 0 | OL26: 0 | OM26: 0 | ON26: 0 | OO26: 0 | OP26: 0 | OQ26: 0 | OR26: 0 | OS26: 0 | OT26: 0 | OU26: 0 | OV26: 0 | OW26: 0 | OX26: 0 | OY26: 0 | OZ26: 0 | PA26: 0 | PB26: 0 | PC26: 0 | PD26: 0 | PE26: 0 | PF26: 0 | PG26: 0 | PH26: 0 | PI26: 0 | PJ26: 0 | PK26: 0 | PL26: 0 | PM26: 0 | PN26: 0 | PO26: 0 | PP26: 0 | PQ26: 0 | PR26: 0 | PS26: 0 | PT26: 0 | PU26: 0 | PV26: 0 | PW26: 0 | PX26: 0 | PY26: 0 | PZ26: 0 | QA26: 0 | QB26: 0 | QC26: 0 | QD26: 0 | QE26: 0 | QF26: 0 | QG26: 0 | QH26: 0 | QI26: 0 | QJ26: 0 | QK26: 0 | QL26: 0 | QM26: 0 | QN26: 0 | QO26: 0 | QP26: 0 | QQ26: 0 | QR26: 0 | QS26: 1 | QT26: 0 | QU26: 0
A27: LUCIANO CASTILLO COLONNA | B27: AYABACA | C27: 200201 | D27: 1918 | E27: ARREYPITE - PINGOLA | F27: I-1 | G27: AYABACA | H27: NINGUN CLAS | I27: AYABACA | J27: AYABACA | K27: SALUD LUCIANO CASTILLO COLONNA | L27: 2 | M27: 0 | N27: 0 | O27: 0 | P27: 1 | Q27: 0 | R27: 0 | S27: 0 | T27: 0 | U27: 0 | V27: 0 | W27: 0 | X27: 0 | Y27: 0 | Z27: 1 | AA27: 1 | AB27: 5 | AC27: 0 | AD27: 0 | AE27: 0 | AF27: 0 | AG27: 0 | AH27: 0 | AI27: 0 | AJ27: 0 | AK27: 0 | AL27: 0 | AM27: 0 | AN27: 0 | AO27: 0 | AP27: 0 | AQ27: 0 | AR27: 0 | AS27: 0 | AT27: 0 | AU27: 0 | AV27: 0 | AW27: 0 | AX27: 0 | AY27: 0 | AZ27: 1 | BA27: 0 | BB27: 0 | BC27: 0 | BD27: 0 | BE27: 0 | BF27: 0 | BG27: 0 | BH27: 0 | BI27: 0 | BJ27: 0 | BK27: 0 | BL27: 0 | BM27: 0 | BN27: 0 | BO27: 0 | BP27: 3 | BQ27: 0 | BR27: 0 | BS27: 0 | BT27: 0 | BU27: 0 | BV27: 0 | BW27: 0 | BX27: 0 | BY27: 0 | BZ27: 0 | CA27: 0 | CB27: 0 | CC27: 0 | CD27: 0 | CE27: 0 | CF27: 0 | CG27: 0 | CH27: 0 | CI27: 0 | CJ27: 0 | CK27: 0 | CL27: 0 | CM27: 0 | CN27: 0 | CO27: 0 | CP27: 0 | CQ27: 0 | CR27: 0 | CS27: 0 | CT27: 0 | CU27: 0 | CV27: 0 | CW27: 0 | CX27: 0 | CY27: 0 | CZ27: 0 | DA27: 0 | DB27: 0 | DC27: 0 | DD27: 0 | DE27: 0 | DF27: 0 | DG27: 0 | DH27: 0 | DI27: 0 | DJ27: 0 | DK27: 0 | DL27: 0 | DM27: 0 | DN27: 0 | DO27: 0 | DP27: 0 | DQ27: 0 | DR27: 0 | DS27: 0 | DT27: 0 | DU27: 0 | DV27: 0 | DW27: 0 | DX27: 0 | DY27: 0 | DZ27: 0 | EA27: 0 | EB27: 0 | EC27: 0 | ED27: 0 | EE27: 0 | EF27: 0 | EG27: 0 | EH27: 0 | EI27: 0 | EJ27: 0 | EK27: 0 | EL27: 0 | EM27: 0 | EN27: 0 | EO27: 0 | EP27: 0 | EQ27: 0 | ER27: 0 | ES27: 0 | ET27: 0 | EU27: 0 | EV27: 0 | EW27: 0 | EX27: 1 | EY27: 0 | EZ27: 0 | FA27: 0 | FB27: 0 | FC27: 0 | FD27: 0 | FE27: 0 | FF27: 0 | FG27: 0 | FH27: 0 | FI27: 0 | FJ27: 0 | FK27: 0 | FL27: 0 | FM27: 0 | FN27: 0 | FO27: 0 | FP27: 0 | FQ27: 0 | FR27: 0 | FS27: 0 | FT27: 0 | FU27: 0 | FV27: 0 | FW27: 0 | FX27: 0 | FY27: 0 | FZ27: 0 | GA27: 0 | GB27: 0 | GC27: 0 | GD27: 0 | GE27: 0 | GF27: 0 | GG27: 0 | GH27: 0 | GI27: 0 | GJ27: 0 | GK27: 0 | GL27: 0 | GM27: 0 | GN27: 0 | GO27: 0 | GP27: 0 | GQ27: 0 | GR27: 0 | GS27: 0 | GT27: 0 | GU27: 0 | GV27: 0 | GW27: 0 | GX27: 0 | GY27: 0 | GZ27: 0 | HA27: 0 | HB27: 0 | HC27: 0 | HD27: 0 | HE27: 0 | HF27: 0 | HG27: 0 | HH27: 0 | HI27: 0 | HJ27: 0 | HK27: 0 | HL27: 0 | HM27: 0 | HN27: 0 | HO27: 0 | HP27: 0 | HQ27: 0 | HR27: 0 | HS27: 0 | HT27: 0 | HU27: 0 | HV27: 0 | HW27: 0 | HX27: 0 | HY27: 0 | HZ27: 0 | IA27: 0 | IB27: 1 | IC27: 0 | ID27: 0 | IE27: 0 | IF27: 0 | IG27: 0 | IH27: 0 | II27: 0 | IJ27: 0 | IK27: 0 | IL27: 0 | IM27: 0 | IN27: 0 | IO27: 0 | IP27: 0 | IQ27: 0 | IR27: 1 | IS27: 0 | IT27: 0 | IU27: 0 | IV27: 1 | IW27: 0 | IX27: 0 | IY27: 0 | IZ27: 0 | JA27: 0 | JB27: 0 | JC27: 0 | JD27: 1 | JE27: 0 | JF27: 0 | JG27: 1 | JH27: 0 | JI27: 0 | JJ27: 0 | JK27: 0 | JL27: 0 | JM27: 1 | JN27: 0 | JO27: 0 | JP27: 0 | JQ27: 0 | JR27: 0 | JS27: 0 | JT27: 0 | JU27: 0 | JV27: 1 | JW27: 0 | JX27: 0 | JY27: 0 | JZ27: 0 | KA27: 0 | KB27: 0 | KC27: 0 | KD27: 0 | KE27: 0 | KF27: 0 | KG27: 0 | KH27: 2 | KI27: 0 | KJ27: 0 | KK27: 0 | KL27: 0 | KM27: 0 | KN27: 0 | KO27: 0 | KP27: 0 | KQ27: 0 | KR27: 0 | KS27: 0 | KT27: 0 | KU27: 0 | KV27: 0 | KW27: 0 | KX27: 1 | KY27: 0 | KZ27: 0 | LA27: 0 | LB27: 0 | LC27: 0 | LD27: 0 | LE27: 0 | LF27: 0 | LG27: 0 | LH27: 0 | LI27: 0 | LJ27: 0 | LK27: 0 | LL27: 0 | LM27: 0 | LN27: 0 | LO27: 0 | LP27: 0 | LQ27: 0 | LR27: 0 | LS27: 0 | LT27: 0 | LU27: 0 | LV27: 0 | LW27: 0 | LX27: 0 | LY27: 0 | LZ27: 1 | MA27: 0 | MB27: 0 | MC27: 0 | MD27: 0 | ME27: 0 | MF27: 0 | MG27: 0 | MH27: 0 | MI27: 0 | MJ27: 0 | MK27: 0 | ML27: 0 | MM27: 0 | MN27: 0 | MO27: 0 | MP27: 0 | MQ27: 0 | MR27: 0 | MS27: 0 | MT27: 0 | MU27: 0 | MV27: 0 | MW27: 0 | MX27: 0 | MY27: 0 | MZ27: 0 | NA27: 0 | NB27: 0 | NC27: 0 | ND27: 0 | NE27: 0 | NF27: 0 | NG27: 0 | NH27: 0 | NI27: 0 | NJ27: 0 | NK27: 0 | NL27: 0 | NM27: 0 | NN27: 0 | NO27: 0 | NP27: 0 | NQ27: 0 | NR27: 0 | NS27: 0 | NT27: 0 | NU27: 0 | NV27: 0 | NW27: 0 | NX27: 0 | NY27: 0 | NZ27: 0 | OA27: 0 | OB27: 0 | OC27: 0 | OD27: 0 | OE27: 0 | OF27: 0 | OG27: 0 | OH27: 0 | OI27: 0 | OJ27: 0 | OK27: 0 | OL27: 0 | OM27: 0 | ON27: 0 | OO27: 0 | OP27: 0 | OQ27: 0 | OR27: 0 | OS27: 0 | OT27: 0 | OU27: 0 | OV27: 0 | OW27: 0 | OX27: 0 | OY27: 0 | OZ27: 0 | PA27: 0 | PB27: 0 | PC27: 0 | PD27: 0 | PE27: 0 | PF27: 0 | PG27: 0 | PH27: 0 | PI27: 0 | PJ27: 0 | PK27: 0 | PL27: 0 | PM27: 0 | PN27: 0 | PO27: 0 | PP27: 0 | PQ27: 0 | PR27: 0 | PS27: 0 | PT27: 0 | PU27: 0 | PV27: 0 | PW27: 0 | PX27: 0 | PY27: 0 | PZ27: 0 | QA27: 0 | QB27: 0 | QC27: 0 | QD27: 0 | QE27: 0 | QF27: 0 | QG27: 0 | QH27: 0 | QI27: 0 | QJ27: 0 | QK27: 0 | QL27: 0 | QM27: 0 | QN27: 0 | QO27: 0 | QP27: 0 | QQ27: 0 | QR27: 0 | QS27: 0 | QT27: 0 | QU27: 0
A28: LUCIANO CASTILLO COLONNA | B28: AYABACA | C28: 200201 | D28: 1918 | E28: ARREYPITE - PINGOLA | F28: I-1 | G28: AYABACA | H28: NINGUN CLAS | I28: AYABACA | J28: AYABACA | K28: SALUD LUCIANO CASTILLO COLONNA | L28: 1 | M28: 0 | N28: 0 | O28: 0 | P28: 1 | Q28: 0 | R28: 0 | S28: 0 | T28: 0 | U28: 0 | V28: 0 | W28: 0 | X28: 0 | Y28: 0 | Z28: 1 | AA28: 4 | AB28: 10 | AC28: 0 | AD28: 0 | AE28: 1 | AF28: 2 | AG28: 0 | AH28: 0 | AI28: 0 | AJ28: 0 | AK28: 0 | AL28: 0 | AM28: 0 | AN28: 0 | AO28: 0 | AP28: 0 | AQ28: 0 | AR28: 0 | AS28: 0 | AT28: 0 | AU28: 0 | AV28: 0 | AW28: 0 | AX28: 0 | AY28: 0 | AZ28: 1 | BA28: 0 | BB28: 0 | BC28: 0 | BD28: 0 | BE28: 0 | BF28: 0 | BG28: 0 | BH28: 0 | BI28: 0 | BJ28: 0 | BK28: 0 | BL28: 0 | BM28: 0 | BN28: 0 | BO28: 0 | BP28: 2 | BQ28: 0 | BR28: 0 | BS28: 0 | BT28: 0 | BU28: 0 | BV28: 0 | BW28: 0 | BX28: 0 | BY28: 0 | BZ28: 0 | CA28: 0 | CB28: 0 | CC28: 0 | CD28: 0 | CE28: 0 | CF28: 0 | CG28: 0 | CH28: 0 | CI28: 0 | CJ28: 0 | CK28: 0 | CL28: 0 | CM28: 0 | CN28: 0 | CO28: 0 | CP28: 0 | CQ28: 0 | CR28: 0 | CS28: 0 | CT28: 0 | CU28: 0 | CV28: 0 | CW28: 0 | CX28: 0 | CY28: 0 | CZ28: 0 | DA28: 0 | DB28: 0 | DC28: 0 | DD28: 0 | DE28: 0 | DF28: 0 | DG28: 0 | DH28: 0 | DI28: 0 | DJ28: 0 | DK28: 0 | DL28: 0 | DM28: 0 | DN28: 0 | DO28: 0 | DP28: 0 | DQ28: 0 | DR28: 0 | DS28: 0 | DT28: 0 | DU28: 0 | DV28: 0 | DW28: 0 | DX28: 0 | DY28: 0 | DZ28: 0 | EA28: 0 | EB28: 0 | EC28: 0 | ED28: 0 | EE28: 0 | EF28: 0 | EG28: 0 | EH28: 0 | EI28: 0 | EJ28: 0 | EK28: 0 | EL28: 0 | EM28: 0 | EN28: 0 | EO28: 0 | EP28: 0 | EQ28: 0 | ER28: 0 | ES28: 0 | ET28: 0 | EU28: 0 | EV28: 0 | EW28: 0 | EX28: 1 | EY28: 0 | EZ28: 0 | FA28: 0 | FB28: 0 | FC28: 0 | FD28: 0 | FE28: 0 | FF28: 0 | FG28: 0 | FH28: 0 | FI28: 0 | FJ28: 0 | FK28: 0 | FL28: 0 | FM28: 0 | FN28: 0 | FO28: 0 | FP28: 0 | FQ28: 0 | FR28: 0 | FS28: 0 | FT28: 0 | FU28: 0 | FV28: 0 | FW28: 0 | FX28: 0 | FY28: 0 | FZ28: 0 | GA28: 0 | GB28: 0 | GC28: 0 | GD28: 0 | GE28: 0 | GF28: 0 | GG28: 0 | GH28: 0 | GI28: 0 | GJ28: 0 | GK28: 0 | GL28: 0 | GM28: 0 | GN28: 0 | GO28: 0 | GP28: 0 | GQ28: 0 | GR28: 0 | GS28: 0 | GT28: 0 | GU28: 0 | GV28: 0 | GW28: 0 | GX28: 0 | GY28: 0 | GZ28: 0 | HA28: 0 | HB28: 0 | HC28: 0 | HD28: 0 | HE28: 0 | HF28: 0 | HG28: 0 | HH28: 0 | HI28: 0 | HJ28: 0 | HK28: 0 | HL28: 0 | HM28: 0 | HN28: 0 | HO28: 0 | HP28: 0 | HQ28: 0 | HR28: 0 | HS28: 0 | HT28: 0 | HU28: 0 | HV28: 0 | HW28: 0 | HX28: 1 | HY28: 0 | HZ28: 0 | IA28: 1 | IB28: 2 | IC28: 0 | ID28: 0 | IE28: 0 | IF28: 0 | IG28: 0 | IH28: 0 | II28: 0 | IJ28: 0 | IK28: 0 | IL28: 0 | IM28: 0 | IN28: 0 | IO28: 0 | IP28: 0 | IQ28: 1 | IR28: 0 | IS28: 0 | IT28: 0 | IU28: 1 | IV28: 2 | IW28: 0 | IX28: 0 | IY28: 0 | IZ28: 0 | JA28: 0 | JB28: 0 | JC28: 1 | JD28: 0 | JE28: 0 | JF28: 0 | JG28: 0 | JH28: 0 | JI28: 0 | JJ28: 0 | JK28: 0 | JL28: 0 | JM28: 1 | JN28: 0 | JO28: 0 | JP28: 0 | JQ28: 0 | JR28: 0 | JS28: 0 | JT28: 0 | JU28: 0 | JV28: 0 | JW28: 0 | JX28: 0 | JY28: 0 | JZ28: 0 | KA28: 0 | KB28: 0 | KC28: 0 | KD28: 0 | KE28: 0 | KF28: 0 | KG28: 0 | KH28: 0 | KI28: 0 | KJ28: 0 | KK28: 0 | KL28: 0 | KM28: 0 | KN28: 0 | KO28: 0 | KP28: 0 | KQ28: 0 | KR28: 0 | KS28: 0 | KT28: 0 | KU28: 0 | KV28: 0 | KW28: 0 | KX28: 0 | KY28: 0 | KZ28: 0 | LA28: 0 | LB28: 0 | LC28: 0 | LD28: 0 | LE28: 0 | LF28: 0 | LG28: 0 | LH28: 0 | LI28: 0 | LJ28: 0 | LK28: 0 | LL28: 0 | LM28: 0 | LN28: 0 | LO28: 0 | LP28: 0 | LQ28: 0 | LR28: 0 | LS28: 0 | LT28: 0 | LU28: 0 | LV28: 0 | LW28: 0 | LX28: 0 | LY28: 0 | LZ28: 0 | MA28: 0 | MB28: 0 | MC28: 0 | MD28: 0 | ME28: 0 | MF28: 0 | MG28: 0 | MH28: 0 | MI28: 0 | MJ28: 0 | MK28: 0 | ML28: 0 | MM28: 0 | MN28: 0 | MO28: 0 | MP28: 0 | MQ28: 0 | MR28: 0 | MS28: 0 | MT28: 0 | MU28: 0 | MV28: 0 | MW28: 0 | MX28: 0 | MY28: 0 | MZ28: 0 | NA28: 0 | NB28: 0 | NC28: 0 | ND28: 0 | NE28: 0 | NF28: 0 | NG28: 0 | NH28: 0 | NI28: 0 | NJ28: 0 | NK28: 0 | NL28: 0 | NM28: 0 | NN28: 0 | NO28: 0 | NP28: 0 | NQ28: 0 | NR28: 0 | NS28: 0 | NT28: 0 | NU28: 0 | NV28: 0 | NW28: 0 | NX28: 0 | NY28: 0 | NZ28: 0 | OA28: 0 | OB28: 0 | OC28: 0 | OD28: 0 | OE28: 0 | OF28: 0 | OG28: 0 | OH28: 0 | OI28: 0 | OJ28: 0 | OK28: 0 | OL28: 0 | OM28: 0 | ON28: 0 | OO28: 0 | OP28: 0 | OQ28: 0 | OR28: 0 | OS28: 0 | OT28: 0 | OU28: 0 | OV28: 0 | OW28: 0 | OX28: 0 | OY28: 0 | OZ28: 0 | PA28: 0 | PB28: 0 | PC28: 0 | PD28: 0 | PE28: 0 | PF28: 0 | PG28: 0 | PH28: 0 | PI28: 0 | PJ28: 0 | PK28: 0 | PL28: 0 | PM28: 0 | PN28: 0 | PO28: 0 | PP28: 0 | PQ28: 0 | PR28: 0 | PS28: 0 | PT28: 0 | PU28: 0 | PV28: 0 | PW28: 0 | PX28: 0 | PY28: 0 | PZ28: 0 | QA28: 0 | QB28: 0 | QC28: 0 | QD28: 0 | QE28: 0 | QF28: 0 | QG28: 0 | QH28: 0 | QI28: 0 | QJ28: 0 | QK28: 0 | QL28: 0 | QM28: 0 | QN28: 0 | QO28: 0 | QP28: 0 | QQ28: 0 | QR28: 0 | QS28: 0 | QT28: 0 | QU28: 0
A29: LUCIANO CASTILLO COLONNA | B29: AYABACA | C29: 200201 | D29: 1919 | E29: CALVAS DE SAMANGA | F29: I-1 | G29: AYABACA | H29: NINGUN CLAS | I29: AYABACA | J29: AYABACA | K29: SALUD LUCIANO CASTILLO COLONNA | L29: 1 | M29: 0 | N29: 0 | O29: 0 | P29: 1 | Q29: 0 | R29: 0 | S29: 0 | T29: 0 | U29: 0 | V29: 0 | W29: 0 | X29: 0 | Y29: 0 | Z29: 1 | AA29: 0 | AB29: 0 | AC29: 0 | AD29: 0 | AE29: 0 | AF29: 0 | AG29: 0 | AH29: 0 | AI29: 0 | AJ29: 0 | AK29: 0 | AL29: 0 | AM29: 0 | AN29: 0 | AO29: 0 | AP29: 1 | AQ29: 0 | AR29: 0 | AS29: 0 | AT29: 0 | AU29: 0 | AV29: 0 | AW29: 0 | AX29: 1 | AY29: 0 | AZ29: 0 | BA29: 0 | BB29: 0 | BC29: 0 | BD29: 0 | BE29: 0 | BF29: 0 | BG29: 0 | BH29: 0 | BI29: 0 | BJ29: 0 | BK29: 0 | BL29: 0 | BM29: 0 | BN29: 1 | BO29: 0 | BP29: 0 | BQ29: 0 | BR29: 1 | BS29: 0 | BT29: 0 | BU29: 0 | BV29: 0 | BW29: 0 | BX29: 0 | BY29: 0 | BZ29: 0 | CA29: 0 | CB29: 0 | CC29: 0 | CD29: 0 | CE29: 0 | CF29: 0 | CG29: 0 | CH29: 0 | CI29: 0 | CJ29: 0 | CK29: 0 | CL29: 0 | CM29: 0 | CN29: 0 | CO29: 0 | CP29: 0 | CQ29: 0 | CR29: 0 | CS29: 0 | CT29: 0 | CU29: 0 | CV29: 0 | CW29: 0 | CX29: 0 | CY29: 0 | CZ29: 0 | DA29: 0 | DB29: 0 | DC29: 0 | DD29: 0 | DE29: 0 | DF29: 0 | DG29: 0 | DH29: 0 | DI29: 0 | DJ29: 0 | DK29: 0 | DL29: 0 | DM29: 0 | DN29: 0 | DO29: 0 | DP29: 0 | DQ29: 0 | DR29: 0 | DS29: 0 | DT29: 0 | DU29: 0 | DV29: 0 | DW29: 0 | DX29: 0 | DY29: 0 | DZ29: 0 | EA29: 0 | EB29: 0 | EC29: 0 | ED29: 0 | EE29: 0 | EF29: 0 | EG29: 0 | EH29: 0 | EI29: 0 | EJ29: 0 | EK29: 0 | EL29: 0 | EM29: 0 | EN29: 0 | EO29: 0 | EP29: 0 | EQ29: 0 | ER29: 0 | ES29: 0 | ET29: 1 | EU29: 0 | EV29: 0 | EW29: 0 | EX29: 1 | EY29: 0 | EZ29: 0 | FA29: 0 | FB29: 0 | FC29: 0 | FD29: 0 | FE29: 0 | FF29: 0 | FG29: 0 | FH29: 0 | FI29: 0 | FJ29: 0 | FK29: 0 | FL29: 0 | FM29: 0 | FN29: 0 | FO29: 0 | FP29: 0 | FQ29: 0 | FR29: 0 | FS29: 0 | FT29: 0 | FU29: 0 | FV29: 0 | FW29: 0 | FX29: 0 | FY29: 0 | FZ29: 0 | GA29: 0 | GB29: 0 | GC29: 0 | GD29: 0 | GE29: 0 | GF29: 0 | GG29: 0 | GH29: 0 | GI29: 0 | GJ29: 0 | GK29: 0 | GL29: 0 | GM29: 0 | GN29: 0 | GO29: 0 | GP29: 0 | GQ29: 0 | GR29: 0 | GS29: 0 | GT29: 0 | GU29: 0 | GV29: 0 | GW29: 0 | GX29: 0 | GY29: 0 | GZ29: 0 | HA29: 0 | HB29: 0 | HC29: 0 | HD29: 0 | HE29: 0 | HF29: 0 | HG29: 0 | HH29: 0 | HI29: 0 | HJ29: 0 | HK29: 0 | HL29: 0 | HM29: 0 | HN29: 0 | HO29: 0 | HP29: 0 | HQ29: 0 | HR29: 0 | HS29: 0 | HT29: 0 | HU29: 0 | HV29: 0 | HW29: 0 | HX29: 0 | HY29: 0 | HZ29: 0 | IA29: 0 | IB29: 0 | IC29: 0 | ID29: 0 | IE29: 0 | IF29: 0 | IG29: 0 | IH29: 1 | II29: 0 | IJ29: 0 | IK29: 0 | IL29: 0 | IM29: 0 | IN29: 0 | IO29: 0 | IP29: 0 | IQ29: 0 | IR29: 0 | IS29: 0 | IT29: 0 | IU29: 0 | IV29: 0 | IW29: 0 | IX29: 0 | IY29: 0 | IZ29: 0 | JA29: 0 | JB29: 0 | JC29: 0 | JD29: 0 | JE29: 0 | JF29: 0 | JG29: 0 | JH29: 0 | JI29: 0 | JJ29: 0 | JK29: 0 | JL29: 0 | JM29: 0 | JN29: 0 | JO29: 0 | JP29: 1 | JQ29: 0 | JR29: 0 | JS29: 0 | JT29: 0 | JU29: 0 | JV29: 0 | JW29: 0 | JX29: 0 | JY29: 0 | JZ29: 0 | KA29: 0 | KB29: 0 | KC29: 0 | KD29: 0 | KE29: 0 | KF29: 0 | KG29: 0 | KH29: 0 | KI29: 0 | KJ29: 0 | KK29: 0 | KL29: 0 | KM29: 0 | KN29: 0 | KO29: 0 | KP29: 0 | KQ29: 0 | KR29: 1 | KS29: 0 | KT29: 0 | KU29: 0 | KV29: 0 | KW29: 0 | KX29: 0 | KY29: 0 | KZ29: 0 | LA29: 0 | LB29: 0 | LC29: 0 | LD29: 0 | LE29: 0 | LF29: 0 | LG29: 0 | LH29: 0 | LI29: 0 | LJ29: 0 | LK29: 0 | LL29: 0 | LM29: 0 | LN29: 0 | LO29: 0 | LP29: 0 | LQ29: 0 | LR29: 0 | LS29: 0 | LT29: 0 | LU29: 0 | LV29: 0 | LW29: 0 | LX29: 0 | LY29: 0 | LZ29: 0 | MA29: 0 | MB29: 0 | MC29: 0 | MD29: 0 | ME29: 0 | MF29: 0 | MG29: 0 | MH29: 0 | MI29: 0 | MJ29: 0 | MK29: 0 | ML29: 0 | MM29: 0 | MN29: 0 | MO29: 0 | MP29: 0 | MQ29: 0 | MR29: 0 | MS29: 0 | MT29: 0 | MU29: 0 | MV29: 0 | MW29: 0 | MX29: 0 | MY29: 0 | MZ29: 0 | NA29: 0 | NB29: 0 | NC29: 0 | ND29: 0 | NE29: 0 | NF29: 0 | NG29: 0 | NH29: 0 | NI29: 0 | NJ29: 0 | NK29: 0 | NL29: 0 | NM29: 0 | NN29: 0 | NO29: 0 | NP29: 0 | NQ29: 0 | NR29: 0 | NS29: 0 | NT29: 0 | NU29: 0 | NV29: 0 | NW29: 0 | NX29: 0 | NY29: 0 | NZ29: 0 | OA29: 0 | OB29: 0 | OC29: 0 | OD29: 0 | OE29: 0 | OF29: 0 | OG29: 0 | OH29: 0 | OI29: 0 | OJ29: 0 | OK29: 0 | OL29: 0 | OM29: 0 | ON29: 0 | OO29: 0 | OP29: 0 | OQ29: 0 | OR29: 0 | OS29: 0 | OT29: 0 | OU29: 0 | OV29: 0 | OW29: 0 | OX29: 0 | OY29: 0 | OZ29: 0 | PA29: 0 | PB29: 0 | PC29: 0 | PD29: 0 | PE29: 0 | PF29: 0 | PG29: 0 | PH29: 0 | PI29: 0 | PJ29: 0 | PK29: 0 | PL29: 0 | PM29: 0 | PN29: 0 | PO29: 0 | PP29: 0 | PQ29: 0 | PR29: 0 | PS29: 0 | PT29: 0 | PU29: 0 | PV29: 0 | PW29: 0 | PX29: 0 | PY29: 0 | PZ29: 0 | QA29: 0 | QB29: 0 | QC29: 0 | QD29: 0 | QE29: 0 | QF29: 0 | QG29: 0 | QH29: 0 | QI29: 0 | QJ29: 0 | QK29: 0 | QL29: 0 | QM29: 0 | QN29: 0 | QO29: 0 | QP29: 0 | QQ29: 0 | QR29: 0 | QS29: 1 | QT29: 0 | QU29: 0
A30: LUCIANO CASTILLO COLONNA | B30: AYABACA | C30: 200201 | D30: 1919 | E30: CALVAS DE SAMANGA | F30: I-1 | G30: AYABACA | H30: NINGUN CLAS | I30: AYABACA | J30: AYABACA | K30: SALUD LUCIANO CASTILLO COLONNA | L30: 2 | M30: 0 | N30: 0 | O30: 0 | P30: 0 | Q30: 0 | R30: 0 | S30: 0 | T30: 0 | U30: 0 | V30: 0 | W30: 0 | X30: 0 | Y30: 0 | Z30: 0 | AA30: 0 | AB30: 0 | AC30: 0 | AD30: 0 | AE30: 0 | AF30: 0 | AG30: 0 | AH30: 0 | AI30: 0 | AJ30: 0 | AK30: 0 | AL30: 0 | AM30: 0 | AN30: 0 | AO30: 0 | AP30: 0 | AQ30: 0 | AR30: 0 | AS30: 0 | AT30: 0 | AU30: 0 | AV30: 0 | AW30: 0 | AX30: 0 | AY30: 0 | AZ30: 0 | BA30: 0 | BB30: 0 | BC30: 0 | BD30: 0 | BE30: 0 | BF30: 0 | BG30: 0 | BH30: 0 | BI30: 0 | BJ30: 0 | BK30: 0 | BL30: 0 | BM30: 0 | BN30: 0 | BO30: 0 | BP30: 0 | BQ30: 0 | BR30: 0 | BS30: 0 | BT30: 0 | BU30: 0 | BV30: 0 | BW30: 0 | BX30: 0 | BY30: 0 | BZ30: 0 | CA30: 0 | CB30: 0 | CC30: 0 | CD30: 0 | CE30: 0 | CF30: 0 | CG30: 0 | CH30: 0 | CI30: 0 | CJ30: 0 | CK30: 0 | CL30: 0 | CM30: 0 | CN30: 0 | CO30: 0 | CP30: 0 | CQ30: 0 | CR30: 0 | CS30: 0 | CT30: 0 | CU30: 0 | CV30: 0 | CW30: 0 | CX30: 0 | CY30: 0 | CZ30: 0 | DA30: 0 | DB30: 0 | DC30: 0 | DD30: 0 | DE30: 0 | DF30: 0 | DG30: 0 | DH30: 0 | DI30: 0 | DJ30: 0 | DK30: 0 | DL30: 0 | DM30: 0 | DN30: 0 | DO30: 0 | DP30: 0 | DQ30: 0 | DR30: 0 | DS30: 0 | DT30: 0 | DU30: 0 | DV30: 0 | DW30: 0 | DX30: 0 | DY30: 0 | DZ30: 0 | EA30: 0 | EB30: 0 | EC30: 0 | ED30: 0 | EE30: 0 | EF30: 0 | EG30: 0 | EH30: 0 | EI30: 0 | EJ30: 0 | EK30: 0 | EL30: 0 | EM30: 0 | EN30: 0 | EO30: 0 | EP30: 0 | EQ30: 0 | ER30: 0 | ES30: 0 | ET30: 0 | EU30: 0 | EV30: 0 | EW30: 0 | EX30: 0 | EY30: 0 | EZ30: 0 | FA30: 0 | FB30: 0 | FC30: 0 | FD30: 0 | FE30: 0 | FF30: 0 | FG30: 0 | FH30: 0 | FI30: 0 | FJ30: 0 | FK30: 0 | FL30: 0 | FM30: 0 | FN30: 0 | FO30: 0 | FP30: 0 | FQ30: 0 | FR30: 0 | FS30: 0 | FT30: 0 | FU30: 0 | FV30: 0 | FW30: 0 | FX30: 0 | FY30: 0 | FZ30: 0 | GA30: 0 | GB30: 0 | GC30: 0 | GD30: 0 | GE30: 0 | GF30: 0 | GG30: 0 | GH30: 0 | GI30: 0 | GJ30: 0 | GK30: 0 | GL30: 0 | GM30: 0 | GN30: 0 | GO30: 0 | GP30: 0 | GQ30: 0 | GR30: 0 | GS30: 0 | GT30: 0 | GU30: 0 | GV30: 0 | GW30: 0 | GX30: 0 | GY30: 0 | GZ30: 0 | HA30: 0 | HB30: 0 | HC30: 0 | HD30: 0 | HE30: 0 | HF30: 0 | HG30: 0 | HH30: 0 | HI30: 0 | HJ30: 0 | HK30: 0 | HL30: 0 | HM30: 0 | HN30: 0 | HO30: 0 | HP30: 0 | HQ30: 0 | HR30: 0 | HS30: 0 | HT30: 0 | HU30: 0 | HV30: 0 | HW30: 0 | HX30: 0 | HY30: 0 | HZ30: 0 | IA30: 0 | IB30: 0 | IC30: 0 | ID30: 0 | IE30: 0 | IF30: 0 | IG30: 0 | IH30: 0 | II30: 0 | IJ30: 0 | IK30: 0 | IL30: 0 | IM30: 0 | IN30: 0 | IO30: 0 | IP30: 0 | IQ30: 0 | IR30: 0 | IS30: 0 | IT30: 0 | IU30: 0 | IV30: 0 | IW30: 0 | IX30: 0 | IY30: 0 | IZ30: 0 | JA30: 0 | JB30: 0 | JC30: 0 | JD30: 0 | JE30: 0 | JF30: 0 | JG30: 0 | JH30: 0 | JI30: 0 | JJ30: 0 | JK30: 0 | JL30: 0 | JM30: 0 | JN30: 0 | JO30: 0 | JP30: 0 | JQ30: 0 | JR30: 0 | JS30: 0 | JT30: 0 | JU30: 0 | JV30: 0 | JW30: 0 | JX30: 0 | JY30: 0 | JZ30: 0 | KA30: 0 | KB30: 0 | KC30: 0 | KD30: 0 | KE30: 0 | KF30: 0 | KG30: 0 | KH30: 0 | KI30: 0 | KJ30: 0 | KK30: 0 | KL30: 0 | KM30: 0 | KN30: 0 | KO30: 0 | KP30: 0 | KQ30: 0 | KR30: 0 | KS30: 0 | KT30: 0 | KU30: 0 | KV30: 0 | KW30: 0 | KX30: 0 | KY30: 0 | KZ30: 0 | LA30: 0 | LB30: 0 | LC30: 0 | LD30: 0 | LE30: 0 | LF30: 0 | LG30: 0 | LH30: 0 | LI30: 0 | LJ30: 0 | LK30: 0 | LL30: 0 | LM30: 0 | LN30: 0 | LO30: 0 | LP30: 0 | LQ30: 0 | LR30: 0 | LS30: 0 | LT30: 0 | LU30: 0 | LV30: 0 | LW30: 0 | LX30: 0 | LY30: 0 | LZ30: 0 | MA30: 0 | MB30: 0 | MC30: 0 | MD30: 0 | ME30: 0 | MF30: 0 | MG30: 0 | MH30: 0 | MI30: 0 | MJ30: 0 | MK30: 0 | ML30: 0 | MM30: 0 | MN30: 0 | MO30: 0 | MP30: 0 | MQ30: 0 | MR30: 0 | MS30: 0 | MT30: 0 | MU30: 0 | MV30: 0 | MW30: 0 | MX30: 0 | MY30: 0 | MZ30: 0 | NA30: 0 | NB30: 0 | NC30: 0 | ND30: 0 | NE30: 0 | NF30: 0 | NG30: 0 | NH30: 0 | NI30: 0 | NJ30: 0 | NK30: 0 | NL30: 0 | NM30: 0 | NN30: 0 | NO30: 0 | NP30: 0 | NQ30: 0 | NR30: 0 | NS30: 0 | NT30: 0 | NU30: 0 | NV30: 0 | NW30: 0 | NX30: 0 | NY30: 0 | NZ30: 0 | OA30: 0 | OB30: 0 | OC30: 0 | OD30: 0 | OE30: 0 | OF30: 0 | OG30: 0 | OH30: 0 | OI30: 0 | OJ30: 0 | OK30: 0 | OL30: 0 | OM30: 0 | ON30: 0 | OO30: 0 | OP30: 0 | OQ30: 0 | OR30: 0 | OS30: 0 | OT30: 0 | OU30: 0 | OV30: 0 | OW30: 0 | OX30: 0 | OY30: 0 | OZ30: 0 | PA30: 0 | PB30: 0 | PC30: 0 | PD30: 0 | PE30: 0 | PF30: 0 | PG30: 0 | PH30: 0 | PI30: 0 | PJ30: 0 | PK30: 0 | PL30: 0 | PM30: 0 | PN30: 0 | PO30: 0 | PP30: 0 | PQ30: 0 | PR30: 0 | PS30: 0 | PT30: 0 | PU30: 0 | PV30: 0 | PW30: 0 | PX30: 0 | PY30: 0 | PZ30: 0 | QA30: 0 | QB30: 0 | QC30: 0 | QD30: 0 | QE30: 0 | QF30: 0 | QG30: 0 | QH30: 0 | QI30: 0 | QJ30: 0 | QK30: 0 | QL30: 0 | QM30: 0 | QN30: 0 | QO30: 0 | QP30: 0 | QQ30: 0 | QR30: 0 | QS30: 0 | QT30: 0 | QU30: 0
A31: LUCIANO CASTILLO COLONNA | B31: AYABACA | C31: 200201 | D31: 1920 | E31: ESPINDOLA | F31: I-2 | G31: AYABACA | H31: NINGUN CLAS | I31: AYABACA | J31: AYABACA | K31: SALUD LUCIANO CASTILLO COLONNA | L31: 3 | M31: 0 | N31: 0 | O31: 0 | P31: 0 | Q31: 0 | R31: 0 | S31: 0 | T31: 0 | U31: 0 | V31: 0 | W31: 0 | X31: 0 | Y31: 0 | Z31: 0 | AA31: 7 | AB31: 1 | AC31: 0 | AD31: 0 | AE31: 0 | AF31: 0 | AG31: 0 | AH31: 0 | AI31: 1 | AJ31: 0 | AK31: 0 | AL31: 0 | AM31: 0 | AN31: 0 | AO31: 0 | AP31: 0 | AQ31: 0 | AR31: 0 | AS31: 0 | AT31: 0 | AU31: 0 | AV31: 0 | AW31: 0 | AX31: 0 | AY31: 3 | AZ31: 0 | BA31: 0 | BB31: 0 | BC31: 0 | BD31: 0 | BE31: 0 | BF31: 0 | BG31: 0 | BH31: 0 | BI31: 0 | BJ31: 0 | BK31: 0 | BL31: 0 | BM31: 0 | BN31: 0 | BO31: 1 | BP31: 0 | BQ31: 0 | BR31: 0 | BS31: 0 | BT31: 0 | BU31: 0 | BV31: 0 | BW31: 0 | BX31: 0 | BY31: 0 | BZ31: 0 | CA31: 0 | CB31: 0 | CC31: 0 | CD31: 0 | CE31: 0 | CF31: 0 | CG31: 0 | CH31: 0 | CI31: 0 | CJ31: 0 | CK31: 0 | CL31: 0 | CM31: 0 | CN31: 0 | CO31: 0 | CP31: 0 | CQ31: 0 | CR31: 0 | CS31: 0 | CT31: 0 | CU31: 0 | CV31: 0 | CW31: 0 | CX31: 0 | CY31: 0 | CZ31: 0 | DA31: 0 | DB31: 0 | DC31: 0 | DD31: 0 | DE31: 0 | DF31: 0 | DG31: 0 | DH31: 0 | DI31: 0 | DJ31: 0 | DK31: 0 | DL31: 0 | DM31: 0 | DN31: 0 | DO31: 0 | DP31: 0 | DQ31: 0 | DR31: 0 | DS31: 0 | DT31: 0 | DU31: 0 | DV31: 0 | DW31: 0 | DX31: 0 | DY31: 0 | DZ31: 0 | EA31: 0 | EB31: 0 | EC31: 0 | ED31: 0 | EE31: 0 | EF31: 0 | EG31: 0 | EH31: 0 | EI31: 0 | EJ31: 0 | EK31: 0 | EL31: 0 | EM31: 1 | EN31: 0 | EO31: 0 | EP31: 0 | EQ31: 0 | ER31: 0 | ES31: 0 | ET31: 0 | EU31: 3 | EV31: 1 | EW31: 0 | EX31: 0 | EY31: 0 | EZ31: 0 | FA31: 0 | FB31: 0 | FC31: 3 | FD31: 0 | FE31: 0 | FF31: 0 | FG31: 0 | FH31: 0 | FI31: 0 | FJ31: 0 | FK31: 0 | FL31: 0 | FM31: 0 | FN31: 0 | FO31: 0 | FP31: 0 | FQ31: 0 | FR31: 0 | FS31: 0 | FT31: 0 | FU31: 0 | FV31: 0 | FW31: 0 | FX31: 0 | FY31: 0 | FZ31: 0 | GA31: 0 | GB31: 0 | GC31: 0 | GD31: 0 | GE31: 0 | GF31: 0 | GG31: 0 | GH31: 0 | GI31: 0 | GJ31: 0 | GK31: 0 | GL31: 0 | GM31: 0 | GN31: 0 | GO31: 0 | GP31: 0 | GQ31: 0 | GR31: 0 | GS31: 0 | GT31: 0 | GU31: 0 | GV31: 0 | GW31: 0 | GX31: 0 | GY31: 0 | GZ31: 0 | HA31: 0 | HB31: 0 | HC31: 0 | HD31: 0 | HE31: 0 | HF31: 0 | HG31: 0 | HH31: 0 | HI31: 0 | HJ31: 0 | HK31: 0 | HL31: 0 | HM31: 0 | HN31: 0 | HO31: 0 | HP31: 0 | HQ31: 0 | HR31: 0 | HS31: 0 | HT31: 0 | HU31: 0 | HV31: 0 | HW31: 0 | HX31: 0 | HY31: 0 | HZ31: 0 | IA31: 0 | IB31: 0 | IC31: 0 | ID31: 0 | IE31: 0 | IF31: 0 | IG31: 0 | IH31: 0 | II31: 0 | IJ31: 0 | IK31: 0 | IL31: 0 | IM31: 0 | IN31: 0 | IO31: 0 | IP31: 0 | IQ31: 1 | IR31: 0 | IS31: 0 | IT31: 0 | IU31: 1 | IV31: 0 | IW31: 0 | IX31: 0 | IY31: 0 | IZ31: 0 | JA31: 0 | JB31: 0 | JC31: 0 | JD31: 0 | JE31: 0 | JF31: 1 | JG31: 0 | JH31: 1 | JI31: 0 | JJ31: 0 | JK31: 0 | JL31: 0 | JM31: 0 | JN31: 0 | JO31: 0 | JP31: 0 | JQ31: 0 | JR31: 0 | JS31: 0 | JT31: 0 | JU31: 0 | JV31: 0 | JW31: 0 | JX31: 0 | JY31: 1 | JZ31: 0 | KA31: 0 | KB31: 0 | KC31: 0 | KD31: 0 | KE31: 0 | KF31: 0 | KG31: 0 | KH31: 0 | KI31: 0 | KJ31: 0 | KK31: 0 | KL31: 0 | KM31: 0 | KN31: 0 | KO31: 0 | KP31: 0 | KQ31: 0 | KR31: 0 | KS31: 0 | KT31: 0 | KU31: 0 | KV31: 0 | KW31: 0 | KX31: 0 | KY31: 0 | KZ31: 0 | LA31: 1 | LB31: 0 | LC31: 0 | LD31: 0 | LE31: 0 | LF31: 0 | LG31: 0 | LH31: 0 | LI31: 0 | LJ31: 0 | LK31: 0 | LL31: 0 | LM31: 0 | LN31: 0 | LO31: 0 | LP31: 0 | LQ31: 0 | LR31: 0 | LS31: 0 | LT31: 0 | LU31: 0 | LV31: 0 | LW31: 0 | LX31: 0 | LY31: 0 | LZ31: 0 | MA31: 0 | MB31: 0 | MC31: 1 | MD31: 0 | ME31: 0 | MF31: 0 | MG31: 0 | MH31: 0 | MI31: 0 | MJ31: 0 | MK31: 0 | ML31: 0 | MM31: 0 | MN31: 0 | MO31: 0 | MP31: 0 | MQ31: 0 | MR31: 0 | MS31: 0 | MT31: 0 | MU31: 0 | MV31: 0 | MW31: 0 | MX31: 0 | MY31: 0 | MZ31: 0 | NA31: 0 | NB31: 0 | NC31: 0 | ND31: 0 | NE31: 0 | NF31: 0 | NG31: 0 | NH31: 0 | NI31: 0 | NJ31: 0 | NK31: 0 | NL31: 0 | NM31: 0 | NN31: 0 | NO31: 0 | NP31: 0 | NQ31: 0 | NR31: 0 | NS31: 0 | NT31: 0 | NU31: 0 | NV31: 0 | NW31: 0 | NX31: 0 | NY31: 0 | NZ31: 0 | OA31: 0 | OB31: 0 | OC31: 0 | OD31: 0 | OE31: 0 | OF31: 0 | OG31: 0 | OH31: 0 | OI31: 0 | OJ31: 0 | OK31: 0 | OL31: 0 | OM31: 0 | ON31: 0 | OO31: 0 | OP31: 0 | OQ31: 0 | OR31: 0 | OS31: 0 | OT31: 0 | OU31: 0 | OV31: 0 | OW31: 0 | OX31: 0 | OY31: 0 | OZ31: 0 | PA31: 0 | PB31: 0 | PC31: 0 | PD31: 0 | PE31: 0 | PF31: 0 | PG31: 0 | PH31: 0 | PI31: 0 | PJ31: 0 | PK31: 0 | PL31: 0 | PM31: 0 | PN31: 0 | PO31: 0 | PP31: 0 | PQ31: 0 | PR31: 0 | PS31: 0 | PT31: 0 | PU31: 0 | PV31: 0 | PW31: 0 | PX31: 0 | PY31: 0 | PZ31: 0 | QA31: 0 | QB31: 0 | QC31: 0 | QD31: 0 | QE31: 0 | QF31: 0 | QG31: 0 | QH31: 0 | QI31: 0 | QJ31: 0 | QK31: 0 | QL31: 0 | QM31: 0 | QN31: 0 | QO31: 0 | QP31: 0 | QQ31: 0 | QR31: 0 | QS31: 0 | QT31: 0 | QU31: 0
A32: LUCIANO CASTILLO COLONNA | B32: AYABACA | C32: 200201 | D32: 1920 | E32: ESPINDOLA | F32: I-2 | G32: AYABACA | H32: NINGUN CLAS | I32: AYABACA | J32: AYABACA | K32: SALUD LUCIANO CASTILLO COLONNA | L32: 2 | M32: 0 | N32: 0 | O32: 0 | P32: 0 | Q32: 1 | R32: 0 | S32: 0 | T32: 2 | U32: 0 | V32: 0 | W32: 0 | X32: 0 | Y32: 0 | Z32: 3 | AA32: 7 | AB32: 4 | AC32: 0 | AD32: 0 | AE32: 0 | AF32: 0 | AG32: 0 | AH32: 0 | AI32: 3 | AJ32: 1 | AK32: 0 | AL32: 0 | AM32: 0 | AN32: 0 | AO32: 0 | AP32: 0 | AQ32: 0 | AR32: 0 | AS32: 0 | AT32: 0 | AU32: 0 | AV32: 0 | AW32: 0 | AX32: 1 | AY32: 2 | AZ32: 1 | BA32: 0 | BB32: 0 | BC32: 0 | BD32: 0 | BE32: 0 | BF32: 0 | BG32: 0 | BH32: 0 | BI32: 0 | BJ32: 0 | BK32: 0 | BL32: 0 | BM32: 0 | BN32: 1 | BO32: 2 | BP32: 0 | BQ32: 0 | BR32: 1 | BS32: 2 | BT32: 0 | BU32: 0 | BV32: 1 | BW32: 0 | BX32: 0 | BY32: 0 | BZ32: 1 | CA32: 0 | CB32: 0 | CC32: 0 | CD32: 0 | CE32: 0 | CF32: 0 | CG32: 0 | CH32: 0 | CI32: 0 | CJ32: 0 | CK32: 0 | CL32: 0 | CM32: 0 | CN32: 0 | CO32: 0 | CP32: 0 | CQ32: 0 | CR32: 0 | CS32: 0 | CT32: 0 | CU32: 0 | CV32: 0 | CW32: 0 | CX32: 0 | CY32: 0 | CZ32: 0 | DA32: 0 | DB32: 0 | DC32: 0 | DD32: 0 | DE32: 0 | DF32: 0 | DG32: 0 | DH32: 0 | DI32: 0 | DJ32: 0 | DK32: 0 | DL32: 0 | DM32: 0 | DN32: 0 | DO32: 0 | DP32: 0 | DQ32: 0 | DR32: 0 | DS32: 0 | DT32: 0 | DU32: 0 | DV32: 0 | DW32: 0 | DX32: 0 | DY32: 0 | DZ32: 0 | EA32: 0 | EB32: 0 | EC32: 0 | ED32: 0 | EE32: 0 | EF32: 0 | EG32: 0 | EH32: 0 | EI32: 0 | EJ32: 0 | EK32: 0 | EL32: 0 | EM32: 0 | EN32: 0 | EO32: 0 | EP32: 0 | EQ32: 0 | ER32: 0 | ES32: 0 | ET32: 2 | EU32: 3 | EV32: 2 | EW32: 0 | EX32: 1 | EY32: 2 | EZ32: 0 | FA32: 0 | FB32: 0 | FC32: 1 | FD32: 0 | FE32: 0 | FF32: 2 | FG32: 0 | FH32: 0 | FI32: 0 | FJ32: 0 | FK32: 0 | FL32: 0 | FM32: 0 | FN32: 0 | FO32: 0 | FP32: 0 | FQ32: 0 | FR32: 0 | FS32: 0 | FT32: 0 | FU32: 0 | FV32: 0 | FW32: 0 | FX32: 0 | FY32: 0 | FZ32: 0 | GA32: 0 | GB32: 0 | GC32: 0 | GD32: 1 | GE32: 2 | GF32: 0 | GG32: 0 | GH32: 0 | GI32: 0 | GJ32: 0 | GK32: 0 | GL32: 0 | GM32: 0 | GN32: 0 | GO32: 0 | GP32: 0 | GQ32: 0 | GR32: 0 | GS32: 0 | GT32: 0 | GU32: 0 | GV32: 0 | GW32: 0 | GX32: 0 | GY32: 0 | GZ32: 0 | HA32: 0 | HB32: 0 | HC32: 0 | HD32: 0 | HE32: 0 | HF32: 0 | HG32: 0 | HH32: 0 | HI32: 0 | HJ32: 0 | HK32: 0 | HL32: 0 | HM32: 0 | HN32: 0 | HO32: 0 | HP32: 0 | HQ32: 0 | HR32: 0 | HS32: 0 | HT32: 0 | HU32: 0 | HV32: 0 | HW32: 0 | HX32: 0 | HY32: 0 | HZ32: 0 | IA32: 0 | IB32: 0 | IC32: 0 | ID32: 0 | IE32: 0 | IF32: 0 | IG32: 0 | IH32: 0 | II32: 3 | IJ32: 1 | IK32: 0 | IL32: 0 | IM32: 1 | IN32: 0 | IO32: 0 | IP32: 0 | IQ32: 0 | IR32: 0 | IS32: 0 | IT32: 1 | IU32: 0 | IV32: 0 | IW32: 0 | IX32: 0 | IY32: 0 | IZ32: 0 | JA32: 0 | JB32: 1 | JC32: 0 | JD32: 0 | JE32: 0 | JF32: 0 | JG32: 1 | JH32: 0 | JI32: 0 | JJ32: 0 | JK32: 0 | JL32: 0 | JM32: 0 | JN32: 1 | JO32: 0 | JP32: 0 | JQ32: 0 | JR32: 0 | JS32: 0 | JT32: 1 | JU32: 2 | JV32: 0 | JW32: 0 | JX32: 1 | JY32: 0 | JZ32: 0 | KA32: 0 | KB32: 0 | KC32: 0 | KD32: 0 | KE32: 0 | KF32: 0 | KG32: 0 | KH32: 0 | KI32: 0 | KJ32: 0 | KK32: 0 | KL32: 0 | KM32: 0 | KN32: 0 | KO32: 0 | KP32: 0 | KQ32: 0 | KR32: 0 | KS32: 0 | KT32: 0 | KU32: 0 | KV32: 0 | KW32: 2 | KX32: 0 | KY32: 0 | KZ32: 1 | LA32: 0 | LB32: 0 | LC32: 0 | LD32: 0 | LE32: 0 | LF32: 0 | LG32: 0 | LH32: 0 | LI32: 0 | LJ32: 0 | LK32: 0 | LL32: 0 | LM32: 0 | LN32: 0 | LO32: 0 | LP32: 0 | LQ32: 0 | LR32: 0 | LS32: 0 | LT32: 0 | LU32: 0 | LV32: 0 | LW32: 0 | LX32: 1 | LY32: 0 | LZ32: 0 | MA32: 0 | MB32: 1 | MC32: 0 | MD32: 0 | ME32: 0 | MF32: 0 | MG32: 0 | MH32: 0 | MI32: 0 | MJ32: 0 | MK32: 0 | ML32: 0 | MM32: 0 | MN32: 0 | MO32: 0 | MP32: 0 | MQ32: 0 | MR32: 0 | MS32: 0 | MT32: 0 | MU32: 0 | MV32: 0 | MW32: 0 | MX32: 0 | MY32: 0 | MZ32: 0 | NA32: 0 | NB32: 0 | NC32: 0 | ND32: 0 | NE32: 0 | NF32: 0 | NG32: 0 | NH32: 0 | NI32: 0 | NJ32: 0 | NK32: 0 | NL32: 0 | NM32: 0 | NN32: 0 | NO32: 0 | NP32: 0 | NQ32: 0 | NR32: 0 | NS32: 0 | NT32: 0 | NU32: 0 | NV32: 0 | NW32: 0 | NX32: 0 | NY32: 0 | NZ32: 0 | OA32: 0 | OB32: 0 | OC32: 0 | OD32: 0 | OE32: 0 | OF32: 0 | OG32: 0 | OH32: 0 | OI32: 0 | OJ32: 0 | OK32: 0 | OL32: 0 | OM32: 0 | ON32: 0 | OO32: 0 | OP32: 0 | OQ32: 0 | OR32: 0 | OS32: 0 | OT32: 0 | OU32: 0 | OV32: 0 | OW32: 0 | OX32: 0 | OY32: 0 | OZ32: 0 | PA32: 0 | PB32: 0 | PC32: 0 | PD32: 0 | PE32: 0 | PF32: 0 | PG32: 0 | PH32: 0 | PI32: 0 | PJ32: 0 | PK32: 0 | PL32: 0 | PM32: 0 | PN32: 0 | PO32: 0 | PP32: 0 | PQ32: 0 | PR32: 0 | PS32: 0 | PT32: 0 | PU32: 0 | PV32: 0 | PW32: 0 | PX32: 0 | PY32: 0 | PZ32: 0 | QA32: 0 | QB32: 0 | QC32: 0 | QD32: 0 | QE32: 0 | QF32: 0 | QG32: 0 | QH32: 0 | QI32: 0 | QJ32: 0 | QK32: 0 | QL32: 0 | QM32: 0 | QN32: 0 | QO32: 0 | QP32: 0 | QQ32: 0 | QR32: 0 | QS32: 0 | QT32: 2 | QU32: 0
A33: LUCIANO CASTILLO COLONNA | B33: AYABACA | C33: 200201 | D33: 1920 | E33: ESPINDOLA | F33: I-2 | G33: AYABACA | H33: NINGUN CLAS | I33: AYABACA | J33: AYABACA | K33: SALUD LUCIANO CASTILLO COLONNA | L33: 1 | M33: 0 | N33: 0 | O33: 0 | P33: 0 | Q33: 0 | R33: 0 | S33: 0 | T33: 0 | U33: 0 | V33: 0 | W33: 0 | X33: 0 | Y33: 0 | Z33: 1 | AA33: 4 | AB33: 3 | AC33: 0 | AD33: 0 | AE33: 0 | AF33: 1 | AG33: 0 | AH33: 0 | AI33: 1 | AJ33: 0 | AK33: 0 | AL33: 0 | AM33: 0 | AN33: 0 | AO33: 0 | AP33: 0 | AQ33: 0 | AR33: 0 | AS33: 0 | AT33: 0 | AU33: 0 | AV33: 0 | AW33: 0 | AX33: 0 | AY33: 1 | AZ33: 0 | BA33: 0 | BB33: 0 | BC33: 0 | BD33: 0 | BE33: 0 | BF33: 0 | BG33: 0 | BH33: 0 | BI33: 0 | BJ33: 0 | BK33: 0 | BL33: 0 | BM33: 0 | BN33: 0 | BO33: 1 | BP33: 1 | BQ33: 0 | BR33: 0 | BS33: 0 | BT33: 1 | BU33: 0 | BV33: 0 | BW33: 0 | BX33: 0 | BY33: 0 | BZ33: 0 | CA33: 0 | CB33: 0 | CC33: 0 | CD33: 0 | CE33: 0 | CF33: 0 | CG33: 0 | CH33: 0 | CI33: 0 | CJ33: 0 | CK33: 0 | CL33: 0 | CM33: 0 | CN33: 0 | CO33: 0 | CP33: 0 | CQ33: 0 | CR33: 0 | CS33: 0 | CT33: 0 | CU33: 0 | CV33: 0 | CW33: 0 | CX33: 0 | CY33: 0 | CZ33: 0 | DA33: 0 | DB33: 0 | DC33: 0 | DD33: 0 | DE33: 0 | DF33: 0 | DG33: 0 | DH33: 0 | DI33: 0 | DJ33: 0 | DK33: 0 | DL33: 0 | DM33: 0 | DN33: 0 | DO33: 0 | DP33: 0 | DQ33: 0 | DR33: 0 | DS33: 0 | DT33: 0 | DU33: 0 | DV33: 0 | DW33: 0 | DX33: 0 | DY33: 0 | DZ33: 0 | EA33: 0 | EB33: 0 | EC33: 0 | ED33: 0 | EE33: 0 | EF33: 0 | EG33: 0 | EH33: 0 | EI33: 0 | EJ33: 0 | EK33: 0 | EL33: 0 | EM33: 0 | EN33: 0 | EO33: 0 | EP33: 0 | EQ33: 0 | ER33: 0 | ES33: 0 | ET33: 0 | EU33: 0 | EV33: 0 | EW33: 0 | EX33: 1 | EY33: 1 | EZ33: 1 | FA33: 0 | FB33: 0 | FC33: 0 | FD33: 0 | FE33: 0 | FF33: 0 | FG33: 0 | FH33: 1 | FI33: 0 | FJ33: 0 | FK33: 0 | FL33: 0 | FM33: 0 | FN33: 0 | FO33: 0 | FP33: 0 | FQ33: 0 | FR33: 0 | FS33: 1 | FT33: 0 | FU33: 0 | FV33: 0 | FW33: 0 | FX33: 0 | FY33: 0 | FZ33: 0 | GA33: 1 | GB33: 0 | GC33: 0 | GD33: 0 | GE33: 0 | GF33: 0 | GG33: 0 | GH33: 0 | GI33: 0 | GJ33: 0 | GK33: 0 | GL33: 0 | GM33: 0 | GN33: 0 | GO33: 0 | GP33: 0 | GQ33: 0 | GR33: 0 | GS33: 0 | GT33: 0 | GU33: 0 | GV33: 0 | GW33: 0 | GX33: 0 | GY33: 0 | GZ33: 0 | HA33: 0 | HB33: 0 | HC33: 0 | HD33: 0 | HE33: 0 | HF33: 0 | HG33: 0 | HH33: 0 | HI33: 0 | HJ33: 0 | HK33: 0 | HL33: 0 | HM33: 0 | HN33: 0 | HO33: 0 | HP33: 0 | HQ33: 0 | HR33: 0 | HS33: 0 | HT33: 0 | HU33: 0 | HV33: 0 | HW33: 0 | HX33: 0 | HY33: 0 | HZ33: 0 | IA33: 0 | IB33: 0 | IC33: 0 | ID33: 0 | IE33: 0 | IF33: 0 | IG33: 0 | IH33: 0 | II33: 1 | IJ33: 0 | IK33: 0 | IL33: 0 | IM33: 1 | IN33: 1 | IO33: 0 | IP33: 0 | IQ33: 2 | IR33: 0 | IS33: 0 | IT33: 1 | IU33: 0 | IV33: 1 | IW33: 0 | IX33: 0 | IY33: 0 | IZ33: 0 | JA33: 0 | JB33: 0 | JC33: 1 | JD33: 0 | JE33: 0 | JF33: 0 | JG33: 1 | JH33: 0 | JI33: 0 | JJ33: 0 | JK33: 0 | JL33: 0 | JM33: 0 | JN33: 0 | JO33: 0 | JP33: 0 | JQ33: 1 | JR33: 0 | JS33: 0 | JT33: 0 | JU33: 0 | JV33: 1 | JW33: 0 | JX33: 0 | JY33: 0 | JZ33: 0 | KA33: 0 | KB33: 0 | KC33: 0 | KD33: 0 | KE33: 0 | KF33: 0 | KG33: 0 | KH33: 0 | KI33: 0 | KJ33: 0 | KK33: 0 | KL33: 0 | KM33: 0 | KN33: 0 | KO33: 0 | KP33: 0 | KQ33: 0 | KR33: 0 | KS33: 1 | KT33: 0 | KU33: 0 | KV33: 0 | KW33: 0 | KX33: 1 | KY33: 0 | KZ33: 0 | LA33: 0 | LB33: 0 | LC33: 0 | LD33: 0 | LE33: 0 | LF33: 0 | LG33: 0 | LH33: 0 | LI33: 0 | LJ33: 0 | LK33: 0 | LL33: 0 | LM33: 0 | LN33: 0 | LO33: 0 | LP33: 0 | LQ33: 0 | LR33: 0 | LS33: 0 | LT33: 0 | LU33: 1 | LV33: 0 | LW33: 0 | LX33: 0 | LY33: 0 | LZ33: 1 | MA33: 0 | MB33: 0 | MC33: 0 | MD33: 0 | ME33: 0 | MF33: 0 | MG33: 0 | MH33: 0 | MI33: 0 | MJ33: 0 | MK33: 0 | ML33: 0 | MM33: 0 | MN33: 0 | MO33: 0 | MP33: 0 | MQ33: 0 | MR33: 0 | MS33: 0 | MT33: 0 | MU33: 0 | MV33: 0 | MW33: 0 | MX33: 0 | MY33: 0 | MZ33: 0 | NA33: 0 | NB33: 0 | NC33: 0 | ND33: 0 | NE33: 0 | NF33: 0 | NG33: 0 | NH33: 0 | NI33: 0 | NJ33: 0 | NK33: 0 | NL33: 0 | NM33: 0 | NN33: 0 | NO33: 0 | NP33: 0 | NQ33: 0 | NR33: 0 | NS33: 0 | NT33: 0 | NU33: 0 | NV33: 0 | NW33: 0 | NX33: 0 | NY33: 0 | NZ33: 0 | OA33: 0 | OB33: 0 | OC33: 0 | OD33: 0 | OE33: 0 | OF33: 0 | OG33: 0 | OH33: 0 | OI33: 0 | OJ33: 0 | OK33: 0 | OL33: 0 | OM33: 0 | ON33: 0 | OO33: 0 | OP33: 0 | OQ33: 0 | OR33: 0 | OS33: 0 | OT33: 0 | OU33: 0 | OV33: 0 | OW33: 0 | OX33: 0 | OY33: 0 | OZ33: 0 | PA33: 0 | PB33: 0 | PC33: 0 | PD33: 0 | PE33: 0 | PF33: 0 | PG33: 0 | PH33: 0 | PI33: 0 | PJ33: 0 | PK33: 0 | PL33: 0 | PM33: 0 | PN33: 0 | PO33: 0 | PP33: 0 | PQ33: 0 | PR33: 0 | PS33: 0 | PT33: 0 | PU33: 0 | PV33: 0 | PW33: 0 | PX33: 0 | PY33: 0 | PZ33: 0 | QA33: 0 | QB33: 0 | QC33: 0 | QD33: 0 | QE33: 0 | QF33: 0 | QG33: 0 | QH33: 0 | QI33: 0 | QJ33: 0 | QK33: 0 | QL33: 0 | QM33: 0 | QN33: 0 | QO33: 0 | QP33: 0 | QQ33: 0 | QR33: 0 | QS33: 0 | QT33: 0 | QU33: 0
A34: LUCIANO CASTILLO COLONNA | B34: AYABACA | C34: 200201 | D34: 1921 | E34: REMOLINOS | F34: I-1 | G34: AYABACA | H34: NINGUN CLAS | I34: AYABACA | J34: AYABACA | K34: SALUD LUCIANO CASTILLO COLONNA | L34: 2 | M34: 0 | N34: 0 | O34: 0 | P34: 0 | Q34: 0 | R34: 0 | S34: 0 | T34: 0 | U34: 0 | V34: 0 | W34: 0 | X34: 0 | Y34: 0 | Z34: 0 | AA34: 2 | AB34: 0 | AC34: 0 | AD34: 0 | AE34: 0 | AF34: 0 | AG34: 0 | AH34: 0 | AI34: 0 | AJ34: 0 | AK34: 0 | AL34: 0 | AM34: 0 | AN34: 0 | AO34: 0 | AP34: 0 | AQ34: 0 | AR34: 0 | AS34: 0 | AT34: 0 | AU34: 0 | AV34: 0 | AW34: 0 | AX34: 0 | AY34: 0 | AZ34: 0 | BA34: 0 | BB34: 0 | BC34: 0 | BD34: 0 | BE34: 0 | BF34: 0 | BG34: 0 | BH34: 0 | BI34: 0 | BJ34: 0 | BK34: 0 | BL34: 0 | BM34: 0 | BN34: 0 | BO34: 0 | BP34: 0 | BQ34: 0 | BR34: 0 | BS34: 0 | BT34: 0 | BU34: 0 | BV34: 0 | BW34: 0 | BX34: 0 | BY34: 0 | BZ34: 0 | CA34: 0 | CB34: 0 | CC34: 0 | CD34: 0 | CE34: 0 | CF34: 0 | CG34: 0 | CH34: 0 | CI34: 0 | CJ34: 0 | CK34: 0 | CL34: 0 | CM34: 0 | CN34: 0 | CO34: 0 | CP34: 0 | CQ34: 0 | CR34: 0 | CS34: 0 | CT34: 0 | CU34: 0 | CV34: 0 | CW34: 0 | CX34: 0 | CY34: 0 | CZ34: 0 | DA34: 0 | DB34: 0 | DC34: 0 | DD34: 0 | DE34: 0 | DF34: 0 | DG34: 0 | DH34: 0 | DI34: 0 | DJ34: 0 | DK34: 0 | DL34: 0 | DM34: 0 | DN34: 0 | DO34: 0 | DP34: 0 | DQ34: 0 | DR34: 0 | DS34: 0 | DT34: 0 | DU34: 0 | DV34: 0 | DW34: 0 | DX34: 0 | DY34: 0 | DZ34: 0 | EA34: 0 | EB34: 0 | EC34: 0 | ED34: 0 | EE34: 0 | EF34: 0 | EG34: 0 | EH34: 0 | EI34: 0 | EJ34: 0 | EK34: 0 | EL34: 0 | EM34: 0 | EN34: 0 | EO34: 0 | EP34: 0 | EQ34: 0 | ER34: 0 | ES34: 0 | ET34: 0 | EU34: 0 | EV34: 0 | EW34: 0 | EX34: 0 | EY34: 0 | EZ34: 0 | FA34: 0 | FB34: 0 | FC34: 0 | FD34: 0 | FE34: 0 | FF34: 0 | FG34: 0 | FH34: 0 | FI34: 0 | FJ34: 0 | FK34: 0 | FL34: 0 | FM34: 0 | FN34: 0 | FO34: 0 | FP34: 0 | FQ34: 0 | FR34: 0 | FS34: 0 | FT34: 0 | FU34: 0 | FV34: 0 | FW34: 0 | FX34: 0 | FY34: 0 | FZ34: 0 | GA34: 0 | GB34: 0 | GC34: 0 | GD34: 0 | GE34: 0 | GF34: 0 | GG34: 0 | GH34: 0 | GI34: 0 | GJ34: 0 | GK34: 0 | GL34: 0 | GM34: 0 | GN34: 0 | GO34: 0 | GP34: 0 | GQ34: 0 | GR34: 0 | GS34: 0 | GT34: 0 | GU34: 0 | GV34: 0 | GW34: 0 | GX34: 0 | GY34: 0 | GZ34: 0 | HA34: 0 | HB34: 0 | HC34: 0 | HD34: 0 | HE34: 0 | HF34: 0 | HG34: 0 | HH34: 0 | HI34: 0 | HJ34: 0 | HK34: 0 | HL34: 0 | HM34: 0 | HN34: 0 | HO34: 0 | HP34: 0 | HQ34: 0 | HR34: 0 | HS34: 0 | HT34: 0 | HU34: 0 | HV34: 0 | HW34: 0 | HX34: 0 | HY34: 0 | HZ34: 0 | IA34: 0 | IB34: 0 | IC34: 0 | ID34: 0 | IE34: 0 | IF34: 0 | IG34: 0 | IH34: 0 | II34: 0 | IJ34: 0 | IK34: 0 | IL34: 0 | IM34: 0 | IN34: 0 | IO34: 0 | IP34: 0 | IQ34: 1 | IR34: 0 | IS34: 0 | IT34: 0 | IU34: 0 | IV34: 0 | IW34: 0 | IX34: 0 | IY34: 0 | IZ34: 0 | JA34: 0 | JB34: 0 | JC34: 0 | JD34: 0 | JE34: 0 | JF34: 0 | JG34: 0 | JH34: 0 | JI34: 0 | JJ34: 0 | JK34: 0 | JL34: 1 | JM34: 0 | JN34: 0 | JO34: 0 | JP34: 0 | JQ34: 0 | JR34: 0 | JS34: 0 | JT34: 0 | JU34: 0 | JV34: 0 | JW34: 0 | JX34: 0 | JY34: 0 | JZ34: 0 | KA34: 0 | KB34: 0 | KC34: 0 | KD34: 0 | KE34: 0 | KF34: 0 | KG34: 0 | KH34: 0 | KI34: 0 | KJ34: 0 | KK34: 0 | KL34: 0 | KM34: 0 | KN34: 0 | KO34: 0 | KP34: 0 | KQ34: 0 | KR34: 0 | KS34: 0 | KT34: 0 | KU34: 0 | KV34: 0 | KW34: 0 | KX34: 0 | KY34: 0 | KZ34: 0 | LA34: 0 | LB34: 0 | LC34: 0 | LD34: 0 | LE34: 0 | LF34: 0 | LG34: 0 | LH34: 0 | LI34: 0 | LJ34: 0 | LK34: 0 | LL34: 0 | LM34: 0 | LN34: 0 | LO34: 0 | LP34: 0 | LQ34: 0 | LR34: 0 | LS34: 0 | LT34: 0 | LU34: 0 | LV34: 0 | LW34: 0 | LX34: 0 | LY34: 0 | LZ34: 0 | MA34: 0 | MB34: 0 | MC34: 0 | MD34: 0 | ME34: 0 | MF34: 0 | MG34: 0 | MH34: 0 | MI34: 0 | MJ34: 0 | MK34: 0 | ML34: 0 | MM34: 0 | MN34: 0 | MO34: 0 | MP34: 0 | MQ34: 0 | MR34: 0 | MS34: 0 | MT34: 0 | MU34: 0 | MV34: 0 | MW34: 0 | MX34: 0 | MY34: 0 | MZ34: 0 | NA34: 0 | NB34: 0 | NC34: 0 | ND34: 0 | NE34: 0 | NF34: 0 | NG34: 0 | NH34: 0 | NI34: 0 | NJ34: 0 | NK34: 0 | NL34: 0 | NM34: 0 | NN34: 0 | NO34: 0 | NP34: 0 | NQ34: 0 | NR34: 0 | NS34: 0 | NT34: 0 | NU34: 0 | NV34: 0 | NW34: 0 | NX34: 0 | NY34: 0 | NZ34: 0 | OA34: 0 | OB34: 0 | OC34: 0 | OD34: 0 | OE34: 0 | OF34: 0 | OG34: 0 | OH34: 0 | OI34: 0 | OJ34: 0 | OK34: 0 | OL34: 0 | OM34: 0 | ON34: 0 | OO34: 0 | OP34: 0 | OQ34: 0 | OR34: 0 | OS34: 0 | OT34: 0 | OU34: 0 | OV34: 0 | OW34: 0 | OX34: 0 | OY34: 0 | OZ34: 0 | PA34: 0 | PB34: 0 | PC34: 0 | PD34: 0 | PE34: 0 | PF34: 0 | PG34: 0 | PH34: 0 | PI34: 0 | PJ34: 0 | PK34: 0 | PL34: 0 | PM34: 0 | PN34: 0 | PO34: 0 | PP34: 0 | PQ34: 0 | PR34: 0 | PS34: 0 | PT34: 0 | PU34: 0 | PV34: 0 | PW34: 0 | PX34: 0 | PY34: 0 | PZ34: 0 | QA34: 0 | QB34: 0 | QC34: 0 | QD34: 0 | QE34: 0 | QF34: 0 | QG34: 0 | QH34: 0 | QI34: 0 | QJ34: 0 | QK34: 0 | QL34: 0 | QM34: 0 | QN34: 0 | QO34: 0 | QP34: 0 | QQ34: 0 | QR34: 0 | QS34: 0 | QT34: 0 | QU34: 0
A35: LUCIANO CASTILLO COLONNA | B35: AYABACA | C35: 200201 | D35: 1921 | E35: REMOLINOS | F35: I-1 | G35: AYABACA | H35: NINGUN CLAS | I35: AYABACA | J35: AYABACA | K35: SALUD LUCIANO CASTILLO COLONNA | L35: 1 | M35: 0 | N35: 0 | O35: 0 | P35: 0 | Q35: 0 | R35: 0 | S35: 0 | T35: 0 | U35: 0 | V35: 0 | W35: 0 | X35: 0 | Y35: 0 | Z35: 0 | AA35: 1 | AB35: 0 | AC35: 0 | AD35: 0 | AE35: 0 | AF35: 0 | AG35: 0 | AH35: 0 | AI35: 0 | AJ35: 0 | AK35: 0 | AL35: 0 | AM35: 0 | AN35: 0 | AO35: 0 | AP35: 0 | AQ35: 0 | AR35: 0 | AS35: 0 | AT35: 0 | AU35: 0 | AV35: 0 | AW35: 0 | AX35: 0 | AY35: 0 | AZ35: 0 | BA35: 0 | BB35: 0 | BC35: 0 | BD35: 0 | BE35: 0 | BF35: 0 | BG35: 0 | BH35: 0 | BI35: 0 | BJ35: 0 | BK35: 0 | BL35: 0 | BM35: 0 | BN35: 0 | BO35: 0 | BP35: 0 | BQ35: 0 | BR35: 0 | BS35: 0 | BT35: 0 | BU35: 0 | BV35: 0 | BW35: 0 | BX35: 0 | BY35: 0 | BZ35: 0 | CA35: 0 | CB35: 0 | CC35: 0 | CD35: 0 | CE35: 0 | CF35: 0 | CG35: 0 | CH35: 0 | CI35: 0 | CJ35: 0 | CK35: 0 | CL35: 0 | CM35: 0 | CN35: 0 | CO35: 0 | CP35: 0 | CQ35: 0 | CR35: 0 | CS35: 0 | CT35: 0 | CU35: 0 | CV35: 0 | CW35: 0 | CX35: 0 | CY35: 0 | CZ35: 0 | DA35: 0 | DB35: 0 | DC35: 0 | DD35: 0 | DE35: 0 | DF35: 0 | DG35: 0 | DH35: 0 | DI35: 0 | DJ35: 0 | DK35: 0 | DL35: 0 | DM35: 0 | DN35: 0 | DO35: 0 | DP35: 0 | DQ35: 0 | DR35: 0 | DS35: 0 | DT35: 0 | DU35: 0 | DV35: 0 | DW35: 0 | DX35: 0 | DY35: 0 | DZ35: 0 | EA35: 0 | EB35: 0 | EC35: 0 | ED35: 0 | EE35: 0 | EF35: 0 | EG35: 0 | EH35: 0 | EI35: 0 | EJ35: 0 | EK35: 0 | EL35: 0 | EM35: 0 | EN35: 0 | EO35: 0 | EP35: 0 | EQ35: 0 | ER35: 0 | ES35: 0 | ET35: 0 | EU35: 0 | EV35: 0 | EW35: 0 | EX35: 0 | EY35: 0 | EZ35: 0 | FA35: 0 | FB35: 0 | FC35: 0 | FD35: 0 | FE35: 0 | FF35: 0 | FG35: 0 | FH35: 0 | FI35: 0 | FJ35: 0 | FK35: 0 | FL35: 0 | FM35: 0 | FN35: 0 | FO35: 0 | FP35: 0 | FQ35: 0 | FR35: 0 | FS35: 0 | FT35: 0 | FU35: 0 | FV35: 0 | FW35: 0 | FX35: 0 | FY35: 0 | FZ35: 0 | GA35: 0 | GB35: 0 | GC35: 0 | GD35: 0 | GE35: 0 | GF35: 0 | GG35: 0 | GH35: 0 | GI35: 0 | GJ35: 0 | GK35: 0 | GL35: 0 | GM35: 0 | GN35: 0 | GO35: 0 | GP35: 0 | GQ35: 0 | GR35: 0 | GS35: 0 | GT35: 0 | GU35: 0 | GV35: 0 | GW35: 0 | GX35: 0 | GY35: 0 | GZ35: 0 | HA35: 0 | HB35: 0 | HC35: 0 | HD35: 0 | HE35: 0 | HF35: 0 | HG35: 0 | HH35: 0 | HI35: 0 | HJ35: 0 | HK35: 0 | HL35: 0 | HM35: 0 | HN35: 0 | HO35: 0 | HP35: 0 | HQ35: 0 | HR35: 0 | HS35: 0 | HT35: 0 | HU35: 0 | HV35: 0 | HW35: 0 | HX35: 0 | HY35: 0 | HZ35: 0 | IA35: 0 | IB35: 0 | IC35: 0 | ID35: 0 | IE35: 0 | IF35: 0 | IG35: 0 | IH35: 0 | II35: 0 | IJ35: 0 | IK35: 0 | IL35: 0 | IM35: 1 | IN35: 0 | IO35: 0 | IP35: 0 | IQ35: 0 | IR35: 0 | IS35: 0 | IT35: 0 | IU35: 0 | IV35: 0 | IW35: 0 | IX35: 0 | IY35: 0 | IZ35: 0 | JA35: 0 | JB35: 0 | JC35: 0 | JD35: 1 | JE35: 0 | JF35: 0 | JG35: 0 | JH35: 1 | JI35: 0 | JJ35: 0 | JK35: 0 | JL35: 0 | JM35: 2 | JN35: 0 | JO35: 0 | JP35: 0 | JQ35: 0 | JR35: 0 | JS35: 0 | JT35: 0 | JU35: 0 | JV35: 0 | JW35: 0 | JX35: 0 | JY35: 0 | JZ35: 0 | KA35: 0 | KB35: 0 | KC35: 0 | KD35: 0 | KE35: 0 | KF35: 0 | KG35: 0 | KH35: 0 | KI35: 0 | KJ35: 0 | KK35: 0 | KL35: 0 | KM35: 0 | KN35: 0 | KO35: 0 | KP35: 0 | KQ35: 0 | KR35: 0 | KS35: 0 | KT35: 0 | KU35: 0 | KV35: 0 | KW35: 0 | KX35: 0 | KY35: 0 | KZ35: 0 | LA35: 0 | LB35: 0 | LC35: 0 | LD35: 0 | LE35: 0 | LF35: 0 | LG35: 0 | LH35: 0 | LI35: 0 | LJ35: 0 | LK35: 0 | LL35: 0 | LM35: 0 | LN35: 0 | LO35: 0 | LP35: 0 | LQ35: 0 | LR35: 0 | LS35: 0 | LT35: 0 | LU35: 0 | LV35: 0 | LW35: 0 | LX35: 0 | LY35: 0 | LZ35: 0 | MA35: 0 | MB35: 0 | MC35: 0 | MD35: 0 | ME35: 0 | MF35: 0 | MG35: 0 | MH35: 0 | MI35: 0 | MJ35: 0 | MK35: 0 | ML35: 0 | MM35: 0 | MN35: 0 | MO35: 0 | MP35: 0 | MQ35: 0 | MR35: 0 | MS35: 0 | MT35: 0 | MU35: 0 | MV35: 0 | MW35: 0 | MX35: 0 | MY35: 0 | MZ35: 0 | NA35: 0 | NB35: 0 | NC35: 0 | ND35: 0 | NE35: 0 | NF35: 0 | NG35: 0 | NH35: 0 | NI35: 0 | NJ35: 0 | NK35: 0 | NL35: 0 | NM35: 0 | NN35: 0 | NO35: 0 | NP35: 0 | NQ35: 0 | NR35: 0 | NS35: 0 | NT35: 0 | NU35: 0 | NV35: 0 | NW35: 0 | NX35: 0 | NY35: 0 | NZ35: 0 | OA35: 0 | OB35: 0 | OC35: 0 | OD35: 0 | OE35: 0 | OF35: 0 | OG35: 0 | OH35: 0 | OI35: 0 | OJ35: 0 | OK35: 0 | OL35: 0 | OM35: 0 | ON35: 0 | OO35: 0 | OP35: 0 | OQ35: 0 | OR35: 0 | OS35: 0 | OT35: 0 | OU35: 0 | OV35: 0 | OW35: 0 | OX35: 0 | OY35: 0 | OZ35: 0 | PA35: 0 | PB35: 0 | PC35: 0 | PD35: 0 | PE35: 0 | PF35: 0 | PG35: 0 | PH35: 0 | PI35: 0 | PJ35: 0 | PK35: 0 | PL35: 0 | PM35: 0 | PN35: 0 | PO35: 0 | PP35: 0 | PQ35: 0 | PR35: 0 | PS35: 0 | PT35: 0 | PU35: 0 | PV35: 0 | PW35: 0 | PX35: 0 | PY35: 0 | PZ35: 0 | QA35: 0 | QB35: 0 | QC35: 0 | QD35: 0 | QE35: 0 | QF35: 0 | QG35: 0 | QH35: 0 | QI35: 0 | QJ35: 0 | QK35: 0 | QL35: 0 | QM35: 0 | QN35: 0 | QO35: 0 | QP35: 0 | QQ35: 0 | QR35: 0 | QS35: 0 | QT35: 0 | QU35: 0
A36: LUCIANO CASTILLO COLONNA | B36: AYABACA | C36: 200201 | D36: 1921 | E36: REMOLINOS | F36: I-1 | G36: AYABACA | H36: NINGUN CLAS | I36: AYABACA | J36: AYABACA | K36: SALUD LUCIANO CASTILLO COLONNA | L36: 3 | M36: 0 | N36: 0 | O36: 0 | P36: 0 | Q36: 0 | R36: 0 | S36: 0 | T36: 0 | U36: 0 | V36: 0 | W36: 0 | X36: 0 | Y36: 0 | Z36: 0 | AA36: 0 | AB36: 0 | AC36: 0 | AD36: 0 | AE36: 0 | AF36: 0 | AG36: 0 | AH36: 0 | AI36: 0 | AJ36: 0 | AK36: 0 | AL36: 0 | AM36: 0 | AN36: 0 | AO36: 0 | AP36: 0 | AQ36: 0 | AR36: 0 | AS36: 0 | AT36: 0 | AU36: 0 | AV36: 0 | AW36: 0 | AX36: 0 | AY36: 0 | AZ36: 0 | BA36: 0 | BB36: 0 | BC36: 0 | BD36: 0 | BE36: 0 | BF36: 0 | BG36: 0 | BH36: 0 | BI36: 0 | BJ36: 0 | BK36: 0 | BL36: 0 | BM36: 0 | BN36: 0 | BO36: 0 | BP36: 0 | BQ36: 0 | BR36: 0 | BS36: 0 | BT36: 0 | BU36: 0 | BV36: 0 | BW36: 0 | BX36: 0 | BY36: 0 | BZ36: 0 | CA36: 0 | CB36: 0 | CC36: 0 | CD36: 0 | CE36: 0 | CF36: 0 | CG36: 0 | CH36: 0 | CI36: 0 | CJ36: 0 | CK36: 0 | CL36: 0 | CM36: 0 | CN36: 0 | CO36: 0 | CP36: 0 | CQ36: 0 | CR36: 0 | CS36: 0 | CT36: 0 | CU36: 0 | CV36: 0 | CW36: 0 | CX36: 0 | CY36: 0 | CZ36: 0 | DA36: 0 | DB36: 0 | DC36: 0 | DD36: 0 | DE36: 0 | DF36: 0 | DG36: 0 | DH36: 0 | DI36: 0 | DJ36: 0 | DK36: 0 | DL36: 0 | DM36: 0 | DN36: 0 | DO36: 0 | DP36: 0 | DQ36: 0 | DR36: 0 | DS36: 0 | DT36: 0 | DU36: 0 | DV36: 0 | DW36: 0 | DX36: 0 | DY36: 0 | DZ36: 0 | EA36: 0 | EB36: 0 | EC36: 0 | ED36: 0 | EE36: 0 | EF36: 0 | EG36: 0 | EH36: 0 | EI36: 0 | EJ36: 0 | EK36: 0 | EL36: 0 | EM36: 0 | EN36: 0 | EO36: 0 | EP36: 0 | EQ36: 0 | ER36: 0 | ES36: 0 | ET36: 0 | EU36: 0 | EV36: 0 | EW36: 0 | EX36: 0 | EY36: 0 | EZ36: 0 | FA36: 0 | FB36: 0 | FC36: 0 | FD36: 0 | FE36: 0 | FF36: 0 | FG36: 0 | FH36: 0 | FI36: 0 | FJ36: 0 | FK36: 0 | FL36: 0 | FM36: 0 | FN36: 0 | FO36: 0 | FP36: 0 | FQ36: 0 | FR36: 0 | FS36: 0 | FT36: 0 | FU36: 0 | FV36: 0 | FW36: 0 | FX36: 0 | FY36: 0 | FZ36: 0 | GA36: 0 | GB36: 0 | GC36: 0 | GD36: 0 | GE36: 0 | GF36: 0 | GG36: 0 | GH36: 0 | GI36: 0 | GJ36: 0 | GK36: 0 | GL36: 0 | GM36: 0 | GN36: 0 | GO36: 0 | GP36: 0 | GQ36: 0 | GR36: 0 | GS36: 0 | GT36: 0 | GU36: 0 | GV36: 0 | GW36: 0 | GX36: 0 | GY36: 0 | GZ36: 0 | HA36: 0 | HB36: 0 | HC36: 0 | HD36: 0 | HE36: 0 | HF36: 0 | HG36: 0 | HH36: 0 | HI36: 0 | HJ36: 0 | HK36: 0 | HL36: 0 | HM36: 0 | HN36: 0 | HO36: 0 | HP36: 0 | HQ36: 0 | HR36: 0 | HS36: 0 | HT36: 0 | HU36: 0 | HV36: 0 | HW36: 0 | HX36: 0 | HY36: 0 | HZ36: 0 | IA36: 0 | IB36: 0 | IC36: 0 | ID36: 0 | IE36: 0 | IF36: 0 | IG36: 0 | IH36: 0 | II36: 0 | IJ36: 0 | IK36: 0 | IL36: 0 | IM36: 0 | IN36: 0 | IO36: 0 | IP36: 0 | IQ36: 0 | IR36: 0 | IS36: 0 | IT36: 0 | IU36: 0 | IV36: 0 | IW36: 0 | IX36: 0 | IY36: 0 | IZ36: 0 | JA36: 0 | JB36: 0 | JC36: 0 | JD36: 0 | JE36: 0 | JF36: 0 | JG36: 0 | JH36: 0 | JI36: 0 | JJ36: 0 | JK36: 0 | JL36: 0 | JM36: 0 | JN36: 0 | JO36: 0 | JP36: 0 | JQ36: 0 | JR36: 0 | JS36: 0 | JT36: 0 | JU36: 0 | JV36: 0 | JW36: 0 | JX36: 0 | JY36: 0 | JZ36: 0 | KA36: 0 | KB36: 0 | KC36: 0 | KD36: 0 | KE36: 0 | KF36: 0 | KG36: 0 | KH36: 0 | KI36: 0 | KJ36: 0 | KK36: 0 | KL36: 0 | KM36: 0 | KN36: 0 | KO36: 0 | KP36: 0 | KQ36: 0 | KR36: 0 | KS36: 0 | KT36: 0 | KU36: 0 | KV36: 0 | KW36: 0 | KX36: 0 | KY36: 0 | KZ36: 0 | LA36: 0 | LB36: 0 | LC36: 0 | LD36: 0 | LE36: 0 | LF36: 0 | LG36: 0 | LH36: 0 | LI36: 0 | LJ36: 0 | LK36: 0 | LL36: 0 | LM36: 0 | LN36: 0 | LO36: 0 | LP36: 0 | LQ36: 0 | LR36: 0 | LS36: 0 | LT36: 0 | LU36: 0 | LV36: 0 | LW36: 0 | LX36: 0 | LY36: 0 | LZ36: 0 | MA36: 0 | MB36: 0 | MC36: 0 | MD36: 0 | ME36: 0 | MF36: 0 | MG36: 0 | MH36: 0 | MI36: 0 | MJ36: 0 | MK36: 0 | ML36: 0 | MM36: 0 | MN36: 0 | MO36: 0 | MP36: 0 | MQ36: 0 | MR36: 0 | MS36: 0 | MT36: 0 | MU36: 0 | MV36: 0 | MW36: 0 | MX36: 0 | MY36: 0 | MZ36: 0 | NA36: 0 | NB36: 0 | NC36: 0 | ND36: 0 | NE36: 0 | NF36: 0 | NG36: 0 | NH36: 0 | NI36: 0 | NJ36: 0 | NK36: 0 | NL36: 0 | NM36: 0 | NN36: 0 | NO36: 0 | NP36: 0 | NQ36: 0 | NR36: 0 | NS36: 0 | NT36: 0 | NU36: 0 | NV36: 0 | NW36: 0 | NX36: 0 | NY36: 0 | NZ36: 0 | OA36: 0 | OB36: 0 | OC36: 0 | OD36: 0 | OE36: 0 | OF36: 0 | OG36: 0 | OH36: 0 | OI36: 0 | OJ36: 0 | OK36: 0 | OL36: 0 | OM36: 0 | ON36: 0 | OO36: 0 | OP36: 0 | OQ36: 0 | OR36: 0 | OS36: 0 | OT36: 0 | OU36: 0 | OV36: 0 | OW36: 0 | OX36: 0 | OY36: 0 | OZ36: 0 | PA36: 0 | PB36: 0 | PC36: 0 | PD36: 0 | PE36: 0 | PF36: 0 | PG36: 0 | PH36: 0 | PI36: 0 | PJ36: 0 | PK36: 0 | PL36: 0 | PM36: 0 | PN36: 0 | PO36: 0 | PP36: 0 | PQ36: 0 | PR36: 0 | PS36: 0 | PT36: 0 | PU36: 0 | PV36: 0 | PW36: 0 | PX36: 0 | PY36: 0 | PZ36: 0 | QA36: 0 | QB36: 0 | QC36: 0 | QD36: 0 | QE36: 0 | QF36: 0 | QG36: 0 | QH36: 0 | QI36: 0 | QJ36: 0 | QK36: 0 | QL36: 0 | QM36: 0 | QN36: 0 | QO36: 0 | QP36: 0 | QQ36: 0 | QR36: 0 | QS36: 0 | QT36: 0 | QU36: 0
A37: LUCIANO CASTILLO COLONNA | B37: AYABACA | C37: 200201 | D37: 1922 | E37: ANDURCO | F37: I-1 | G37: AYABACA | H37: NINGUN CLAS | I37: AYABACA | J37: AYABACA | K37: SALUD LUCIANO CASTILLO COLONNA | L37: 2 | M37: 0 | N37: 0 | O37: 0 | P37: 0 | Q37: 0 | R37: 0 | S37: 0 | T37: 0 | U37: 0 | V37: 0 | W37: 0 | X37: 0 | Y37: 0 | Z37: 0 | AA37: 0 | AB37: 0 | AC37: 0 | AD37: 0 | AE37: 0 | AF37: 0 | AG37: 0 | AH37: 0 | AI37: 0 | AJ37: 0 | AK37: 0 | AL37: 0 | AM37: 0 | AN37: 0 | AO37: 0 | AP37: 0 | AQ37: 0 | AR37: 0 | AS37: 0 | AT37: 0 | AU37: 0 | AV37: 0 | AW37: 0 | AX37: 0 | AY37: 0 | AZ37: 0 | BA37: 0 | BB37: 0 | BC37: 0 | BD37: 0 | BE37: 0 | BF37: 0 | BG37: 0 | BH37: 0 | BI37: 0 | BJ37: 0 | BK37: 0 | BL37: 0 | BM37: 0 | BN37: 0 | BO37: 0 | BP37: 0 | BQ37: 0 | BR37: 0 | BS37: 0 | BT37: 0 | BU37: 0 | BV37: 0 | BW37: 0 | BX37: 0 | BY37: 0 | BZ37: 0 | CA37: 0 | CB37: 0 | CC37: 0 | CD37: 0 | CE37: 0 | CF37: 0 | CG37: 0 | CH37: 0 | CI37: 0 | CJ37: 0 | CK37: 0 | CL37: 0 | CM37: 0 | CN37: 0 | CO37: 0 | CP37: 0 | CQ37: 0 | CR37: 0 | CS37: 0 | CT37: 0 | CU37: 0 | CV37: 0 | CW37: 0 | CX37: 0 | CY37: 0 | CZ37: 0 | DA37: 0 | DB37: 0 | DC37: 0 | DD37: 0 | DE37: 0 | DF37: 0 | DG37: 0 | DH37: 0 | DI37: 0 | DJ37: 0 | DK37: 0 | DL37: 0 | DM37: 0 | DN37: 0 | DO37: 0 | DP37: 0 | DQ37: 0 | DR37: 0 | DS37: 0 | DT37: 0 | DU37: 0 | DV37: 0 | DW37: 0 | DX37: 0 | DY37: 0 | DZ37: 0 | EA37: 0 | EB37: 0 | EC37: 0 | ED37: 0 | EE37: 0 | EF37: 0 | EG37: 0 | EH37: 0 | EI37: 0 | EJ37: 0 | EK37: 0 | EL37: 0 | EM37: 0 | EN37: 0 | EO37: 0 | EP37: 0 | EQ37: 0 | ER37: 0 | ES37: 0 | ET37: 0 | EU37: 0 | EV37: 0 | EW37: 0 | EX37: 0 | EY37: 0 | EZ37: 0 | FA37: 0 | FB37: 0 | FC37: 0 | FD37: 0 | FE37: 0 | FF37: 0 | FG37: 0 | FH37: 0 | FI37: 0 | FJ37: 0 | FK37: 0 | FL37: 0 | FM37: 0 | FN37: 0 | FO37: 0 | FP37: 0 | FQ37: 0 | FR37: 0 | FS37: 0 | FT37: 0 | FU37: 0 | FV37: 0 | FW37: 0 | FX37: 0 | FY37: 0 | FZ37: 0 | GA37: 0 | GB37: 0 | GC37: 0 | GD37: 0 | GE37: 0 | GF37: 0 | GG37: 0 | GH37: 0 | GI37: 0 | GJ37: 0 | GK37: 0 | GL37: 0 | GM37: 0 | GN37: 0 | GO37: 0 | GP37: 0 | GQ37: 0 | GR37: 0 | GS37: 0 | GT37: 0 | GU37: 0 | GV37: 0 | GW37: 0 | GX37: 0 | GY37: 0 | GZ37: 0 | HA37: 0 | HB37: 0 | HC37: 0 | HD37: 0 | HE37: 0 | HF37: 0 | HG37: 0 | HH37: 0 | HI37: 0 | HJ37: 0 | HK37: 0 | HL37: 0 | HM37: 0 | HN37: 0 | HO37: 0 | HP37: 0 | HQ37: 0 | HR37: 0 | HS37: 0 | HT37: 0 | HU37: 0 | HV37: 0 | HW37: 0 | HX37: 0 | HY37: 0 | HZ37: 0 | IA37: 0 | IB37: 0 | IC37: 0 | ID37: 0 | IE37: 1 | IF37: 0 | IG37: 0 | IH37: 0 | II37: 0 | IJ37: 0 | IK37: 0 | IL37: 0 | IM37: 0 | IN37: 0 | IO37: 0 | IP37: 0 | IQ37: 0 | IR37: 0 | IS37: 0 | IT37: 0 | IU37: 0 | IV37: 0 | IW37: 0 | IX37: 0 | IY37: 0 | IZ37: 0 | JA37: 0 | JB37: 0 | JC37: 1 | JD37: 0 | JE37: 0 | JF37: 0 | JG37: 0 | JH37: 0 | JI37: 0 | JJ37: 0 | JK37: 0 | JL37: 0 | JM37: 0 | JN37: 0 | JO37: 0 | JP37: 0 | JQ37: 0 | JR37: 0 | JS37: 0 | JT37: 0 | JU37: 0 | JV37: 0 | JW37: 0 | JX37: 0 | JY37: 0 | JZ37: 0 | KA37: 0 | KB37: 0 | KC37: 0 | KD37: 0 | KE37: 0 | KF37: 0 | KG37: 0 | KH37: 0 | KI37: 0 | KJ37: 0 | KK37: 0 | KL37: 0 | KM37: 0 | KN37: 0 | KO37: 0 | KP37: 0 | KQ37: 0 | KR37: 0 | KS37: 0 | KT37: 0 | KU37: 0 | KV37: 0 | KW37: 0 | KX37: 0 | KY37: 0 | KZ37: 0 | LA37: 0 | LB37: 0 | LC37: 0 | LD37: 0 | LE37: 0 | LF37: 0 | LG37: 0 | LH37: 0 | LI37: 0 | LJ37: 0 | LK37: 0 | LL37: 0 | LM37: 0 | LN37: 0 | LO37: 0 | LP37: 0 | LQ37: 0 | LR37: 0 | LS37: 0 | LT37: 0 | LU37: 0 | LV37: 0 | LW37: 0 | LX37: 0 | LY37: 0 | LZ37: 0 | MA37: 0 | MB37: 0 | MC37: 0 | MD37: 0 | ME37: 0 | MF37: 0 | MG37: 0 | MH37: 0 | MI37: 0 | MJ37: 0 | MK37: 0 | ML37: 0 | MM37: 0 | MN37: 0 | MO37: 0 | MP37: 0 | MQ37: 0 | MR37: 0 | MS37: 0 | MT37: 0 | MU37: 0 | MV37: 0 | MW37: 0 | MX37: 0 | MY37: 0 | MZ37: 0 | NA37: 0 | NB37: 0 | NC37: 0 | ND37: 0 | NE37: 0 | NF37: 0 | NG37: 0 | NH37: 0 | NI37: 0 | NJ37: 0 | NK37: 0 | NL37: 0 | NM37: 0 | NN37: 0 | NO37: 0 | NP37: 0 | NQ37: 0 | NR37: 0 | NS37: 0 | NT37: 0 | NU37: 0 | NV37: 0 | NW37: 0 | NX37: 0 | NY37: 0 | NZ37: 0 | OA37: 0 | OB37: 0 | OC37: 0 | OD37: 0 | OE37: 0 | OF37: 0 | OG37: 0 | OH37: 0 | OI37: 0 | OJ37: 0 | OK37: 0 | OL37: 0 | OM37: 0 | ON37: 0 | OO37: 0 | OP37: 0 | OQ37: 0 | OR37: 0 | OS37: 0 | OT37: 0 | OU37: 0 | OV37: 0 | OW37: 0 | OX37: 0 | OY37: 0 | OZ37: 0 | PA37: 0 | PB37: 0 | PC37: 0 | PD37: 0 | PE37: 0 | PF37: 0 | PG37: 0 | PH37: 0 | PI37: 0 | PJ37: 0 | PK37: 0 | PL37: 0 | PM37: 0 | PN37: 0 | PO37: 0 | PP37: 0 | PQ37: 0 | PR37: 0 | PS37: 0 | PT37: 0 | PU37: 0 | PV37: 0 | PW37: 0 | PX37: 0 | PY37: 0 | PZ37: 0 | QA37: 0 | QB37: 0 | QC37: 0 | QD37: 0 | QE37: 0 | QF37: 0 | QG37: 0 | QH37: 0 | QI37: 0 | QJ37: 0 | QK37: 0 | QL37: 0 | QM37: 0 | QN37: 0 | QO37: 0 | QP37: 0 | QQ37: 0 | QR37: 0 | QS37: 0 | QT37: 0 | QU37: 0
A38: LUCIANO CASTILLO COLONNA | B38: AYABACA | C38: 200201 | D38: 1922 | E38: ANDURCO | F38: I-1 | G38: AYABACA | H38: NINGUN CLAS | I38: AYABACA | J38: AYABACA | K38: SALUD LUCIANO CASTILLO COLONNA | L38: 1 | M38: 0 | N38: 0 | O38: 0 | P38: 0 | Q38: 0 | R38: 0 | S38: 0 | T38: 0 | U38: 0 | V38: 0 | W38: 0 | X38: 0 | Y38: 0 | Z38: 0 | AA38: 2 | AB38: 1 | AC38: 0 | AD38: 0 | AE38: 1 | AF38: 0 | AG38: 0 | AH38: 0 | AI38: 0 | AJ38: 0 | AK38: 0 | AL38: 0 | AM38: 0 | AN38: 0 | AO38: 0 | AP38: 0 | AQ38: 0 | AR38: 0 | AS38: 0 | AT38: 0 | AU38: 0 | AV38: 0 | AW38: 0 | AX38: 0 | AY38: 0 | AZ38: 0 | BA38: 0 | BB38: 0 | BC38: 0 | BD38: 0 | BE38: 0 | BF38: 0 | BG38: 0 | BH38: 0 | BI38: 0 | BJ38: 0 | BK38: 0 | BL38: 0 | BM38: 0 | BN38: 0 | BO38: 2 | BP38: 0 | BQ38: 0 | BR38: 0 | BS38: 0 | BT38: 0 | BU38: 0 | BV38: 0 | BW38: 0 | BX38: 0 | BY38: 0 | BZ38: 0 | CA38: 0 | CB38: 0 | CC38: 0 | CD38: 0 | CE38: 0 | CF38: 0 | CG38: 0 | CH38: 0 | CI38: 0 | CJ38: 0 | CK38: 0 | CL38: 0 | CM38: 0 | CN38: 0 | CO38: 0 | CP38: 0 | CQ38: 0 | CR38: 0 | CS38: 0 | CT38: 0 | CU38: 0 | CV38: 0 | CW38: 0 | CX38: 0 | CY38: 0 | CZ38: 0 | DA38: 0 | DB38: 0 | DC38: 0 | DD38: 0 | DE38: 0 | DF38: 0 | DG38: 0 | DH38: 0 | DI38: 0 | DJ38: 0 | DK38: 0 | DL38: 0 | DM38: 0 | DN38: 0 | DO38: 0 | DP38: 0 | DQ38: 0 | DR38: 0 | DS38: 0 | DT38: 0 | DU38: 0 | DV38: 0 | DW38: 0 | DX38: 0 | DY38: 0 | DZ38: 0 | EA38: 0 | EB38: 0 | EC38: 0 | ED38: 0 | EE38: 0 | EF38: 0 | EG38: 0 | EH38: 0 | EI38: 0 | EJ38: 0 | EK38: 0 | EL38: 0 | EM38: 0 | EN38: 0 | EO38: 0 | EP38: 0 | EQ38: 0 | ER38: 0 | ES38: 0 | ET38: 0 | EU38: 0 | EV38: 0 | EW38: 0 | EX38: 0 | EY38: 0 | EZ38: 1 | FA38: 0 | FB38: 0 | FC38: 0 | FD38: 1 | FE38: 0 | FF38: 0 | FG38: 2 | FH38: 0 | FI38: 0 | FJ38: 0 | FK38: 0 | FL38: 0 | FM38: 0 | FN38: 0 | FO38: 0 | FP38: 0 | FQ38: 0 | FR38: 0 | FS38: 0 | FT38: 0 | FU38: 0 | FV38: 0 | FW38: 0 | FX38: 0 | FY38: 0 | FZ38: 0 | GA38: 0 | GB38: 0 | GC38: 0 | GD38: 0 | GE38: 0 | GF38: 0 | GG38: 0 | GH38: 0 | GI38: 0 | GJ38: 0 | GK38: 0 | GL38: 0 | GM38: 0 | GN38: 0 | GO38: 0 | GP38: 0 | GQ38: 0 | GR38: 0 | GS38: 0 | GT38: 0 | GU38: 0 | GV38: 0 | GW38: 0 | GX38: 0 | GY38: 0 | GZ38: 0 | HA38: 0 | HB38: 0 | HC38: 0 | HD38: 0 | HE38: 0 | HF38: 0 | HG38: 0 | HH38: 0 | HI38: 0 | HJ38: 0 | HK38: 0 | HL38: 0 | HM38: 0 | HN38: 0 | HO38: 0 | HP38: 0 | HQ38: 0 | HR38: 0 | HS38: 0 | HT38: 0 | HU38: 0 | HV38: 0 | HW38: 0 | HX38: 0 | HY38: 0 | HZ38: 0 | IA38: 0 | IB38: 0 | IC38: 0 | ID38: 0 | IE38: 0 | IF38: 0 | IG38: 0 | IH38: 0 | II38: 0 | IJ38: 0 | IK38: 0 | IL38: 0 | IM38: 0 | IN38: 0 | IO38: 0 | IP38: 0 | IQ38: 0 | IR38: 0 | IS38: 0 | IT38: 0 | IU38: 0 | IV38: 0 | IW38: 0 | IX38: 0 | IY38: 0 | IZ38: 0 | JA38: 0 | JB38: 0 | JC38: 0 | JD38: 0 | JE38: 0 | JF38: 0 | JG38: 0 | JH38: 0 | JI38: 0 | JJ38: 0 | JK38: 0 | JL38: 0 | JM38: 0 | JN38: 0 | JO38: 0 | JP38: 0 | JQ38: 0 | JR38: 0 | JS38: 0 | JT38: 0 | JU38: 0 | JV38: 0 | JW38: 0 | JX38: 0 | JY38: 0 | JZ38: 0 | KA38: 0 | KB38: 0 | KC38: 0 | KD38: 0 | KE38: 0 | KF38: 0 | KG38: 0 | KH38: 0 | KI38: 0 | KJ38: 0 | KK38: 2 | KL38: 0 | KM38: 0 | KN38: 0 | KO38: 0 | KP38: 0 | KQ38: 0 | KR38: 0 | KS38: 0 | KT38: 0 | KU38: 0 | KV38: 0 | KW38: 0 | KX38: 0 | KY38: 0 | KZ38: 0 | LA38: 0 | LB38: 0 | LC38: 0 | LD38: 0 | LE38: 0 | LF38: 0 | LG38: 0 | LH38: 0 | LI38: 0 | LJ38: 0 | LK38: 0 | LL38: 0 | LM38: 2 | LN38: 0 | LO38: 0 | LP38: 0 | LQ38: 0 | LR38: 0 | LS38: 0 | LT38: 0 | LU38: 0 | LV38: 0 | LW38: 0 | LX38: 0 | LY38: 0 | LZ38: 0 | MA38: 0 | MB38: 0 | MC38: 0 | MD38: 0 | ME38: 0 | MF38: 0 | MG38: 0 | MH38: 0 | MI38: 0 | MJ38: 0 | MK38: 0 | ML38: 0 | MM38: 0 | MN38: 0 | MO38: 0 | MP38: 0 | MQ38: 0 | MR38: 0 | MS38: 0 | MT38: 0 | MU38: 0 | MV38: 0 | MW38: 0 | MX38: 0 | MY38: 0 | MZ38: 0 | NA38: 0 | NB38: 0 | NC38: 0 | ND38: 0 | NE38: 0 | NF38: 0 | NG38: 0 | NH38: 0 | NI38: 0 | NJ38: 0 | NK38: 0 | NL38: 0 | NM38: 0 | NN38: 0 | NO38: 0 | NP38: 0 | NQ38: 0 | NR38: 0 | NS38: 0 | NT38: 0 | NU38: 0 | NV38: 0 | NW38: 0 | NX38: 0 | NY38: 0 | NZ38: 0 | OA38: 0 | OB38: 0 | OC38: 0 | OD38: 0 | OE38: 0 | OF38: 0 | OG38: 0 | OH38: 0 | OI38: 0 | OJ38: 0 | OK38: 0 | OL38: 0 | OM38: 0 | ON38: 0 | OO38: 0 | OP38: 0 | OQ38: 0 | OR38: 0 | OS38: 0 | OT38: 0 | OU38: 0 | OV38: 0 | OW38: 0 | OX38: 0 | OY38: 0 | OZ38: 0 | PA38: 0 | PB38: 0 | PC38: 0 | PD38: 0 | PE38: 0 | PF38: 0 | PG38: 0 | PH38: 0 | PI38: 0 | PJ38: 0 | PK38: 0 | PL38: 0 | PM38: 0 | PN38: 0 | PO38: 0 | PP38: 0 | PQ38: 0 | PR38: 0 | PS38: 0 | PT38: 0 | PU38: 0 | PV38: 0 | PW38: 0 | PX38: 0 | PY38: 0 | PZ38: 0 | QA38: 0 | QB38: 0 | QC38: 0 | QD38: 0 | QE38: 0 | QF38: 0 | QG38: 0 | QH38: 0 | QI38: 0 | QJ38: 0 | QK38: 0 | QL38: 0 | QM38: 0 | QN38: 0 | QO38: 0 | QP38: 0 | QQ38: 0 | QR38: 0 | QS38: 0 | QT38: 0 | QU38: 0
A39: LUCIANO CASTILLO COLONNA | B39: AYABACA | C39: 200201 | D39: 1922 | E39: ANDURCO | F39: I-1 | G39: AYABACA | H39: NINGUN CLAS | I39: AYABACA | J39: AYABACA | K39: SALUD LUCIANO CASTILLO COLONNA | L39: 3 | M39: 0 | N39: 0 | O39: 0 | P39: 0 | Q39: 0 | R39: 0 | S39: 0 | T39: 0 | U39: 0 | V39: 0 | W39: 0 | X39: 0 | Y39: 0 | Z39: 0 | AA39: 0 | AB39: 0 | AC39: 0 | AD39: 0 | AE39: 0 | AF39: 0 | AG39: 0 | AH39: 0 | AI39: 0 | AJ39: 0 | AK39: 0 | AL39: 0 | AM39: 0 | AN39: 0 | AO39: 0 | AP39: 0 | AQ39: 0 | AR39: 0 | AS39: 0 | AT39: 0 | AU39: 0 | AV39: 0 | AW39: 0 | AX39: 0 | AY39: 0 | AZ39: 0 | BA39: 0 | BB39: 0 | BC39: 0 | BD39: 0 | BE39: 0 | BF39: 0 | BG39: 0 | BH39: 0 | BI39: 0 | BJ39: 0 | BK39: 0 | BL39: 0 | BM39: 0 | BN39: 0 | BO39: 0 | BP39: 0 | BQ39: 0 | BR39: 0 | BS39: 0 | BT39: 0 | BU39: 0 | BV39: 0 | BW39: 0 | BX39: 0 | BY39: 0 | BZ39: 0 | CA39: 0 | CB39: 0 | CC39: 0 | CD39: 0 | CE39: 0 | CF39: 0 | CG39: 0 | CH39: 0 | CI39: 0 | CJ39: 0 | CK39: 0 | CL39: 0 | CM39: 0 | CN39: 0 | CO39: 0 | CP39: 0 | CQ39: 0 | CR39: 0 | CS39: 0 | CT39: 0 | CU39: 0 | CV39: 0 | CW39: 0 | CX39: 0 | CY39: 0 | CZ39: 0 | DA39: 0 | DB39: 0 | DC39: 0 | DD39: 0 | DE39: 0 | DF39: 0 | DG39: 0 | DH39: 0 | DI39: 0 | DJ39: 0 | DK39: 0 | DL39: 0 | DM39: 0 | DN39: 0 | DO39: 0 | DP39: 0 | DQ39: 0 | DR39: 0 | DS39: 0 | DT39: 0 | DU39: 0 | DV39: 0 | DW39: 0 | DX39: 0 | DY39: 0 | DZ39: 0 | EA39: 0 | EB39: 0 | EC39: 0 | ED39: 0 | EE39: 0 | EF39: 0 | EG39: 0 | EH39: 0 | EI39: 0 | EJ39: 0 | EK39: 0 | EL39: 0 | EM39: 0 | EN39: 0 | EO39: 0 | EP39: 0 | EQ39: 0 | ER39: 0 | ES39: 0 | ET39: 0 | EU39: 0 | EV39: 0 | EW39: 0 | EX39: 0 | EY39: 1 | EZ39: 0 | FA39: 0 | FB39: 0 | FC39: 0 | FD39: 0 | FE39: 0 | FF39: 0 | FG39: 0 | FH39: 0 | FI39: 0 | FJ39: 0 | FK39: 0 | FL39: 0 | FM39: 0 | FN39: 0 | FO39: 0 | FP39: 0 | FQ39: 0 | FR39: 0 | FS39: 0 | FT39: 0 | FU39: 0 | FV39: 0 | FW39: 0 | FX39: 0 | FY39: 0 | FZ39: 0 | GA39: 0 | GB39: 0 | GC39: 0 | GD39: 0 | GE39: 0 | GF39: 0 | GG39: 0 | GH39: 0 | GI39: 0 | GJ39: 0 | GK39: 0 | GL39: 0 | GM39: 0 | GN39: 0 | GO39: 0 | GP39: 0 | GQ39: 0 | GR39: 0 | GS39: 0 | GT39: 0 | GU39: 0 | GV39: 0 | GW39: 0 | GX39: 0 | GY39: 0 | GZ39: 0 | HA39: 0 | HB39: 0 | HC39: 0 | HD39: 0 | HE39: 0 | HF39: 0 | HG39: 0 | HH39: 0 | HI39: 0 | HJ39: 0 | HK39: 0 | HL39: 0 | HM39: 0 | HN39: 0 | HO39: 0 | HP39: 0 | HQ39: 0 | HR39: 0 | HS39: 0 | HT39: 0 | HU39: 0 | HV39: 0 | HW39: 0 | HX39: 0 | HY39: 0 | HZ39: 0 | IA39: 0 | IB39: 0 | IC39: 0 | ID39: 0 | IE39: 3 | IF39: 0 | IG39: 0 | IH39: 0 | II39: 0 | IJ39: 0 | IK39: 0 | IL39: 0 | IM39: 0 | IN39: 0 | IO39: 0 | IP39: 0 | IQ39: 0 | IR39: 0 | IS39: 0 | IT39: 0 | IU39: 0 | IV39: 0 | IW39: 0 | IX39: 0 | IY39: 0 | IZ39: 0 | JA39: 0 | JB39: 0 | JC39: 1 | JD39: 0 | JE39: 0 | JF39: 0 | JG39: 2 | JH39: 0 | JI39: 0 | JJ39: 0 | JK39: 0 | JL39: 0 | JM39: 0 | JN39: 0 | JO39: 0 | JP39: 0 | JQ39: 0 | JR39: 0 | JS39: 0 | JT39: 0 | JU39: 0 | JV39: 0 | JW39: 0 | JX39: 0 | JY39: 0 | JZ39: 0 | KA39: 0 | KB39: 0 | KC39: 0 | KD39: 0 | KE39: 0 | KF39: 0 | KG39: 0 | KH39: 0 | KI39: 0 | KJ39: 0 | KK39: 0 | KL39: 0 | KM39: 0 | KN39: 0 | KO39: 0 | KP39: 0 | KQ39: 0 | KR39: 0 | KS39: 0 | KT39: 0 | KU39: 0 | KV39: 0 | KW39: 0 | KX39: 0 | KY39: 0 | KZ39: 0 | LA39: 0 | LB39: 0 | LC39: 0 | LD39: 0 | LE39: 0 | LF39: 0 | LG39: 0 | LH39: 0 | LI39: 0 | LJ39: 0 | LK39: 0 | LL39: 0 | LM39: 0 | LN39: 0 | LO39: 0 | LP39: 0 | LQ39: 0 | LR39: 0 | LS39: 0 | LT39: 0 | LU39: 0 | LV39: 0 | LW39: 0 | LX39: 0 | LY39: 0 | LZ39: 0 | MA39: 0 | MB39: 0 | MC39: 0 | MD39: 0 | ME39: 0 | MF39: 0 | MG39: 0 | MH39: 0 | MI39: 0 | MJ39: 0 | MK39: 0 | ML39: 0 | MM39: 0 | MN39: 0 | MO39: 0 | MP39: 0 | MQ39: 0 | MR39: 0 | MS39: 0 | MT39: 0 | MU39: 0 | MV39: 0 | MW39: 0 | MX39: 0 | MY39: 0 | MZ39: 0 | NA39: 0 | NB39: 0 | NC39: 0 | ND39: 0 | NE39: 0 | NF39: 0 | NG39: 0 | NH39: 0 | NI39: 0 | NJ39: 0 | NK39: 0 | NL39: 0 | NM39: 0 | NN39: 0 | NO39: 0 | NP39: 0 | NQ39: 0 | NR39: 0 | NS39: 0 | NT39: 0 | NU39: 0 | NV39: 0 | NW39: 0 | NX39: 0 | NY39: 0 | NZ39: 0 | OA39: 0 | OB39: 0 | OC39: 0 | OD39: 0 | OE39: 0 | OF39: 0 | OG39: 0 | OH39: 0 | OI39: 0 | OJ39: 0 | OK39: 0 | OL39: 0 | OM39: 0 | ON39: 0 | OO39: 0 | OP39: 0 | OQ39: 0 | OR39: 0 | OS39: 0 | OT39: 0 | OU39: 0 | OV39: 0 | OW39: 0 | OX39: 0 | OY39: 0 | OZ39: 0 | PA39: 0 | PB39: 0 | PC39: 0 | PD39: 0 | PE39: 0 | PF39: 0 | PG39: 0 | PH39: 0 | PI39: 0 | PJ39: 0 | PK39: 0 | PL39: 0 | PM39: 0 | PN39: 0 | PO39: 0 | PP39: 0 | PQ39: 0 | PR39: 0 | PS39: 0 | PT39: 0 | PU39: 0 | PV39: 0 | PW39: 0 | PX39: 0 | PY39: 0 | PZ39: 0 | QA39: 0 | QB39: 0 | QC39: 0 | QD39: 0 | QE39: 0 | QF39: 0 | QG39: 0 | QH39: 0 | QI39: 0 | QJ39: 0 | QK39: 0 | QL39: 0 | QM39: 0 | QN39: 0 | QO39: 0 | QP39: 0 | QQ39: 0 | QR39: 0 | QS39: 0 | QT39: 0 | QU39: 0
A40: LUCIANO CASTILLO COLONNA | B40: AYABACA | C40: 200201 | D40: 1923 | E40: HUIRIQUINGUE | F40: I-1 | G40: AYABACA | H40: NINGUN CLAS | I40: AYABACA | J40: AYABACA | K40: SALUD LUCIANO CASTILLO COLONNA | L40: 3 | M40: 0 | N40: 0 | O40: 0 | P40: 0 | Q40: 0 | R40: 0 | S40: 0 | T40: 0 | U40: 0 | V40: 0 | W40: 0 | X40: 0 | Y40: 0 | Z40: 0 | AA40: 0 | AB40: 1 | AC40: 0 | AD40: 0 | AE40: 0 | AF40: 0 | AG40: 0 | AH40: 0 | AI40: 0 | AJ40: 0 | AK40: 0 | AL40: 0 | AM40: 0 | AN40: 0 | AO40: 0 | AP40: 0 | AQ40: 0 | AR40: 0 | AS40: 0 | AT40: 0 | AU40: 0 | AV40: 0 | AW40: 0 | AX40: 0 | AY40: 0 | AZ40: 0 | BA40: 0 | BB40: 0 | BC40: 0 | BD40: 0 | BE40: 0 | BF40: 0 | BG40: 0 | BH40: 0 | BI40: 0 | BJ40: 0 | BK40: 0 | BL40: 0 | BM40: 0 | BN40: 0 | BO40: 0 | BP40: 0 | BQ40: 0 | BR40: 0 | BS40: 0 | BT40: 0 | BU40: 0 | BV40: 0 | BW40: 0 | BX40: 0 | BY40: 0 | BZ40: 0 | CA40: 0 | CB40: 0 | CC40: 0 | CD40: 0 | CE40: 0 | CF40: 0 | CG40: 0 | CH40: 0 | CI40: 0 | CJ40: 0 | CK40: 0 | CL40: 0 | CM40: 0 | CN40: 0 | CO40: 0 | CP40: 0 | CQ40: 0 | CR40: 0 | CS40: 0 | CT40: 0 | CU40: 0 | CV40: 0 | CW40: 0 | CX40: 0 | CY40: 0 | CZ40: 0 | DA40: 0 | DB40: 0 | DC40: 0 | DD40: 0 | DE40: 0 | DF40: 0 | DG40: 0 | DH40: 0 | DI40: 0 | DJ40: 0 | DK40: 0 | DL40: 0 | DM40: 0 | DN40: 0 | DO40: 0 | DP40: 0 | DQ40: 0 | DR40: 0 | DS40: 0 | DT40: 0 | DU40: 0 | DV40: 0 | DW40: 0 | DX40: 0 | DY40: 0 | DZ40: 0 | EA40: 0 | EB40: 0 | EC40: 0 | ED40: 0 | EE40: 0 | EF40: 0 | EG40: 0 | EH40: 0 | EI40: 0 | EJ40: 0 | EK40: 0 | EL40: 0 | EM40: 0 | EN40: 0 | EO40: 0 | EP40: 0 | EQ40: 0 | ER40: 0 | ES40: 0 | ET40: 0 | EU40: 0 | EV40: 0 | EW40: 0 | EX40: 0 | EY40: 0 | EZ40: 0 | FA40: 0 | FB40: 0 | FC40: 0 | FD40: 0 | FE40: 0 | FF40: 0 | FG40: 0 | FH40: 0 | FI40: 0 | FJ40: 0 | FK40: 0 | FL40: 0 | FM40: 0 | FN40: 0 | FO40: 0 | FP40: 0 | FQ40: 0 | FR40: 0 | FS40: 0 | FT40: 0 | FU40: 0 | FV40: 0 | FW40: 0 | FX40: 0 | FY40: 0 | FZ40: 0 | GA40: 0 | GB40: 0 | GC40: 0 | GD40: 0 | GE40: 0 | GF40: 0 | GG40: 0 | GH40: 0 | GI40: 0 | GJ40: 0 | GK40: 0 | GL40: 0 | GM40: 0 | GN40: 0 | GO40: 0 | GP40: 0 | GQ40: 0 | GR40: 0 | GS40: 0 | GT40: 0 | GU40: 0 | GV40: 0 | GW40: 0 | GX40: 0 | GY40: 0 | GZ40: 0 | HA40: 0 | HB40: 0 | HC40: 0 | HD40: 0 | HE40: 0 | HF40: 0 | HG40: 0 | HH40: 0 | HI40: 0 | HJ40: 0 | HK40: 0 | HL40: 0 | HM40: 0 | HN40: 0 | HO40: 0 | HP40: 0 | HQ40: 0 | HR40: 0 | HS40: 0 | HT40: 0 | HU40: 0 | HV40: 0 | HW40: 0 | HX40: 0 | HY40: 0 | HZ40: 0 | IA40: 0 | IB40: 0 | IC40: 0 | ID40: 0 | IE40: 0 | IF40: 0 | IG40: 0 | IH40: 0 | II40: 0 | IJ40: 0 | IK40: 0 | IL40: 0 | IM40: 0 | IN40: 0 | IO40: 0 | IP40: 0 | IQ40: 0 | IR40: 1 | IS40: 0 | IT40: 0 | IU40: 0 | IV40: 0 | IW40: 0 | IX40: 0 | IY40: 0 | IZ40: 0 | JA40: 0 | JB40: 0 | JC40: 0 | JD40: 0 | JE40: 0 | JF40: 0 | JG40: 0 | JH40: 0 | JI40: 0 | JJ40: 0 | JK40: 0 | JL40: 0 | JM40: 0 | JN40: 0 | JO40: 0 | JP40: 0 | JQ40: 0 | JR40: 0 | JS40: 0 | JT40: 0 | JU40: 0 | JV40: 0 | JW40: 0 | JX40: 0 | JY40: 0 | JZ40: 0 | KA40: 0 | KB40: 0 | KC40: 0 | KD40: 0 | KE40: 0 | KF40: 0 | KG40: 0 | KH40: 0 | KI40: 0 | KJ40: 0 | KK40: 0 | KL40: 0 | KM40: 0 | KN40: 0 | KO40: 0 | KP40: 0 | KQ40: 0 | KR40: 0 | KS40: 0 | KT40: 0 | KU40: 0 | KV40: 0 | KW40: 0 | KX40: 0 | KY40: 0 | KZ40: 0 | LA40: 0 | LB40: 0 | LC40: 0 | LD40: 0 | LE40: 0 | LF40: 0 | LG40: 0 | LH40: 0 | LI40: 0 | LJ40: 0 | LK40: 0 | LL40: 0 | LM40: 0 | LN40: 0 | LO40: 0 | LP40: 0 | LQ40: 0 | LR40: 0 | LS40: 0 | LT40: 0 | LU40: 0 | LV40: 0 | LW40: 0 | LX40: 0 | LY40: 0 | LZ40: 0 | MA40: 0 | MB40: 0 | MC40: 0 | MD40: 0 | ME40: 0 | MF40: 0 | MG40: 0 | MH40: 0 | MI40: 0 | MJ40: 0 | MK40: 0 | ML40: 0 | MM40: 0 | MN40: 0 | MO40: 0 | MP40: 0 | MQ40: 0 | MR40: 0 | MS40: 0 | MT40: 0 | MU40: 0 | MV40: 0 | MW40: 0 | MX40: 0 | MY40: 0 | MZ40: 0 | NA40: 0 | NB40: 0 | NC40: 0 | ND40: 0 | NE40: 0 | NF40: 0 | NG40: 0 | NH40: 0 | NI40: 0 | NJ40: 0 | NK40: 0 | NL40: 0 | NM40: 0 | NN40: 0 | NO40: 0 | NP40: 0 | NQ40: 0 | NR40: 0 | NS40: 0 | NT40: 0 | NU40: 0 | NV40: 0 | NW40: 0 | NX40: 0 | NY40: 0 | NZ40: 0 | OA40: 0 | OB40: 0 | OC40: 0 | OD40: 0 | OE40: 0 | OF40: 0 | OG40: 0 | OH40: 0 | OI40: 0 | OJ40: 0 | OK40: 0 | OL40: 0 | OM40: 0 | ON40: 0 | OO40: 0 | OP40: 0 | OQ40: 0 | OR40: 0 | OS40: 0 | OT40: 0 | OU40: 0 | OV40: 0 | OW40: 0 | OX40: 0 | OY40: 0 | OZ40: 0 | PA40: 0 | PB40: 0 | PC40: 0 | PD40: 0 | PE40: 0 | PF40: 0 | PG40: 0 | PH40: 0 | PI40: 0 | PJ40: 0 | PK40: 0 | PL40: 0 | PM40: 0 | PN40: 0 | PO40: 0 | PP40: 0 | PQ40: 0 | PR40: 0 | PS40: 0 | PT40: 0 | PU40: 0 | PV40: 0 | PW40: 0 | PX40: 0 | PY40: 0 | PZ40: 0 | QA40: 0 | QB40: 0 | QC40: 0 | QD40: 0 | QE40: 0 | QF40: 0 | QG40: 0 | QH40: 0 | QI40: 0 | QJ40: 0 | QK40: 0 | QL40: 0 | QM40: 0 | QN40: 0 | QO40: 0 | QP40: 0 | QQ40: 0 | QR40: 0 | QS40: 0 | QT40: 0 | QU40: 0
A41: LUCIANO CASTILLO COLONNA | B41: AYABACA | C41: 200201 | D41: 1923 | E41: HUIRIQUINGUE | F41: I-1 | G41: AYABACA | H41: NINGUN CLAS | I41: AYABACA | J41: AYABACA | K41: SALUD LUCIANO CASTILLO COLONNA | L41: 2 | M41: 0 | N41: 0 | O41: 0 | P41: 0 | Q41: 0 | R41: 0 | S41: 0 | T41: 2 | U41: 0 | V41: 0 | W41: 1 | X41: 0 | Y41: 0 | Z41: 0 | AA41: 3 | AB41: 2 | AC41: 0 | AD41: 0 | AE41: 0 | AF41: 0 | AG41: 0 | AH41: 0 | AI41: 0 | AJ41: 0 | AK41: 0 | AL41: 0 | AM41: 0 | AN41: 0 | AO41: 0 | AP41: 0 | AQ41: 2 | AR41: 1 | AS41: 0 | AT41: 0 | AU41: 0 | AV41: 0 | AW41: 0 | AX41: 0 | AY41: 2 | AZ41: 1 | BA41: 0 | BB41: 0 | BC41: 0 | BD41: 0 | BE41: 0 | BF41: 0 | BG41: 0 | BH41: 0 | BI41: 0 | BJ41: 0 | BK41: 0 | BL41: 0 | BM41: 0 | BN41: 0 | BO41: 2 | BP41: 1 | BQ41: 0 | BR41: 0 | BS41: 0 | BT41: 0 | BU41: 0 | BV41: 0 | BW41: 0 | BX41: 0 | BY41: 0 | BZ41: 0 | CA41: 0 | CB41: 0 | CC41: 0 | CD41: 0 | CE41: 0 | CF41: 0 | CG41: 0 | CH41: 0 | CI41: 0 | CJ41: 0 | CK41: 0 | CL41: 0 | CM41: 0 | CN41: 0 | CO41: 0 | CP41: 0 | CQ41: 0 | CR41: 0 | CS41: 0 | CT41: 0 | CU41: 0 | CV41: 0 | CW41: 0 | CX41: 0 | CY41: 0 | CZ41: 0 | DA41: 0 | DB41: 0 | DC41: 0 | DD41: 0 | DE41: 0 | DF41: 0 | DG41: 0 | DH41: 0 | DI41: 0 | DJ41: 0 | DK41: 0 | DL41: 0 | DM41: 0 | DN41: 0 | DO41: 0 | DP41: 0 | DQ41: 0 | DR41: 0 | DS41: 0 | DT41: 0 | DU41: 0 | DV41: 0 | DW41: 0 | DX41: 0 | DY41: 0 | DZ41: 0 | EA41: 0 | EB41: 0 | EC41: 0 | ED41: 0 | EE41: 0 | EF41: 0 | EG41: 0 | EH41: 0 | EI41: 0 | EJ41: 0 | EK41: 0 | EL41: 0 | EM41: 0 | EN41: 0 | EO41: 0 | EP41: 0 | EQ41: 0 | ER41: 0 | ES41: 0 | ET41: 0 | EU41: 1 | EV41: 1 | EW41: 0 | EX41: 0 | EY41: 2 | EZ41: 1 | FA41: 0 | FB41: 0 | FC41: 0 | FD41: 0 | FE41: 0 | FF41: 0 | FG41: 0 | FH41: 0 | FI41: 0 | FJ41: 0 | FK41: 1 | FL41: 0 | FM41: 0 | FN41: 0 | FO41: 0 | FP41: 0 | FQ41: 0 | FR41: 0 | FS41: 0 | FT41: 0 | FU41: 0 | FV41: 0 | FW41: 0 | FX41: 0 | FY41: 0 | FZ41: 0 | GA41: 0 | GB41: 0 | GC41: 0 | GD41: 0 | GE41: 0 | GF41: 0 | GG41: 0 | GH41: 0 | GI41: 0 | GJ41: 0 | GK41: 0 | GL41: 0 | GM41: 0 | GN41: 0 | GO41: 0 | GP41: 0 | GQ41: 0 | GR41: 0 | GS41: 0 | GT41: 0 | GU41: 0 | GV41: 0 | GW41: 0 | GX41: 0 | GY41: 0 | GZ41: 0 | HA41: 0 | HB41: 0 | HC41: 0 | HD41: 0 | HE41: 0 | HF41: 0 | HG41: 0 | HH41: 0 | HI41: 0 | HJ41: 0 | HK41: 0 | HL41: 0 | HM41: 0 | HN41: 0 | HO41: 0 | HP41: 0 | HQ41: 0 | HR41: 0 | HS41: 0 | HT41: 0 | HU41: 0 | HV41: 0 | HW41: 1 | HX41: 1 | HY41: 0 | HZ41: 0 | IA41: 0 | IB41: 0 | IC41: 0 | ID41: 0 | IE41: 0 | IF41: 0 | IG41: 0 | IH41: 0 | II41: 1 | IJ41: 0 | IK41: 0 | IL41: 0 | IM41: 0 | IN41: 0 | IO41: 0 | IP41: 0 | IQ41: 0 | IR41: 0 | IS41: 0 | IT41: 0 | IU41: 0 | IV41: 0 | IW41: 0 | IX41: 0 | IY41: 0 | IZ41: 0 | JA41: 0 | JB41: 0 | JC41: 1 | JD41: 0 | JE41: 0 | JF41: 0 | JG41: 0 | JH41: 0 | JI41: 0 | JJ41: 0 | JK41: 0 | JL41: 0 | JM41: 0 | JN41: 0 | JO41: 0 | JP41: 0 | JQ41: 0 | JR41: 0 | JS41: 0 | JT41: 0 | JU41: 2 | JV41: 1 | JW41: 0 | JX41: 0 | JY41: 0 | JZ41: 0 | KA41: 0 | KB41: 0 | KC41: 0 | KD41: 0 | KE41: 0 | KF41: 0 | KG41: 0 | KH41: 0 | KI41: 0 | KJ41: 0 | KK41: 0 | KL41: 0 | KM41: 0 | KN41: 0 | KO41: 0 | KP41: 0 | KQ41: 0 | KR41: 0 | KS41: 0 | KT41: 0 | KU41: 0 | KV41: 0 | KW41: 2 | KX41: 1 | KY41: 0 | KZ41: 0 | LA41: 0 | LB41: 0 | LC41: 0 | LD41: 0 | LE41: 0 | LF41: 0 | LG41: 0 | LH41: 0 | LI41: 0 | LJ41: 0 | LK41: 0 | LL41: 0 | LM41: 0 | LN41: 0 | LO41: 0 | LP41: 0 | LQ41: 0 | LR41: 0 | LS41: 0 | LT41: 0 | LU41: 0 | LV41: 0 | LW41: 0 | LX41: 0 | LY41: 2 | LZ41: 1 | MA41: 0 | MB41: 0 | MC41: 0 | MD41: 0 | ME41: 0 | MF41: 0 | MG41: 0 | MH41: 0 | MI41: 0 | MJ41: 0 | MK41: 0 | ML41: 0 | MM41: 0 | MN41: 0 | MO41: 0 | MP41: 0 | MQ41: 0 | MR41: 0 | MS41: 0 | MT41: 0 | MU41: 0 | MV41: 0 | MW41: 0 | MX41: 0 | MY41: 0 | MZ41: 0 | NA41: 0 | NB41: 0 | NC41: 0 | ND41: 0 | NE41: 0 | NF41: 0 | NG41: 0 | NH41: 0 | NI41: 0 | NJ41: 0 | NK41: 0 | NL41: 0 | NM41: 0 | NN41: 0 | NO41: 0 | NP41: 0 | NQ41: 0 | NR41: 0 | NS41: 0 | NT41: 0 | NU41: 0 | NV41: 0 | NW41: 0 | NX41: 0 | NY41: 0 | NZ41: 0 | OA41: 0 | OB41: 0 | OC41: 0 | OD41: 0 | OE41: 0 | OF41: 0 | OG41: 0 | OH41: 0 | OI41: 0 | OJ41: 0 | OK41: 0 | OL41: 0 | OM41: 0 | ON41: 0 | OO41: 0 | OP41: 0 | OQ41: 0 | OR41: 0 | OS41: 0 | OT41: 0 | OU41: 0 | OV41: 0 | OW41: 0 | OX41: 0 | OY41: 0 | OZ41: 0 | PA41: 0 | PB41: 0 | PC41: 0 | PD41: 0 | PE41: 0 | PF41: 0 | PG41: 0 | PH41: 0 | PI41: 0 | PJ41: 0 | PK41: 0 | PL41: 0 | PM41: 0 | PN41: 0 | PO41: 0 | PP41: 0 | PQ41: 0 | PR41: 0 | PS41: 0 | PT41: 0 | PU41: 0 | PV41: 0 | PW41: 0 | PX41: 0 | PY41: 0 | PZ41: 0 | QA41: 0 | QB41: 0 | QC41: 0 | QD41: 0 | QE41: 0 | QF41: 0 | QG41: 0 | QH41: 0 | QI41: 0 | QJ41: 0 | QK41: 0 | QL41: 0 | QM41: 0 | QN41: 0 | QO41: 0 | QP41: 0 | QQ41: 0 | QR41: 0 | QS41: 0 | QT41: 2 | QU41: 1
A42: LUCIANO CASTILLO COLONNA | B42: AYABACA | C42: 200201 | D42: 1923 | E42: HUIRIQUINGUE | F42: I-1 | G42: AYABACA | H42: NINGUN CLAS | I42: AYABACA | J42: AYABACA | K42: SALUD LUCIANO CASTILLO COLONNA | L42: 1 | M42: 0 | N42: 0 | O42: 0 | P42: 0 | Q42: 0 | R42: 0 | S42: 0 | T42: 0 | U42: 0 | V42: 0 | W42: 0 | X42: 0 | Y42: 0 | Z42: 0 | AA42: 8 | AB42: 3 | AC42: 0 | AD42: 0 | AE42: 1 | AF42: 0 | AG42: 0 | AH42: 0 | AI42: 0 | AJ42: 0 | AK42: 0 | AL42: 0 | AM42: 0 | AN42: 0 | AO42: 0 | AP42: 0 | AQ42: 0 | AR42: 0 | AS42: 0 | AT42: 0 | AU42: 0 | AV42: 0 | AW42: 0 | AX42: 0 | AY42: 1 | AZ42: 0 | BA42: 0 | BB42: 0 | BC42: 0 | BD42: 0 | BE42: 0 | BF42: 0 | BG42: 0 | BH42: 0 | BI42: 0 | BJ42: 0 | BK42: 0 | BL42: 0 | BM42: 0 | BN42: 0 | BO42: 1 | BP42: 0 | BQ42: 0 | BR42: 0 | BS42: 0 | BT42: 0 | BU42: 0 | BV42: 0 | BW42: 0 | BX42: 0 | BY42: 0 | BZ42: 0 | CA42: 0 | CB42: 0 | CC42: 0 | CD42: 0 | CE42: 0 | CF42: 0 | CG42: 0 | CH42: 0 | CI42: 0 | CJ42: 0 | CK42: 0 | CL42: 0 | CM42: 0 | CN42: 0 | CO42: 0 | CP42: 0 | CQ42: 0 | CR42: 0 | CS42: 0 | CT42: 0 | CU42: 0 | CV42: 0 | CW42: 0 | CX42: 0 | CY42: 0 | CZ42: 0 | DA42: 0 | DB42: 0 | DC42: 0 | DD42: 0 | DE42: 0 | DF42: 0 | DG42: 0 | DH42: 0 | DI42: 0 | DJ42: 0 | DK42: 0 | DL42: 0 | DM42: 0 | DN42: 0 | DO42: 0 | DP42: 0 | DQ42: 0 | DR42: 0 | DS42: 0 | DT42: 0 | DU42: 0 | DV42: 0 | DW42: 0 | DX42: 0 | DY42: 0 | DZ42: 0 | EA42: 0 | EB42: 0 | EC42: 0 | ED42: 0 | EE42: 0 | EF42: 0 | EG42: 0 | EH42: 0 | EI42: 0 | EJ42: 0 | EK42: 0 | EL42: 0 | EM42: 0 | EN42: 0 | EO42: 0 | EP42: 0 | EQ42: 0 | ER42: 0 | ES42: 0 | ET42: 0 | EU42: 0 | EV42: 0 | EW42: 0 | EX42: 0 | EY42: 0 | EZ42: 0 | FA42: 0 | FB42: 0 | FC42: 1 | FD42: 0 | FE42: 0 | FF42: 0 | FG42: 0 | FH42: 0 | FI42: 0 | FJ42: 0 | FK42: 0 | FL42: 0 | FM42: 0 | FN42: 0 | FO42: 0 | FP42: 0 | FQ42: 0 | FR42: 0 | FS42: 0 | FT42: 0 | FU42: 0 | FV42: 0 | FW42: 0 | FX42: 0 | FY42: 0 | FZ42: 0 | GA42: 0 | GB42: 0 | GC42: 0 | GD42: 0 | GE42: 0 | GF42: 0 | GG42: 0 | GH42: 0 | GI42: 0 | GJ42: 0 | GK42: 0 | GL42: 0 | GM42: 0 | GN42: 0 | GO42: 0 | GP42: 0 | GQ42: 0 | GR42: 0 | GS42: 0 | GT42: 0 | GU42: 0 | GV42: 0 | GW42: 0 | GX42: 0 | GY42: 0 | GZ42: 0 | HA42: 0 | HB42: 0 | HC42: 0 | HD42: 0 | HE42: 0 | HF42: 0 | HG42: 0 | HH42: 0 | HI42: 0 | HJ42: 0 | HK42: 0 | HL42: 0 | HM42: 0 | HN42: 0 | HO42: 0 | HP42: 0 | HQ42: 0 | HR42: 0 | HS42: 0 | HT42: 0 | HU42: 0 | HV42: 0 | HW42: 0 | HX42: 1 | HY42: 0 | HZ42: 0 | IA42: 1 | IB42: 0 | IC42: 0 | ID42: 0 | IE42: 0 | IF42: 0 | IG42: 0 | IH42: 0 | II42: 0 | IJ42: 0 | IK42: 0 | IL42: 0 | IM42: 0 | IN42: 0 | IO42: 0 | IP42: 0 | IQ42: 7 | IR42: 0 | IS42: 0 | IT42: 0 | IU42: 0 | IV42: 0 | IW42: 0 | IX42: 0 | IY42: 0 | IZ42: 0 | JA42: 0 | JB42: 0 | JC42: 0 | JD42: 0 | JE42: 0 | JF42: 0 | JG42: 0 | JH42: 0 | JI42: 0 | JJ42: 0 | JK42: 0 | JL42: 0 | JM42: 0 | JN42: 0 | JO42: 0 | JP42: 0 | JQ42: 0 | JR42: 0 | JS42: 0 | JT42: 0 | JU42: 0 | JV42: 0 | JW42: 0 | JX42: 0 | JY42: 0 | JZ42: 0 | KA42: 0 | KB42: 0 | KC42: 0 | KD42: 0 | KE42: 0 | KF42: 0 | KG42: 0 | KH42: 0 | KI42: 0 | KJ42: 0 | KK42: 0 | KL42: 0 | KM42: 0 | KN42: 0 | KO42: 0 | KP42: 0 | KQ42: 0 | KR42: 0 | KS42: 0 | KT42: 0 | KU42: 0 | KV42: 0 | KW42: 1 | KX42: 0 | KY42: 0 | KZ42: 0 | LA42: 0 | LB42: 0 | LC42: 0 | LD42: 0 | LE42: 0 | LF42: 0 | LG42: 0 | LH42: 0 | LI42: 0 | LJ42: 0 | LK42: 0 | LL42: 0 | LM42: 0 | LN42: 0 | LO42: 0 | LP42: 0 | LQ42: 0 | LR42: 0 | LS42: 0 | LT42: 0 | LU42: 0 | LV42: 0 | LW42: 0 | LX42: 0 | LY42: 1 | LZ42: 0 | MA42: 0 | MB42: 0 | MC42: 0 | MD42: 0 | ME42: 0 | MF42: 0 | MG42: 0 | MH42: 0 | MI42: 0 | MJ42: 0 | MK42: 0 | ML42: 0 | MM42: 0 | MN42: 0 | MO42: 0 | MP42: 0 | MQ42: 0 | MR42: 0 | MS42: 0 | MT42: 0 | MU42: 0 | MV42: 0 | MW42: 0 | MX42: 0 | MY42: 0 | MZ42: 0 | NA42: 0 | NB42: 0 | NC42: 0 | ND42: 0 | NE42: 0 | NF42: 0 | NG42: 0 | NH42: 0 | NI42: 0 | NJ42: 0 | NK42: 0 | NL42: 0 | NM42: 0 | NN42: 0 | NO42: 0 | NP42: 0 | NQ42: 0 | NR42: 0 | NS42: 0 | NT42: 0 | NU42: 0 | NV42: 0 | NW42: 0 | NX42: 0 | NY42: 0 | NZ42: 0 | OA42: 0 | OB42: 0 | OC42: 0 | OD42: 0 | OE42: 0 | OF42: 0 | OG42: 0 | OH42: 0 | OI42: 0 | OJ42: 0 | OK42: 0 | OL42: 0 | OM42: 0 | ON42: 0 | OO42: 0 | OP42: 0 | OQ42: 0 | OR42: 0 | OS42: 0 | OT42: 0 | OU42: 0 | OV42: 0 | OW42: 0 | OX42: 0 | OY42: 0 | OZ42: 0 | PA42: 0 | PB42: 0 | PC42: 0 | PD42: 0 | PE42: 0 | PF42: 0 | PG42: 0 | PH42: 0 | PI42: 0 | PJ42: 0 | PK42: 0 | PL42: 0 | PM42: 0 | PN42: 0 | PO42: 0 | PP42: 0 | PQ42: 0 | PR42: 0 | PS42: 0 | PT42: 0 | PU42: 0 | PV42: 0 | PW42: 0 | PX42: 0 | PY42: 0 | PZ42: 0 | QA42: 0 | QB42: 0 | QC42: 0 | QD42: 0 | QE42: 0 | QF42: 0 | QG42: 0 | QH42: 0 | QI42: 0 | QJ42: 0 | QK42: 0 | QL42: 0 | QM42: 0 | QN42: 0 | QO42: 0 | QP42: 0 | QQ42: 0 | QR42: 0 | QS42: 0 | QT42: 0 | QU42: 0
